{"text_format":"1","workbook":"xlsx","n_sheets":5,"sheets":["About","Example","Panel Adjustment","Vox VT__+ patches","Vox VT20+ patches Backup"],"not_rendered":{"charts":0,"images":18,"macros":1,"external_links":0,"defined_names":9,"comments":1,"pivot_tables":0},"unopened":[],"bounds":{"document_bytes":16777216,"sheet_cells":100000,"rows_first":2000,"rows_last":500,"rows_between":2000,"halvings":0,"cell_chars":16384,"cell_head_chars":4096},"cells_cut":0,"cells_raw":0,"read":"whole","date_system":"1900"}

{"sheet":"About","index":0,"n_rows":38,"n_cols":3,"rows_kept":38,"cut":false,"hidden":false,"merged":[]}
[]
[null,"VOX     VT20+, VT40+, CT80+, VT120+ patch database"]
[]
[]
[null,"From 2011 to 2013 there was a database provided at the Voxamps.com webpage, where users could share sound settings (patches) for their VOX amps."]
[null,"Unfortunately it was closed in 2013. "]
[null,"After that some of the patch parameters are still available at the wayback machine www.archive.org, but the Flash script which was used to display these settings"]
[null,"was also lost."]
[null,"We have retrieved most of the patch settings and manually copied them into a table [see Vox VT20+ patches]. "]
[null,"Also we are trying to figuring out the exact meanings of the patch parameters  [see Example]. "]
[]
[null,"How to use"]
[null,"Select the Vox VT  + patches tab. In most cases you will select one of the red rows (Description or Inspired by) and then search for a certain style or Band name."]
[null,"Look at the line number of that patch entry on the left side of the table."]
[]
[null,"Then goto the Panel adjustment sheet."]
[null,"Enter that line number in the Patch # input field. Above that, select the amp model you have from the dropdown menu.  This adjusts the power level correctly. "]
[null,"Immediately a visualization of the patch settings and proper amp will be displayed in the panel below."]
[]
[]
[]
[]
[]
[]
["Changelog"]
[]
["1.0","2015-01-20","manual import of patches from: https://web.archive.org/web/20121230012105/http://www.voxamps.com/toneroom/browse/hardware/valvetronix-plus/1/"]
[null,null,"building a database of that patches in Excel + documentation + panel settings display"]
[null,null,"Corrected some spelling in patch descriptions."]
[null,null,"323 patches with 267 patch settings (56 missing) (2011-01-11 … 2013-3-13)"]
[2,"2015-04-09","By ODNewTrix: Replaced the graphics of the face panels with photo images.  Added selection to choose model type and matching face panel."]
[null,null,"Added macros that automatically adjust the knob settings to the correct position from the stored patch setting."]
[]
[]
[]
[]
["Copyright: www.engon.de/sounds"]
["Improvements are welcome. Just send me a mail: op@engon.de"]

{"sheet":"Example","index":1,"n_rows":60,"n_cols":8,"rows_kept":60,"cut":false,"hidden":false,"merged":[]}
[]
["Real adjustment of the Vox amp and corresponding patch parameters from the toneroom database"]
[]
[]
[]
[]
[]
[]
[]
[]
[]
[]
[]
[]
[]
[null,"Fig 1: Photo of Amp face"]
[]
[]
[]
[]
[]
[]
[]
[]
[]
[]
[]
[null,"Fig 2: Panel of Vox VT20+"]
[]
[null,"Patch name:","Beno Bluesbreaker"]
[null,"Author:","sonnyblu"]
[null,"Created on:","2012-01-06"]
[null,"Range:","Valvetronix+ (VT80+)"]
[null,"Demo:","http://www.youtube.com/watch?v=t5ZIi1K7BU4"]
[]
[null,"Parameter","Value","Range","Meaning",null,"Missing info:"]
[null,"Style:",7,"(1…11)","7 = UK Rock"]
[null,"Red-Green:",2,"(1…3)","2 = green",null,"1=?, 3=?","1=red, 3= orange"]
[null,"Gain:",100,"(0…100)"]
[null,"Volume:",100,"(0…100)"]
[null,"Treble:",73,"(0…100)"]
[null,"Middle:",49,"(0…100)"]
[null,"Bass:",24,"(0…100)"]
[null,"Master:",18,"(0…100)"]
[null,"PowerLevel:",100,"(0…100)"]
[]
[null,"Effect1:",1,"(1…11)","Effect1 type (PEDAL)"]
[null,"Edit1:",0,"(0…100)","Effect 1 value"]
[]
[null,"Tap:",10," (0…2975)?",null,null,"Meaning and max range unknown, perhaps Milliseconds (ms)"]
[]
[null,"Effect2:",1,"(1…11)","Effect 2 type, 4 = phase"]
[null,"Edit2:",0,"(0…100)","Effect 2 value",null,"?"]
[null,"Edit2HOLD:",1,"(0…100)","Speed of Effect 2(Mod/Delay)",null,"?"]
[null,"TapOnOff:",0,"(0 / 1)","?",null,"?"]
[]
[null,"Edit3:",0,"(0…100)","Reverb?",null,"Reverb?"]
[]
[]
[null,"Note: The stored patch settings are not an exact match to the referenced youtube video, but are reasonably close."]

{"sheet":"Panel Adjustment","index":2,"n_rows":94,"n_cols":13,"rows_kept":94,"cut":false,"hidden":false,"merged":[[6,2,6,16],[8,2,8,16]]}
[null,"VOX"]
[null,"VALVETRONIX+","VT80+","Select amp size from dropdown menu for proper power level setting"]
[]
[null,"Type Patch #:",3]
[]
[null,"Patch name:",{"$f":"B38","v":"comfortably number"}]
[null,"Description:",{"$f":"B40","v":"played on a tele with a neck humbucker"}]
[]
[null,"Inspired by:",{"$f":"B41","v":"Pink Floyd, David Gilmour - comfortably numb"}]
[]
[null,"Author:",{"$f":"B39","v":"dansrockin"}]
[null,"Created on:",{"$f":"B44","v":"2011-03-07"}]
[null,"Range:",{"$f":"B42","v":"Valvetronix+ (VT20+)"}]
[null,"Demo:",{"$f":"B45","v":0}]
[null,"Rating",{"$f":"B47","v":5}]
[]
[]
[]
[]
[]
[]
[]
[]
[]
[]
[]
[]
[]
[]
[null,"Not assigned:"]
[null,"EDit2Hold",{"$f":"B64","v":1}]
[null,"Tap",{"$f":"B50","v":3}]
[null,"TapOnOff",{"$f":"B65","v":0}]
[]
["Hidden: Parameter Set of Patch and calculation for vizualization"]
["Parameter","Value","Display",null,"Meaning"]
[]
[{"$f":"'Vox VT__+ patches'!A1","v":"Name"},{"$f":"INDEX(TblPatches,PatchNumber -1,1)","v":"comfortably number"}]
[{"$f":"'Vox VT__+ patches'!B1","v":"Author"},{"$f":"INDEX(TblPatches,PatchNumber -1,2)","v":"dansrockin"}]
[{"$f":"'Vox VT__+ patches'!C1","v":"Description"},{"$f":"INDEX(TblPatches,PatchNumber -1,3)","v":"played on a tele with a neck humbucker"}]
[{"$f":"'Vox VT__+ patches'!D1","v":"Inspired by"},{"$f":"INDEX(TblPatches,PatchNumber -1,4)","v":"Pink Floyd, David Gilmour - comfortably numb"}]
[{"$f":"'Vox VT__+ patches'!E1","v":"Range"},{"$f":"INDEX(TblPatches,PatchNumber -1,5)","v":"Valvetronix+ (VT20+)"}]
[{"$f":"'Vox VT__+ patches'!F1","v":"Style"},{"$f":"INDEX(TblPatches,PatchNumber -1,6)","v":"Blues Rock "}]
[{"$f":"'Vox VT__+ patches'!G1","v":"Created on"},{"$f":"INDEX(TblPatches,PatchNumber -1,7)","v":"2011-03-07"}]
[{"$f":"'Vox VT__+ patches'!H1","v":"Demo"},{"$f":"INDEX(TblPatches,PatchNumber -1,8)","v":0}]
[{"$f":"'Vox VT__+ patches'!I1","v":"# votes"},{"$f":"INDEX(TblPatches,PatchNumber -1,9)","v":3}]
[{"$f":"'Vox VT__+ patches'!J1","v":"Rating"},{"$f":"INDEX(TblPatches,PatchNumber -1,10)","v":5},null,null,null,null,null,null,null,null,"Knob value (degrees)",null,"Knob position"]
[null,null,null,null,null,null,null,"CK"]
[{"$f":"'Vox VT__+ patches'!L1","v":"Style"},{"$f":"INDEX(TblPatches,PatchNumber -1,12)","v":4},{"$f":"INDEX(TblTypes,B49,2)","v":"4 US 2x12"},null,"Amp Model",null,null,"ok",null,null,{"$f":"30*B49","v":120},null,{"$f":"ROTATE_SHAPE(\"Panel Adjustment\",\"Picture 6\",K49)","v":""}]
[{"$f":"'Vox VT__+ patches'!M1","v":"Tap"},{"$f":"INDEX(TblPatches,PatchNumber -1,13)","v":3},{"$f":"CONCATENATE(B50,\" ms\")","v":"3 ms"},null,"Time?",null,null,"?"]
[{"$f":"'Vox VT__+ patches'!N1","v":"PowerLevel"},{"$f":"INDEX(TblPatches,PatchNumber -1,14)","v":46},{"$f":"REPT(\"█\",INT(B51/10))","v":"████"},null,"Power Level",null,null,"ok",null,null,{"$f":"MIN(30+3*(B51*B66/K66),330)","v":53},null,{"$f":"ROTATE_SHAPE(\"Panel Adjustment\",\"Picture 25\",K51)","v":""}]
[{"$f":"'Vox VT__+ patches'!O1","v":"Edit2"},{"$f":"INDEX(TblPatches,PatchNumber -1,15)","v":34},{"$f":"REPT(\"█\",INT(B52/10))","v":"███"},null,"Eff2 Value",null,null,"ok (mod/delay depth)",null,null,{"$f":"30+3*B52","v":132},null,{"$f":"ROTATE_SHAPE(\"Panel Adjustment\",\"Picture 32\",K52)","v":""}]
[{"$f":"'Vox VT__+ patches'!P1","v":"Edit3"},{"$f":"INDEX(TblPatches,PatchNumber -1,16)","v":28},{"$f":"REPT(\"█\",INT(B53/10))","v":"██"},null,"Reverb",null,"▄■▐ █","probably reverb",null,null,{"$f":"30+3*B53","v":114},null,{"$f":"ROTATE_SHAPE(\"Panel Adjustment\",\"Picture 33\",K53)","v":""}]
[{"$f":"'Vox VT__+ patches'!Q1","v":"Volume"},{"$f":"INDEX(TblPatches,PatchNumber -1,17)","v":55},{"$f":"REPT(\"█\",INT(B54/10))","v":"█████"},null,"Volume",null,null,"ok",null,null,195,null,{"$f":"ROTATE_SHAPE(\"Panel Adjustment\",\"Picture 19\",K54)","v":""}]
[{"$f":"'Vox VT__+ patches'!R1","v":"Treble"},{"$f":"INDEX(TblPatches,PatchNumber -1,18)","v":46},"████",null,"Treble",null,null,"ok",null,null,168,null,{"$f":"ROTATE_SHAPE(\"Panel Adjustment\",\"Picture 21\",K55)","v":""}]
[{"$f":"'Vox VT__+ patches'!S1","v":"Middle"},{"$f":"INDEX(TblPatches,PatchNumber -1,19)","v":70},"███████",null,"Middle",null,null,"ok",null,null,240,null,{"$f":"ROTATE_SHAPE(\"Panel Adjustment\",\"Picture 22\",K56)","v":""}]
[{"$f":"'Vox VT__+ patches'!T1","v":"Bass"},{"$f":"INDEX(TblPatches,PatchNumber -1,20)","v":61},"██████",null,"Bass",null,null,"ok",null,null,213,null,{"$f":"ROTATE_SHAPE(\"Panel Adjustment\",\"Picture 23\",K57)","v":""}]
[{"$f":"'Vox VT__+ patches'!U1","v":"Effect2"},{"$f":"INDEX(TblPatches,PatchNumber -1,21)","v":10},{"$f":"INDEX(TblTypes,B58,5)","v":"10 Delay"},null,"Eff2 Type (Mod/Delay)",null,null,"ok",null,null,{"$f":"30*B58","v":300},null,{"$f":"ROTATE_SHAPE(\"Panel Adjustment\",\"Picture 30\",K58)","v":""}]
[{"$f":"'Vox VT__+ patches'!V1","v":"Master"},{"$f":"INDEX(TblPatches,PatchNumber -1,22)","v":39},{"$f":"REPT(\"█\",INT(B59/10))","v":"███"},null,"Master",null,null,"ok",null,null,147,null,{"$f":"ROTATE_SHAPE(\"Panel Adjustment\",\"Picture 24\",K59)","v":""}]
[{"$f":"'Vox VT__+ patches'!W1","v":"Gain"},{"$f":"INDEX(TblPatches,PatchNumber -1,23)","v":40},{"$f":"REPT(\"█\",INT(B60/10))","v":"████"},null,null,null,null,"ok",null,null,150,null,{"$f":"ROTATE_SHAPE(\"Panel Adjustment\",\"Picture 5\",K60)","v":""}]
[{"$f":"'Vox VT__+ patches'!X1","v":"Edit1"},{"$f":"INDEX(TblPatches,PatchNumber -1,24)","v":81},{"$f":"REPT(\"█\",INT(B61/10))","v":"████████"},null,"Eff1 Value",null,null,"ok",null,null,273,null,{"$f":"ROTATE_SHAPE(\"Panel Adjustment\",\"Picture 29\",K61)","v":""}]
[{"$f":"'Vox VT__+ patches'!Y1","v":"Effect1"},{"$f":"INDEX(TblPatches,PatchNumber -1,25)","v":11},{"$f":"INDEX(TblTypes,B62,3)","v":"11 Fuzz"},null,"Eff1 Type (Pedal)",null,null,"ok",null,null,{"$f":"30*B62","v":330},null,{"$f":"ROTATE_SHAPE(\"Panel Adjustment\",\"Picture 3\",K62)","v":""}]
[{"$f":"'Vox VT__+ patches'!Z1","v":"Red-Green"},{"$f":"INDEX(TblPatches,PatchNumber -1,26)","v":3},{"$f":"INDEX(TblRedGreen,B63,2)","v":"● Orange"},null,"Amp LED STD/SPEC/CUST",null,null,"ok"]
[{"$f":"'Vox VT__+ patches'!AA1","v":"Edit2Hold"},{"$f":"INDEX(TblPatches,PatchNumber -1,27)","v":1},null,null,"?",null,null,"?"]
[{"$f":"'Vox VT__+ patches'!AB1","v":"TapOnOff"},{"$f":"INDEX(TblPatches,PatchNumber -1,28)","v":0},null,null,"?",null,null,"means nothing"]
[{"$f":"'Vox VT__+ patches'!AC1","v":"AmpPower"},{"$f":"INDEX(TblPatches,PatchNumber -1,29)","v":20},{"$f":"REPT(\"█\",INT(B66/10))","v":"██"},null,null,null,null,"ok",null,null,{"$f":"INDEX(AmpPower,MATCH(C2,A91:A94,0),3)","v":120},"watts max"]
[]
["Helper Tables"]
[]
["Types (AMP and Effects)"]
["Number","Amp Model","Eff 1 PEDAL",null,"Eff 2 MOD/DELAY"]
[1,"1 Clean","1 Comp",null,"1 Classic Chorus"]
[2,"2 Cali Clean","2 Acoustic",null,"2 Multi Tap Chorus"]
[3,"3 US Blues","3 Auto Wah",null,"3 Classic Flanger"]
[4,"4 US 2x12","4 U-Vibe",null,"4 Phaser"]
[5,"5 VOX AC15","5 Brn Octave",null,"5 Twin Trem"]
[6,"6 VOX AC30","6 Treble Boost",null,"6 G4 Rotary"]
[7,"7 UK Rock","7 Tube OD",null,"7 Pitch Shift"]
[8,"8 UK Metal","8 Gold Drive",null,"8 Filtron"]
[9,"9 US High Gain","9 Orange Dist",null,"9 Tape Echo"]
[10,"10 US Metal","10 Metal Dist",null,"10 Delay"]
[11,"11 Boutique Metal","11 Fuzz",null,"11 Chorus + Delay"]
[]
["Red-Green"]
[1,"● Red","Custom"]
[2,"● Green","Standard"]
[3,"● Orange","Special"]
[]
[]
["AmpPower","Rated Power","Max Power"]
["VT20+",20,30]
["VT40+",40,60]
["VT80+",80,120]
["VT120+",120,180,"* value to give full rating at 67% knob range"]

{"sheet":"Vox VT__+ patches","index":3,"n_rows":327,"n_cols":30,"rows_kept":327,"cut":false,"hidden":false,"merged":[]}
["Name","Author","Description","Inspired by","Range","Style","Created on","Demo","# votes","Rating","Patch","Style","Tap","PowerLevel","Edit2","Edit3","Volume","Treble","Middle","Bass","Effect2","Master","Gain","Edit1","Effect1","Red-Green","Edit2Hold","TapOnOff","AmpPower","Original order"]
["PLACEHOLDER - Do not delete! Insert new patches below this line.",null,null,null,null,null,null,null,null,null,null,null,null,null,null,null,null,null,null,null,null,null,null,null,null,null,null,null,null,0]
["comfortably number","dansrockin","played on a tele with a neck humbucker","Pink Floyd, David Gilmour - comfortably numb","Valvetronix+ (VT20+)","Blues Rock ","2011-03-07",null,3,5,"Style:4,Tap:3,PowerLevel:46,Edit2:34,Edit3:28,Volume:55,Treble:46,Middle:70,Bass:61,Effect2:10,Master:39,Gain:40,Edit1:81,Effect1:11,Red-Green:3,Edit2HOLD:1,TapOnOff:0",4,3,46,34,28,55,46,70,61,10,39,40,81,11,3,1,0,20,271]
["Metal solo + delay","luisimlauer","Metal tone for solos + delay, i use a strat and i love how it sounds","-","Valvetronix+ (VT80+)","Metal Solo ","2011-03-30",null,2,5,"Style:8,Tap:4,PowerLevel:19,Edit2:62,Edit3:81,Volume:41,Treble:74,Middle:49,Bass:70,Effect2:10,Master:75,Gain:34,Edit1:22,Effect1:1,Red-Green:3,Edit2HOLD:1,TapOnOff:1",8,4,19,62,81,41,74,49,70,10,75,34,22,1,3,1,1,80,269]
["Metallica – One","antonds08","The clean sound in Metallica's one from ...And justice for all.","Metallica, One","Valvetronix+ (VT20+)","Clean ","2013-01-05",null,1,5,"Style:1,Tap:10,PowerLevel:28,Edit2:29,Edit3:47,Volume:36,Treble:74,Middle:29,Bass:85,Effect2:2,Master:33,Gain:46,Edit1:25,Effect1:1,Red-Green:2,Edit2HOLD:1,TapOnOff:0",1,10,28,29,47,36,74,29,85,2,33,46,25,1,2,1,0,20,15]
["Gary Moore \"Still got the Blues\"","spirit57","My favourite setting for Gary Moore Sound in AC30. This sound is inspired by the great and unforgettable Gary Moore. A wonderful silky lead tone. The gary moore's sustain sound... . Les Paul Standard Neck Pickup Tone 6-7, Volume 5-6.Inspired by: Gary Moore , Still got the Blues","-","Valvetronix+ (VT40+)","Blues High Sustain ","2012-06-28",null,1,5,"Style:6,Tap:3,PowerLevel:18,Edit2:0,Edit3:50,Volume:48,Treble:17,Middle:24,Bass:98,Effect2:11,Master:47,Gain:50,Edit1:0,Effect1:1,Red-Green:1,Edit2HOLD:1,TapOnOff:0",6,3,18,0,50,48,17,24,98,11,47,50,0,1,1,1,0,40,68]
["rory gallagher","seelwinterwolf","the tone for rory's live","-","Valvetronix+ (VT20+)","Rock ","2012-06-01",null,1,5,"Style:3,Tap:5,PowerLevel:64,Edit2:11,Edit3:20,Volume:69,Treble:74,Middle:54,Bass:43,Effect2:9,Master:5,Gain:27,Edit1:100,Effect1:8,Red-Green:2,Edit2HOLD:1,TapOnOff:0",3,5,64,11,20,69,74,54,43,9,5,27,100,8,2,1,0,20,80]
["Robben Ford Drive","atom","Dumble Drive Tone","-","Valvetronix+ (VT40+)","Blues ","2012-05-20",null,1,5,"Style:11,Tap:10,PowerLevel:37,Edit2:0,Edit3:43,Volume:71,Treble:0,Middle:34,Bass:37,Effect2:1,Master:15,Gain:57,Edit1:0,Effect1:1,Red-Green:1,Edit2HOLD:1,TapOnOff:0",11,10,37,0,43,71,0,34,37,1,15,57,0,1,1,1,0,40,90]
["My Acoustic Tone","irondave666","GUITAR ( ESP LTD M-100FM ) Volume 10 Tone 1-2 Pickup Switch-middle","Judas Priest, Dreamer Deceiver/Sad Wings Of Destiny","Valvetronix+ (VT20+)","Acoustic ","2012-04-23",null,1,5,"Style:1,Tap:57,PowerLevel:27,Edit2:0,Edit3:18,Volume:100,Treble:90,Middle:47,Bass:100,Effect2:1,Master:37,Gain:16,Edit1:0,Effect1:1,Red-Green:2,Edit2HOLD:1,TapOnOff:0",1,57,27,0,18,100,90,47,100,1,37,16,0,1,2,1,0,20,102]
["best green day tone","bazman666","This the base of billies sound.. I'm using a start copy same as his with Seymour duncan pickups ....change to amp between box AC30.. us high gain and BTq metal to get all the different sounds billie has... enjoy","Green day, all tracks","Valvetronix+ (VT20+)","Punk Rock ","2012-03-26",null,1,5,"Style:9,Tap:10,PowerLevel:33,Edit2:0,Edit3:0,Volume:37,Treble:98,Middle:28,Bass:65,Effect2:1,Master:35,Gain:74,Edit1:0,Effect1:1,Red-Green:1,Edit2HOLD:1,TapOnOff:0",9,10,33,0,0,37,98,28,65,1,35,74,0,1,1,1,0,20,117]
["acthung tone","thffkwka","Until the end of the world","U2, acthung baby","Valvetronix+ (VT20+)","crunch ","2012-01-23",null,1,5,"Style:6,Tap:1,PowerLevel:0,Edit2:56,Edit3:44,Volume:78,Treble:81,Middle:63,Bass:32,Effect2:10,Master:0,Gain:84,Edit1:53,Effect1:7,Red-Green:2,Edit2HOLD:18,TapOnOff:0",6,1,0,56,44,78,81,63,32,10,0,84,53,7,2,18,0,20,169]
["Nothing else Matters","marviglass","limpio metallica","Metallica, 08-black","Valvetronix+ (VT40+)","heavy ","2012-01-10",null,1,5,"Style:1,Tap:685,PowerLevel:20,Edit2:0,Edit3:0,Volume:97,Treble:82,Middle:68,Bass:42,Effect2:11,Master:50,Gain:50,Edit1:46,Effect1:2,Red-Green:2,Edit2HOLD:1,TapOnOff:0",1,685,20,0,0,97,82,68,42,11,50,50,46,2,2,1,0,40,172]
["bridges burning - foo fighters","mattjb14","the louder the better ;)","Foo fighters, wasting light","Valvetronix+ (VT20+)","Rock ","2011-11-18",null,1,5,"Style:6,Tap:10,PowerLevel:68,Edit2:0,Edit3:15,Volume:80,Treble:65,Middle:25,Bass:56,Effect2:1,Master:26,Gain:61,Edit1:100,Effect1:7,Red-Green:2,Edit2HOLD:1,TapOnOff:0",6,10,68,0,15,80,65,25,56,1,26,61,100,7,2,1,0,20,200]
["Dos tierras - Heroes del silencio","strada","I just find it, if you have any modification please let us know","Heroes del silencio, Entre dos tierras","Valvetronix+ (VT40+)","Rock en espaol ","2011-10-01",null,1,5,"Style:2,Tap:9,PowerLevel:82,Edit2:41,Edit3:17,Volume:37,Treble:49,Middle:61,Bass:44,Effect2:11,Master:92,Gain:62,Edit1:0,Effect1:1,Red-Green:2,Edit2HOLD:50,TapOnOff:0",2,9,82,41,17,37,49,61,44,11,92,62,0,1,2,50,0,40,212]
["late 80's Guitar Hero","vintagevacuumtube","Think in shred!!!","-","Valvetronix+ (VT20+)","Solo Guitar Hero ","2011-01-24",null,1,5,"Style:9,Tap:3,PowerLevel:18,Edit2:35,Edit3:0,Volume:94,Treble:84,Middle:65,Bass:76,Effect2:10,Master:50,Gain:95,Edit1:50,Effect1:1,Red-Green:3,Edit2HOLD:0,TapOnOff:0",9,3,18,35,0,94,84,65,76,10,50,95,50,1,3,0,0,20,282]
["Nashville","vox_tom_usa","Tap the TAP tempo button like you would double-click a mouse to get the speed really fast. While holding the TAP button, adjust the depth knob until there is only one repeated echo.","-","Valvetronix+ (VT40+)","Country ","2011-01-11",null,1,5,"Style:1,Tap:1,PowerLevel:44,Edit2:42,Edit3:41,Volume:40,Treble:84,Middle:88,Bass:40,Effect2:9,Master:95,Gain:37,Edit1:9,Effect1:1,Red-Green:1,Edit2HOLD:1,TapOnOff:0",1,1,44,42,41,40,84,88,40,9,95,37,9,1,1,1,0,40,317]
["Blues/Rock","voxrocks55","USE MANUAL SETTINGS. I find this to be a fantastic setting for any blues/rock style of riffing on my Fender with woodstock+ pickups, but I do use a custom phase90 pedal in front of the amp for Hendrix Machine Gun to get the psychedelic swirling effect. Love this amp.","JHendrix, Machine Gun","Valvetronix+ (VT20+)","Creamy overdriven ","2011-05-15",null,3,4.5999999999999996,"Style:6,Tap:10,PowerLevel:42,Edit2:33,Edit3:55,Volume:47,Treble:44,Middle:43,Bass:54,Effect2:11,Master:45,Gain:50,Edit1:33,Effect1:1,Red-Green:3,Edit2HOLD:0,TapOnOff:0",6,10,42,33,55,47,44,43,54,11,45,50,33,1,3,0,0,20,262]
["Calling Dr Love","andycrane","Calling Dr Love - Kiss tone","-","Valvetronix+ (VT20+)","Rock ","2011-01-12",null,3,4.5999999999999996,"Style:6,Tap:10,PowerLevel:16,Edit2:0,Edit3:0,Volume:100,Treble:75,Middle:32,Bass:100,Effect2:1,Master:20,Gain:100,Edit1:0,Effect1:1,Red-Green:1,Edit2HOLD:1,TapOnOff:0",6,10,16,0,0,100,75,32,100,1,20,100,0,1,1,1,0,20,295]
["AC/DC basic tone","jonasvox","I´m using my Les Paul for this tone, but it might sound much better with a SG. There are different sounds of AC/DC for sure, but this sound give you an basic idea of it. Have fun with this tone and stay tuned.","-","Valvetronix+ (VT40+)","Rock ","2012-04-15",null,3,4.5,"Style:7,Tap:10,PowerLevel:22,Edit2:0,Edit3:38,Volume:53,Treble:61,Middle:85,Bass:23,Effect2:1,Master:66,Gain:62,Edit1:33,Effect1:1,Red-Green:3,Edit2HOLD:1,TapOnOff:0",7,10,22,0,38,53,61,85,23,1,66,62,33,1,3,1,0,40,106]
["Classic Crunchy Overdrive","schniepel89xx","just a classic tube overdriven sound with a touch of spring reverb. sounds great for blues rock, classic rock and &#39;70s hard rock. for a lead sound, you can either go from tube od to gold drive in the pedals section or move the gain knob on the amp to about 3 o&#39; clock.","-","Valvetronix+ (VT40+)","Rock 70s Hard Rock ","2012-04-05",null,2,4.5,"Style:2,Tap:3,PowerLevel:9,Edit2:0,Edit3:60,Volume:100,Treble:73,Middle:93,Bass:86,Effect2:1,Master:100,Gain:50,Edit1:26,Effect1:7,Red-Green:3,Edit2HOLD:1,TapOnOff:0",2,3,9,0,60,100,73,93,86,1,100,50,26,7,3,1,0,40,114]
["Stairway intro","jack1181","First time effort","Led zep, stairway","Valvetronix+ (VT20+)","Harmonic ","2012-02-03",null,2,4.5,"Style:2,Tap:10,PowerLevel:22,Edit2:26,Edit3:22,Volume:36,Treble:34,Middle:56,Bass:47,Effect2:10,Master:19,Gain:17,Edit1:20,Effect1:1,Red-Green:2,Edit2HOLD:1,TapOnOff:0",2,10,22,26,22,36,34,56,47,10,19,17,20,1,2,1,0,20,164]
["Another brick in the wall solo","grattmod","The Gilmour's sound in \"another brick in the wall\"","Pink Floyd, Another brick in the wall","Valvetronix+ (VT20+)","Rock ","2011-12-23",null,2,4.5,"Style:1,Tap:10,PowerLevel:23,Edit2:23,Edit3:44,Volume:51,Treble:100,Middle:100,Bass:56,Effect2:9,Master:50,Gain:49,Edit1:18,Effect1:7,Red-Green:2,Edit2HOLD:0,TapOnOff:0",1,10,23,23,44,51,100,100,56,9,50,49,18,7,2,0,0,20,179]
["80's thrash metal","vegas","A possible solution for the album called Kill em All. Please let me know about your opinion on this one!","Metallica, Kill em All","Valvetronix+ (VT20+)","Thrash metal ","2011-09-01",null,2,4.5,"Style:7,Tap:10,PowerLevel:33,Edit2:0,Edit3:77,Volume:100,Treble:100,Middle:13,Bass:83,Effect2:1,Master:14,Gain:81,Edit1:64,Effect1:6,Red-Green:3,Edit2HOLD:1,TapOnOff:0",7,10,33,0,77,100,100,13,83,1,14,81,64,6,3,1,0,20,224]
["Nu Metal","vincentparker","Guitar Volume at half and tone 1/4 sounds great with Meteora album. play along!!","Linkin Park, Faint","Valvetronix+ (VT20+)","Nu Metal ","2011-01-23",null,2,4.5,"Style:9,Tap:550,PowerLevel:33,Edit2:0,Edit3:0,Volume:49,Treble:55,Middle:47,Bass:31,Effect2:1,Master:49,Gain:100,Edit1:15,Effect1:7,Red-Green:2,Edit2HOLD:1,TapOnOff:0",9,550,33,0,0,49,55,47,31,1,49,100,15,7,2,1,0,20,284]
["Red Hot Chili Peppers TrueTone","tincho77","Great clean-crunchy tone for songs like Californication, Soul to Squeeze, Otherside, Dani California, etc.","Red Hot Chili Peppers, Californication/By The Way/Stadium Arcadium","Valvetronix+ (VT80+)","Rock ","2012-01-03",null,7,4.2,"Style:4,Tap:10,PowerLevel:27,Edit2:0,Edit3:45,Volume:51,Treble:55,Middle:94,Bass:97,Effect2:1,Master:53,Gain:40,Edit1:38,Effect1:1,Red-Green:2,Edit2HOLD:1,TapOnOff:0",4,10,27,0,45,51,55,94,97,1,53,40,38,1,2,1,0,80,175]
["Slash tone - Amazing sweet sound for Les Paul","macszc","CHOOSE MANUAL PRESET MODE! I play Epiphone Les Paul Standard and these settings are really great for me. For Live Era it sounds damn good when you turn the bridge pickup tone almost to 0. I hope you&#39;ll enjoy it!","Slash, Appetite For Destruction Use Your Illusion Live Era","Valvetronix+ (VT40+)","sweet distortion ","2012-02-10",null,6,4.2,"Style:9,Tap:6,PowerLevel:62,Edit2:41,Edit3:71,Volume:61,Treble:99,Middle:72,Bass:61,Effect2:9,Master:7,Gain:59,Edit1:64,Effect1:10,Red-Green:3,Edit2HOLD:1,TapOnOff:0",9,6,62,41,71,61,99,72,61,9,7,59,64,10,3,1,0,40,154]
["Gary Moore Inspired","rob2","This sound is inspired by the great and unforgettable Gary Moore. A wonderful silky lead tone that makes your Paula sing. Check it out and use your fingers!","Gary Moore, Still got the Blues","Valvetronix+ (VT20+)","Heavy Blues ","2011-04-18",null,3,4.2,"Style:8,Tap:1,PowerLevel:48,Edit2:0,Edit3:50,Volume:85,Treble:17,Middle:100,Bass:91,Effect2:1,Master:13,Gain:55,Edit1:0,Effect1:1,Red-Green:3,Edit2HOLD:1,TapOnOff:0",8,1,48,0,50,85,17,100,91,1,13,55,0,1,3,1,0,20,264]
["Cemetery Gates Intro","andycrane","My Cemetery Gates Intro","-","Valvetronix+ (VT20+)","Metal ","2011-01-12",null,3,4.2,"Style:1,Tap:21,PowerLevel:18,Edit2:100,Edit3:93,Volume:100,Treble:100,Middle:21,Bass:90,Effect2:2,Master:16,Gain:60,Edit1:100,Effect1:2,Red-Green:2,Edit2HOLD:1,TapOnOff:0",1,21,18,100,93,100,100,21,90,2,16,60,100,2,2,1,0,20,296]
["Acoustic Song","emosnow","Acoustic ...very close to a real acoustic guitar...subscribe","-","Valvetronix+ (VT20+)","Acoustic ","2011-12-18",null,4,4,"Style:5,Tap:2,PowerLevel:21,Edit2:0,Edit3:20,Volume:100,Treble:25,Middle:65,Bass:66,Effect2:9,Master:66,Gain:23,Edit1:95,Effect1:2,Red-Green:2,Edit2HOLD:0,TapOnOff:0",5,2,21,0,20,100,25,65,66,9,66,23,95,2,2,0,0,20,184]
["Amazing Red Hot Chili Peppers Tone","timmie","good tone for playing songs of the stadium arcradium album and the californiaction album.","Red Hot Chili Peppers, Californication","Valvetronix+ (VT20+)","Rock ","2011-09-01",null,4,4,"Style:4,Tap:10,PowerLevel:48,Edit2:0,Edit3:0,Volume:50,Treble:51,Middle:100,Bass:99,Effect2:1,Master:31,Gain:44,Edit1:0,Effect1:1,Red-Green:2,Edit2HOLD:1,TapOnOff:0",4,10,48,0,0,50,51,100,99,1,31,44,0,1,2,1,0,20,223]
["Drop D Metal Tone","fgaladri","IÂ´m using a Vox Virage SC Jet Black.","-","Valvetronix+ (VT80+)","Metal ","2011-08-05",null,3,4,"Style:10,Tap:10,PowerLevel:26,Edit2:0,Edit3:13,Volume:80,Treble:85,Middle:50,Bass:34,Effect2:1,Master:24,Gain:70,Edit1:60,Effect1:7,Red-Green:2,Edit2HOLD:1,TapOnOff:0",10,10,26,0,13,80,85,50,34,1,24,70,60,7,2,1,0,80,235]
["Mark Knopfler sound","thimpt","For a lot off Dire Straits straits songs","-","Valvetronix+ (VT80+)","Pop/Rock ","2011-06-04","http://www.youtube.com/watch?v=Lz1TlJGLzqs",3,4,"Style:6,Tap:3,PowerLevel:13,Edit2:36,Edit3:93,Volume:52,Treble:64,Middle:24,Bass:23,Effect2:9,Master:12,Gain:56,Edit1:50,Effect1:1,Red-Green:1,Edit2HOLD:13,TapOnOff:0",6,3,13,36,93,52,64,24,23,9,12,56,50,1,1,13,0,80,254]
["Black Sabbath 1978 Live DVD Never Say Die","irondave666","GUITAR ( ESP LTD ) Volume 10 Tone 10 Bridge Pickup Standard Tuning.Please rate this tone","Black Sabbath, 1978LiveNeverSayDie","Valvetronix+ (VT20+)","Rock Metal ","2012-04-24",null,2,4,"Style:8,Tap:654,PowerLevel:81,Edit2:0,Edit3:17,Volume:79,Treble:100,Middle:5,Bass:31,Effect2:1,Master:79,Gain:100,Edit1:0,Effect1:1,Red-Green:1,Edit2HOLD:1,TapOnOff:0",8,654,81,0,17,79,100,5,31,1,79,100,0,1,1,1,0,20,98]
["David Gilmour","cmbeal317","Used with a Strat with a single coil bridge pickup.","-","Valvetronix+ (VT20+)","Rock ","2012-01-25",null,2,4,"Style:2,Tap:10,PowerLevel:25,Edit2:51,Edit3:58,Volume:23,Treble:72,Middle:76,Bass:0,Effect2:11,Master:34,Gain:100,Edit1:50,Effect1:1,Red-Green:3,Edit2HOLD:1,TapOnOff:0",2,10,25,51,58,23,72,76,0,11,34,100,50,1,3,1,0,20,167]
["Master of Puppets (distorted)","vegas","Settings for MoP. I use DR Dimebag signature strings so I had to lower the bass a bit.","Metallica, Master of Puppets","Valvetronix+ (VT20+)","Thrash Metal ","2011-11-12",null,2,4,"Style:7,Tap:5,PowerLevel:16,Edit2:0,Edit3:16,Volume:69,Treble:83,Middle:20,Bass:67,Effect2:1,Master:100,Gain:70,Edit1:100,Effect1:6,Red-Green:3,Edit2HOLD:1,TapOnOff:0",7,5,16,0,16,69,83,20,67,1,100,70,100,6,3,1,0,20,202]
["Mark Knopfler's Vintage Sound","paranomos","Any improvement is welcome!!!","-","Valvetronix+ (VT40+)","Vintage ","2011-11-09",null,2,4,"Style:3,Tap:975,PowerLevel:35,Edit2:0,Edit3:75,Volume:66,Treble:85,Middle:41,Bass:31,Effect2:9,Master:13,Gain:63,Edit1:37,Effect1:1,Red-Green:2,Edit2HOLD:0,TapOnOff:0",3,975,35,0,75,66,85,41,31,9,13,63,37,1,2,0,0,40,204]
["US 2x12 Blues","robrocks7","Dirty Blues","-","Valvetronix+ (VT20+)","Blues ","2011-06-18",null,2,4,"Style:4,Tap:10,PowerLevel:33,Edit2:27,Edit3:43,Volume:50,Treble:50,Middle:35,Bass:62,Effect2:9,Master:50,Gain:44,Edit1:36,Effect1:1,Red-Green:1,Edit2HOLD:1,TapOnOff:0",4,10,33,27,43,50,50,35,62,9,50,44,36,1,1,1,0,20,247]
["smooth lead for my G&L","ferris73","have your amp set on manual. kinda stole it from a youtube vid so i can't really take credit for this.","-","Valvetronix+ (VT20+)","Rock","2011-03-14",null,2,4,"Style:8,Tap:10,PowerLevel:38,Edit2:0,Edit3:25,Volume:73,Treble:35,Middle:49,Bass:50,Effect2:10,Master:14,Gain:63,Edit1:48,Effect1:8,Red-Green:2,Edit2HOLD:1,TapOnOff:0",8,10,38,0,25,73,35,49,50,10,14,63,48,8,2,1,0,20,270]
["80's Clean","vox_tom_usa","Clean chorused guitar tone straight out of 1986.","-","Valvetronix+ (VT40+)","any ","2011-01-11",null,2,4,"Style:1,Tap:10,PowerLevel:40,Edit2:41,Edit3:69,Volume:61,Treble:93,Middle:84,Bass:82,Effect2:11,Master:40,Gain:44,Edit1:35,Effect1:1,Red-Green:2,Edit2HOLD:1,TapOnOff:0",1,10,40,41,69,61,93,84,82,11,40,44,35,1,2,1,0,40,314]
["Metal/death metal/melodicmetal","zwamzel","Metal/death metal/melodicmetal style. It took me 2 hours to get it fine tuned but now it's just perfect!","-","Valvetronix+ (VT40+)","Metal/death metal/ ","2013-01-30",null,1,4,"Style:8,Tap:229,PowerLevel:0,Edit2:0,Edit3:0,Volume:58,Treble:100,Middle:38,Bass:97,Effect2:1,Master:60,Gain:89,Edit1:66,Effect1:8,Red-Green:3,Edit2HOLD:1,TapOnOff:0",8,229,0,0,0,58,100,38,97,1,60,89,66,8,3,1,0,40,11]
["emg crunch","damienvox","Great crunch and well defined force","-","Valvetronix+ (VT120+)","overgriven crunch ","2012-11-10",null,1,4,null,null,null,null,null,null,null,null,null,null,null,null,null,null,null,null,null,null,120,33]
["AC/DC Real Tone","autlos","I don't like any of the ACDC settings posted before. I show you mine. You don't need ped","AC/DC, Live","Valvetronix+ (VT20+)","Hard Rock ","2012-05-16",null,1,4,null,null,null,null,null,null,null,null,null,null,null,null,null,null,null,null,null,null,20,92]
["Radiohead-Just Clean Tone","ejsim","This is close (in my opinion) to the clean part in the verse, played by Jonny Greenwood.","Radiohead, Just/The Bends","Valvetronix+ (VT40+)","Alternative Jazzy ","2012-03-11",null,1,4,"Style:6,Tap:30,PowerLevel:42,Edit2:27,Edit3:14,Volume:55,Treble:58,Middle:60,Bass:58,Effect2:4,Master:25,Gain:43,Edit1:40,Effect1:1,Red-Green:2,Edit2HOLD:1,TapOnOff:0",6,30,42,27,14,55,58,60,58,4,25,43,40,1,2,1,0,40,122]
["Acoustic Clone","canadiandave","Going for the sound of my Martin acoustic, no bells or whistles, tell me how to make it better !!","-","Valvetronix+ (VT20+)","Acoustic ","2012-02-26",null,1,4,"Style:3,Tap:10,PowerLevel:13,Edit2:0,Edit3:16,Volume:81,Treble:44,Middle:69,Bass:69,Effect2:1,Master:71,Gain:11,Edit1:97,Effect1:2,Red-Green:3,Edit2HOLD:1,TapOnOff:0",3,10,13,0,16,81,44,69,69,1,71,11,97,2,3,1,0,20,136]
["BassGuitar on you Electric","stepath18","Do you need a bass guitar for your records but you don't have anyone to play for you? Here is a tone that great your Electric to a Bass guitar!!!! What do you think????","-","Valvetronix+ (VT20+)","Bass Guitar ","2012-02-07",null,1,4,"Style:1,Tap:10,PowerLevel:38,Edit2:0,Edit3:18,Volume:41,Treble:12,Middle:6,Bass:100,Effect2:1,Master:59,Gain:44,Edit1:100,Effect1:5,Red-Green:2,Edit2HOLD:1,TapOnOff:0",1,10,38,0,18,41,12,6,100,1,59,44,100,5,2,1,0,20,158]
["Knocking On Heaven's Door Solo 1","lucasalba","This is a amazing solo!","Slash, Knocking On Heaven39s Door","Valvetronix+ (VT20+)","Hard Rock ","2011-12-03","http://www.youtube.com/watch?v=ToSHtiWnaEQ",1,4,"Style:8,Tap:10,PowerLevel:32,Edit2:63,Edit3:46,Volume:50,Treble:44,Middle:54,Bass:55,Effect2:9,Master:34,Gain:68,Edit1:44,Effect1:1,Red-Green:1,Edit2HOLD:1,TapOnOff:0",8,10,32,63,46,50,44,54,55,9,34,68,44,1,1,1,0,20,190]
["I love rock n roll by joan jett","mrzz","Tone that sounds like Joan Jett's guitar!","joan jett, I love rock n roll","Valvetronix+ (VT80+)","Rock","2011-11-02",null,1,4,"Style:9,Tap:10,PowerLevel:34,Edit2:0,Edit3:59,Volume:63,Treble:79,Middle:62,Bass:86,Effect2:1,Master:64,Gain:32,Edit1:68,Effect1:8,Red-Green:3,Edit2HOLD:1,TapOnOff:0",9,10,34,0,59,63,79,62,86,1,64,32,68,8,3,1,0,80,206]
["surfs up","decay666","great surf garage tone, set the tremolo as fast as you possibly can","-","Valvetronix+ (VT20+)","surf/garage ","2011-10-09",null,1,4,"Style:4,Tap:1,PowerLevel:6,Edit2:65,Edit3:58,Volume:97,Treble:77,Middle:3,Bass:2,Effect2:5,Master:99,Gain:37,Edit1:63,Effect1:6,Red-Green:2,Edit2HOLD:1,TapOnOff:0",4,1,6,65,58,97,77,3,2,5,99,37,63,6,2,1,0,20,210]
["80's rock lead tone","afd4evr","this is my lead tone... careful.. it can get loud!!!","-","Valvetronix+ (VT40+)","80s rock ","2011-09-10",null,1,4,"Style:9,Tap:10,PowerLevel:21,Edit2:0,Edit3:74,Volume:100,Treble:80,Middle:70,Bass:71,Effect2:1,Master:93,Gain:100,Edit1:95,Effect1:7,Red-Green:2,Edit2HOLD:1,TapOnOff:0",9,10,21,0,74,100,80,70,71,1,93,100,95,7,2,1,0,40,218]
["Journey – faithfully","rodolfoleal","use the chorus + delay","Journey, faithfully","Valvetronix+ (VT20+)","journeys tone ","2011-08-17",null,1,4,"Style:6,Tap:162,PowerLevel:36,Edit2:60,Edit3:94,Volume:25,Treble:55,Middle:54,Bass:84,Effect2:11,Master:50,Gain:78,Edit1:40,Effect1:8,Red-Green:2,Edit2HOLD:45,TapOnOff:0",6,162,36,60,94,25,55,54,84,11,50,78,40,8,2,45,0,20,228]
["Guns n Roses","ammo","yhis tone is very good! try this","-","Valvetronix+ (VT40+)","Hard Rock ","2011-07-04",null,1,4,"Style:10,Tap:10,PowerLevel:8,Edit2:0,Edit3:12,Volume:68,Treble:81,Middle:45,Bass:48,Effect2:10,Master:41,Gain:70,Edit1:100,Effect1:6,Red-Green:1,Edit2HOLD:69,TapOnOff:0",10,10,8,0,12,68,81,45,48,10,41,70,100,6,1,69,0,40,241]
["WhiteMetal","theseeman","Badass! but Simple","Prototype, The Way It Ends","Valvetronix+ (VT40+)","Metal ","2011-02-27",null,1,4,"Style:10,Tap:10,PowerLevel:100,Edit2:0,Edit3:0,Volume:100,Treble:100,Middle:67,Bass:77,Effect2:1,Master:6,Gain:100,Edit1:50,Effect1:7,Red-Green:1,Edit2HOLD:1,TapOnOff:0",10,10,100,0,0,100,100,67,77,1,6,100,50,7,1,1,0,40,275]
["Lonely","jwgreg","Raw Raconteurs Style - 1st Tone so still a work in progress. Please feel free to take and improve upon","Raconteurs, Consolers of the Lonely","Valvetronix+ (VT40+)","Raw Jack White sty ","2011-01-25",null,1,4,"Style:11,Tap:189,PowerLevel:24,Edit2:0,Edit3:14,Volume:93,Treble:86,Middle:15,Bass:80,Effect2:1,Master:42,Gain:64,Edit1:15,Effect1:1,Red-Green:1,Edit2HOLD:1,TapOnOff:0",11,189,24,0,14,93,86,15,80,1,42,64,15,1,1,1,0,40,281]
["Stone sour","bignick99","Kind of a generic SS rhythm tone, add some tube OD for the lead parts and boost the mids with a touch of delay. And don't forget the C# drop B tuning.","Stone Sour, Get inside","Valvetronix+ (VT40+)","Metal/Rock ","2011-01-15",null,1,4,"Style:9,Tap:918,PowerLevel:42,Edit2:0,Edit3:70,Volume:49,Treble:70,Middle:18,Bass:82,Effect2:1,Master:83,Gain:98,Edit1:0,Effect1:7,Red-Green:2,Edit2HOLD:1,TapOnOff:0",9,918,42,0,70,49,70,18,82,1,83,98,0,7,2,1,0,40,291]
["How Many More Times (post-wah intro)","vox_tom_usa","Verse sound, post wah intro.","Led Zeppelin, How Many More Times / Led Zeppelin I","Valvetronix+ (VT40+)","Classic Rock ","2011-01-11",null,1,4,"Style:6,Tap:10,PowerLevel:43,Edit2:0,Edit3:0,Volume:100,Treble:87,Middle:100,Bass:84,Effect2:1,Master:43,Gain:40,Edit1:58,Effect1:11,Red-Green:3,Edit2HOLD:1,TapOnOff:0",6,10,43,0,0,100,87,100,84,1,43,40,58,11,3,1,0,40,310]
["AC30 Dirty Rhythm","vox_tom_usa","Great sounding dirty rhythm guitar tone for blues, rock, country, and more.","-","Valvetronix+ (VT40+)","Blues Rock Country ","2011-01-11",null,1,4,"Style:6,Tap:10,PowerLevel:42,Edit2:0,Edit3:0,Volume:65,Treble:43,Middle:57,Bass:63,Effect2:1,Master:39,Gain:42,Edit1:0,Effect1:1,Red-Green:2,Edit2HOLD:1,TapOnOff:0",6,10,42,0,0,65,43,57,63,1,39,42,0,1,2,1,0,40,319]
["Phasey","vox_tom_usa","Try to get the speed of the phaser relatively slow.","The Clash, Jimmy Jazz/London Calling","Valvetronix+ (VT40+)","any ","2011-01-11",null,1,4,"Style:2,Tap:13,PowerLevel:39,Edit2:30,Edit3:0,Volume:63,Treble:64,Middle:64,Bass:56,Effect2:4,Master:36,Gain:28,Edit1:0,Effect1:1,Red-Green:2,Edit2HOLD:1,TapOnOff:0",2,13,39,30,0,63,64,64,56,4,36,28,0,1,2,1,0,40,323]
["John Petrucci - Damage Control","fgaladri","This is a Damage Control Tone! IÂ´m using a Vox Virage SC Jet Black. Hambucker position. You guys can use this tone in a brigde or neck pickup position. Be careful with the NR sens! If you want that Intro tone, just turn off the delay!","John Petrucci, Damage Control","Valvetronix+ (VT80+)","Heavy Metal ","2011-07-08","http://www.youtube.com/watch?v=fCwyrmP9bOo",5,3.8,"Style:10,Tap:6,PowerLevel:59,Edit2:34,Edit3:0,Volume:73,Treble:62,Middle:29,Bass:49,Effect2:10,Master:26,Gain:97,Edit1:64,Effect1:7,Red-Green:3,Edit2HOLD:50,TapOnOff:0",10,6,59,34,0,73,62,29,49,10,26,97,64,7,3,50,0,80,239]
["Comfortably Numb","boblisic","Must have a external compressor in front (MXR = Output 12 o'clock Sensitivity 11 o'clock","David Gilmour, Comfortably Numb / The Wall","Valvetronix+ (VT40+)","Lead ","2011-01-15",null,3,3.7,"Style:7,Tap:4,PowerLevel:13,Edit2:13,Edit3:0,Volume:88,Treble:61,Middle:18,Bass:77,Effect2:10,Master:38,Gain:40,Edit1:50,Effect1:7,Red-Green:3,Edit2HOLD:1,TapOnOff:0",7,4,13,13,0,88,61,18,77,10,38,40,50,7,3,1,0,40,290]
["Remembering Stevie","vintagevacuumtube","A Texas Blues solo tone that Stevie could have used.","Stevie Ray Vaughan, Pride and Joy","Valvetronix+ (VT20+)","Texas Blues ","2011-01-22",null,3,3.6,"Style:4,Tap:327,PowerLevel:17,Edit2:0,Edit3:43,Volume:90,Treble:55,Middle:65,Bass:75,Effect2:1,Master:50,Gain:61,Edit1:65,Effect1:7,Red-Green:2,Edit2HOLD:1,TapOnOff:0",4,327,17,0,43,90,55,65,75,1,50,61,65,7,2,1,0,20,285]
["She Said She Said","vox_tom_usa","Classic psychedelia from the Fab Four.","The Beatles, She Said She Said / Revolver","Valvetronix+ (VT40+)","Classic Rock ","2011-01-11",null,3,3.6,"Style:6,Tap:10,PowerLevel:43,Edit2:0,Edit3:0,Volume:100,Treble:61,Middle:62,Bass:69,Effect2:1,Master:40,Gain:43,Edit1:0,Effect1:1,Red-Green:2,Edit2HOLD:1,TapOnOff:0",6,10,43,0,0,100,61,62,69,1,40,43,0,1,2,1,0,40,307]
["Slash -Welcome to the Jungle","jbnsk8","slash tone, intro","-","Valvetronix+ (VT40+)","Hard Rock ","2012-02-18",null,3,3.5,"Style:9,Tap:10,PowerLevel:20,Edit2:88,Edit3:50,Volume:60,Treble:59,Middle:68,Bass:63,Effect2:10,Master:28,Gain:50,Edit1:35,Effect1:7,Red-Green:3,Edit2HOLD:1,TapOnOff:0",9,10,20,88,50,60,59,68,63,10,28,50,35,7,3,1,0,40,146]
["JazzyGuitar","fgaladri","IÂ´m using a Vox Virage SC jet black. Neck position, P90 position, Tone 6","-","Valvetronix+ (VT80+)","Jazz ","2011-12-08",null,3,3.5,"Style:4,Tap:10,PowerLevel:66,Edit2:0,Edit3:42,Volume:78,Treble:60,Middle:55,Bass:57,Effect2:1,Master:46,Gain:38,Edit1:9,Effect1:1,Red-Green:2,Edit2HOLD:1,TapOnOff:0",4,10,66,0,42,78,60,55,57,1,46,38,9,1,2,1,0,80,187]
["Pink Floyd - Shine On You Crazy Diamond solo","teachergala","PINK FLOYD shine on you crazy diamond guitar solos","-","Valvetronix+ (VT40+)","Gilmour Style ","2011-09-13","http://www.youtube.com/watch?v=CtELcliaDeA",3,3.5,"Style:5,Tap:5,PowerLevel:100,Edit2:50,Edit3:84,Volume:92,Treble:90,Middle:22,Bass:32,Effect2:11,Master:18,Gain:35,Edit1:32,Effect1:1,Red-Green:2,Edit2HOLD:50,TapOnOff:0",5,5,100,50,84,92,90,22,32,11,18,35,32,1,2,50,0,40,215]
["Slash - Appetite For Destruction tone","lespaulplaya93","An exact AFD tone, I use a les paul standard with Seymour Duncan Alnico 2 Pro Slash Sig. pickups. This sounds like you're actually playing a Marshall AFD 100 Slash Sig. amp","Slash, Appetite For Destruction","Valvetronix+ (VT20+)","Rock ","2011-08-10",null,3,3.5,"Style:9,Tap:400,PowerLevel:9,Edit2:0,Edit3:84,Volume:59,Treble:100,Middle:100,Bass:100,Effect2:1,Master:33,Gain:100,Edit1:100,Effect1:6,Red-Green:2,Edit2HOLD:1,TapOnOff:0",9,400,9,0,84,59,100,100,100,1,33,100,100,6,2,1,0,20,233]
["Acoustic Guitar","stepath18","on my Stagg SW203CETU-BK, with flat EQ on the guitar and 2/3 volume","-","Valvetronix+ (VT20+)","Acoustic ","2012-02-28",null,2,3.5,"Style:2,Tap:10,PowerLevel:40,Edit2:0,Edit3:22,Volume:50,Treble:56,Middle:48,Bass:37,Effect2:1,Master:24,Gain:50,Edit1:51,Effect1:2,Red-Green:1,Edit2HOLD:1,TapOnOff:0",2,10,40,0,22,50,56,48,37,1,24,50,51,2,1,1,0,20,131]
["Acoustic miked up","canadiandave","Looking for that near impossible to get tone of a miked up Gibson/Martin acoustic via electric model, opinions MOST WELCOME, open to any ideas , Roll the tone off a couple o&#39; notches on your guitar to suit your own taste...7 - 8 suits me :)","-","Valvetronix+ (VT20+)","Stage miked Acoust ","2012-02-23",null,2,3.5,"Style:3,Tap:10,PowerLevel:26,Edit2:0,Edit3:14,Volume:85,Treble:57,Middle:67,Bass:80,Effect2:9,Master:65,Gain:18,Edit1:93,Effect1:2,Red-Green:2,Edit2HOLD:1,TapOnOff:0",3,10,26,0,14,85,57,67,80,9,65,18,93,2,2,1,0,20,139]
["US High Gain Dual Rectifier","robrocks7","Mesa-Vox","-","Valvetronix+ (VT20+)","Rock ","2011-06-18",null,2,3.5,"Style:9,Tap:10,PowerLevel:31,Edit2:35,Edit3:43,Volume:54,Treble:50,Middle:43,Bass:71,Effect2:9,Master:50,Gain:86,Edit1:15,Effect1:1,Red-Green:1,Edit2HOLD:1,TapOnOff:0",9,10,31,35,43,54,50,43,71,9,50,86,15,1,1,1,0,20,245]
["Fuzz It Up","vox_tom_usa","Expand your mind with this psychedelic fuzz.","-","Valvetronix+ (VT40+)","Psychedelic ","2011-01-11",null,2,3.5,"Style:1,Tap:10,PowerLevel:39,Edit2:0,Edit3:0,Volume:66,Treble:61,Middle:61,Bass:62,Effect2:1,Master:37,Gain:64,Edit1:88,Effect1:11,Red-Green:3,Edit2HOLD:1,TapOnOff:0",1,10,39,0,0,66,61,61,62,1,37,64,88,11,3,1,0,40,315]
["Slow Blues Heaven","syed_vox","Note: PLAY IT ON MANUAL............ This is an amazing tone just to play by yourself or with your band. I love the tone try it. Try rolling off the volume and tone on you guitar to about 2-4ish for best results.","-","Valvetronix+ (VT20+)","Slow Blues ","2011-04-16",null,5,3.1,"Style:6,Tap:10,PowerLevel:14,Edit2:0,Edit3:26,Volume:39,Treble:30,Middle:73,Bass:22,Effect2:1,Master:91,Gain:63,Edit1:32,Effect1:11,Red-Green:2,Edit2HOLD:1,TapOnOff:0",6,10,14,0,26,39,30,73,22,1,91,63,32,11,2,1,0,20,265]
["ACDC – Highway to hell","caripu","Setup for this classic theme of AC/DC. Bridge pickup (humbucker), tone knob full, volume knob full.","AC/DC, Highway To hell","Valvetronix+ (VT40+)","Hard Rock ","2011-05-22",null,3,3,"Style:7,Tap:10,PowerLevel:0,Edit2:0,Edit3:42,Volume:50,Treble:56,Middle:81,Bass:22,Effect2:1,Master:60,Gain:62,Edit1:50,Effect1:1,Red-Green:3,Edit2HOLD:1,TapOnOff:0",7,10,0,0,42,50,56,81,22,1,60,62,50,1,3,1,0,40,258]
["THE Cranked Plexi Tone","quijeebo","You know it's right","-","Valvetronix+ (VT120+)","Rock And Roll ","2011-01-12",null,3,3,"Style:7,Tap:16,PowerLevel:100,Edit2:0,Edit3:0,Volume:100,Treble:100,Middle:100,Bass:100,Effect2:1,Master:100,Gain:100,Edit1:0,Effect1:1,Red-Green:1,Edit2HOLD:1,TapOnOff:0",7,16,100,0,0,100,100,100,100,1,100,100,0,1,1,1,0,120,294]
["Eddie Cochran Style rockabilly","montjoem","Sound come closer Eddie's amplifier","Eddie Cochran, cmon everybody","Valvetronix+ (VT40+)","rockabilly ","2012-07-24",null,2,3,"Style:2,Tap:10,PowerLevel:5,Edit2:23,Edit3:0,Volume:36,Treble:62,Middle:66,Bass:59,Effect2:1,Master:66,Gain:61,Edit1:0,Effect1:6,Red-Green:3,Edit2HOLD:1,TapOnOff:0",2,10,5,23,0,36,62,66,59,1,66,61,0,6,3,1,0,40,60]
["No More Zakk!","fgaladri","IÂ´m using a Vox 33 series guitar! Enjoy!","Ozzy Osbourne, No More Tears","Valvetronix+ (VT80+)","Heavy Metal ","2012-04-09",null,2,3,"Style:7,Tap:5,PowerLevel:63,Edit2:29,Edit3:0,Volume:90,Treble:63,Middle:35,Bass:46,Effect2:10,Master:41,Gain:62,Edit1:67,Effect1:8,Red-Green:3,Edit2HOLD:1,TapOnOff:0",7,5,63,29,0,90,63,35,46,10,41,62,67,8,3,1,0,80,112]
["Rock you like a hurricane Sound","lucasalba","This is a most sound, i love it","Scorpions, Love at First Sting","Valvetronix+ (VT20+)","Hard Rock ","2012-03-07",null,2,3,"Style:1,Tap:68,PowerLevel:32,Edit2:0,Edit3:53,Volume:43,Treble:80,Middle:40,Bass:61,Effect2:1,Master:33,Gain:37,Edit1:75,Effect1:10,Red-Green:3,Edit2HOLD:1,TapOnOff:0",1,68,32,0,53,43,80,40,61,1,33,37,75,10,3,1,0,20,128]
["Pink Floyd – Time","teachergala","Time Guitar solo","-","Valvetronix+ (VT40+)","David Gilmour Styl ","2011-09-14","http://www.youtube.com/watch?v=JyDwT-z9Id0",2,3,"Style:8,Tap:10,PowerLevel:100,Edit2:48,Edit3:93,Volume:100,Treble:98,Middle:91,Bass:65,Effect2:11,Master:10,Gain:32,Edit1:52,Effect1:9,Red-Green:2,Edit2HOLD:20,TapOnOff:0",8,10,100,48,93,100,98,91,65,11,10,32,52,9,2,20,0,40,214]
["Hiss-Sound","jerdix","Play with palm-mutes and take your guitar-tone low (1 or 2) and you can hear the ultimat \"VOX-hiss-sound\". Sounds like snare-drum.","-","Valvetronix+ (VT20+)","VOX - cruel-sound ","2011-01-19",null,2,3,"Style:6,Tap:10,PowerLevel:35,Edit2:0,Edit3:0,Volume:61,Treble:100,Middle:50,Bass:40,Effect2:1,Master:100,Gain:51,Edit1:0,Effect1:1,Red-Green:2,Edit2HOLD:1,TapOnOff:0",6,10,35,0,0,61,100,50,40,1,100,51,0,1,2,1,0,20,288]
["House of the Rising Sun","andycrane","My House of the Rising Sun tone","-","Valvetronix+ (VT20+)","Rock and Roll ","2011-01-12",null,2,3,"Style:2,Tap:10,PowerLevel:14,Edit2:0,Edit3:26,Volume:66,Treble:100,Middle:72,Bass:28,Effect2:1,Master:35,Gain:38,Edit1:100,Effect1:6,Red-Green:2,Edit2HOLD:1,TapOnOff:0",2,10,14,0,26,66,100,72,28,1,35,38,100,6,2,1,0,20,293]
["Blues Lead","vox_tom_usa","Classic blues sound.","-","Valvetronix+ (VT40+)","Blues ","2011-01-11",null,2,3,"Style:4,Tap:10,PowerLevel:45,Edit2:0,Edit3:37,Volume:67,Treble:88,Middle:100,Bass:100,Effect2:1,Master:44,Gain:76,Edit1:0,Effect1:1,Red-Green:3,Edit2HOLD:1,TapOnOff:0",4,10,45,0,37,67,88,100,100,1,44,76,0,1,3,1,0,40,313]
["Hard Rock of the 70's-80's","blahman179","Inspired by the Hard Rock of the 70's and 80's like Led Zeppelin, Boston, GnR, etc.","-","Valvetronix+ (VT20+)","Hard Rock ","2012-05-23",null,1,3,"Style:6,Tap:10,PowerLevel:18,Edit2:0,Edit3:0,Volume:17,Treble:43,Middle:61,Bass:74,Effect2:1,Master:18,Gain:100,Edit1:58,Effect1:8,Red-Green:2,Edit2HOLD:1,TapOnOff:0",6,10,18,0,0,17,43,61,74,1,18,100,58,8,2,1,0,20,89]
["Perfect Hard Rock Tone","megawoopi","You can also turn up treble a bit. Should sound awesome :)","AC/DC, Highway to Hell","Valvetronix+ (VT20+)","Rock ","2012-03-27",null,1,3,"Style:4,Tap:86,PowerLevel:64,Edit2:0,Edit3:0,Volume:58,Treble:89,Middle:100,Bass:65,Effect2:1,Master:6,Gain:98,Edit1:30,Effect1:1,Red-Green:2,Edit2HOLD:1,TapOnOff:0",4,86,64,0,0,58,89,100,65,1,6,98,30,1,2,1,0,20,116]
["SRV – Lenny","jukolanpoika","Goes for Lenny and other slow songs by SRV. You need to have Texas Special-pickups to achieve SRV sound.","Stevie Ray Vaughan, Lenny","Valvetronix+ (VT20+)","Blues ","2012-02-24",null,1,3,"Style:4,Tap:10,PowerLevel:25,Edit2:0,Edit3:0,Volume:66,Treble:64,Middle:75,Bass:82,Effect2:1,Master:19,Gain:51,Edit1:50,Effect1:7,Red-Green:2,Edit2HOLD:1,TapOnOff:0",4,10,25,0,0,66,64,75,82,1,19,51,50,7,2,1,0,20,138]
["jimmy page how many more times","alexandrenaweb","I try to find this tone... i hope you enjoy. For intro use auto wah, for solos fuzzzzzzzzzzzzzzz","Led Zeppelin, Jimmy Page - How many more times","Valvetronix+ (VT20+)","50W Plexi ","2011-12-05",null,1,3,"Style:7,Tap:10,PowerLevel:19,Edit2:0,Edit3:38,Volume:85,Treble:77,Middle:50,Bass:80,Effect2:1,Master:100,Gain:60,Edit1:0,Effect1:1,Red-Green:1,Edit2HOLD:1,TapOnOff:0",7,10,19,0,38,85,77,50,80,1,100,60,0,1,1,1,0,20,188]
["Led Zeppelin - rock n roll","rodolfoleal","use the max treble in the solo","Led Zeppelin, rock and roll","Valvetronix+ (VT20+)","page tone ","2011-08-17",null,1,3,"Style:7,Tap:10,PowerLevel:41,Edit2:43,Edit3:46,Volume:31,Treble:67,Middle:74,Bass:69,Effect2:10,Master:50,Gain:41,Edit1:44,Effect1:8,Red-Green:3,Edit2HOLD:21,TapOnOff:0",7,10,41,43,46,31,67,74,69,10,50,41,44,8,3,21,0,20,227]
["UK Rock Brian May","robrocks7","British Rock","-","Valvetronix+ (VT20+)","Rock ","2011-06-18",null,1,3,"Style:7,Tap:10,PowerLevel:32,Edit2:44,Edit3:41,Volume:50,Treble:62,Middle:50,Bass:67,Effect2:9,Master:50,Gain:87,Edit1:18,Effect1:1,Red-Green:3,Edit2HOLD:1,TapOnOff:0",7,10,32,44,41,50,62,50,67,9,50,87,18,1,3,1,0,20,248]
["Foo Fighters Crunch","rdb121775","I play this off of my bridge (Burstbucker 2) pup. It works really well for Rope and Arlandria.","Foo Fighters, Wasting Light","Valvetronix+ (VT80+)","Rock/Crunch ","2011-05-26",null,1,3,"Style:7,Tap:10,PowerLevel:32,Edit2:0,Edit3:37,Volume:76,Treble:57,Middle:46,Bass:47,Effect2:1,Master:74,Gain:53,Edit1:0,Effect1:1,Red-Green:3,Edit2HOLD:1,TapOnOff:0",7,10,32,0,37,76,57,46,47,1,74,53,0,1,3,1,0,80,255]
["very crunchy blues","napalmrain","adding anymore reverb kinda kills it, but i like a little bit of CE chorus on it sometimes too. This is great for heavy blues soloing, has kind of a les paul sound out of my Ibanez rg5ex1","-","Valvetronix+ (VT40+)","Blues ","2011-03-03",null,1,3,"Style:1,Tap:10,PowerLevel:58,Edit2:0,Edit3:8,Volume:100,Treble:83,Middle:37,Bass:100,Effect2:1,Master:9,Gain:100,Edit1:100,Effect1:7,Red-Green:1,Edit2HOLD:1,TapOnOff:0",1,10,58,0,8,100,83,37,100,1,9,100,100,7,1,1,0,40,273]
["Mark Knopfler / Dire Straits Tone","jerdix","Tone especially for finger-picking","Mark Knopfler, Sultans of Swing","Valvetronix+ (VT20+)","Strat-Style ","2011-01-14",null,1,3,"Style:4,Tap:10,PowerLevel:17,Edit2:0,Edit3:50,Volume:54,Treble:78,Middle:48,Bass:48,Effect2:1,Master:47,Gain:21,Edit1:0,Effect1:1,Red-Green:3,Edit2HOLD:1,TapOnOff:0",4,10,17,0,50,54,78,48,48,1,47,21,0,1,3,1,0,20,292]
["Won't Get Fooled Again","vox_tom_usa","Do some windmills!","The Who, Won39t Get Fooled Again","Valvetronix+ (VT40+)","Rock ","2011-01-11",null,1,3,"Style:7,Tap:10,PowerLevel:38,Edit2:0,Edit3:38,Volume:100,Treble:95,Middle:43,Bass:35,Effect2:1,Master:41,Gain:60,Edit1:0,Effect1:1,Red-Green:1,Edit2HOLD:1,TapOnOff:0",7,10,38,0,38,100,95,43,35,1,41,60,0,1,1,1,0,40,302]
["Slow Rotating Speaker","vox_tom_usa","Try to get the speed of the motor to be as slow as possible. Great for arpeggiating open chords and slow finger picking.","Cream, Badge/Goodbye","Valvetronix+ (VT40+)","Classic Rock ","2011-01-11",null,1,3,"Style:2,Tap:37,PowerLevel:37,Edit2:50,Edit3:6,Volume:91,Treble:82,Middle:96,Bass:94,Effect2:6,Master:36,Gain:50,Edit1:0,Effect1:1,Red-Green:3,Edit2HOLD:1,TapOnOff:0",2,37,37,50,6,91,82,96,94,6,36,50,0,1,3,1,0,40,322]
["The Jam crunch","willpittabread","Use a single coil pickup or a Rickenbacker for you lucky people :)","-","Valvetronix+ (VT20+)","Mod Rock ","2012-02-23",null,2,2.5,"Style:6,Tap:10,PowerLevel:7,Edit2:0,Edit3:25,Volume:60,Treble:100,Middle:0,Bass:0,Effect2:1,Master:15,Gain:93,Edit1:0,Effect1:1,Red-Green:2,Edit2HOLD:1,TapOnOff:0",6,10,7,0,25,60,100,0,0,1,15,93,0,1,2,1,0,20,141]
["Yngwie Malmsteen like","tuka3desu","It made hearing sound by video. It seems that it is necessary to adjust.","-","Valvetronix+ (VT20 +)","Hard Rock ","2012-02-06","http://www.youtube.com/watch?v=RrLCteQlkUY",2,2.5,"Style:7,Tap:10,PowerLevel:95,Edit2:6,Edit3:55,Volume:72,Treble:35,Middle:34,Bass:90,Effect2:11,Master:82,Gain:78,Edit1:93,Effect1:8,Red-Green:3,Edit2HOLD:1,TapOnOff:0",7,10,95,6,55,72,35,34,90,11,82,78,93,8,3,1,0,20,161]
["Roses Waterfall","downsideup","Grab that Gretsch and play the John Squire way. Also good for some Johnny Marr Jangle - switch to a Rik or Tele for some This Charming Man type vibe.","Stone Roses, Waterfall","Valvetronix+ (VT40+)","Indie Jangle ","2011-04-13",null,2,2.5,"Style:6,Tap:12,PowerLevel:21,Edit2:69,Edit3:62,Volume:61,Treble:38,Middle:38,Bass:57,Effect2:1,Master:30,Gain:34,Edit1:39,Effect1:7,Red-Green:2,Edit2HOLD:1,TapOnOff:0",6,12,21,69,62,61,38,38,57,1,30,34,39,7,2,1,0,40,266]
["Auto wah","stepath18","for something new if you are bored with all the same:)","-","Valvetronix+ (VT20+)","Psychedelic Rock ","2012-02-08",null,3,2.2000000000000002,"Style:2,Tap:16,PowerLevel:38,Edit2:28,Edit3:22,Volume:70,Treble:63,Middle:54,Bass:38,Effect2:3,Master:40,Gain:75,Edit1:100,Effect1:3,Red-Green:2,Edit2HOLD:1,TapOnOff:0",2,16,38,28,22,70,63,54,38,3,40,75,100,3,2,1,0,20,156]
["slash - Bad rain","slashyx","guitare: BC Rich Mockingbird Japan with emg 85 (neck)/81 (bridge)pickups","Slash, Bad rain - apocaliptic love","Valvetronix+ (VT20+)","Hard Rock ","2013-01-21",null,1,2,"Style:9,Tap:2975,PowerLevel:18,Edit2:0,Edit3:49,Volume:42,Treble:66,Middle:100,Bass:100,Effect2:1,Master:31,Gain:81,Edit1:0,Effect1:7,Red-Green:2,Edit2HOLD:1,TapOnOff:0",9,2975,18,0,49,42,66,100,100,1,31,81,0,7,2,1,0,20,12]
["Rock Basix 101","canadiandave","basic rock starting point, volume and tone full up or u loose the bite on the bridge pickup, not perfect yet, help required :)","AC/DC Sabbath, all n any","Valvetronix+ (VT20+)","RocK ","2012-02-26",null,1,2,"Style:7,Tap:10,PowerLevel:16,Edit2:22,Edit3:17,Volume:100,Treble:30,Middle:71,Bass:74,Effect2:9,Master:45,Gain:100,Edit1:100,Effect1:8,Red-Green:1,Edit2HOLD:1,TapOnOff:0",7,10,16,22,17,100,30,71,74,9,45,100,100,8,1,1,0,20,134]
["Metallica Solo's","timmie","use the 99 presets button once till the light has turn orange","Metallica, Death Magnetic","Valvetronix+ (VT20+)","Metal ","2011-09-01",null,1,2,"Style:8,Tap:10,PowerLevel:49,Edit2:0,Edit3:0,Volume:53,Treble:100,Middle:100,Bass:0,Effect2:1,Master:33,Gain:100,Edit1:0,Effect1:1,Red-Green:2,Edit2HOLD:1,TapOnOff:0",8,10,49,0,0,53,100,100,0,1,33,100,0,1,2,1,0,20,222]
["godfather slash","lortlort","set the tone knob one your guitar to about 3. good tone for slash godfather theme. i use both pickups. you can adjust the power level as you want","Slash, live","Valvetronix+ (VT20+)","Metal Solo ","2011-04-09",null,1,2,"Style:11,Tap:6,PowerLevel:24,Edit2:0,Edit3:51,Volume:100,Treble:77,Middle:55,Bass:100,Effect2:1,Master:59,Gain:100,Edit1:17,Effect1:7,Red-Green:1,Edit2HOLD:1,TapOnOff:0",11,6,24,0,51,100,77,55,100,1,59,100,17,7,1,1,0,20,268]
["Boston - Don't Look Back","bunkie","This tone should cover most of the rhythm guitar sounds in the first two albums. Try this one fore More Than a Feeling as well.","Boston, Dont Look Back","Valvetronix+ (VT20+)","Classic Rock ","2012-02-26",null,1,1,"Style:8,Tap:7,PowerLevel:16,Edit2:32,Edit3:16,Volume:85,Treble:83,Middle:44,Bass:45,Effect2:11,Master:87,Gain:42,Edit1:30,Effect1:1,Red-Green:1,Edit2HOLD:18,TapOnOff:0",8,7,16,32,16,85,83,44,45,11,87,42,30,1,1,18,0,20,137]
["perfect alien tone","mrebaggott","this is a perfect tone if your bored and want to creat some futuristic noises on your guitar. make sure to use volume swells on your volume pot and enjoy!","-","Valvetronix+ (VT20+)","space ","2012-01-31",null,1,1,"Style:8,Tap:2,PowerLevel:41,Edit2:92,Edit3:100,Volume:38,Treble:64,Middle:44,Bass:52,Effect2:9,Master:25,Gain:42,Edit1:27,Effect1:3,Red-Green:2,Edit2HOLD:1,TapOnOff:0",8,2,41,92,100,38,64,44,52,9,25,42,27,3,2,1,0,20,166]
["ACDC Highway tone","axelorenz","This is a pretty basic AC-DC rhythm tone from the highway to hell album. Just to give you a starting point to build off of. Note: you may want to back off the gold drive at higher power levels","AC/DC, Highway To Hell album","Valvetronix+ (VT40+)","Hard Rock ","2012-01-22",null,1,1,"Style:7,Tap:10,PowerLevel:21,Edit2:0,Edit3:0,Volume:50,Treble:43,Middle:57,Bass:73,Effect2:1,Master:48,Gain:100,Edit1:21,Effect1:8,Red-Green:1,Edit2HOLD:1,TapOnOff:0",7,10,21,0,0,50,43,57,73,1,48,100,21,8,1,1,0,40,170]
["gary moore sustain","grattmod","the gary moore's sustain sound...","gary moore, parisienne walkways","Valvetronix+ (VT20+)","Blues ","2011-12-22",null,1,1,null,null,null,null,null,null,null,null,null,null,null,null,null,null,null,null,null,null,20,181]
["Crispy Rock Distortion","papaholdy","A nice rock/Blues /alt style sound. A nice crispy crunch without going into a more \"metal\" distortion (not that there is anything wrong with that...)","-","Valvetronix+ (VT80+)","Rock Alt Indy ","2011-04-12",null,1,1,"Style:7,Tap:10,PowerLevel:63,Edit2:0,Edit3:41,Volume:55,Treble:100,Middle:81,Bass:18,Effect2:1,Master:33,Gain:100,Edit1:0,Effect1:1,Red-Green:2,Edit2HOLD:1,TapOnOff:0",7,10,63,0,41,55,100,81,18,1,33,100,0,1,2,1,0,80,267]
["High Gain Metal","simsdogg92","This is a great high gain metal tone for single coil pickups.","-","Valvetronix+ (VT40+)","Metal ","2011-01-20",null,1,1,"Style:6,Tap:4,PowerLevel:8,Edit2:60,Edit3:44,Volume:100,Treble:62,Middle:100,Bass:62,Effect2:10,Master:100,Gain:75,Edit1:0,Effect1:1,Red-Green:1,Edit2HOLD:0,TapOnOff:0",6,4,8,60,44,100,62,100,62,10,100,75,0,1,1,0,0,40,286]
["Opeth like","wolf6","The noise sensitivity has to be kinda high, about 60%","Opeth, Ghost Reveries","Valvetronix+ (VT20+)","Progressive Metal ","2011-01-11",null,1,1,"Style:11,Tap:10,PowerLevel:62,Edit2:0,Edit3:18,Volume:32,Treble:71,Middle:90,Bass:69,Effect2:1,Master:17,Gain:91,Edit1:0,Effect1:1,Red-Green:1,Edit2HOLD:1,TapOnOff:0",11,10,62,0,18,32,71,90,69,1,17,91,0,1,1,1,0,20,300]
["Rock Lead 2","vladmo","Rock Lead 2 - Red 3","-","Valvetronix+ (VT20+)","Rock Lead 2 ","2012-10-21",null,1,null,null,null,null,null,null,null,null,null,null,null,null,null,null,null,null,null,null,null,20,41]
["MUSE Crunch","reddragon9800","Use a guitar with Humbuckers or a Strat! Sometimes add ORG PHASE at really low speed for certain","MUSE, Most of their Songs","Valvetronix+ (VT20+)","Prog Rock ","2013-03-13",null,0,null,null,null,null,null,null,null,null,null,null,null,null,null,null,null,null,null,null,null,20,1]
["Green Day BEST!","reddragon9800","Requirments for best tone.. -Use an ES-339 or any Gibson/Epiphone with P-90 Pickups. -Use Bos","Green Day, UNO DOS TRE","Valvetronix+ (VT20+)","Punk ","2013-03-13",null,0,null,null,null,null,null,null,null,null,null,null,null,null,null,null,null,null,null,null,null,20,2]
["Daybreaker","vegas","Please rate my tones!","Architects, Daybreaker","Valvetronix+ (VT20+)","Metalcore ","2013-03-12",null,0,null,null,null,null,null,null,null,null,null,null,null,null,null,null,null,null,null,null,null,20,3]
["Hollow Crown","vegas","Even though the 'US Metal - Red' simulates the Peavey 6505+, i think 'UK Metal - Gre","Architects, Hollow Crown","Valvetronix+ (VT20+)","Metalcore ","2013-03-12",null,0,null,null,null,null,null,null,null,null,null,null,null,null,null,null,null,null,null,null,null,20,4]
["Super Crunch","lucasmurphy","A very punch Crunch tone","-","Valvetronix+ (VT120+)","Any ","2013-03-11",null,0,null,null,null,null,null,null,null,null,null,null,null,null,null,null,null,null,null,null,null,120,5]
["papa roach no more secrets","vjiq","My papa roach tone. Sounds great.","Papa roach, No more secrets","Valvetronix+ (VT20+)","RockNew metal ","2013-02-27",null,0,null,null,null,null,null,null,null,null,null,null,null,null,null,null,null,null,null,null,null,20,6]
["Kill 'Em All","eran8282","Maunual","Metallica, Whiplash Jump in the Fire Motorbreath Hit the Lights The Four Horsemen","Valvetronix+ (VT20+)","Trash Metal ","2013-02-19",null,0,null,"Style:6,Tap:831,PowerLevel:35,Edit2:0,Edit3:20,Volume:100,Treble:100,Middle:9,Bass:66,Effect2:1,Master:11,Gain:69,Edit1:63,Effect1:7,Red-Green:1,Edit2HOLD:1,TapOnOff:0",6,831,35,0,20,100,100,9,66,1,11,69,63,7,1,1,0,20,7]
["sweet solo tone","charlos11","un sonido de solo con muchos medios y sustain","-","Valvetronix+ (VT80+)","high gain ","2013-02-15",null,0,null,null,null,null,null,null,null,null,null,null,null,null,null,null,null,null,null,null,null,80,8]
["Metallica - Unforgiven(clean)","kuna","Manual","Metallica, Unforgiven","Valvetronix+ (VT40+)","Clean ","2013-02-13",null,0,null,"Style:4,Tap:1,PowerLevel:18,Edit2:0,Edit3:47,Volume:100,Treble:82,Middle:49,Bass:30,Effect2:1,Master:31,Gain:34,Edit1:26,Effect1:1,Red-Green:2,Edit2HOLD:1,TapOnOff:0",4,1,18,0,47,100,82,49,30,1,31,34,26,1,2,1,0,40,9]
["Nightrain","mohamadjazbi","this how i like it. and my guitar is a les paul black beauty 3 ...","slash, Nightrain","Valvetronix+ (VT40+)","Rock ","2013-01-31",null,0,null,"Style:9,Tap:272,PowerLevel:62,Edit2:22,Edit3:27,Volume:45,Treble:65,Middle:37,Bass:36,Effect2:10,Master:9,Gain:100,Edit1:22,Effect1:8,Red-Green:2,Edit2HOLD:1,TapOnOff:0",9,272,62,22,27,45,65,37,36,10,9,100,22,8,2,1,0,40,10]
["Metalic Bronze","crane","Deep, Heavy, and entrancing to some degree if tweak to your own certain specifications.","-","Valvetronix+ (VT40+)","Metal ","2013-01-10",null,0,null,"Style:8,Tap:7,PowerLevel:94,Edit2:46,Edit3:42,Volume:19,Treble:100,Middle:100,Bass:100,Effect2:10,Master:97,Gain:100,Edit1:37,Effect1:10,Red-Green:3,Edit2HOLD:30,TapOnOff:0",8,7,94,46,42,19,100,100,100,10,97,100,37,10,3,30,0,40,13]
["Stevie Ray - Vaughan Texas Blues","scotthunter21","Sounds pretty good my end. Beauty is, if you want his cleaner tone just simply role back the gain. Does the job for me","Stevie Ray Vaughan, Cold Shot/Pride and Joy","Valvetronix+ (VT40+)","Texas Blues ","2013-01-08",null,0,null,"Style:9,Tap:10,PowerLevel:18,Edit2:0,Edit3:21,Volume:34,Treble:73,Middle:60,Bass:100,Effect2:1,Master:18,Gain:26,Edit1:48,Effect1:1,Red-Green:2,Edit2HOLD:1,TapOnOff:0",9,10,18,0,21,34,73,60,100,1,18,26,48,1,2,1,0,40,14]
["Still waiting Sum 41","vjiq","Spesial for you","Sum 41, Still waiting","Valvetronix+ (VT20+)","Rock ","2012-12-29",null,0,null,null,null,null,null,null,null,null,null,null,null,null,null,null,null,null,null,null,null,20,16]
["Fade to black","vjiq","your welcome","Metallica, Fade to black","Valvetronix+ (VT20+)","Rock ","2012-12-29",null,0,null,"Style:6,Tap:10,PowerLevel:0,Edit2:0,Edit3:61,Volume:50,Treble:53,Middle:80,Bass:83,Effect2:9,Master:51,Gain:49,Edit1:100,Effect1:11,Red-Green:1,Edit2HOLD:1,TapOnOff:0",6,10,0,0,61,50,53,80,83,9,51,49,100,11,1,1,0,20,17]
["Green Day (Newer)","reddragon9800","It sounds best if you use Tortex .88mm Sharp picks and pick pretty hard. Then you have the sound","Billie Joe Armstrong, Nimrod to Now","Valvetronix+ (VT20+)","Punchy and Crunchy ","2012-12-28",null,0,null,null,null,null,null,null,null,null,null,null,null,null,null,null,null,null,null,null,null,20,18]
["ZZ TOP'S A RIPPIN'","play4u2","Played in G aggressively.","Billy Gibbons, La grande/Tres hombres","Valvetronix+ (VT20+)","TEXAS BLUES/ROCK ","2012-12-26",null,0,null,null,null,null,null,null,null,null,null,null,null,null,null,null,null,null,null,null,null,20,19]
["What I Found Out","bostero2","After looking for some time I think I finally got this one right.","The Beatles, Day Tripper","Valvetronix+ (VT40+)","Classic Rock ","2012-12-22",null,0,null,"Style:6,Tap:10,PowerLevel:28,Edit2:0,Edit3:63,Volume:50,Treble:30,Middle:48,Bass:11,Effect2:9,Master:11,Gain:66,Edit1:0,Effect1:1,Red-Green:1,Edit2HOLD:1,TapOnOff:0",6,10,28,0,63,50,30,48,11,9,11,66,0,1,1,1,0,40,20]
["Slash Tone / Slash's Snakepit","slash097","My Slash tone.","-","Valvetronix+ (VT40+)","Hard Rock ","2012-12-19","http://www.youtube.com/watch?v=5dMdPttSPf4",0,null,null,null,null,null,null,null,null,null,null,null,null,null,null,null,null,null,null,null,40,21]
["Papa roach kind of distortion","vjiq","It's been hard to find something like this","Papa roach, Last resort Between angels and insects She loves me not","Valvetronix+ (VT20+)","Alternative ","2012-12-10",null,0,null,"Style:8,Tap:10,PowerLevel:6,Edit2:0,Edit3:0,Volume:57,Treble:45,Middle:87,Bass:89,Effect2:1,Master:37,Gain:100,Edit1:100,Effect1:6,Red-Green:3,Edit2HOLD:1,TapOnOff:0",8,10,6,0,0,57,45,87,89,1,37,100,100,6,3,1,0,20,22]
["Burning Times","jasonab23","As close as i can get to Iced Earths tone","Iced Earth, Burning Times","Valvetronix+ (VT40+)","Metal ","2012-12-09",null,0,null,"Style:8,Tap:1,PowerLevel:62,Edit2:0,Edit3:46,Volume:88,Treble:74,Middle:50,Bass:100,Effect2:1,Master:10,Gain:100,Edit1:41,Effect1:6,Red-Green:3,Edit2HOLD:1,TapOnOff:0",8,1,62,0,46,88,74,50,100,1,10,100,41,6,3,1,0,40,23]
["Stinky Blues","jasonab23","Volume on guitar between 2 and 6 and tone on guitar between 4 and 6","-","Valvetronix+ (VT40+)","Modern Blues ","2012-12-09",null,0,null,"Style:3,Tap:155,PowerLevel:62,Edit2:0,Edit3:20,Volume:100,Treble:33,Middle:67,Bass:91,Effect2:1,Master:16,Gain:29,Edit1:23,Effect1:6,Red-Green:1,Edit2HOLD:1,TapOnOff:0",3,155,62,0,20,100,33,67,91,1,16,29,23,6,1,1,0,40,24]
["US. Metal #1","jasonab23","I play on manual mode and go from there.","N/A, N/A","Valvetronix+ (VT40+)","Progressive metal ","2012-12-09",null,0,null,null,null,null,null,null,null,null,null,null,null,null,null,null,null,null,null,null,null,40,25]
["AC DC back to black","vjiq","Best ACDC tone for this song, to my mind. Guitar schecter omen 6.","AC/DC, Back to black","Valvetronix+ (VT20+)","Rock ","2012-12-09",null,0,null,"Style:1,Tap:10,PowerLevel:60,Edit2:0,Edit3:0,Volume:18,Treble:18,Middle:100,Bass:49,Effect2:1,Master:19,Gain:48,Edit1:100,Effect1:8,Red-Green:2,Edit2HOLD:1,TapOnOff:0",1,10,60,0,0,18,18,100,49,1,19,48,100,8,2,1,0,20,26]
["Bluesy Crunchy","mar2","Great overdiven blues tone... USE ON MANUAL SETTING","-","Valvetronix+ (VT20+)","Blues ","2012-12-04",null,0,null,null,null,null,null,null,null,null,null,null,null,null,null,null,null,null,null,null,null,20,27]
["Blues crunch","mar2","Great overdiven blues tone... USE ON MANUAL SETTING","-","Valvetronix+ (VT20+)","Blues ","2012-12-04",null,0,null,null,null,null,null,null,null,null,null,null,null,null,null,null,null,null,null,null,null,20,28]
["Faces - I'm Losing You","deteroblix","Faces - I'm Losing You. Add some funk when strumming - use upstrokes a lot in the beginning","-","Valvetronix+ (VT40+)","Rock - add some fu ","2012-12-04",null,0,null,null,null,null,null,null,null,null,null,null,null,null,null,null,null,null,null,null,null,40,29]
["Faces - Stay with Me","deteroblix","Faces - Stay with Me - play in Open E tuning: E,B,E,G#, B,E May need to be tweaked a bit.","-","Valvetronix+ (VT40+)","Rock - Open E tuni ","2012-12-04",null,0,null,null,null,null,null,null,null,null,null,null,null,null,null,null,null,null,null,null,null,40,30]
["Cool Metal Tone for you, my brother","rusel_susel","Cool metal tone!","Metallica, Death magnetic","Valvetronix+ (VT20+)","Metal ","2012-11-15",null,0,null,"Style:9,Tap:10,PowerLevel:35,Edit2:0,Edit3:0,Volume:85,Treble:59,Middle:44,Bass:58,Effect2:1,Master:53,Gain:56,Edit1:100,Effect1:8,Red-Green:1,Edit2HOLD:1,TapOnOff:0",9,10,35,0,0,85,59,44,58,1,53,56,100,8,1,1,0,20,31]
["metal roar","damienvox","Heavy well defined and harmonics and solos galore.","chriss olivia, devastation","Valvetronix+ (VT120+)","Heavy Metal ","2012-11-10",null,0,null,null,null,null,null,null,null,null,null,null,null,null,null,null,null,null,null,null,null,120,32]
["blues acoustic","damienvox","Great bluesy tone or acoustic like when you draw back some on your picking.","-","Valvetronix+ (VT120+)","Acoustic/Blues ","2012-11-10",null,0,null,null,null,null,null,null,null,null,null,null,null,null,null,null,null,null,null,null,null,120,34]
["Brian May Creamy Distortion","scotthunter21","As close as I can get to the great mans tone, using my Mexican Telecaster.","Brian May, I want it all","Valvetronix+ (VT40+)","Brian May ","2012-11-08",null,0,null,"Style:6,Tap:10,PowerLevel:17,Edit2:0,Edit3:13,Volume:65,Treble:50,Middle:56,Bass:75,Effect2:1,Master:16,Gain:43,Edit1:41,Effect1:6,Red-Green:3,Edit2HOLD:1,TapOnOff:0",6,10,17,0,13,65,50,56,75,1,16,43,41,6,3,1,0,40,35]
["Jimi Hendrix early years","tracy1965","Excellent Hendrix tone. Great for a telecaster or any single coil pup...","-","Valvetronix+ (VT80+)","Vintage Hendrix ","2012-10-28",null,0,null,"Style:6,Tap:17,PowerLevel:17,Edit2:13,Edit3:16,Volume:53,Treble:64,Middle:94,Bass:36,Effect2:9,Master:62,Gain:45,Edit1:15,Effect1:11,Red-Green:1,Edit2HOLD:0,TapOnOff:0",6,17,17,13,16,53,64,94,36,9,62,45,15,11,1,0,0,80,36]
["Metallica tone v1 ","domiswoz","Beautiful tone for MoP","Metallica, MoP","Valvetronix+ (VT20+)","Thrash Metal ","2012-10-28",null,0,null,"Style:4,Tap:10,PowerLevel:16,Edit2:50,Edit3:0,Volume:70,Treble:72,Middle:62,Bass:68,Effect2:9,Master:48,Gain:88,Edit1:89,Effect1:10,Red-Green:1,Edit2HOLD:1,TapOnOff:0",4,10,16,50,0,70,72,62,68,9,48,88,89,10,1,1,0,20,37]
["Diamond Sound 70' 80' rock","domiswoz","Beautiful dirty tone for hard rock, heavy metal of 70's and 80's","Diamond Head, Am I Evil","Valvetronix+ (VT20+)","Rock / Heavy Metal ","2012-10-27",null,0,null,"Style:4,Tap:462,PowerLevel:26,Edit2:42,Edit3:0,Volume:57,Treble:64,Middle:100,Bass:47,Effect2:9,Master:50,Gain:88,Edit1:100,Effect1:8,Red-Green:1,Edit2HOLD:0,TapOnOff:0",4,462,26,42,0,57,64,100,47,9,50,88,100,8,1,0,0,20,38]
["Jazz","itinerantmonk108","A warm Jazzy tone using a Epi Dot with a D'marzio Air Norton pickup in the neck position.","-","Valvetronix+ (VT80+)","Jazz ","2012-10-25",null,0,null,null,null,null,null,null,null,null,null,null,null,null,null,null,null,null,null,null,null,80,39]
["Rock Rhythm 1","vladmo","Rock Rhythm - Red 4","-","Valvetronix+ (VT20+)","Rock ","2012-10-21",null,0,null,null,null,null,null,null,null,null,null,null,null,null,null,null,null,null,null,null,null,20,40]
["VVRock Lead 1","vladmo","Rock Lead 1 - Red 2","-","Valvetronix+ (VT20+)","Rock Lead ","2012-10-21",null,0,null,null,null,null,null,null,null,null,null,null,null,null,null,null,null,null,null,null,null,20,42]
["Clean 1","vladmo","Clean - Green 1 / Red 1","-","Valvetronix+ (VT20+)","Clean ","2012-10-21",null,0,null,null,null,null,null,null,null,null,null,null,null,null,null,null,null,null,null,null,null,20,43]
["Slash AFD100 need cry baby","nicola1397","For this preset need Dunlop cry baby! I've the GCB-95 and i think that it is the best...Effe","Slash, Appetite for Destruction","Valvetronix+ (VT80+)","Hard Rock ","2012-10-12",null,0,null,null,null,null,null,null,null,null,null,null,null,null,null,null,null,null,null,null,null,80,44]
["Dookie by Green Day","dookie94","good tone for when i come around and basket case and other dookie songs","Green Day, Dookie","Valvetronix+ (VT40+)","Punk but not metal ","2012-10-09",null,0,null,null,null,null,null,null,null,null,null,null,null,null,null,null,null,null,null,null,null,40,45]
["Bluesbreaker`s","guitero","Epiphone ES 335","Eric Clapton, Steppinout","Valvetronix+ (VT20+)","Blues ","2012-10-01",null,0,null,null,null,null,null,null,null,null,null,null,null,null,null,null,null,null,null,null,null,20,46]
["Page 03 2012-12-29Punk Rock","eran8282","you can choose the power level it dosent matter","Pennywise, Peaceful day","Valvetronix+ (VT20+)","Punk Rock ","2012-09-25",null,0,null,null,null,null,null,null,null,null,null,null,null,null,null,null,null,null,null,null,null,20,47]
["Leeroy","jamzlarz1973","metal for the masses","-","Valvetronix+ (VT40+)","Rock ","2012-09-25",null,0,null,null,null,null,null,null,null,null,null,null,null,null,null,null,null,null,null,null,null,40,48]
["gary moore style","seelwinterwolf","a blues like style","-","Valvetronix+ (VT20+)","Blues-Rock ","2012-09-22",null,0,null,null,null,null,null,null,null,null,null,null,null,null,null,null,null,null,null,null,null,20,49]
["metal disto","seelwinterwolf","a metal tone","Metal, /","Valvetronix+ (VT20+)","Metal rythm ","2012-09-22",null,0,null,null,null,null,null,null,null,null,null,null,null,null,null,null,null,null,null,null,null,20,50]
["Oh Love-Green Day","msonnheim","sounds great on a les paul, but you could use a strat as well.","Green Day, Oh Love","Valvetronix+ (VT20+)","Pop Rock ","2012-09-15",null,0,null,null,null,null,null,null,null,null,null,null,null,null,null,null,null,null,null,null,null,20,51]
["It's a kind of Queen","scotthunter21","Tone created using my Mexican Telecaster","Brian May, One Vision/I Want It All","Valvetronix+ (VT40+)","Creamy distortion ","2012-09-14",null,0,null,"Style:6,Tap:3,PowerLevel:18,Edit2:7,Edit3:0,Volume:50,Treble:40,Middle:72,Bass:81,Effect2:2,Master:18,Gain:42,Edit1:7,Effect1:6,Red-Green:1,Edit2HOLD:1,TapOnOff:0",6,3,18,7,0,50,40,72,81,2,18,42,7,6,1,1,0,40,52]
["Trovato & Warner country tone","freudghost","This tone is inspired by Alan Warner 's solo Lookin' back and Steve Trovato's video","Alan Warner Steve Trovato, Lookin39 Back/Lick Library","Valvetronix+ (VT20+)","Country ","2012-09-09",null,0,null,null,null,null,null,null,null,null,null,null,null,null,null,null,null,null,null,null,null,20,53]
["SPistolstone","plectrumpoppy","Punky Tone","Sex Pistols, Pretty Vacant","Valvetronix+ (VT20+)","Punk ","2012-08-27",null,0,null,null,null,null,null,null,null,null,null,null,null,null,null,null,null,null,null,null,null,20,54]
["Pink Floyd - Time (1)","bunkie","Use this sound for the guitar solo.","Pink Floyd, Time","Valvetronix+ (VT20+)","70s Rock ","2012-08-25",null,0,null,"Style:3,Tap:14,PowerLevel:58,Edit2:33,Edit3:28,Volume:86,Treble:13,Middle:79,Bass:32,Effect2:11,Master:15,Gain:72,Edit1:3,Effect1:4,Red-Green:1,Edit2HOLD:7,TapOnOff:0",3,14,58,33,28,86,13,79,32,11,15,72,3,4,1,7,0,20,55]
["AC/DC tone VOX VT20+","mati664pl","ACDC tone","-","Valvetronix+ (VT20+)","Hard Rock ","2012-08-15",null,0,null,null,null,null,null,null,null,null,null,null,null,null,null,null,null,null,null,null,null,20,56]
["Metallica- One/ enter sandman intro","jason2349","Devised on a strat using the bridge pickup (single coil) with tone knob on guitar at 8-9. This","Metallica, One","Valvetronix+ (VT120+)","Metal ","2012-08-08",null,0,null,"Style:6,Tap:16,PowerLevel:12,Edit2:22,Edit3:44,Volume:64,Treble:61,Middle:34,Bass:88,Effect2:1,Master:84,Gain:55,Edit1:42,Effect1:1,Red-Green:2,Edit2HOLD:1,TapOnOff:0",6,16,12,22,44,64,61,34,88,1,84,55,42,1,2,1,0,120,57]
["Gold Overdrive","mattb97","great tone, very distinct notes.. however you must leave the EQ controls alone once you have sel","-","Valvetronix+ (VT40+)","Classic Rock ","2012-08-04",null,0,null,"Style:6,Tap:10,PowerLevel:50,Edit2:0,Edit3:0,Volume:100,Treble:100,Middle:100,Bass:100,Effect2:9,Master:49,Gain:100,Edit1:100,Effect1:8,Red-Green:2,Edit2HOLD:1,TapOnOff:0",6,10,50,0,0,100,100,100,100,9,49,100,100,8,2,1,0,40,58]
["Brian May, Queen","mattb97","the closest i can get to the Brian May tone with this amp","Brian May, on the Queen albums","Valvetronix+ (VT40+)","Queen ","2012-08-04",null,0,null,null,null,null,null,null,null,null,null,null,null,null,null,null,null,null,null,null,null,40,59]
["pop punk Distortion","juliancastillo","So Great!","blink 182, All","Valvetronix+ (VT20+)","Pop Punk ","2012-07-24",null,0,null,null,null,null,null,null,null,null,null,null,null,null,null,null,null,null,null,null,null,20,61]
["Like Tool","stepath18","simple tone inspired by tool","-","Valvetronix+ (VT20+)","tool ","2012-07-17",null,0,null,null,null,null,null,null,null,null,null,null,null,null,null,null,null,null,null,null,null,20,62]
["METAL/DEATH METAL/BTBAM","necrophagist7","VERY PUNCHY, CRYSTAL TREBLE, CRUNCHY MID, NICE IN C/C# TUNING, LOVE IT LOUD. PLAYS WELL WITH DYI","Between the buried and me, All","Valvetronix+ (VT20+)","PUNCHY ","2012-07-16",null,0,null,null,null,null,null,null,null,null,null,null,null,null,null,null,null,null,null,null,null,20,63]
["AcousticAmp","tincho77","If you wanna plug your acoustic guitar on your VT+ this is your tone!","-","Valvetronix+ (VT80+)","Acoustic ","2012-07-11",null,0,null,null,null,null,null,null,null,null,null,null,null,null,null,null,null,null,null,null,null,80,64]
["7-string Metal Distortion","grossc","Using an Ibanez RG7321, Kinda bassy but sounds great.","-","Valvetronix+ (VT40+)","Metal ","2012-07-08",null,0,null,null,null,null,null,null,null,null,null,null,null,null,null,null,null,null,null,null,null,40,65]
["Crazy Little Thing Called Love Solo","ledzep12","Hey guys this is a good tone that is similar to the \"Crazy Little Thing Called Love\" Sol","-","Valvetronix+ (VT20+)","CrunchyBluesyBassy ","2012-07-06",null,0,null,null,null,null,null,null,null,null,null,null,null,null,null,null,null,null,null,null,null,20,66]
["Rammstein-ish","necro671","Work In Progress, please feel free to amend/suggest better tones for Rammstein-ish music. Only","-","Valvetronix+ (VT20+)","Heavy Drop D ","2012-07-03",null,0,null,null,null,null,null,null,null,null,null,null,null,null,null,null,null,null,null,null,null,20,67]
["Rearrange Miles Kane","rob_is_my_name","Inspired BY \"Mr Jack Barry\" Himself. This is the tone for Rearrange by Miles Kane. If you have a tremolo you may want to lower the depth of the rotary.","-","Valvetronix+ (VT40+)","Vibrato ","2012-06-27",null,0,null,"Style:6,Tap:10,PowerLevel:82,Edit2:57,Edit3:23,Volume:100,Treble:63,Middle:55,Bass:43,Effect2:6,Master:100,Gain:36,Edit1:12,Effect1:11,Red-Green:1,Edit2HOLD:1,TapOnOff:0",6,10,82,57,23,100,63,55,43,6,100,36,12,11,1,1,0,40,69]
["The Fratellis – Henrietta","rob_is_my_name","A Tone For \"Henrietta\" From Costello Music (2006). I Haven't Tried It Out Yes But It Should Sound Like The Record! Send me a message if you thinks any changes should be made and ill change it.","The Fratellis, Henrietta","Valvetronix+ (VT40+)","Crunchy ","2012-06-27",null,0,null,"Style:2,Tap:10,PowerLevel:70,Edit2:0,Edit3:51,Volume:100,Treble:71,Middle:42,Bass:26,Effect2:1,Master:100,Gain:59,Edit1:0,Effect1:1,Red-Green:1,Edit2HOLD:1,TapOnOff:0",2,10,70,0,51,100,71,42,26,1,100,59,0,1,1,1,0,40,70]
["Gych","manueladron","My guitar is half step down tuned.","-","Valvetronix+ (VT120+)","Rock-Metal ","2012-06-26",null,0,null,"Style:8,Tap:3,PowerLevel:79,Edit2:0,Edit3:50,Volume:50,Treble:57,Middle:58,Bass:43,Effect2:1,Master:18,Gain:18,Edit1:0,Effect1:1,Red-Green:1,Edit2HOLD:1,TapOnOff:0",8,3,79,0,50,50,57,58,43,1,18,18,0,1,1,1,0,120,71]
["Flange Rock","smile_1163","Tyr it and see....","-","Valvetronix+ (VT40+)","7039s Rock ","2012-06-14",null,0,null,"Style:6,Tap:43,PowerLevel:27,Edit2:37,Edit3:54,Volume:33,Treble:34,Middle:61,Bass:61,Effect2:3,Master:81,Gain:33,Edit1:38,Effect1:8,Red-Green:2,Edit2HOLD:1,TapOnOff:0",6,43,27,37,54,33,34,61,61,3,81,33,38,8,2,1,0,40,72]
["Iron","davuzi","an awesome setting","Toni Iommi, Iron Man","Valvetronix+ (VT40+)","Crunch ","2012-06-06",null,0,null,"Style:5,Tap:10,PowerLevel:16,Edit2:0,Edit3:24,Volume:51,Treble:65,Middle:53,Bass:66,Effect2:1,Master:13,Gain:58,Edit1:35,Effect1:10,Red-Green:1,Edit2HOLD:1,TapOnOff:0",5,10,16,0,24,51,65,53,66,1,13,58,35,10,1,1,0,40,73]
["Angels And Airwaves - The Adventure","juliancastillo","Intro Delay","Angels And Airwaves, The Adventure","Valvetronix+ (VT20+)","Space Delay ","2012-06-04",null,0,null,"Style:1,Tap:2,PowerLevel:48,Edit2:100,Edit3:18,Volume:66,Treble:67,Middle:65,Bass:65,Effect2:10,Master:63,Gain:65,Edit1:39,Effect1:8,Red-Green:2,Edit2HOLD:63,TapOnOff:0",1,2,48,100,18,66,67,65,65,10,63,65,39,8,2,63,0,20,74]
["Metal Solo 5","vladmo","Metal Solo - UK Metal Red","-","Valvetronix+ (VT20+)","Metal ","2012-06-04",null,0,null,"Style:8,Tap:10,PowerLevel:0,Edit2:0,Edit3:52,Volume:25,Treble:18,Middle:100,Bass:100,Effect2:1,Master:96,Gain:49,Edit1:16,Effect1:10,Red-Green:1,Edit2HOLD:1,TapOnOff:0",8,10,0,0,52,25,18,100,100,1,96,49,16,10,1,1,0,20,75]
["Metal Solo 4","vladmo","Metal Solo","-","Valvetronix+ (VT20+)","Metal ","2012-06-03",null,0,null,"Style:4,Tap:10,PowerLevel:0,Edit2:0,Edit3:45,Volume:16,Treble:55,Middle:95,Bass:95,Effect2:1,Master:94,Gain:61,Edit1:71,Effect1:10,Red-Green:1,Edit2HOLD:1,TapOnOff:0",4,10,0,0,45,16,55,95,95,1,94,61,71,10,1,1,0,20,76]
["Metal Solo 3","vladmo","Metal Solo - Green 4","Metallica, Fade to Black Solo","Valvetronix+ (VT20+)","Metal ","2012-06-03",null,0,null,"Style:7,Tap:4,PowerLevel:5,Edit2:20,Edit3:81,Volume:23,Treble:100,Middle:100,Bass:45,Effect2:9,Master:80,Gain:65,Edit1:100,Effect1:10,Red-Green:1,Edit2HOLD:46,TapOnOff:0",7,4,5,20,81,23,100,100,45,9,80,65,100,10,1,46,0,20,77]
["Metal Tone 5","vladmo","Tone for Black - Green 3","Metallica, Black","Valvetronix+ (VT20+)","Metal ","2012-06-03",null,0,null,"Style:8,Tap:6,PowerLevel:11,Edit2:20,Edit3:50,Volume:30,Treble:65,Middle:48,Bass:100,Effect2:9,Master:82,Gain:100,Edit1:5,Effect1:10,Red-Green:1,Edit2HOLD:50,TapOnOff:0",8,6,11,20,50,30,65,48,100,9,82,100,5,10,1,50,0,20,78]
["Metal Tone 4","vladmo","Tone for Justice - Green 2","Metallica, Justice","Valvetronix+ (VT20+)","Metal ","2012-06-02",null,0,null,"Style:8,Tap:10,PowerLevel:13,Edit2:0,Edit3:7,Volume:30,Treble:37,Middle:5,Bass:37,Effect2:1,Master:95,Gain:81,Edit1:6,Effect1:7,Red-Green:3,Edit2HOLD:1,TapOnOff:0",8,10,13,0,7,30,37,5,37,1,95,81,6,7,3,1,0,20,79]
["Distorted Clean","pmgholami","Crystal Clean + Light Distortion","-","Valvetronix+ (VT20+)","Post Rock ","2012-05-30",null,0,null,"Style:1,Tap:10,PowerLevel:20,Edit2:0,Edit3:20,Volume:71,Treble:77,Middle:65,Bass:71,Effect2:1,Master:30,Gain:83,Edit1:0,Effect1:1,Red-Green:2,Edit2HOLD:1,TapOnOff:0",1,10,20,0,20,71,77,65,71,1,30,83,0,1,2,1,0,20,81]
["Metal Tone 3","vladmo","Tone for Justice/Black/master","Metallica, Justice","Valvetronix+ (VT20+)","Metal ","2012-05-28",null,0,null,"Style:11,Tap:10,PowerLevel:0,Edit2:0,Edit3:0,Volume:26,Treble:81,Middle:4,Bass:82,Effect2:1,Master:100,Gain:100,Edit1:0,Effect1:1,Red-Green:3,Edit2HOLD:1,TapOnOff:0",11,10,0,0,0,26,81,4,82,1,100,100,0,1,3,1,0,20,82]
["Metal Tone 2","vladmo","General Metal Tone for Ride the Lighting","Metallica, Black","Valvetronix+ (VT20+)","Metal ","2012-05-28",null,0,null,"Style:11,Tap:10,PowerLevel:0,Edit2:0,Edit3:0,Volume:24,Treble:65,Middle:34,Bass:94,Effect2:1,Master:96,Gain:95,Edit1:0,Effect1:1,Red-Green:1,Edit2HOLD:1,TapOnOff:0",11,10,0,0,0,24,65,34,94,1,96,95,0,1,1,1,0,20,83]
["Metal Solo 1","vladmo","Metal solo","Metallica, Fade to Black Solo","Valvetronix+ (VT20+)","Metal ","2012-05-28",null,0,null,"Style:11,Tap:10,PowerLevel:5,Edit2:0,Edit3:50,Volume:25,Treble:34,Middle:68,Bass:81,Effect2:1,Master:95,Gain:52,Edit1:66,Effect1:8,Red-Green:1,Edit2HOLD:1,TapOnOff:0",11,10,5,0,50,25,34,68,81,1,95,52,66,8,1,1,0,20,84]
["Kill em All/ Justice","vladmo","Kill em All tone","-","Valvetronix+ (VT20+)","Metal ","2012-05-28",null,0,null,null,null,null,null,null,null,null,null,null,null,null,null,null,null,null,null,null,null,20,85]
["The Cult with delay","vladmo","She Sells Sanctuary with delay","The Cult, She Sells Sanctuary","Valvetronix+ (VT20+)","Rock ","2012-05-27",null,0,null,null,null,null,null,null,null,null,null,null,null,null,null,null,null,null,null,null,null,20,86]
["November Rain ish 1st solo","vladmo","Use Your Illusion Solo Tone","-","Valvetronix+ (VT20+)","Rock ","2012-05-25",null,0,null,"Style:7,Tap:10,PowerLevel:0,Edit2:17,Edit3:45,Volume:32,Treble:50,Middle:64,Bass:100,Effect2:9,Master:65,Gain:100,Edit1:100,Effect1:10,Red-Green:2,Edit2HOLD:50,TapOnOff:0",7,10,0,17,45,32,50,64,100,9,65,100,100,10,2,50,0,20,87]
["Slash distortion - Use Your illusion","vladmo","Appetite/UUL tone","-","Valvetronix+ (VT20+)","Rock ","2012-05-25",null,0,null,"Style:1,Tap:10,PowerLevel:5,Edit2:0,Edit3:44,Volume:15,Treble:5,Middle:95,Bass:100,Effect2:1,Master:95,Gain:95,Edit1:100,Effect1:10,Red-Green:3,Edit2HOLD:1,TapOnOff:0",1,10,5,0,44,15,5,95,100,1,95,95,100,10,3,1,0,20,88]
["chilean solo","hreinberg","excelente para solear, es un sonido rockero y agradable","-","Valvetronix+ (VT20+)","Rock ","2012-05-19",null,0,null,null,null,null,null,null,null,null,null,null,null,null,null,null,null,null,null,null,null,20,91]
["Hendrix","autlos","With this setting I get nice Hendrix sounds through my Les Paul. With a Strato would be much bet","Hendrix, Little Wing","Valvetronix+ (VT20+)","Vintage ","2012-05-16",null,0,null,null,null,null,null,null,null,null,null,null,null,null,null,null,null,null,null,null,null,20,93]
["Horror punk","decay666","great punk/metal tone. I use an SG. If you change amp to the SPl one it sounds very Murderdolls If you add tape echo on the default rate at the 2 oclock position you get a good Dead Kennedys tone.","-","Valvetronix+ (VT20+)","horror punk/Punk/m","2012-05-07","http://www.youtube.com/watch?v=jBP3sbpvGuA Kontact",0,null,"Style:8,Tap:10,PowerLevel:14,Edit2:0,Edit3:17,Volume:52,Treble:100,Middle:100,Bass:19,Effect2:1,Master:19,Gain:52,Edit1:30,Effect1:1,Red-Green:2,Edit2HOLD:1,TapOnOff:0",8,10,14,0,17,52,100,100,19,1,19,52,30,1,2,1,0,20,94]
["Metallica suicide","shaneburkeflyingv","This was made on and epiphone sg korina","Metallica, suicide and redemption","Valvetronix+ (VT40+)","Rock/Metal ","2012-05-06",null,0,null,"Style:8,Tap:97,PowerLevel:23,Edit2:0,Edit3:0,Volume:38,Treble:100,Middle:58,Bass:64,Effect2:1,Master:100,Gain:100,Edit1:0,Effect1:1,Red-Green:1,Edit2HOLD:1,TapOnOff:0",8,97,23,0,0,38,100,58,64,1,100,100,0,1,1,1,0,40,95]
["SRV Clean sound","facundoconnor","strat neck-middle pickups","Stevie Ray Vaughan, All","Valvetronix+ (VT80+)","Blues ","2012-05-01",null,0,null,"Style:4,Tap:10,PowerLevel:0,Edit2:0,Edit3:46,Volume:50,Treble:85,Middle:81,Bass:100,Effect2:1,Master:0,Gain:8,Edit1:0,Effect1:1,Red-Green:2,Edit2HOLD:1,TapOnOff:0",4,10,0,0,46,50,85,81,100,1,0,8,0,1,2,1,0,80,96]
["Paramore / Decode","ellis_29","Hi guys , this tone is great for the rhythm section of this song and also for the solo. The best way to get the sound is to play on a single coil pickup with palm muting to get a rich heavy tone :) Stay tuned for more !","Paramore, Decode","Valvetronix+ (VT40+)","Metal / Heavy Punk ","2012-04-29",null,0,null,"Style:9,Tap:10,PowerLevel:38,Edit2:0,Edit3:81,Volume:38,Treble:26,Middle:79,Bass:96,Effect2:1,Master:48,Gain:61,Edit1:50,Effect1:10,Red-Green:2,Edit2HOLD:1,TapOnOff:0",9,10,38,0,81,38,26,79,96,1,48,61,50,10,2,1,0,40,97]
["Deep Wet Pumping Thrash Tone","irondave666","GUITAR ( ESP LTD M-100FM ) Volume 10 Tone 10 Pickup Switch - Bridge","Overkill, Never Say Never","Valvetronix+ (VT20+)","Thrash ","2012-04-24",null,0,null,"Style:8,Tap:2,PowerLevel:100,Edit2:34,Edit3:0,Volume:41,Treble:83,Middle:0,Bass:78,Effect2:10,Master:100,Gain:100,Edit1:60,Effect1:7,Red-Green:1,Edit2HOLD:1,TapOnOff:0",8,2,100,34,0,41,83,0,78,10,100,100,60,7,1,1,0,20,99]
["tape echo fun","b_sauce","cool sounds with tape echo","-","Valvetronix+ (VT40+)","lead ","2012-04-24",null,0,null,"Style:6,Tap:10,PowerLevel:16,Edit2:0,Edit3:57,Volume:54,Treble:39,Middle:50,Bass:57,Effect2:9,Master:54,Gain:50,Edit1:43,Effect1:7,Red-Green:1,Edit2HOLD:1,TapOnOff:0",6,10,16,0,57,54,39,50,57,9,54,50,43,7,1,1,0,40,100]
["Maps lead","b_sauce","sounds cool for yeah yeah yeahs lead in maps","yeah yeah yeahs, maps","Valvetronix+ (VT40+)","yeah yeah yeahs ","2012-04-24",null,0,null,"Style:7,Tap:10,PowerLevel:25,Edit2:0,Edit3:50,Volume:50,Treble:56,Middle:95,Bass:87,Effect2:1,Master:54,Gain:70,Edit1:44,Effect1:1,Red-Green:2,Edit2HOLD:1,TapOnOff:0",7,10,25,0,50,50,56,95,87,1,54,70,44,1,2,1,0,40,101]
["Britton's Tone","b_sauce","hard to describe but I like it! Some deacent fuzz but has a good lead tone as well","-","Valvetronix+ (VT40+)","fuzz ","2012-04-23",null,0,null,"Style:10,Tap:10,PowerLevel:13,Edit2:5,Edit3:7,Volume:60,Treble:59,Middle:60,Bass:58,Effect2:1,Master:24,Gain:58,Edit1:0,Effect1:11,Red-Green:3,Edit2HOLD:1,TapOnOff:0",10,10,13,5,7,60,59,60,58,1,24,58,0,11,3,1,0,40,103]
["Nearly Floyd","clubbingbabyseals","B.C. Rich Warbeast only w/polytune between me and my sound.","Pink Floyd, On the Run","Valvetronix+ (VT120+)","Ethereal Distortio ","2012-04-19",null,0,null,"Style:7,Tap:688,PowerLevel:49,Edit2:12,Edit3:13,Volume:50,Treble:63,Middle:50,Bass:61,Effect2:6,Master:32,Gain:67,Edit1:22,Effect1:8,Red-Green:1,Edit2HOLD:1,TapOnOff:0",7,688,49,12,13,50,63,50,61,6,32,67,22,8,1,1,0,120,104]
["Deep Purple","spirit57","This song, I've been using a Gibson Les Paul Standard Level 7, Tone 7, sound developed and tested. Pickup switch on treble.","Deep Purple, Smoke on the water","Valvetronix+ (VT20+)","Rock ","2012-04-17",null,0,null,"Style:7,Tap:688,PowerLevel:49,Edit2:12,Edit3:13,Volume:50,Treble:63,Middle:50,Bass:61,Effect2:6,Master:32,Gain:67,Edit1:22,Effect1:8,Red-Green:1,Edit2HOLD:1,TapOnOff:0",7,688,49,12,13,50,63,50,61,6,32,67,22,8,1,1,0,20,105]
["Kings of Leon - Pyro (lead)","jonasvox","I´m using my Les Paul for this awesome Kings of leon tone, which comes very close to the original. Could be improves by playing an semi-acoustik like KOL do. Have fun with this tone and stay tuned.","Kings of Leon, Pyro","Valvetronix+ (VT40+)","Rock ","2012-04-15",null,0,null,"Style:6,Tap:4,PowerLevel:17,Edit2:10,Edit3:42,Volume:81,Treble:64,Middle:65,Bass:47,Effect2:9,Master:50,Gain:50,Edit1:0,Effect1:1,Red-Green:2,Edit2HOLD:1,TapOnOff:0",6,4,17,10,42,81,64,65,47,9,50,50,0,1,2,1,0,40,107]
["Kings of Leon - Arizona (lead)","jonasvox","I´m using my Les Paul for this awesome Kings of leon tone, which comes very close to the original. Could be improves by playing an semi-acoustik like KOL do. Have fun with this tone and stay tuned.","Kings of Leon, Arizona","Valvetronix+ (VT40+)","Rock ","2012-04-15",null,0,null,"Style:6,Tap:4,PowerLevel:48,Edit2:16,Edit3:41,Volume:81,Treble:59,Middle:67,Bass:48,Effect2:10,Master:49,Gain:65,Edit1:0,Effect1:1,Red-Green:2,Edit2HOLD:1,TapOnOff:0",6,4,48,16,41,81,59,67,48,10,49,65,0,1,2,1,0,40,108]
["Kings of Leon - Sex on fire (lead)","jonasvox","scription: I´m using my Les Paul for this awesome Kings of leon tone, which comes very close to the original. Could be improves by playing an semi-acoustik like KOL do. Have fun with this tone and stay tuned.","Kings of Leon, Sex on fire","Valvetronix+ (VT40+)","Rock ","2012-04-15",null,0,null,"Style:6,Tap:5,PowerLevel:15,Edit2:18,Edit3:43,Volume:82,Treble:57,Middle:66,Bass:45,Effect2:9,Master:49,Gain:81,Edit1:0,Effect1:1,Red-Green:2,Edit2HOLD:1,TapOnOff:0",6,5,15,18,43,82,57,66,45,9,49,81,0,1,2,1,0,40,109]
["Franz Ferdinand","vegas","Rate and enjoy. :)","Franz Ferdinand, Take Me Out","Valvetronix+ (VT20+)","Alternative Rock ","2012-04-15",null,0,null,"Style:6,Tap:5,PowerLevel:18,Edit2:20,Edit3:46,Volume:66,Treble:79,Middle:100,Bass:41,Effect2:1,Master:18,Gain:83,Edit1:78,Effect1:6,Red-Green:3,Edit2HOLD:1,TapOnOff:0",6,5,18,20,46,66,79,100,41,1,18,83,78,6,3,1,0,20,110]
["My tonr","thecowboyfromhell","Lol","-","Valvetronix+ (VT20+)","Metal/Dist ","2012-04-14",null,0,null,"Style:8,Tap:10,PowerLevel:100,Edit2:0,Edit3:22,Volume:100,Treble:91,Middle:48,Bass:13,Effect2:1,Master:4,Gain:100,Edit1:12,Effect1:6,Red-Green:3,Edit2HOLD:1,TapOnOff:0",8,10,100,0,22,100,91,48,13,1,4,100,12,6,3,1,0,20,111]
["ZZ Top Rough boy","spirit57","The settings are from me, that I have personally tested. Setup for LS Paul both Guitarpickups Tone 7, Level 7. Delay or Chorus+Delay is Flavours.","ZZ Top, Rough Boy","Valvetronix+ (VT20+)","Rock ","2012-04-09",null,0,null,"Style:7,Tap:2,PowerLevel:24,Edit2:15,Edit3:66,Volume:80,Treble:81,Middle:50,Bass:60,Effect2:11,Master:16,Gain:50,Edit1:15,Effect1:11,Red-Green:1,Edit2HOLD:0,TapOnOff:0",7,2,24,15,66,80,81,50,60,11,16,50,15,11,1,0,0,20,113]
["Good Lead/Solo/Boost Sound","joeperryaero","When your guitar Volume is down it changes to a Hard rock/Rhythm Sound. Giving You The Freedom Of Having a solo tone without changing anything on your amp. Sounds Good on Les Paul","-","Valvetronix+ (VT20+)","Hard Rock ","2012-04-03",null,0,null,"Style:6,Tap:136,PowerLevel:18,Edit2:0,Edit3:0,Volume:100,Treble:90,Middle:100,Bass:60,Effect2:1,Master:18,Gain:100,Edit1:0,Effect1:1,Red-Green:1,Edit2HOLD:1,TapOnOff:0",6,136,18,0,0,100,90,100,60,1,18,100,0,1,1,1,0,20,115]
["Hard Rock/Heavy Metal","metalnick7","Nice and heavy! Great for thrash!","-","Valvetronix+ (VT40+)","Hard Rock/Metal ","2012-03-18",null,0,null,"Style:6,Tap:10,PowerLevel:64,Edit2:0,Edit3:0,Volume:49,Treble:100,Middle:25,Bass:100,Effect2:1,Master:100,Gain:100,Edit1:100,Effect1:8,Red-Green:1,Edit2HOLD:1,TapOnOff:0",6,10,64,0,0,49,100,25,100,1,100,100,100,8,1,1,0,40,118]
["Santana - Corazon Espinado","jbnsk8","Santana tone","-","Valvetronix+ (VT40+)","Hard Rock ","2012-03-17",null,0,null,"Style:8,Tap:10,PowerLevel:18,Edit2:14,Edit3:76,Volume:65,Treble:6,Middle:28,Bass:61,Effect2:9,Master:49,Gain:78,Edit1:32,Effect1:8,Red-Green:1,Edit2HOLD:1,TapOnOff:0",8,10,18,14,76,65,6,28,61,9,49,78,32,8,1,1,0,40,119]
["metallica solo emg 60/81 epiphone explorer gt","pacangar","i think is for solo good settings","metallica, solo settings","Valvetronix+ (VT20+)","Metal","2012-03-13",null,0,null,"Style:10,Tap:10,PowerLevel:21,Edit2:0,Edit3:18,Volume:49,Treble:50,Middle:50,Bass:56,Effect2:9,Master:21,Gain:19,Edit1:0,Effect1:10,Red-Green:2,Edit2HOLD:1,TapOnOff:0",10,10,21,0,18,49,50,50,56,9,21,19,0,10,2,1,0,20,120]
["metallica emg 60/81 epiphone explorer gt","pacangar","my homemade settings and is good for cort les paul ts100 too. good luck metal friends","metallica, master of puppets ride the lightning","Valvetronix+ (VT20+)","Metal","2012-03-13",null,0,null,"Style:7,Tap:10,PowerLevel:18,Edit2:0,Edit3:18,Volume:50,Treble:89,Middle:26,Bass:85,Effect2:1,Master:18,Gain:72,Edit1:18,Effect1:10,Red-Green:3,Edit2HOLD:1,TapOnOff:0",7,10,18,0,18,50,89,26,85,1,18,72,18,10,3,1,0,20,121]
["Santana – EUROPA","tuka3desu","Select pickup volume must be adjusted.","Santana, EUROPA","Valvetronix+ (VT20+)","Santana ","2012-03-11","http://www.youtube.com/watch?v=QMuwWcOfxUs",0,null,"Style:8,Tap:2,PowerLevel:58,Edit2:0,Edit3:70,Volume:68,Treble:7,Middle:15,Bass:62,Effect2:1,Master:38,Gain:64,Edit1:0,Effect1:1,Red-Green:1,Edit2HOLD:1,TapOnOff:0",8,2,58,0,70,68,7,15,62,1,38,64,0,1,1,1,0,20,123]
["EVH - A Different Kind of Truth - Red Channel","jdeats","Pretty use US Metal-Red model is based on a Peavey 6505 or EVH 5150 III. Tested with &#34;Hot&#34; ALNICO V single coil pickups (Fender Texas Specials) switch between bridge and neck positions for rhythm and lead playing.","Van Halen, She39s the Woman","Valvetronix+ (VT40+)","Rock ","2012-03-10",null,0,null,"Style:10,Tap:3,PowerLevel:19,Edit2:32,Edit3:79,Volume:61,Treble:49,Middle:98,Bass:61,Effect2:10,Master:18,Gain:92,Edit1:51,Effect1:7,Red-Green:1,Edit2HOLD:1,TapOnOff:0",10,3,19,32,79,61,49,98,61,10,18,92,51,7,1,1,0,40,124]
["Melodeath","tritonthemusician","Turned out to be a very great setting for Children of Bodom specifically. Alexi Laiho doesn&#39;t use a neck pickup and that is what this tone setting is made for, soloing and riffing using just the bridge pickup. I actually really enjoy it myself now that I have messed around with it.","Children of Bodom, Relentless Reckless Forever","Valvetronix+ (VT40+)","Melodic Death Meta ","2012-03-09",null,0,null,"Style:11,Tap:10,PowerLevel:17,Edit2:0,Edit3:0,Volume:50,Treble:65,Middle:80,Bass:100,Effect2:1,Master:49,Gain:81,Edit1:17,Effect1:6,Red-Green:3,Edit2HOLD:1,TapOnOff:0",11,10,17,0,0,50,65,80,100,1,49,81,17,6,3,1,0,40,125]
["Melodic Metalcore","tritonthemusician","Great tone for melodic metalcore or melodic technical metal. Screams and has a good chunk to it. Best for D standard and drop C tunings. Also can be considered a good modern metal tone. If you like All That Remains or For Today and want a tone similar to theirs this is it.","All That Remains/For Today, Fall of Ideals/Portraits","Valvetronix+ (VT40+)","Melodic Metalcore ","2012-03-09",null,0,null,"Style:8,Tap:10,PowerLevel:16,Edit2:0,Edit3:0,Volume:49,Treble:100,Middle:50,Bass:61,Effect2:1,Master:50,Gain:81,Edit1:16,Effect1:6,Red-Green:3,Edit2HOLD:1,TapOnOff:0",8,10,16,0,0,49,100,50,61,1,50,81,16,6,3,1,0,40,126]
["Thrash Metal Rhythm","tritonthemusician","This tone is all out thrash metal and groove metal very chunky and heavy. The Middle setting it just halfway to add more oomph and make it so you can do lead using this tone as well. Reverb can be added and I suggest the spring reverb if you were to do so, but only if you want.","Metallica/Pantera, Kill Em All/Cowboys From Hell","Valvetronix+ (VT40+)","Thrash and Groove ","2012-03-09",null,0,null,"Style:8,Tap:10,PowerLevel:18,Edit2:0,Edit3:0,Volume:50,Treble:91,Middle:50,Bass:81,Effect2:1,Master:48,Gain:50,Edit1:18,Effect1:6,Red-Green:2,Edit2HOLD:1,TapOnOff:0",8,10,18,0,0,50,91,50,81,1,48,50,18,6,2,1,0,40,127]
["REM – Frequency","gcr8","Play with the effects levels.  A tremolo pedal works for the chorus riffs.  played on my Ibanez AGR73 Hollow body","REM, What39s the Frequency Kenneth","Valvetronix+ (VT20+)","Rock / Grunge ","2012-03-03",null,0,null,"Style:11,Tap:10,PowerLevel:32,Edit2:22,Edit3:100,Volume:100,Treble:87,Middle:83,Bass:66,Effect2:9,Master:21,Gain:40,Edit1:63,Effect1:10,Red-Green:1,Edit2HOLD:1,TapOnOff:0",11,10,32,22,100,100,87,83,66,9,21,40,63,10,1,1,0,20,129]
["...And Justice For All distortion","vegas","I don't think that's too bad this time. :)","Metallica, And Justice For All","Valvetronix+ (VT20+)","Thrash/Heavy ","2012-03-03",null,0,null,"Style:10,Tap:10,PowerLevel:17,Edit2:0,Edit3:0,Volume:60,Treble:71,Middle:0,Bass:36,Effect2:1,Master:17,Gain:50,Edit1:99,Effect1:7,Red-Green:2,Edit2HOLD:1,TapOnOff:0",10,10,17,0,0,60,71,0,36,1,17,50,99,7,2,1,0,20,130]
["Farewell Ballade","outnumbered","An approximate tune to play Farewell Ballade","Zakk Wylde, Farwelle ballade","Valvetronix+ (VT20+)","Rock / Metal ","2012-02-27",null,0,null,"Style:8,Tap:4,PowerLevel:18,Edit2:100,Edit3:94,Volume:77,Treble:35,Middle:48,Bass:64,Effect2:10,Master:100,Gain:87,Edit1:48,Effect1:6,Red-Green:2,Edit2HOLD:1,TapOnOff:0",8,4,18,100,94,77,35,48,64,10,100,87,48,6,2,1,0,20,132]
["One Way Out","smanzi333","I'm trying to capture One Way Out and Jessica on a stratocaster. These settings, I think are pretty close for One Way Out. I am using a strat plus with fender lace pickups so sound will vary on other instruments.I will be editing with small tweaks from time to time. Have fun everyone!!!","The Allman Bros, One Way Out","Valvetronix+ (VT20+)","Southern Rock ","2012-02-27",null,0,null,"Style:2,Tap:295,PowerLevel:18,Edit2:0,Edit3:0,Volume:100,Treble:74,Middle:81,Bass:63,Effect2:1,Master:100,Gain:23,Edit1:45,Effect1:7,Red-Green:2,Edit2HOLD:1,TapOnOff:0",2,295,18,0,0,100,74,81,63,1,100,23,45,7,2,1,0,20,133]
["Breakdown - Tom Petty","cmbeal317","Best played with neck pickup on a Stratocaster.","Tom Petty, Breakdown","Valvetronix+ (VT20+)","Classiv Rock ","2012-02-26",null,0,null,null,null,null,null,null,null,null,null,null,null,null,null,null,null,null,null,null,null,20,135]
["Standard Clean","canadiandave","I wanted a standard-ish, clean, starting point to go back to when I&#39;m after a new sound, this is a stripped backish tone I can work with to find what I want. Hope you find it usefull :)","-","Valvetronix+ (VT20+)","Clean with bite ","2012-02-23",null,0,null,"Style:1,Tap:11,PowerLevel:32,Edit2:46,Edit3:48,Volume:94,Treble:71,Middle:77,Bass:37,Effect2:11,Master:30,Gain:26,Edit1:20,Effect1:1,Red-Green:2,Edit2HOLD:35,TapOnOff:0",1,11,32,46,48,94,71,77,37,11,30,26,20,1,2,35,0,20,140]
["Real Metalcore tone","outnumbered","Here’s my Metal tone with my vox vt20+. I use it with a Lag Arkane 66 , it works really fine. Reverb make it sound better , trust me. I play Different metalstuff with. As I Lay Dying , The devil wears prada , Linkin Park , Parkway Drive , Bring me the horizon , a Day to remember , It dies today...","-","Valvetronix+ (VT20+)","Metalcore ","2012-02-23","http://www.youtube.com/watch?v=mrRpMmlMFBU",0,null,"Style:9,Tap:10,PowerLevel:11,Edit2:0,Edit3:48,Volume:98,Treble:37,Middle:37,Bass:68,Effect2:1,Master:100,Gain:100,Edit1:42,Effect1:6,Red-Green:3,Edit2HOLD:1,TapOnOff:0",9,10,11,0,48,98,37,37,68,1,100,100,42,6,3,1,0,20,142]
["My metal tone like a metallica","slash7426","my metal tone","Metallica, some kind of monster","Valvetronix+ (VT40+)","Metal","2012-02-22",null,0,null,"Style:8,Tap:1221,PowerLevel:35,Edit2:0,Edit3:53,Volume:57,Treble:57,Middle:35,Bass:44,Effect2:1,Master:53,Gain:49,Edit1:100,Effect1:10,Red-Green:3,Edit2HOLD:1,TapOnOff:0",8,1221,35,0,53,57,57,35,44,1,53,49,100,10,3,1,0,40,143]
["my tune","suhairamed","my tune","a r rehman, it is for her","Valvetronix+ (VT20+)","romantic ","2012-02-20",null,0,null,"Style:8,Tap:4,PowerLevel:39,Edit2:0,Edit3:0,Volume:0,Treble:31,Middle:47,Bass:0,Effect2:3,Master:76,Gain:41,Edit1:69,Effect1:3,Red-Green:1,Edit2HOLD:1,TapOnOff:0",8,4,39,0,0,0,31,47,0,3,76,41,69,3,1,1,0,20,144]
["Texas Bluesy Stevie Rayzee","smanzi333","Made a mistake on the last edit!!! I think the tone is just about perfect now!","Stevie Ray Vaughn, Pride and Joy Updated","Valvetronix+ (VT20+)","Texas Blues ","2012-02-20",null,0,null,"Style:2,Tap:2273,PowerLevel:26,Edit2:0,Edit3:40,Volume:95,Treble:84,Middle:45,Bass:100,Effect2:1,Master:100,Gain:19,Edit1:6,Effect1:7,Red-Green:2,Edit2HOLD:1,TapOnOff:0",2,2273,26,0,40,95,84,45,100,1,100,19,6,7,2,1,0,20,145]
["SteveVaiForTheLoveOfGod","aleksej00","Crank up the Power knob, to get closer to Vai's tone. On high volume maybe you can turn off the Compressor and still get enough sustain. With an Ibanez RG350DX I can get pretty close to the Vai tone","Steve Vai, For the Love of God","Valvetronix+ (VT20+)","Instrimental rock ","2012-02-18",null,0,null,"Style:11,Tap:4,PowerLevel:17,Edit2:32,Edit3:22,Volume:61,Treble:18,Middle:100,Bass:0,Effect2:10,Master:17,Gain:100,Edit1:47,Effect1:1,Red-Green:1,Edit2HOLD:1,TapOnOff:0",11,4,17,32,22,61,18,100,0,10,17,100,47,1,1,1,0,20,147]
["CarvinMidgain","aleksej00","Low gain variant of the Steve Vai tone","-","Valvetronix+ (VT20+)","Hard Rock ","2012-02-18",null,0,null,"Style:11,Tap:4,PowerLevel:18,Edit2:14,Edit3:20,Volume:56,Treble:58,Middle:74,Bass:0,Effect2:10,Master:15,Gain:53,Edit1:0,Effect1:1,Red-Green:1,Edit2HOLD:1,TapOnOff:0",11,4,18,14,20,56,58,74,0,10,15,53,0,1,1,1,0,20,148]
["White Stripes - Screwdriver (ish)","mattbrowettiii","Sounds a little bit like Screwdriver by The White Stripes but not exactly. May sound like a live variation that Jack might have used...","The White Stripes, Screwdriver","Valvetronix+ (VT40+)","Dirty Crunch ","2012-02-15",null,0,null,"Style:5,Tap:10,PowerLevel:24,Edit2:0,Edit3:0,Volume:62,Treble:71,Middle:27,Bass:36,Effect2:1,Master:25,Gain:30,Edit1:0,Effect1:1,Red-Green:1,Edit2HOLD:1,TapOnOff:0",5,10,24,0,0,62,71,27,36,1,25,30,0,1,1,1,0,40,149]
["Exodus","vegas","Not sure about it, rate please.","Exodus, Pleasures of the Flesh","Valvetronix+ (VT20+)","Thrash Metal ","2012-02-15",null,0,null,"Style:10,Tap:10,PowerLevel:18,Edit2:0,Edit3:0,Volume:75,Treble:37,Middle:77,Bass:28,Effect2:1,Master:20,Gain:81,Edit1:34,Effect1:7,Red-Green:1,Edit2HOLD:1,TapOnOff:0",10,10,18,0,0,75,37,77,28,1,20,81,34,7,1,1,0,20,150]
["Randy Rhoads (Ozzy Period)","hellomrscreen","NOT MANUAL ON THE AMP... RED PRESET! An alright tone for a legendary guitarist... The louder the better!","Randy Rhoads, Crazy Train","Valvetronix+ (VT20+)","Metal ","2012-02-14",null,0,null,"Style:9,Tap:10,PowerLevel:50,Edit2:0,Edit3:33,Volume:64,Treble:81,Middle:62,Bass:10,Effect2:1,Master:51,Gain:81,Edit1:42,Effect1:6,Red-Green:1,Edit2HOLD:1,TapOnOff:0",9,10,50,0,33,64,81,62,10,1,51,81,42,6,1,1,0,20,151]
["Death Magnetic (clean)","vegas","Enjoy and rate :)","Metallica, Death Magnetic","Valvetronix+ (VT20+)","Thrash/Heavy ","2012-02-13",null,0,null,"Style:1,Tap:10,PowerLevel:18,Edit2:0,Edit3:42,Volume:62,Treble:47,Middle:32,Bass:50,Effect2:1,Master:19,Gain:50,Edit1:0,Effect1:1,Red-Green:3,Edit2HOLD:1,TapOnOff:0",1,10,18,0,42,62,47,32,50,1,19,50,0,1,3,1,0,20,152]
["Death Magnetic (distorted v2)","vegas","UPDATED - much closer now, rate please :)","Metallica, Death Magnetic","Valvetronix+ (VT20+)","Thrash/Heavy ","2012-02-13",null,0,null,"Style:9,Tap:10,PowerLevel:17,Edit2:0,Edit3:0,Volume:0,Treble:59,Middle:40,Bass:49,Effect2:1,Master:18,Gain:61,Edit1:100,Effect1:7,Red-Green:1,Edit2HOLD:1,TapOnOff:0",9,10,17,0,0,0,59,40,49,1,18,61,100,7,1,1,0,20,153]
["Beatles - and your bird can sing","texasboy","Basic (Green) / Custom (Red). That's all you need to do. Ignore the other switches.","-","Valvetronix+ (VT80+)","Beatles ","2012-02-09",null,0,null,"Style:3,Tap:10,PowerLevel:0,Edit2:0,Edit3:0,Volume:0,Treble:0,Middle:0,Bass:0,Effect2:1,Master:0,Gain:0,Edit1:0,Effect1:1,Red-Green:1,Edit2HOLD:1,TapOnOff:0",3,10,0,0,0,0,0,0,0,1,0,0,0,1,1,1,0,80,155]
["Arch Enemy","stepath18","Khaos Legion","Arch Enemy, Khaos Legion","Valvetronix+ (VT20+)","Metal ","2012-02-08","http://www.youtube.com/watch?v=Bwi5SJG3K5M&ob=av3e",0,null,"Style:9,Tap:10,PowerLevel:32,Edit2:0,Edit3:20,Volume:49,Treble:59,Middle:55,Bass:43,Effect2:1,Master:50,Gain:61,Edit1:48,Effect1:1,Red-Green:2,Edit2HOLD:1,TapOnOff:0",9,10,32,0,20,49,59,55,43,1,50,61,48,1,2,1,0,20,157]
["MetalRythm","stepath18","the tone is setup on an Ibanez S470 DX with Zack Wylde sign. EMG (active) pickups.","-","Valvetronix+ (VT20+)","Metal ","2012-02-07",null,0,null,"Style:8,Tap:10,PowerLevel:41,Edit2:0,Edit3:18,Volume:51,Treble:58,Middle:47,Bass:40,Effect2:1,Master:28,Gain:54,Edit1:18,Effect1:10,Red-Green:2,Edit2HOLD:1,TapOnOff:0",8,10,41,0,18,51,58,47,40,1,28,54,18,10,2,1,0,20,159]
["Judas Preist","dmosteller","slighty heavier sound then the recording, but its sounds awesome playing along with it.","Judas Preist, Breaking the Law","Valvetronix+ (VT40+)","Heavy ","2012-02-06",null,0,null,"Style:7,Tap:10,PowerLevel:100,Edit2:0,Edit3:0,Volume:52,Treble:28,Middle:57,Bass:72,Effect2:5,Master:100,Gain:31,Edit1:13,Effect1:10,Red-Green:3,Edit2HOLD:1,TapOnOff:0",7,10,100,0,0,52,28,57,72,5,100,31,13,10,3,1,0,40,160]
["phenomenal-80's crunch","thffkwka","if you have vfs5, boost your sound with it!! vox amazed me by jcm800 modeling, it's just phenomenal","none, none","Valvetronix+ (VT20+)","Hard Rock ","2012-02-06",null,0,null,"Style:7,Tap:20,PowerLevel:0,Edit2:0,Edit3:39,Volume:100,Treble:85,Middle:56,Bass:65,Effect2:1,Master:100,Gain:80,Edit1:52,Effect1:7,Red-Green:3,Edit2HOLD:1,TapOnOff:0",7,20,0,0,39,100,85,56,65,1,100,80,52,7,3,1,0,20,162]
["Blue Orchid1","thffkwka","make your pitch shift 1 octave down and blend it with your original sound I’m pretty sure it will blow your mind","White stripes, Get behind me satan","Valvetronix+ (VT20+)","Blues garage punk ","2012-02-06",null,0,null,"Style:4,Tap:0,PowerLevel:48,Edit2:46,Edit3:40,Volume:100,Treble:37,Middle:50,Bass:62,Effect2:7,Master:100,Gain:62,Edit1:47,Effect1:7,Red-Green:2,Edit2HOLD:0,TapOnOff:0",4,0,48,46,40,100,37,50,62,7,100,62,47,7,2,0,0,20,163]
["Decapitated Death Metal Tone","smokescreenabyss","The Most Brutal Death Metal Tone On This Amp. I've Been Using It For Ages. For That Organic Hallucinosis Sound. Enjoy!!!","Decapitated, A Poem About An Old Prison Man","Valvetronix+ (VT80+)","Tech Death Metal ","2012-02-02",null,0,null,"Style:11,Tap:10,PowerLevel:100,Edit2:0,Edit3:17,Volume:25,Treble:98,Middle:20,Bass:100,Effect2:1,Master:12,Gain:100,Edit1:100,Effect1:10,Red-Green:1,Edit2HOLD:1,TapOnOff:0",11,10,100,0,17,25,98,20,100,1,12,100,100,10,1,1,0,80,165]
["Chris Isaak - Wicked game","batistoeten","It needs \"some\" finetuning, getting pretty close although. Enjoy. Do the finetuning, and help me find that ulitmate Chris Isaak tone!","Chris Isaak, Wicked Game","Valvetronix+ (VT20+)","pop/ rock ballad ","2012-01-23","http://www.youtube.com/watch?v=UAOxCqSxRD0",0,null,"Style:4,Tap:10,PowerLevel:50,Edit2:0,Edit3:85,Volume:81,Treble:79,Middle:63,Bass:34,Effect2:10,Master:9,Gain:81,Edit1:0,Effect1:1,Red-Green:2,Edit2HOLD:1,TapOnOff:0",4,10,50,0,85,81,79,63,34,10,9,81,0,1,2,1,0,20,168]
["Brothers in Arms","thimpt","For Brothers in Arms and other....","Mark Knopfler, Dire Straits","Valvetronix+ (VT80+)","Pop/Rock ","2012-01-21",null,0,null,null,null,null,null,null,null,null,null,null,null,null,null,null,null,null,null,null,null,80,171]
["Americana Vox AC15","sonnyblu","Nice breakup but still retains the Vox Chime for rhythm... turn up your volume for leads. Video","David Grissom, David Grissom","Valvetronix+ (VT80+)","Americana ","2012-01-09","http://www.youtube.com/watch?v=qWTFMzd9XaE",0,null,null,null,null,null,null,null,null,null,null,null,null,null,null,null,null,null,null,null,80,173]
["Beno Bluesbreaker","sonnyblu","I find the higher you can set the Power level and as long as the channel Volume is at least equal to or higher than the Gain... This amp sounds pretty tube like.  Marshall JTM45 Bluesbreaker sound.","Eric Clapton, John Mayall Bluesbreakers","Valvetronix+ (VT80+)","Blues ","2012-01-06","http://www.youtube.com/watch?v=t5ZIi1K7BU4",0,null,"Style:7,Tap:10,PowerLevel:100,Edit2:0,Edit3:0,Volume:100,Treble:73,Middle:49,Bass:24,Effect2:1,Master:18,Gain:100,Edit1:0,Effect1:1,Red-Green:2,Edit2HOLD:1,TapOnOff:0",7,10,100,0,0,100,73,49,24,1,18,100,0,1,2,1,0,80,174]
["power tone echo","hankypanky","Great echo tone with a little crunch. Turn down the guitar volume for less crunch more clean. Be","-","Valvetronix+ (VT40+)","Rock ","2012-01-02",null,0,null,null,null,null,null,null,null,null,null,null,null,null,null,null,null,null,null,null,null,40,176]
["Hallelujah","smus","Hallelujah - Grace - Jeff Buckley","Jeff BuckHley, Hallelujah","Valvetronix+ (VT40+)","Rock Blues ","2012-01-01",null,0,null,"Style:4,Tap:1,PowerLevel:0,Edit2:33,Edit3:79,Volume:94,Treble:71,Middle:87,Bass:90,Effect2:5,Master:31,Gain:32,Edit1:0,Effect1:1,Red-Green:2,Edit2HOLD:1,TapOnOff:0",4,1,0,33,79,94,71,87,90,5,31,32,0,1,2,1,0,40,177]
["metalisha","donk3340","rock","Metalisha, season of the witch","Valvetronix+ (VT40+)","Rock ","2011-12-29",null,0,null,null,null,null,null,null,null,null,null,null,null,null,null,null,null,null,null,null,null,40,178]
["Vintage OD","grattmod","Play it slowly... and enjoy !","-","Valvetronix+ (VT20+)","Blues ","2011-12-22",null,0,null,"Style:2,Tap:13,PowerLevel:62,Edit2:0,Edit3:59,Volume:55,Treble:39,Middle:49,Bass:60,Effect2:9,Master:51,Gain:52,Edit1:43,Effect1:7,Red-Green:1,Edit2HOLD:1,TapOnOff:0",2,13,62,0,59,55,39,49,60,9,51,52,43,7,1,1,0,20,180]
["Bloc Party","charlie1237","Full tone","Russel Lissack/ Kele Okereke , Silent alarm","Valvetronix+ (VT20+)","Indie Rock ","2011-12-21",null,0,null,null,null,null,null,null,null,null,null,null,null,null,null,null,null,null,null,null,null,20,182]
["Clean (Nashville Tele)","dbvt120","Clean tone good for arpegiated open chords on telecaster.","-","Valvetronix+ (VT120+)","Clean Bright ","2011-12-19",null,0,null,null,null,null,null,null,null,null,null,null,null,null,null,null,null,null,null,null,null,120,183]
["Foo Fighters Tone","charlie1237","I play it on the bridge plus middle pickups on a japanese strat, full tone.","Foo fighters, All my life","Valvetronix+ (VT20+)","Rock ","2011-12-11",null,0,null,"Style:4,Tap:10,PowerLevel:52,Edit2:0,Edit3:21,Volume:14,Treble:42,Middle:25,Bass:27,Effect2:1,Master:10,Gain:100,Edit1:0,Effect1:9,Red-Green:2,Edit2HOLD:1,TapOnOff:0",4,10,52,0,21,14,42,25,27,1,10,100,0,9,2,1,0,20,185]
["Heavy Slow Blues","tobydarling","Using a Rally Les Paul copy. Recorded using Cubasis with AKG C1000s mic. Backing from Jamey Aebersold Vol2 (Nothin' but Blues) Learn To Play Jazz series.","SRV, any","Valvetronix+ (VT40+)","heavy Blues ","2011-12-09","http://www.youtube.com/watch?v=_ors2-erjcg",0,null,"Style:1,Tap:10,PowerLevel:15,Edit2:69,Edit3:34,Volume:43,Treble:100,Middle:60,Bass:63,Effect2:9,Master:63,Gain:82,Edit1:79,Effect1:7,Red-Green:2,Edit2HOLD:1,TapOnOff:0",1,10,15,69,34,43,100,60,63,9,63,82,79,7,2,1,0,40,186]
["Slash tone Appetite","slashsnightmare","This is a nice basic Slash tone form the Appetite album. I used a VT+20 and an Epiphone les paul standard with both pickups. This is the basic sttings and you can play around with the gain/treble and find the tone thats best for your ears. Play around with these settings til&#39; you find the nice appetite tone that you enjoy!!","Slash, Appetite for Destruction","Valvetronix+ (VT20+)","Hard Rock ","2011-12-04",null,0,null,"Style:4,Tap:614,PowerLevel:20,Edit2:0,Edit3:48,Volume:53,Treble:82,Middle:60,Bass:43,Effect2:1,Master:17,Gain:73,Edit1:0,Effect1:1,Red-Green:1,Edit2HOLD:1,TapOnOff:0",4,614,20,0,48,53,82,60,43,1,17,73,0,1,1,1,0,20,189]
["always with joe","carlosmiguel","setup your own gain!","Joe satriani, always with me always with you","Valvetronix+ (VT80+)","solo tone ","2011-12-03",null,0,null,"Style:6,Tap:10,PowerLevel:10,Edit2:0,Edit3:40,Volume:100,Treble:84,Middle:57,Bass:88,Effect2:1,Master:98,Gain:19,Edit1:43,Effect1:6,Red-Green:1,Edit2HOLD:1,TapOnOff:0",6,10,10,0,40,100,84,57,88,1,98,19,43,6,1,1,0,80,191]
["Bluesy Treble","mansonator","Bluesey treble sound, hope you guys enjoy :)","-","Valvetronix+ (VT40+)","Blues ","2011-11-30",null,0,null,"Style:1,Tap:7,PowerLevel:50,Edit2:0,Edit3:55,Volume:59,Treble:56,Middle:54,Bass:59,Effect2:1,Master:49,Gain:14,Edit1:100,Effect1:6,Red-Green:2,Edit2HOLD:1,TapOnOff:0",1,7,50,0,55,59,56,54,59,1,49,14,100,6,2,1,0,40,192]
["Under the Bridge by klotad","klotad","Great amp setting for under the bridge. Enjoy.. :)","Red Hot Chili Peppers, Under the Bridge","Valvetronix+ (VT20+)","Amazing ","2011-11-30",null,0,null,"Style:2,Tap:79,PowerLevel:50,Edit2:0,Edit3:42,Volume:100,Treble:62,Middle:42,Bass:60,Effect2:1,Master:15,Gain:16,Edit1:50,Effect1:1,Red-Green:3,Edit2HOLD:1,TapOnOff:0",2,79,50,0,42,100,62,42,60,1,15,16,50,1,3,1,0,20,193]
["always with joe","carlosmiguel","setup your own gain!","Joe satriani, always with me always with you","Valvetronix+ (VT80+)","solo tone ","2011-12-03",null,0,null,"Style:6,Tap:11,PowerLevel:10,Edit2:42,Edit3:40,Volume:100,Treble:84,Middle:56,Bass:87,Effect2:10,Master:97,Gain:18,Edit1:43,Effect1:6,Red-Green:1,Edit2HOLD:31,TapOnOff:0",6,11,10,42,40,100,84,56,87,10,97,18,43,6,1,31,0,80,194]
["Bluesy Treble","mansonator","Bluesey treble sound, hope you guys enjoy :)","-","Valvetronix+ (VT40+)","Blues ","2011-11-30",null,0,null,"Style:1,Tap:7,PowerLevel:50,Edit2:0,Edit3:55,Volume:59,Treble:56,Middle:54,Bass:59,Effect2:1,Master:49,Gain:14,Edit1:100,Effect1:6,Red-Green:2,Edit2HOLD:1,TapOnOff:0",1,7,50,0,55,59,56,54,59,1,49,14,100,6,2,1,0,40,195]
["Under the Bridge by klotad","klotad","Great amp setting for under the bridge. Enjoy.. :)","Red Hot Chili Peppers, Under the Bridge","Valvetronix+ (VT20+)","Amazing ","2011-11-30",null,0,null,"Style:2,Tap:79,PowerLevel:50,Edit2:0,Edit3:42,Volume:100,Treble:62,Middle:42,Bass:60,Effect2:1,Master:15,Gain:16,Edit1:50,Effect1:1,Red-Green:3,Edit2HOLD:1,TapOnOff:0",2,79,50,0,42,100,62,42,60,1,15,16,50,1,3,1,0,20,196]
["Slash (Appetite for Destruction - clean)","vegas","It's important to set your tone knob to 7 on a Les Paul guitar. I use a Cort KX5 with .010 Ernie Ball strings and the optimal tone value is about 4 for me. Just make sure to have a minimal distortion or less.","Slash, Appetite for Destruction","Valvetronix+ (VT20+)","Hard rock ","2011-11-21",null,0,null,"Style:8,Tap:10,PowerLevel:12,Edit2:0,Edit3:55,Volume:30,Treble:72,Middle:44,Bass:71,Effect2:1,Master:100,Gain:14,Edit1:0,Effect1:1,Red-Green:1,Edit2HOLD:1,TapOnOff:0",8,10,12,0,55,30,72,44,71,1,100,14,0,1,1,1,0,20,197]
["Panama","pkouretsos","I also used a EVH Phase 90 which really helps get that EVH tone","Van Halen, 1984 /Panama","Valvetronix+ (VT40+)","8039s Metal ","2011-11-21",null,0,null,"Style:10,Tap:10,PowerLevel:16,Edit2:61,Edit3:86,Volume:58,Treble:7,Middle:93,Bass:92,Effect2:10,Master:20,Gain:100,Edit1:42,Effect1:1,Red-Green:1,Edit2HOLD:65,TapOnOff:0",10,10,16,61,86,58,7,93,92,10,20,100,42,1,1,65,0,40,198]
["midnight stepps","viktull"," tone+5 volume3","Sunny Day, midnight steps","Valvetronix+ (VT40+)","Blues ","2011-11-19",null,0,null,"Style:4,Tap:10,PowerLevel:62,Edit2:38,Edit3:54,Volume:66,Treble:46,Middle:35,Bass:60,Effect2:9,Master:53,Gain:45,Edit1:48,Effect1:1,Red-Green:2,Edit2HOLD:1,TapOnOff:0",4,10,62,38,54,66,46,35,60,9,53,45,48,1,2,1,0,40,199]
["Killer Queen solo","kdm_onmars","This is the tone I use for playing the solo to Queen&#39;s Killer Queen. The first part of the solo (below the 12th fret) is played on the bridge pickup. The second (above 12th fret - starts on 15th fret of G string) is played on the neck pickup. I used humbuckers, though I know Brian May has a single-coil in the neck position.","Queen, Killer Queen solo","Valvetronix+ (VT40+)","Rock ","2011-11-14",null,0,null,"Style:6,Tap:10,PowerLevel:0,Edit2:0,Edit3:27,Volume:43,Treble:54,Middle:71,Bass:52,Effect2:1,Master:35,Gain:54,Edit1:42,Effect1:6,Red-Green:1,Edit2HOLD:1,TapOnOff:0",6,10,0,0,27,43,54,71,52,1,35,54,42,6,1,1,0,40,201]
["Thrash Tone","thrashpunkcore","Works for me.......","Metallica, Master Of Pupets","Valvetronix+ (VT80+)","Scooped Thrash ","2011-11-12",null,0,null,"Style:6,Tap:162,PowerLevel:17,Edit2:0,Edit3:13,Volume:100,Treble:67,Middle:17,Bass:66,Effect2:1,Master:100,Gain:67,Edit1:35,Effect1:7,Red-Green:1,Edit2HOLD:1,TapOnOff:0",6,162,17,0,13,100,67,17,66,1,100,67,35,7,1,1,0,80,203]
["Funy day","viktull","Les Paul Standard +","-","Valvetronix+ (VT40+)","Rock - Blues ","2011-11-04",null,0,null,"Style:2,Tap:13,PowerLevel:26,Edit2:18,Edit3:51,Volume:65,Treble:10,Middle:65,Bass:81,Effect2:9,Master:28,Gain:76,Edit1:43,Effect1:8,Red-Green:2,Edit2HOLD:12,TapOnOff:0",2,13,26,18,51,65,10,65,81,9,28,76,43,8,2,12,0,40,205]
["Ain't talkin' 'bout tone","scotthunter21","Setup with my Mexican Fender Telecaster","Van Halen, Ain39t talkin39 39bout love","Valvetronix+ (VT40+)","High end 8039s gai ","2011-11-01",null,0,null,"Style:8,Tap:3,PowerLevel:17,Edit2:40,Edit3:44,Volume:34,Treble:61,Middle:62,Bass:72,Effect2:11,Master:26,Gain:35,Edit1:45,Effect1:10,Red-Green:2,Edit2HOLD:16,TapOnOff:0",8,3,17,40,44,34,61,62,72,11,26,35,45,10,2,16,0,40,207]
["Basic sound of Dire straits !!","thimpt","My favorite for playing Dire Straits","Dire Straits, Dire Straits The first","Valvetronix+ (VT80+)","Rock ","2011-11-01",null,0,null,"Style:6,Tap:3,PowerLevel:24,Edit2:41,Edit3:92,Volume:68,Treble:60,Middle:8,Bass:42,Effect2:9,Master:9,Gain:33,Edit1:46,Effect1:1,Red-Green:2,Edit2HOLD:1,TapOnOff:0",6,3,24,41,92,68,60,8,42,9,9,33,46,1,2,1,0,80,208]
["AC30 starting point!","machineboy","This is more or less my go-to AC30 sound. Slight breakup, but clean and crisp for precise picking and clarity!","-","Valvetronix+ (VT20+)","Pop ","2011-10-15",null,0,null,"Style:6,Tap:5,PowerLevel:36,Edit2:10,Edit3:40,Volume:48,Treble:44,Middle:43,Bass:51,Effect2:9,Master:54,Gain:40,Edit1:0,Effect1:1,Red-Green:2,Edit2HOLD:12,TapOnOff:0",6,5,36,10,40,48,44,43,51,9,54,40,0,1,2,12,0,20,209]
["EVH sound","vlcmstyle","classic VH1 tone with phase","Van Halen, Eruption/Atomic punk","Valvetronix+ (VT20+)","Rock","2011-10-03","http://www.youtube.com/watch?v=kLJYCaRd-ns",0,null,"Style:7,Tap:33,PowerLevel:100,Edit2:43,Edit3:0,Volume:66,Treble:65,Middle:54,Bass:57,Effect2:4,Master:34,Gain:86,Edit1:82,Effect1:7,Red-Green:3,Edit2HOLD:1,TapOnOff:0",7,33,100,43,0,66,65,54,57,4,34,86,82,7,3,1,0,20,211]
["Edwyn Collins - A Girl Like You","seelwinterwolf","made with a cort g110","-","Valvetronix+ (VT20+)","90s rock ","2011-09-19",null,0,null,"Style:8,Tap:10,PowerLevel:31,Edit2:80,Edit3:30,Volume:32,Treble:67,Middle:67,Bass:27,Effect2:9,Master:0,Gain:30,Edit1:100,Effect1:5,Red-Green:1,Edit2HOLD:1,TapOnOff:0",8,10,31,80,30,32,67,67,27,9,0,30,100,5,1,1,0,20,213]
["Pink Floyd - breath","teachergala","From the making of Dark Side of The Moon, David Gilmour demonstrating the guitar part for Breath","-","Valvetronix+ (VT40+)","Clasic Rock ","2011-09-13","http://www.youtube.com/watch?v=T3CHT7rQQVc",0,null,"Style:5,Tap:6,PowerLevel:100,Edit2:60,Edit3:87,Volume:63,Treble:91,Middle:20,Bass:30,Effect2:11,Master:18,Gain:35,Edit1:35,Effect1:1,Red-Green:2,Edit2HOLD:47,TapOnOff:0",5,6,100,60,87,63,91,20,30,11,18,35,35,1,2,47,0,40,216]
["slash - godfather theme","teachergala","Guitar solo played by Slash in tokio 1992","-","Valvetronix+ (VT40+)","Metal ","2011-09-13",null,0,null,"Style:8,Tap:4,PowerLevel:100,Edit2:50,Edit3:94,Volume:93,Treble:73,Middle:15,Bass:25,Effect2:11,Master:14,Gain:30,Edit1:62,Effect1:10,Red-Green:1,Edit2HOLD:50,TapOnOff:0",8,4,100,50,94,93,73,15,25,11,14,30,62,10,1,50,0,40,217]
["Ramones – BarreChords","glitterstomp","Simple but effective Barre Chord only tone....","Ramones, Ramones","Valvetronix+ (VT40+)","BarreChordPunk ","2011-09-02",null,0,null,"Style:2,Tap:3,PowerLevel:6,Edit2:34,Edit3:61,Volume:64,Treble:84,Middle:60,Bass:55,Effect2:5,Master:91,Gain:31,Edit1:64,Effect1:6,Red-Green:1,Edit2HOLD:1,TapOnOff:0",2,3,6,34,61,64,84,60,55,5,91,31,64,6,1,1,0,40,219]
["Twangy Surf Tone","cortez","use middle position on telecaster pickup selector","Duane Eddy, Rebel Rouser","Valvetronix+ (VT20+)","Surf ","2011-09-01",null,0,null,null,null,null,null,null,null,null,null,null,null,null,null,null,null,null,null,null,null,20,220]
["Metallica's clean","timmie","use the 99 presets button on orange","Metallica, Sanitarium","Valvetronix+ (VT20+)","Clean Metal ","2011-09-01",null,0,null,null,null,null,null,null,null,null,null,null,null,null,null,null,null,null,null,null,null,20,221]
["ACDC - shook me all night long","rodolfoleal","the tone its better in power chords","AC/DC, shook me all night long","Valvetronix+ (VT20+)","treeble boost ","2011-08-30",null,0,null,"Style:4,Tap:93,PowerLevel:0,Edit2:40,Edit3:43,Volume:36,Treble:32,Middle:63,Bass:87,Effect2:10,Master:50,Gain:77,Edit1:44,Effect1:6,Red-Green:1,Edit2HOLD:1,TapOnOff:0",4,93,0,40,43,36,32,63,87,10,50,77,44,6,1,1,0,20,225]
["true rock","mar2","my first tone creation","-","Valvetronix+ (VT20+)","Hard Rock ","2011-08-21",null,0,null,"Style:7,Tap:2,PowerLevel:53,Edit2:36,Edit3:74,Volume:44,Treble:59,Middle:41,Bass:78,Effect2:10,Master:34,Gain:67,Edit1:29,Effect1:6,Red-Green:3,Edit2HOLD:1,TapOnOff:0",7,2,53,36,74,44,59,41,78,10,34,67,29,6,3,1,0,20,226]
["Boston - more than a feeling","rodolfoleal","use the (acoustic) effect in the firts part of the track, then use the gold drive for the solo and bridge","Boston, more than a feeling","Valvetronix+ (VT20+)","like Tom Scholz to ","2011-08-16",null,0,null,"Style:6,Tap:56,PowerLevel:38,Edit2:70,Edit3:76,Volume:50,Treble:55,Middle:55,Bass:87,Effect2:11,Master:47,Gain:34,Edit1:50,Effect1:8,Red-Green:2,Edit2HOLD:1,TapOnOff:0",6,56,38,70,76,50,55,55,87,11,47,34,50,8,2,1,0,20,229]
["Beatles lead tone","rob66","played on a 52 reissue telecaster","The Beatles, cant buy me love","Valvetronix+ (VT120+)","Rock and Roll ","2011-08-14",null,0,null,"Style:6,Tap:10,PowerLevel:0,Edit2:50,Edit3:43,Volume:50,Treble:60,Middle:60,Bass:61,Effect2:9,Master:41,Gain:39,Edit1:50,Effect1:1,Red-Green:2,Edit2HOLD:0,TapOnOff:0",6,10,0,50,43,50,60,60,61,9,41,39,50,1,2,0,0,120,230]
["Status quo","rob66","Played on a 52 reissue telecaster.","Status Quo, Paper Plane","Valvetronix+ (VT20+)","Rock","2011-08-14",null,0,null,"Style:8,Tap:10,PowerLevel:0,Edit2:39,Edit3:42,Volume:58,Treble:60,Middle:49,Bass:39,Effect2:10,Master:41,Gain:60,Edit1:0,Effect1:1,Red-Green:2,Edit2HOLD:1,TapOnOff:0",8,10,0,39,42,58,60,49,39,10,41,60,0,1,2,1,0,20,231]
["Shadows tone","rob66","usded with a u.s.a strat with e.m.g pickups","Shadows, 50 Golden greats","Valvetronix+ (VT120+)","Rock and Roll ","2011-08-14",null,0,null,"Style:1,Tap:10,PowerLevel:0,Edit2:56,Edit3:55,Volume:100,Treble:60,Middle:50,Bass:0,Effect2:9,Master:41,Gain:38,Edit1:0,Effect1:1,Red-Green:2,Edit2HOLD:1,TapOnOff:0",1,10,0,56,55,100,60,50,0,9,41,38,0,1,2,1,0,120,232]
["psycobilly","decay666","this is a great 50s esq tone i use it for stuff like the cramps as well ass some of my tunes","the cramps, i was a teenage werewolf","Valvetronix+ (VT20+)","Garage/Rockabilly ","2011-08-09",null,0,null,"Style:3,Tap:2,PowerLevel:6,Edit2:44,Edit3:34,Volume:100,Treble:90,Middle:51,Bass:2,Effect2:9,Master:100,Gain:52,Edit1:71,Effect1:6,Red-Green:2,Edit2HOLD:1,TapOnOff:0",3,2,6,44,34,100,90,51,2,9,100,52,71,6,2,1,0,20,234]
["the gories - thunderbird esq","decay666","this is one of my favirote songs and a great tone","the gories, thunderbird esq","Valvetronix+ (VT20+)","garage Punk ","2011-07-19",null,0,null,"Style:2,Tap:10,PowerLevel:7,Edit2:0,Edit3:0,Volume:100,Treble:64,Middle:50,Bass:15,Effect2:1,Master:100,Gain:58,Edit1:17,Effect1:6,Red-Green:3,Edit2HOLD:1,TapOnOff:0",2,10,7,0,0,100,64,50,15,1,100,58,17,6,3,1,0,20,236]
["Floods Outro/nice echo","thecowboyfromhell","I mostly do pantera tones, and i did this one a few minutes ago and it sounds pretty good (this is for the floods outro) as simple as it is! enjoy","PanterA, Floods Mainly","Valvetronix+ (VT40+)","EchoFading ","2011-07-09",null,0,null,"Style:6,Tap:10,PowerLevel:100,Edit2:32,Edit3:100,Volume:100,Treble:36,Middle:0,Bass:100,Effect2:10,Master:7,Gain:51,Edit1:40,Effect1:10,Red-Green:1,Edit2HOLD:1,TapOnOff:0",6,10,100,32,100,100,36,0,100,10,7,51,40,10,1,1,0,40,237]
["PanterA – Acoustic","thecowboyfromhell","have all these settings on, turn the amp off and on, then just reset the gain,us 2x12,acoustic,chorus delay, reverb as shown then it should work","PanterA, This Love Mainly","Valvetronix+ (VT40+)","Soft Pantera parts ","2011-07-09",null,0,null,"Style:4,Tap:10,PowerLevel:100,Edit2:0,Edit3:36,Volume:100,Treble:0,Middle:100,Bass:100,Effect2:11,Master:7,Gain:50,Edit1:0,Effect1:2,Red-Green:2,Edit2HOLD:1,TapOnOff:0",4,10,100,0,36,100,0,100,100,11,7,50,0,2,2,1,0,40,238]
["EarPorn","eduf93","Beware the awesomness!","-","Valvetronix+ (VT20+)","Rock n39 Roll ","2011-07-08",null,0,null,"Style:7,Tap:10,PowerLevel:86,Edit2:0,Edit3:95,Volume:86,Treble:40,Middle:54,Bass:82,Effect2:1,Master:100,Gain:87,Edit1:0,Effect1:7,Red-Green:2,Edit2HOLD:1,TapOnOff:0",7,10,86,0,95,86,40,54,82,1,100,87,0,7,2,1,0,20,240]
["My favorit clean","backwoodsboy96","my favorite clean tone","John Mayer, I am gonna find another you","Valvetronix+ (VT20+)","clean ","2011-06-28",null,0,null,"Style:3,Tap:5,PowerLevel:50,Edit2:53,Edit3:42,Volume:60,Treble:42,Middle:36,Bass:50,Effect2:9,Master:58,Gain:0,Edit1:24,Effect1:6,Red-Green:3,Edit2HOLD:36,TapOnOff:0",3,5,50,53,42,60,42,36,50,9,58,0,24,6,3,36,0,20,242]
["Clean Metal","x700nitroxpress","Good for power chords on metal style songs. Always use with heavy distortion. Adjust the gain to personal preference to adjust the effect of the metal distortion.","-","Valvetronix+ (VT20+)","Metal ","2011-06-25",null,0,null,"Style:10,Tap:5,PowerLevel:14,Edit2:0,Edit3:23,Volume:51,Treble:50,Middle:49,Bass:61,Effect2:9,Master:100,Gain:18,Edit1:0,Effect1:10,Red-Green:1,Edit2HOLD:1,TapOnOff:0",10,5,14,0,23,51,50,49,61,9,100,18,0,10,1,1,0,20,243]
["JCM 800 Zakk Lead","robrocks7","Zakk sans chorus","-","Valvetronix+ (VT20+)","Rock ","2011-06-18",null,0,null,"Style:10,Tap:5,PowerLevel:14,Edit2:0,Edit3:23,Volume:51,Treble:50,Middle:49,Bass:61,Effect2:9,Master:100,Gain:18,Edit1:0,Effect1:10,Red-Green:1,Edit2HOLD:1,TapOnOff:0",10,5,14,0,23,51,50,49,61,9,100,18,0,10,1,1,0,20,244]
["BTQ Metal Randy Rhoads","robrocks7","All Aboard!","-","Valvetronix+ (VT20+)","Rock ","2011-06-18",null,0,null,"Style:11,Tap:10,PowerLevel:33,Edit2:35,Edit3:37,Volume:50,Treble:42,Middle:40,Bass:70,Effect2:9,Master:50,Gain:85,Edit1:16,Effect1:1,Red-Green:1,Edit2HOLD:1,TapOnOff:0",11,10,33,35,37,50,42,40,70,9,50,85,16,1,1,1,0,20,246]
["JCM 800 Rhythm","robrocks7","noise reduction is set at 12:00","AC/DC, Back in Black","Valvetronix+ (VT20+)","Rock ","2011-06-18",null,0,null,"Style:8,Tap:10,PowerLevel:33,Edit2:0,Edit3:40,Volume:50,Treble:62,Middle:50,Bass:66,Effect2:9,Master:50,Gain:54,Edit1:15,Effect1:1,Red-Green:2,Edit2HOLD:1,TapOnOff:0",8,10,33,0,40,50,62,50,66,9,50,54,15,1,2,1,0,20,249]
["Clean Comp Chicken Pickin'","robrocks7","Love the gradual swell of the notes!","-","Valvetronix+ (VT20+)","Clean ","2011-06-18",null,0,null,"Style:1,Tap:3,PowerLevel:33,Edit2:31,Edit3:43,Volume:81,Treble:64,Middle:43,Bass:61,Effect2:9,Master:50,Gain:36,Edit1:50,Effect1:1,Red-Green:2,Edit2HOLD:1,TapOnOff:0",1,3,33,31,43,81,64,43,61,9,50,36,50,1,2,1,0,20,250]
["Van Halen 1984 Lead","robrocks7","noise reduction is set at 12:00","Van Halen, Panama","Valvetronix+ (VT20+)","Rock ","2011-06-17",null,0,null,"Style:8,Tap:3,PowerLevel:34,Edit2:42,Edit3:43,Volume:52,Treble:63,Middle:63,Bass:72,Effect2:9,Master:50,Gain:80,Edit1:15,Effect1:1,Red-Green:2,Edit2HOLD:1,TapOnOff:0",8,3,34,42,43,52,63,63,72,9,50,80,15,1,2,1,0,20,251]
["Bangers & Mash  - Live From the basement","thatslife","Tono inspirado en la distorcion de jonny greenwood para la cancion Bangers & Mash, version Live From The Basement","Radiohead, Bangers Mash / In Rainbows From The Basement","Valvetronix+ (VT20+)","Alternative rock ","2011-06-06","http://www.youtube.com/watch?v=MDsa7n6NCC8",0,null,"Style:6,Tap:481,PowerLevel:16,Edit2:0,Edit3:0,Volume:81,Treble:83,Middle:100,Bass:100,Effect2:1,Master:16,Gain:100,Edit1:99,Effect1:6,Red-Green:2,Edit2HOLD:1,TapOnOff:0",6,481,16,0,0,81,83,100,100,1,16,100,99,6,2,1,0,20,252]
["page 17 2012-12-20BRM Octave","stephany4048","This tone is in a BRM Octave fresh outgoing everlasting VOX AC30 echo down the hall into Paul :D","U2, No Line on the Horizon","Valvetronix+ (VT20+)","VOX AC30 ","2011-06-06","http://www.youtube.com/watch?v=jyO7GAo4rrA",0,null,"Style:6,Tap:10,PowerLevel:39,Edit2:0,Edit3:84,Volume:0,Treble:0,Middle:0,Bass:0,Effect2:6,Master:0,Gain:0,Edit1:0,Effect1:5,Red-Green:1,Edit2HOLD:1,TapOnOff:0",6,10,39,0,84,0,0,0,0,6,0,0,0,5,1,1,0,20,253]
["Eventide – The beast and the machine","caripu","My first approach tho the sound of this sweden metal band. Deep, rich and powerful tone. Guitar setup: Pickup Bridge/Mid (HB/SC), tone: 0-2, vol: 7-8.","EVENTIDE, The Beast and The Machine","Valvetronix+ (VT40+)","Metal ","2011-05-24",null,0,null,"Style:9,Tap:10,PowerLevel:18,Edit2:5,Edit3:10,Volume:50,Treble:33,Middle:80,Bass:63,Effect2:10,Master:61,Gain:100,Edit1:29,Effect1:7,Red-Green:1,Edit2HOLD:1,TapOnOff:0",9,10,18,5,10,50,33,80,63,10,61,100,29,7,1,1,0,40,256]
["GENERAL MODERN METAL","caripu","Intended to emulate the aprox tone of my Bugera 333 with 4X12 half stack, setup for metal (lead channel), at my rehersal lounge. Nice tone for not too extreme modern metal.","-","Valvetronix+ (VT40+)","Metal Heavy Metal ","2011-05-23",null,0,null,"Style:10,Tap:10,PowerLevel:0,Edit2:0,Edit3:18,Volume:50,Treble:62,Middle:18,Bass:80,Effect2:1,Master:66,Gain:65,Edit1:34,Effect1:1,Red-Green:1,Edit2HOLD:1,TapOnOff:0",10,10,0,0,18,50,62,18,80,1,66,65,34,1,1,1,0,40,257]
["RAMONES – Blitzkrieg bop","caripu","Nice 70's tone to play one of my ever favs, Ramones. Bridge single coil pickup (splitted HB) at full tone and 9 volume knob.","Ramones, Blitzkrieg Bop","Valvetronix+ (VT40+)","Punk Rock ","2011-05-22",null,0,null,"Style:7,Tap:10,PowerLevel:10,Edit2:0,Edit3:45,Volume:51,Treble:58,Middle:100,Bass:38,Effect2:1,Master:65,Gain:43,Edit1:17,Effect1:1,Red-Green:1,Edit2HOLD:1,TapOnOff:0",7,10,10,0,45,51,58,100,38,1,65,43,17,1,1,1,0,40,259]
["IRON MAIDEN – Hallowed de thy name","caripu","Intended to play at home, so low power knob setting :( Ibanez SA-260 with bridge pickup in single coil position (splitted), tone at max, volume at 85%.","Iron Maiden, Hallowed Be Thy name","Valvetronix+ (VT40+)","Heavy Metal ","2011-05-22",null,0,null,"Style:9,Tap:10,PowerLevel:10,Edit2:0,Edit3:12,Volume:49,Treble:52,Middle:64,Bass:62,Effect2:1,Master:63,Gain:66,Edit1:31,Effect1:1,Red-Green:2,Edit2HOLD:1,TapOnOff:0",9,10,10,0,12,49,52,64,62,1,63,66,31,1,2,1,0,40,260]
["sweet chil of mine","mrmdm86","Yo uso el mic del ciapason con el volumen como en el 7 y el tono entre el 6 y el 7","Guns and Roses, appetite for destruction","Valvetronix+ (VT80+)","Hard Rock ","2011-05-22",null,0,null,"Style:8,Tap:10,PowerLevel:0,Edit2:0,Edit3:48,Volume:58,Treble:26,Middle:81,Bass:90,Effect2:1,Master:1,Gain:43,Edit1:0,Effect1:1,Red-Green:1,Edit2HOLD:1,TapOnOff:0",8,10,0,0,48,58,26,81,90,1,1,43,0,1,1,1,0,80,261]
["my lead guitar tone","millar16","i use this tone just when im messing about its fun and has a great feel","Joe Satriani, mystical potato","Valvetronix+ (VT80+)","lead ","2011-04-26",null,0,null,"Style:11,Tap:10,PowerLevel:50,Edit2:0,Edit3:0,Volume:100,Treble:49,Middle:67,Bass:50,Effect2:1,Master:50,Gain:100,Edit1:0,Effect1:1,Red-Green:3,Edit2HOLD:1,TapOnOff:0",11,10,50,0,0,100,49,67,50,1,50,100,0,1,3,1,0,80,263]
["crazy echo","napalmrain","adjust the gain to your liking, i keep some tube overdrive on but its not necessary. Adjust master to your liking too, i play in a dorm so i need to keep it low. PICK A LOT AND REPEAT NOTES FOR FULL EFFECT","-","Valvetronix+ (VT40+)","psychadelic prog ","2011-03-04",null,0,null,"Style:6,Tap:10,PowerLevel:50,Edit2:100,Edit3:99,Volume:100,Treble:80,Middle:46,Bass:64,Effect2:9,Master:10,Gain:30,Edit1:37,Effect1:7,Red-Green:3,Edit2HOLD:2,TapOnOff:0",6,10,50,100,99,100,80,46,64,9,10,30,37,7,3,2,0,40,272]
["Acoustic sound for Romeo and Juliet","thimpt","Use capo on third fret and this tuning: D.A.D.G.B.D","Dire Straits, Romeo and Juliet from Money for Nothing","Valvetronix+ (VT80+)","Pop/Rock ","2011-02-27","http://www.youtube.com/watch?v=p3RO7KzJ1J8",0,null,"Style:6,Tap:10,PowerLevel:37,Edit2:0,Edit3:83,Volume:30,Treble:50,Middle:52,Bass:32,Effect2:1,Master:34,Gain:63,Edit1:50,Effect1:2,Red-Green:2,Edit2HOLD:1,TapOnOff:0",6,10,37,0,83,30,50,52,32,1,34,63,50,2,2,1,0,80,274]
["U2 - Bad-Pride","nicholasroberts","just play around with the delay a bit","U2, BadPride","Valvetronix+ (VT20+)","Delay AC30 ","2011-02-18",null,0,null,"Style:6,Tap:10,PowerLevel:34,Edit2:0,Edit3:44,Volume:100,Treble:50,Middle:48,Bass:37,Effect2:10,Master:81,Gain:40,Edit1:0,Effect1:1,Red-Green:2,Edit2HOLD:0,TapOnOff:0",6,10,34,0,44,100,50,48,37,10,81,40,0,1,2,0,0,20,276]
["Guitar Solo Musicom","vintagevacuumtube","Use single coils and play with tone controls to get that creamy sweet tone in Eric Johnson style","-","Valvetronix+ (VT20+)","Guitar Hero ","2011-02-14",null,0,null,"Style:1,Tap:4,PowerLevel:16,Edit2:20,Edit3:46,Volume:78,Treble:77,Middle:73,Bass:70,Effect2:10,Master:48,Gain:61,Edit1:84,Effect1:11,Red-Green:2,Edit2HOLD:0,TapOnOff:0",1,4,16,20,46,78,77,73,70,10,48,61,84,11,2,0,0,20,277]
["John Mayer Wah","red_strat","Fun John Mayer Wah, Adjust Master and Power level to suit...Adjust volume on guitar to get less or more wah. Finger pick it.","John Mayer, I Dont Trust Myself - Where the Light is Live in Los Angeles","Valvetronix+ (VT40+)","WAH ","2011-02-06",null,0,null,"Style:4,Tap:10,PowerLevel:11,Edit2:4,Edit3:21,Volume:57,Treble:40,Middle:49,Bass:54,Effect2:10,Master:52,Gain:43,Edit1:36,Effect1:3,Red-Green:2,Edit2HOLD:50,TapOnOff:0",4,10,11,4,21,57,40,49,54,10,52,43,36,3,2,50,0,40,278]
["Avenged Sevenfold Afterlife+Trashed and scattered","jimmypage1995","As close as i can get without useing other effect pedals","Avenged Sevonfold, City of evil Avenged sevonfold","Valvetronix+ (VT20+)","Metal ","2011-02-01",null,0,null,"Style:8,Tap:2,PowerLevel:60,Edit2:6,Edit3:65,Volume:100,Treble:100,Middle:15,Bass:85,Effect2:10,Master:6,Gain:27,Edit1:100,Effect1:7,Red-Green:3,Edit2HOLD:1,TapOnOff:0",8,2,60,6,65,100,100,15,85,10,6,27,100,7,3,1,0,20,279]
["Testing tone","jampot661","A tone to test different set ups","-","Valvetronix+ (VT40+)","Testie ","2011-01-25",null,0,null,"Style:7,Tap:2,PowerLevel:40,Edit2:33,Edit3:14,Volume:31,Treble:26,Middle:35,Bass:28,Effect2:11,Master:40,Gain:22,Edit1:35,Effect1:9,Red-Green:1,Edit2HOLD:1,TapOnOff:0",7,2,40,33,14,31,26,35,28,11,40,22,35,9,1,1,0,40,280]
["Gilmore – ish","armycopter","You'll need a tube overdrive pedal in front of the amp. Alternately you can use a compression pedal and change the VT20+ pedal to Tube OD","Pink Floyd,David Gilmore, Comfortably Numb","Valvetronix+ (VT20+)","Lead Rock ","2011-01-24",null,0,null,"Style:7,Tap:5,PowerLevel:25,Edit2:51,Edit3:50,Volume:85,Treble:45,Middle:18,Bass:76,Effect2:10,Master:35,Gain:39,Edit1:51,Effect1:1,Red-Green:3,Edit2HOLD:1,TapOnOff:0",7,5,25,51,50,85,45,18,76,10,35,39,51,1,3,1,0,20,283]
["tone to avoid the hiss sound","jerdix","works with all amp models. The only thing you have do to is turn treble and middle to zero. So, the only thing to change the tone is the bass-chickenhead and your guitar-knobs.","-","Valvetronix+ (VT20+)","just for testing ","2011-01-20",null,0,null,"Style:6,Tap:10,PowerLevel:26,Edit2:0,Edit3:0,Volume:48,Treble:0,Middle:0,Bass:38,Effect2:1,Master:57,Gain:54,Edit1:0,Effect1:1,Red-Green:1,Edit2HOLD:1,TapOnOff:0",6,10,26,0,0,48,0,0,38,1,57,54,0,1,1,1,0,20,287]
["Clear and Crunchy","joymitra","Well. Searching desperately to emulate the crunch from Matt Mays's City of Lakes, on youtube. I think he uses a Fender Supersonic.. anyhow.. check it out.","Matt Mays and Springsteen, City of Lakes/Radio Nowhere","Valvetronix+ (VT40+)","Crunch ","2011-01-16",null,0,null,"Style:4,Tap:1,PowerLevel:50,Edit2:0,Edit3:0,Volume:98,Treble:50,Middle:40,Bass:53,Effect2:1,Master:100,Gain:43,Edit1:15,Effect1:7,Red-Green:1,Edit2HOLD:1,TapOnOff:0",4,1,50,0,0,98,50,40,53,1,100,43,15,7,1,1,0,40,289]
["Metaltone/True","running_free","One of my Hammerfall like sounds...try it ;-)","Hammerfall, Let the hammer fall","Valvetronix+ (VT20+)","Metal ","2011-01-11",null,0,null,"Style:9,Tap:10,PowerLevel:35,Edit2:0,Edit3:0,Volume:42,Treble:90,Middle:83,Bass:74,Effect2:1,Master:34,Gain:87,Edit1:0,Effect1:1,Red-Green:1,Edit2HOLD:1,TapOnOff:0",9,10,35,0,0,42,90,83,74,1,34,87,0,1,1,1,0,20,297]
["Yorkish","vox_tom_usa","Thom York-ish sound","-","Valvetronix+ (VT40+)","Rock ","2011-01-11",null,0,null,"Style:6,Tap:0,PowerLevel:40,Edit2:43,Edit3:71,Volume:62,Treble:42,Middle:53,Bass:52,Effect2:7,Master:43,Gain:44,Edit1:0,Effect1:1,Red-Green:2,Edit2HOLD:100,TapOnOff:0",6,0,40,43,71,62,42,53,52,7,43,44,0,1,2,100,0,40,298]
["What's that?","vox_tom_usa","Get the vibe speed really slow and the tremolo speed really fast.","-","Valvetronix+ (VT40+)","Any ","2011-01-11",null,0,null,"Style:4,Tap:1,PowerLevel:42,Edit2:100,Edit3:0,Volume:88,Treble:64,Middle:72,Bass:82,Effect2:5,Master:40,Gain:40,Edit1:3,Effect1:4,Red-Green:3,Edit2HOLD:1,TapOnOff:0",4,1,42,100,0,88,64,72,82,5,40,40,3,4,3,1,0,40,299]
["Shredda","vox_tom_usa","Shred your face off!","-","Valvetronix+ (VT40+)","Shred ","2011-01-11",null,0,null,"Style:9,Tap:10,PowerLevel:39,Edit2:90,Edit3:0,Volume:99,Treble:70,Middle:16,Bass:38,Effect2:11,Master:39,Gain:54,Edit1:34,Effect1:10,Red-Green:1,Edit2HOLD:33,TapOnOff:0",9,10,39,90,0,99,70,16,38,11,39,54,34,10,1,33,0,40,301]
["B. May","vox_tom_usa","Great Brian May rhythm tone.","Queen, 7 Seas of Rhye","Valvetronix+ (VT40+)","Rock ","2011-01-11",null,0,null,"Style:6,Tap:10,PowerLevel:45,Edit2:0,Edit3:43,Volume:65,Treble:57,Middle:60,Bass:44,Effect2:1,Master:45,Gain:62,Edit1:0,Effect1:1,Red-Green:1,Edit2HOLD:1,TapOnOff:0",6,10,45,0,43,65,57,60,44,1,45,62,0,1,1,1,0,40,303]
["Led Boots","vox_tom_usa","Get the delay going with a moderate speed.","Jeff Beck, Led Boots / Wired","Valvetronix+ (VT40+)","Rock/Fusion ","2011-01-11",null,0,null,"Style:7,Tap:5,PowerLevel:45,Edit2:41,Edit3:0,Volume:72,Treble:93,Middle:90,Bass:42,Effect2:9,Master:39,Gain:90,Edit1:38,Effect1:11,Red-Green:2,Edit2HOLD:13,TapOnOff:0",7,5,45,41,0,72,93,90,42,9,39,90,38,11,2,13,0,40,304]
["Peace Frog","vox_tom_usa","The Lizard King strikes again!","The Doors, Peace Frog","Valvetronix+ (VT40+)","Rock ","2011-01-11",null,0,null,"Style:3,Tap:10,PowerLevel:40,Edit2:0,Edit3:44,Volume:61,Treble:86,Middle:76,Bass:39,Effect2:1,Master:44,Gain:38,Edit1:0,Effect1:1,Red-Green:3,Edit2HOLD:1,TapOnOff:0",3,10,40,0,44,61,86,76,39,1,44,38,0,1,3,1,0,40,305]
["Moonage Daydream","vox_tom_usa","Get the delay extremely fast (ADT style) and hold down the TAP button to adjust the feedback to one repeat.","David Bowie/Mick Ronson, Moonage Daydream","Valvetronix+ (VT40+)","Glam Rock ","2011-01-11",null,0,null,"Style:7,Tap:1,PowerLevel:39,Edit2:64,Edit3:0,Volume:65,Treble:32,Middle:100,Bass:0,Effect2:9,Master:36,Gain:63,Edit1:6,Effect1:11,Red-Green:2,Edit2HOLD:1,TapOnOff:0",7,1,39,64,0,65,32,100,0,9,36,63,6,11,2,1,0,40,306]
["Rocks Off","vox_tom_usa","Add just a touch of room reverb.","The Rolling Stones, Rocks Off / Exile on Main Street","Valvetronix+ (VT40+)","Classic Rock ","2011-01-11",null,0,null,"Style:3,Tap:10,PowerLevel:40,Edit2:0,Edit3:3,Volume:86,Treble:90,Middle:60,Bass:65,Effect2:1,Master:41,Gain:35,Edit1:0,Effect1:1,Red-Green:3,Edit2HOLD:1,TapOnOff:0",3,10,40,0,3,86,90,60,65,1,41,35,0,1,3,1,0,40,308]
["Bridge of Sighs","vox_tom_usa","Try to get the vibe pedal going as slow as possible.","Robin Trower, Bridge of Sighs","Valvetronix+ (VT40+)","Classic Rock ","2011-01-11",null,0,null,"Style:7,Tap:10,PowerLevel:42,Edit2:0,Edit3:0,Volume:100,Treble:100,Middle:100,Bass:89,Effect2:1,Master:40,Gain:100,Edit1:8,Effect1:4,Red-Green:2,Edit2HOLD:1,TapOnOff:0",7,10,42,0,0,100,100,100,89,1,40,100,8,4,2,1,0,40,309]
["Whipping post","vox_tom_usa","Turn down to clean it up and turn up for soloing.","The Allman Brothers, Whipping Post/The Allman Brothers Band","Valvetronix+ (VT40+)","Blues/Rock ","2011-01-11",null,0,null,"Style:2,Tap:10,PowerLevel:43,Edit2:0,Edit3:0,Volume:100,Treble:100,Middle:100,Bass:58,Effect2:1,Master:42,Gain:40,Edit1:0,Effect1:1,Red-Green:3,Edit2HOLD:1,TapOnOff:0",2,10,43,0,0,100,100,100,58,1,42,40,0,1,3,1,0,40,311]
["Walshy","vox_tom_usa","Hold the TAP button and bring up the number of repeats until you get about 4 or 5 clear ones. Sh","Joe Walsh/James Gang, Asshtonpark","Valvetronix+ (VT40+)","Classic Rock ","2011-01-11",null,0,null,"Style:4,Tap:10,PowerLevel:45,Edit2:100,Edit3:0,Volume:66,Treble:80,Middle:95,Bass:54,Effect2:9,Master:36,Gain:100,Edit1:0,Effect1:1,Red-Green:3,Edit2HOLD:39,TapOnOff:0",4,10,45,100,0,66,80,95,54,9,36,100,0,1,3,39,0,40,312]
["Headbanger's Delight","vox_tom_usa","rawk!","-","Valvetronix+ (VT40+)","Metal ","2011-01-11",null,0,null,"Style:11,Tap:10,PowerLevel:46,Edit2:0,Edit3:0,Volume:71,Treble:94,Middle:0,Bass:92,Effect2:1,Master:39,Gain:80,Edit1:66,Effect1:7,Red-Green:3,Edit2HOLD:1,TapOnOff:0",11,10,46,0,0,71,94,0,92,1,39,80,66,7,3,1,0,40,316]
["60's USA","vox_tom_usa","Get a fast tremolo going and you're set. Nice big open chords sound great with this one.","-","Valvetronix+ (VT40+)","Surf ","2011-01-11",null,0,null,"Style:2,Tap:2,PowerLevel:38,Edit2:60,Edit3:50,Volume:67,Treble:68,Middle:61,Bass:50,Effect2:5,Master:90,Gain:16,Edit1:0,Effect1:1,Red-Green:1,Edit2HOLD:1,TapOnOff:0",2,2,38,60,50,67,68,61,50,5,90,16,0,1,1,1,0,40,318]
["Face Melter","vox_tom_usa","Works great with a slow, sweeping Flanger. Try some lead lines above the 12th fret.","-","Valvetronix+ (VT40+)","Rock ","2011-01-11",null,0,null,"Style:7,Tap:112,PowerLevel:45,Edit2:21,Edit3:67,Volume:100,Treble:100,Middle:100,Bass:100,Effect2:3,Master:36,Gain:100,Edit1:100,Effect1:7,Red-Green:2,Edit2HOLD:1,TapOnOff:0",7,112,45,21,67,100,100,100,100,3,36,100,100,7,2,1,0,40,320]
["Funktopus","vox_tom_usa","Get down with the funky sounds of the Funktopus!","-","Valvetronix+ (VT40+)","Funk ","2011-01-11",null,0,null,"Style:1,Tap:0,PowerLevel:42,Edit2:51,Edit3:37,Volume:78,Treble:82,Middle:96,Bass:87,Effect2:8,Master:35,Gain:71,Edit1:52,Effect1:5,Red-Green:2,Edit2HOLD:36,TapOnOff:0",1,0,42,51,37,78,82,96,87,8,35,71,52,5,2,36,0,40,321]
["  ",null,null,null,null,null,null,null,null,null,"Min",{"$f":"MIN(L3:L325)","v":1},0,0,0,0,0,0,0,0,1,0,0,0,1,1,0,0]
[null,null,null,null,null,null,null,null,null,null,"Max",{"$f":"MAX(L3:L325)","v":11},2975,100,100,100,100,100,100,100,11,100,100,100,11,3,100,1]

{"sheet":"Vox VT20+ patches Backup","index":4,"n_rows":325,"n_cols":29,"rows_kept":325,"cut":false,"hidden":false,"merged":[]}
["Name","Author","Description","Inspired by","Range","Style","Created on","Demo","# votes","Rating","Patch","Style","Tap","PowerLevel","Edit2","Edit3","Volume","Treble","Middle","Bass","Effect2","Master","Gain","Edit1","Effect1","Red-Green","Edit2Hold","TapOnOff"]
["MUSE Crunch","reddragon9800","Use a guitar with Humbuckers or a Strat! Sometimes add ORG PHASE at really low speed for certain","MUSE, Most of their Songs","Valvetronix+ (VT20+)","Prog Rock ","2013-03-13",null,0,null,null,null,null,null,null,null,null,null,null,null,null,null,null,null,null,null,null,null,3]
["Green Day BEST!","reddragon9800","Requirments for best tone.. -Use an ES-339 or any Gibson/Epiphone with P-90 Pickups. -Use Bos","Green Day, UNO DOS TRE","Valvetronix+ (VT20+)","Punk ","2013-03-13",null,0,null,null,null,null,null,null,null,null,null,null,null,null,null,null,null,null,null,null,null,4]
["Daybreaker","vegas","Please rate my tones!","Architects, Daybreaker","Valvetronix+ (VT20+)","Metalcore ","2013-03-12",null,0,null,null,null,null,null,null,null,null,null,null,null,null,null,null,null,null,null,null,null,5]
["Hollow Crown","vegas","Even though the 'US Metal - Red' simulates the Peavey 6505+, i think 'UK Metal - Gre","Architects, Hollow Crown","Valvetronix+ (VT20+)","Metalcore ","2013-03-12",null,0,null,null,null,null,null,null,null,null,null,null,null,null,null,null,null,null,null,null,null,6]
["Super Crunch","lucasmurphy","A very punch Crunch tone","-","Valvetronix+ (VT120+)","Any ","2013-03-11",null,0,null,null,null,null,null,null,null,null,null,null,null,null,null,null,null,null,null,null,null,7]
["papa roach no more secrets","vjiq","My papa roach tone. Sounds great.","Papa roach, No more secrets","Valvetronix+ (VT20+)","RockNew metal ","2013-02-27",null,0,null,null,null,null,null,null,null,null,null,null,null,null,null,null,null,null,null,null,null,8]
["Kill 'Em All","eran8282","Maunual","Metallica, Whiplash Jump in the Fire Motorbreath Hit the Lights The Four Horsemen","Valvetronix+ (VT20+)","Trash Metal ","2013-02-19",null,0,null,"Style:6,Tap:831,PowerLevel:35,Edit2:0,Edit3:20,Volume:100,Treble:100,Middle:9,Bass:66,Effect2:1,Master:11,Gain:69,Edit1:63,Effect1:7,Red-Green:1,Edit2HOLD:1,TapOnOff:0","Style:6","Tap:831","PowerLevel:35","Edit2:0","Edit3:20","Volume:100","Treble:100","Middle:9","Bass:66","Effect2:1","Master:11","Gain:69","Edit1:63","Effect1:7","Red-Green:1","Edit2HOLD:1","TapOnOff:0",9]
["sweet solo tone","charlos11","un sonido de solo con muchos medios y sustain","-","Valvetronix+ (VT80+)","high gain ","2013-02-15",null,0,null,null,null,null,null,null,null,null,null,null,null,null,null,null,null,null,null,null,null,10]
["Metallica - Unforgiven(clean)","kuna","Manual","Metallica, Unforgiven","Valvetronix+ (VT40+)","Clean ","2013-02-13",null,0,null,"Style:4,Tap:1,PowerLevel:18,Edit2:0,Edit3:47,Volume:100,Treble:82,Middle:49,Bass:30,Effect2:1,Master:31,Gain:34,Edit1:26,Effect1:1,Red-Green:2,Edit2HOLD:1,TapOnOff:0","Style:4","Tap:1","PowerLevel:18","Edit2:0","Edit3:47","Volume:100","Treble:82","Middle:49","Bass:30","Effect2:1","Master:31","Gain:34","Edit1:26","Effect1:1","Red-Green:2","Edit2HOLD:1","TapOnOff:0",11]
["Nightrain","mohamadjazbi","this how i like it. and my guitar is a les paul black beauty 3 ...","slash, Nightrain","Valvetronix+ (VT40+)","Rock ","2013-01-31",null,0,null,"Style:9,Tap:272,PowerLevel:62,Edit2:22,Edit3:27,Volume:45,Treble:65,Middle:37,Bass:36,Effect2:10,Master:9,Gain:100,Edit1:22,Effect1:8,Red-Green:2,Edit2HOLD:1,TapOnOff:0","Style:9","Tap:272","PowerLevel:62","Edit2:22","Edit3:27","Volume:45","Treble:65","Middle:37","Bass:36","Effect2:10","Master:9","Gain:100","Edit1:22","Effect1:8","Red-Green:2","Edit2HOLD:1","TapOnOff:0",12]
["Metal/death metal/melodicmetal","zwamzel","Metal/death metal/melodicmetal style. It took me 2 hours to get it fine tuned but now it's just perfect!","-","Valvetronix+ (VT40+)","Metal/death metal/ ","2013-01-30",null,1,4,"Style:8,Tap:229,PowerLevel:0,Edit2:0,Edit3:0,Volume:58,Treble:100,Middle:38,Bass:97,Effect2:1,Master:60,Gain:89,Edit1:66,Effect1:8,Red-Green:3,Edit2HOLD:1,TapOnOff:0","Style:8","Tap:229","PowerLevel:0","Edit2:0","Edit3:0","Volume:58","Treble:100","Middle:38","Bass:97","Effect2:1","Master:60","Gain:89","Edit1:66","Effect1:8","Red-Green:3","Edit2HOLD:1","TapOnOff:0",13]
["slash - Bad rain","slashyx","guitare: BC Rich Mockingbird Japan with emg 85 (neck)/81 (bridge)pickups","Slash, Bad rain - apocaliptic love","Valvetronix+ (VT20+)","Hard Rock ","2013-01-21",null,1,2,"Style:9,Tap:2975,PowerLevel:18,Edit2:0,Edit3:49,Volume:42,Treble:66,Middle:100,Bass:100,Effect2:1,Master:31,Gain:81,Edit1:0,Effect1:7,Red-Green:2,Edit2HOLD:1,TapOnOff:0","Style:9","Tap:2975","PowerLevel:18","Edit2:0","Edit3:49","Volume:42","Treble:66","Middle:100","Bass:100","Effect2:1","Master:31","Gain:81","Edit1:0","Effect1:7","Red-Green:2","Edit2HOLD:1","TapOnOff:0",14]
["Metalic Bronze","crane","Deep, Heavy, and entrancing to some degree if tweak to your own certain specifications.","-","Valvetronix+ (VT40+)","metal ","2013-01-10",null,0,null,"Style:8,Tap:7,PowerLevel:94,Edit2:46,Edit3:42,Volume:19,Treble:100,Middle:100,Bass:100,Effect2:10,Master:97,Gain:100,Edit1:37,Effect1:10,Red-Green:3,Edit2HOLD:30,TapOnOff:0","Style:8","Tap:7","PowerLevel:94","Edit2:46","Edit3:42","Volume:19","Treble:100","Middle:100","Bass:100","Effect2:10","Master:97","Gain:100","Edit1:37","Effect1:10","Red-Green:3","Edit2HOLD:30","TapOnOff:0",15]
["Stevie Ray - Vaughan Texas Blues","scotthunter21","Sounds pretty good my end. Beauty is, if you want his cleaner tone just simply role back the gain. Does the job for me","Stevie Ray Vaughan, Cold Shot/Pride and Joy","Valvetronix+ (VT40+)","Texas Blues ","2013-01-08",null,0,null,"Style:9,Tap:10,PowerLevel:18,Edit2:0,Edit3:21,Volume:34,Treble:73,Middle:60,Bass:100,Effect2:1,Master:18,Gain:26,Edit1:48,Effect1:1,Red-Green:2,Edit2HOLD:1,TapOnOff:0","Style:9","Tap:10","PowerLevel:18","Edit2:0","Edit3:21","Volume:34","Treble:73","Middle:60","Bass:100","Effect2:1","Master:18","Gain:26","Edit1:48","Effect1:1","Red-Green:2","Edit2HOLD:1","TapOnOff:0",16]
["Metallica – One","antonds08","The clean sound in Metallica's one from ...And justice for all.","Metallica, One","Valvetronix+ (VT20+)","Clean ","2013-01-05",null,1,5,"Style:1,Tap:10,PowerLevel:28,Edit2:29,Edit3:47,Volume:36,Treble:74,Middle:29,Bass:85,Effect2:2,Master:33,Gain:46,Edit1:25,Effect1:1,Red-Green:2,Edit2HOLD:1,TapOnOff:0","Style:1","Tap:10","PowerLevel:28","Edit2:29","Edit3:47","Volume:36","Treble:74","Middle:29","Bass:85","Effect2:2","Master:33","Gain:46","Edit1:25","Effect1:1","Red-Green:2","Edit2HOLD:1","TapOnOff:0",17]
["Still waiting Sum 41","vjiq","Spesial for you","Sum 41, Still waiting","Valvetronix+ (VT20+)","Rock ","2012-12-29",null,0,null,null,null,null,null,null,null,null,null,null,null,null,null,null,null,null,null,null,null,18]
["Fade to black","vjiq","your welcome","Metallica, Fade to black","Valvetronix+ (VT20+)","Rock ","2012-12-29",null,0,null,"Style:6,Tap:10,PowerLevel:0,Edit2:0,Edit3:61,Volume:50,Treble:53,Middle:80,Bass:83,Effect2:9,Master:51,Gain:49,Edit1:100,Effect1:11,Red-Green:1,Edit2HOLD:1,TapOnOff:0","Style:6","Tap:10","PowerLevel:0","Edit2:0","Edit3:61","Volume:50","Treble:53","Middle:80","Bass:83","Effect2:9","Master:51","Gain:49","Edit1:100","Effect1:11","Red-Green:1","Edit2HOLD:1","TapOnOff:0",19]
["Green Day (Newer)","reddragon9800","It sounds best if you use Tortex .88mm Sharp picks and pick pretty hard. Then you have the sound","Billie Joe Armstrong, Nimrod to Now","Valvetronix+ (VT20+)","Punchy and Crunchy ","2012-12-28",null,0,null,null,null,null,null,null,null,null,null,null,null,null,null,null,null,null,null,null,null,20]
["ZZ TOP'S A RIPPIN'","play4u2","Played in G aggressively.","Billy Gibbons, La grande/Tres hombres","Valvetronix+ (VT20+)","TEXAS BLUES/ROCK ","2012-12-26",null,0,null,null,null,null,null,null,null,null,null,null,null,null,null,null,null,null,null,null,null,21]
["What I Found Out","bostero2","After looking for some time I think I finally got this one right.","The Beatles, Day Tripper","Valvetronix+ (VT40+)","Classic Rock ","2012-12-22",null,0,null,"Style:6,Tap:10,PowerLevel:28,Edit2:0,Edit3:63,Volume:50,Treble:30,Middle:48,Bass:11,Effect2:9,Master:11,Gain:66,Edit1:0,Effect1:1,Red-Green:1,Edit2HOLD:1,TapOnOff:0","Style:6","Tap:10","PowerLevel:28","Edit2:0","Edit3:63","Volume:50","Treble:30","Middle:48","Bass:11","Effect2:9","Master:11","Gain:66","Edit1:0","Effect1:1","Red-Green:1","Edit2HOLD:1","TapOnOff:0",22]
["Slash Tone / Slash's Snakepit","slash097","My Slash tone.","-","Valvetronix+ (VT40+)","Hard Rock ","2012-12-19","http://www.youtube.com/watch?v=5dMdPttSPf4",0,null,null,null,null,null,null,null,null,null,null,null,null,null,null,null,null,null,null,null,23]
["Papa roach kind of distortion","vjiq","It's been hard to find something like this","Papa roach, Last resort Between angels and insects She loves me not","Valvetronix+ (VT20+)","Alternative ","2012-12-10",null,0,null,"Style:8,Tap:10,PowerLevel:6,Edit2:0,Edit3:0,Volume:57,Treble:45,Middle:87,Bass:89,Effect2:1,Master:37,Gain:100,Edit1:100,Effect1:6,Red-Green:3,Edit2HOLD:1,TapOnOff:0","Style:8","Tap:10","PowerLevel:6","Edit2:0","Edit3:0","Volume:57","Treble:45","Middle:87","Bass:89","Effect2:1","Master:37","Gain:100","Edit1:100","Effect1:6","Red-Green:3","Edit2HOLD:1","TapOnOff:0",24]
["Burning Times","jasonab23","As close as i can get to Iced Earths tone","Iced Earth, Burning Times","Valvetronix+ (VT40+)","Metal ","2012-12-09",null,0,null,"Style:8,Tap:1,PowerLevel:62,Edit2:0,Edit3:46,Volume:88,Treble:74,Middle:50,Bass:100,Effect2:1,Master:10,Gain:100,Edit1:41,Effect1:6,Red-Green:3,Edit2HOLD:1,TapOnOff:0","Style:8","Tap:1","PowerLevel:62","Edit2:0","Edit3:46","Volume:88","Treble:74","Middle:50","Bass:100","Effect2:1","Master:10","Gain:100","Edit1:41","Effect1:6","Red-Green:3","Edit2HOLD:1","TapOnOff:0",25]
["Stinky Blues","jasonab23","Volume on guitar between 2 and 6 and tone on guitar between 4 and 6","-","Valvetronix+ (VT40+)","Modern Blues ","2012-12-09",null,0,null,"Style:3,Tap:155,PowerLevel:62,Edit2:0,Edit3:20,Volume:100,Treble:33,Middle:67,Bass:91,Effect2:1,Master:16,Gain:29,Edit1:23,Effect1:6,Red-Green:1,Edit2HOLD:1,TapOnOff:0","Style:3","Tap:155","PowerLevel:62","Edit2:0","Edit3:20","Volume:100","Treble:33","Middle:67","Bass:91","Effect2:1","Master:16","Gain:29","Edit1:23","Effect1:6","Red-Green:1","Edit2HOLD:1","TapOnOff:0",26]
["US. Metal #1","jasonab23","I play on manual mode and go from there.","N/A, N/A","Valvetronix+ (VT40+)","Progressive metal ","2012-12-09",null,0,null,null,null,null,null,null,null,null,null,null,null,null,null,null,null,null,null,null,null,27]
["AC DC back to black","vjiq","Best ACDC tone for this song, to my mind. Guitar schecter omen 6.","AC/DC, Back to black","Valvetronix+ (VT20+)","Rock ","2012-12-09",null,0,null,"Style:1,Tap:10,PowerLevel:60,Edit2:0,Edit3:0,Volume:18,Treble:18,Middle:100,Bass:49,Effect2:1,Master:19,Gain:48,Edit1:100,Effect1:8,Red-Green:2,Edit2HOLD:1,TapOnOff:0","Style:1","Tap:10","PowerLevel:60","Edit2:0","Edit3:0","Volume:18","Treble:18","Middle:100","Bass:49","Effect2:1","Master:19","Gain:48","Edit1:100","Effect1:8","Red-Green:2","Edit2HOLD:1","TapOnOff:0",28]
["Bluesy Crunchy","mar2","Great overdiven blues tone... USE ON MANUAL SETTING","-","Valvetronix+ (VT20+)","Blues ","2012-12-04",null,0,null,null,null,null,null,null,null,null,null,null,null,null,null,null,null,null,null,null,null,29]
["Blues crunch","mar2","Great overdiven blues tone... USE ON MANUAL SETTING","-","Valvetronix+ (VT20+)","Blues ","2012-12-04",null,0,null,null,null,null,null,null,null,null,null,null,null,null,null,null,null,null,null,null,null,30]
["Faces - I'm Losing You","deteroblix","Faces - I'm Losing You. Add some funk when strumming - use upstrokes a lot in the beginning","-","Valvetronix+ (VT40+)","Rock - add some fu ","2012-12-04",null,0,null,null,null,null,null,null,null,null,null,null,null,null,null,null,null,null,null,null,null,31]
["Faces - Stay with Me","deteroblix","Faces - Stay with Me - play in Open E tuning: E,B,E,G#, B,E May need to be tweaked a bit.","-","Valvetronix+ (VT40+)","Rock - Open E tuni ","2012-12-04",null,0,null,null,null,null,null,null,null,null,null,null,null,null,null,null,null,null,null,null,null,32]
["Cool Metal Tone for you, my brother","rusel_susel","Cool metal tone!","Metallica, Death magnetic","Valvetronix+ (VT20+)","Metal ","2012-11-15",null,0,null,"Style:9,Tap:10,PowerLevel:35,Edit2:0,Edit3:0,Volume:85,Treble:59,Middle:44,Bass:58,Effect2:1,Master:53,Gain:56,Edit1:100,Effect1:8,Red-Green:1,Edit2HOLD:1,TapOnOff:0","Style:9","Tap:10","PowerLevel:35","Edit2:0","Edit3:0","Volume:85","Treble:59","Middle:44","Bass:58","Effect2:1","Master:53","Gain:56","Edit1:100","Effect1:8","Red-Green:1","Edit2HOLD:1","TapOnOff:0",33]
["metal roar","damienvox","Heavy well defined and harmonics and solos galore.","chriss olivia, devastation","Valvetronix+ (VT120+)","heavy metal ","2012-11-10",null,0,null,null,null,null,null,null,null,null,null,null,null,null,null,null,null,null,null,null,null,34]
["emg crunch","damienvox","Great crunch and well defined force","-","Valvetronix+ (VT120+)","overgriven crunch ","2012-11-10",null,1,4,null,null,null,null,null,null,null,null,null,null,null,null,null,null,null,null,null,null,35]
["blues acoustic","damienvox","Great bluesy tone or acoustic like when you draw back some on your picking.","-","Valvetronix+ (VT120+)","acoustic/blues ","2012-11-10",null,0,null,null,null,null,null,null,null,null,null,null,null,null,null,null,null,null,null,null,null,36]
["Brian May Creamy Distortion","scotthunter21","As close as I can get to the great mans tone, using my Mexican Telecaster.","Brian May, I want it all","Valvetronix+ (VT40+)","Brian May ","2012-11-08",null,0,null,"Style:6,Tap:10,PowerLevel:17,Edit2:0,Edit3:13,Volume:65,Treble:50,Middle:56,Bass:75,Effect2:1,Master:16,Gain:43,Edit1:41,Effect1:6,Red-Green:3,Edit2HOLD:1,TapOnOff:0","Style:6","Tap:10","PowerLevel:17","Edit2:0","Edit3:13","Volume:65","Treble:50","Middle:56","Bass:75","Effect2:1","Master:16","Gain:43","Edit1:41","Effect1:6","Red-Green:3","Edit2HOLD:1","TapOnOff:0",37]
["Jimi Hendrix early years","tracy1965","Excellent Hendrix tone. Great for a telecaster or any single coil pup...","-","Valvetronix+ (VT80+)","Vintage Hendrix ","2012-10-28",null,0,null,"Style:6,Tap:17,PowerLevel:17,Edit2:13,Edit3:16,Volume:53,Treble:64,Middle:94,Bass:36,Effect2:9,Master:62,Gain:45,Edit1:15,Effect1:11,Red-Green:1,Edit2HOLD:0,TapOnOff:0","Style:6","Tap:17","PowerLevel:17","Edit2:13","Edit3:16","Volume:53","Treble:64","Middle:94","Bass:36","Effect2:9","Master:62","Gain:45","Edit1:15","Effect1:11","Red-Green:1","Edit2HOLD:0","TapOnOff:0",38]
["Metallica tone v1 ","domiswoz","Beautiful tone for MoP","Metallica, MoP","Valvetronix+ (VT20+)","thrash metal ","2012-10-28",null,0,null,"Style:4,Tap:10,PowerLevel:16,Edit2:50,Edit3:0,Volume:70,Treble:72,Middle:62,Bass:68,Effect2:9,Master:48,Gain:88,Edit1:89,Effect1:10,Red-Green:1,Edit2HOLD:1,TapOnOff:0","Style:4","Tap:10","PowerLevel:16","Edit2:50","Edit3:0","Volume:70","Treble:72","Middle:62","Bass:68","Effect2:9","Master:48","Gain:88","Edit1:89","Effect1:10","Red-Green:1","Edit2HOLD:1","TapOnOff:0",39]
["Diamond Sound 70' 80' rock","domiswoz","Beautiful dirty tone for hard rock, heavy metal of 70's and 80's","Diamond Head, Am I Evil","Valvetronix+ (VT20+)","rock heavy metal ","2012-10-27",null,0,null,"Style:4,Tap:462,PowerLevel:26,Edit2:42,Edit3:0,Volume:57,Treble:64,Middle:100,Bass:47,Effect2:9,Master:50,Gain:88,Edit1:100,Effect1:8,Red-Green:1,Edit2HOLD:0,TapOnOff:0","Style:4","Tap:462","PowerLevel:26","Edit2:42","Edit3:0","Volume:57","Treble:64","Middle:100","Bass:47","Effect2:9","Master:50","Gain:88","Edit1:100","Effect1:8","Red-Green:1","Edit2HOLD:0","TapOnOff:0",40]
["Jazz","itinerantmonk108","A warm Jazzy tone using a Epi Dot with a D'marzio Air Norton pickup in the neck position.","-","Valvetronix+ (VT80+)","Jazz ","2012-10-25",null,0,null,null,null,null,null,null,null,null,null,null,null,null,null,null,null,null,null,null,null,41]
["Rock Rhythm 1","vladmo","Rock Rhythm - Red 4","-","Valvetronix+ (VT20+)","Rock ","2012-10-21",null,0,null,null,null,null,null,null,null,null,null,null,null,null,null,null,null,null,null,null,null,42]
["Rock Lead 2","vladmo","Rock Lead 2 - Red 3","-","Valvetronix+ (VT20+)","Rock Lead 2 ","2012-10-21",null,1,null,null,null,null,null,null,null,null,null,null,null,null,null,null,null,null,null,null,null,43]
["VVRock Lead 1","vladmo","Rock Lead 1 - Red 2","-","Valvetronix+ (VT20+)","Rock Lead ","2012-10-21",null,0,null,null,null,null,null,null,null,null,null,null,null,null,null,null,null,null,null,null,null,44]
["Clean 1","vladmo","Clean - Green 1 / Red 1","-","Valvetronix+ (VT20+)","Clean ","2012-10-21",null,0,null,null,null,null,null,null,null,null,null,null,null,null,null,null,null,null,null,null,null,45]
["Slash AFD100 need cry baby","nicola1397","For this preset need Dunlop cry baby! I've the GCB-95 and i think that it is the best...Effe","Slash, Appetite for Destruction","Valvetronix+ (VT80+)","Hard Rock ","2012-10-12",null,0,null,null,null,null,null,null,null,null,null,null,null,null,null,null,null,null,null,null,null,46]
["Dookie by Green Day","dookie94","good tone for when i come around and basket case and other dookie songs","Green Day, Dookie","Valvetronix+ (VT40+)","punk but not metal ","2012-10-09",null,0,null,null,null,null,null,null,null,null,null,null,null,null,null,null,null,null,null,null,null,47]
["Bluesbreaker`s","guitero","Epiphone ES 335","Eric Clapton, Steppinout","Valvetronix+ (VT20+)","Blues ","2012-10-01",null,0,null,null,null,null,null,null,null,null,null,null,null,null,null,null,null,null,null,null,null,48]
["Page 03 2012-12-29Punk Rock","eran8282","you can choose the power level it dosent matter","Pennywise, Peaceful day","Valvetronix+ (VT20+)","Punk Rock ","2012-09-25",null,0,null,null,null,null,null,null,null,null,null,null,null,null,null,null,null,null,null,null,null,49]
["Leeroy","jamzlarz1973","metal for the masses","-","Valvetronix+ (VT40+)","rock ","2012-09-25",null,0,null,null,null,null,null,null,null,null,null,null,null,null,null,null,null,null,null,null,null,50]
["gary moore style","seelwinterwolf","a blues like style","-","Valvetronix+ (VT20+)","blues-rock ","2012-09-22",null,0,null,null,null,null,null,null,null,null,null,null,null,null,null,null,null,null,null,null,null,51]
["metal disto","seelwinterwolf","a metal tone","Metal, /","Valvetronix+ (VT20+)","metal rythm ","2012-09-22",null,0,null,null,null,null,null,null,null,null,null,null,null,null,null,null,null,null,null,null,null,52]
["Oh Love-Green Day","msonnheim","sounds great on a les paul, but you could use a strat as well.","Green Day, Oh Love","Valvetronix+ (VT20+)","pop rock ","2012-09-15",null,0,null,null,null,null,null,null,null,null,null,null,null,null,null,null,null,null,null,null,null,53]
["It's a kind of Queen","scotthunter21","Tone created using my Mexican Telecaster","Brian May, One Vision/I Want It All","Valvetronix+ (VT40+)","Creamy distortion ","2012-09-14",null,0,null,"Style:6,Tap:3,PowerLevel:18,Edit2:7,Edit3:0,Volume:50,Treble:40,Middle:72,Bass:81,Effect2:2,Master:18,Gain:42,Edit1:7,Effect1:6,Red-Green:1,Edit2HOLD:1,TapOnOff:0","Style:6","Tap:3","PowerLevel:18","Edit2:7","Edit3:0","Volume:50","Treble:40","Middle:72","Bass:81","Effect2:2","Master:18","Gain:42","Edit1:7","Effect1:6","Red-Green:1","Edit2HOLD:1","TapOnOff:0",54]
["Trovato & Warner country tone","freudghost","This tone is inspired by Alan Warner 's solo Lookin' back and Steve Trovato's video","Alan Warner Steve Trovato, Lookin39 Back/Lick Library","Valvetronix+ (VT20+)","country ","2012-09-09",null,0,null,null,null,null,null,null,null,null,null,null,null,null,null,null,null,null,null,null,null,55]
["SPistolstone","plectrumpoppy","Punky Tone","Sex Pistols, Pretty Vacant","Valvetronix+ (VT20+)","Punk ","2012-08-27",null,0,null,null,null,null,null,null,null,null,null,null,null,null,null,null,null,null,null,null,null,56]
["Pink Floyd - Time (1)","bunkie","Use this sound for the guitar solo.","Pink Floyd, Time","Valvetronix+ (VT20+)","70s Rock ","2012-08-25",null,0,null,"Style:3,Tap:14,PowerLevel:58,Edit2:33,Edit3:28,Volume:86,Treble:13,Middle:79,Bass:32,Effect2:11,Master:15,Gain:72,Edit1:3,Effect1:4,Red-Green:1,Edit2HOLD:7,TapOnOff:0","Style:3","Tap:14","PowerLevel:58","Edit2:33","Edit3:28","Volume:86","Treble:13","Middle:79","Bass:32","Effect2:11","Master:15","Gain:72","Edit1:3","Effect1:4","Red-Green:1","Edit2HOLD:7","TapOnOff:0",57]
["AC/DC tone VOX VT20+","mati664pl","ACDC tone","-","Valvetronix+ (VT20+)","Hard Rock ","2012-08-15",null,0,null,null,null,null,null,null,null,null,null,null,null,null,null,null,null,null,null,null,null,58]
["Metallica- One/ enter sandman intro","jason2349","Devised on a strat using the bridge pickup (single coil) with tone knob on guitar at 8-9. This","Metallica, One","Valvetronix+ (VT120+)","Metal ","2012-08-08",null,0,null,"Style:6,Tap:16,PowerLevel:12,Edit2:22,Edit3:44,Volume:64,Treble:61,Middle:34,Bass:88,Effect2:1,Master:84,Gain:55,Edit1:42,Effect1:1,Red-Green:2,Edit2HOLD:1,TapOnOff:0","Style:6","Tap:16","PowerLevel:12","Edit2:22","Edit3:44","Volume:64","Treble:61","Middle:34","Bass:88","Effect2:1","Master:84","Gain:55","Edit1:42","Effect1:1","Red-Green:2","Edit2HOLD:1","TapOnOff:0",59]
["Gold Overdrive","mattb97","great tone, very distinct notes.. however you must leave the EQ controls alone once you have sel","-","Valvetronix+ (VT40+)","classic rock ","2012-08-04",null,0,null,"Style:6,Tap:10,PowerLevel:50,Edit2:0,Edit3:0,Volume:100,Treble:100,Middle:100,Bass:100,Effect2:9,Master:49,Gain:100,Edit1:100,Effect1:8,Red-Green:2,Edit2HOLD:1,TapOnOff:0","Style:6","Tap:10","PowerLevel:50","Edit2:0","Edit3:0","Volume:100","Treble:100","Middle:100","Bass:100","Effect2:9","Master:49","Gain:100","Edit1:100","Effect1:8","Red-Green:2","Edit2HOLD:1","TapOnOff:0",60]
["Brian May, Queen","mattb97","the closest i can get to the Brian May tone with this amp","Brian May, on the Queen albums","Valvetronix+ (VT40+)","Queen ","2012-08-04",null,0,null,null,null,null,null,null,null,null,null,null,null,null,null,null,null,null,null,null,null,61]
["Eddie Cochran Style rockabilly","montjoem","Sound come closer Eddie's amplifier","Eddie Cochran, cmon everybody","Valvetronix+ (VT40+)","rockabilly ","2012-07-24",null,2,3,"Style:2,Tap:10,PowerLevel:5,Edit2:23,Edit3:0,Volume:36,Treble:62,Middle:66,Bass:59,Effect2:1,Master:66,Gain:61,Edit1:0,Effect1:6,Red-Green:3,Edit2HOLD:1,TapOnOff:0","Style:2","Tap:10","PowerLevel:5","Edit2:23","Edit3:0","Volume:36","Treble:62","Middle:66","Bass:59","Effect2:1","Master:66","Gain:61","Edit1:0","Effect1:6","Red-Green:3","Edit2HOLD:1","TapOnOff:0",62]
["pop punk Distortion","juliancastillo","So Great!","blink 182, All","Valvetronix+ (VT20+)","Pop Punk ","2012-07-24",null,0,null,null,null,null,null,null,null,null,null,null,null,null,null,null,null,null,null,null,null,63]
["Like Tool","stepath18","simple tone inspired by tool","-","Valvetronix+ (VT20+)","tool ","2012-07-17",null,0,null,null,null,null,null,null,null,null,null,null,null,null,null,null,null,null,null,null,null,64]
["METAL/DEATH METAL/BTBAM","necrophagist7","VERY PUNCHY, CRYSTAL TREBLE, CRUNCHY MID, NICE IN C/C# TUNING, LOVE IT LOUD. PLAYS WELL WITH DYI","Between the buried and me, All","Valvetronix+ (VT20+)","PUNCHY ","2012-07-16",null,0,null,null,null,null,null,null,null,null,null,null,null,null,null,null,null,null,null,null,null,65]
["AcousticAmp","tincho77","If you wanna plug your acoustic guitar on your VT+ this is your tone!","-","Valvetronix+ (VT80+)","Acoustic ","2012-07-11",null,0,null,null,null,null,null,null,null,null,null,null,null,null,null,null,null,null,null,null,null,66]
["7-string Metal Distortion","grossc","Using an Ibanez RG7321, Kinda bassy but sounds great.","-","Valvetronix+ (VT40+)","Metal ","2012-07-08",null,0,null,null,null,null,null,null,null,null,null,null,null,null,null,null,null,null,null,null,null,67]
["Crazy Little Thing Called Love Solo","ledzep12","Hey guys this is a good tone that is similar to the \"Crazy Little Thing Called Love\" Sol","-","Valvetronix+ (VT20+)","CrunchyBluesyBassy ","2012-07-06",null,0,null,null,null,null,null,null,null,null,null,null,null,null,null,null,null,null,null,null,null,68]
["Rammstein-ish","necro671","Work In Progress, please feel free to amend/suggest better tones for Rammstein-ish music. Only","-","Valvetronix+ (VT20+)","Heavy Drop D ","2012-07-03",null,0,null,null,null,null,null,null,null,null,null,null,null,null,null,null,null,null,null,null,null,69]
["Gary Moore \"Still got the Blues\"","spirit57","My favourite setting for Gary Moore Sound in AC30. This sound is inspired by the great and unforgettable Gary Moore. A wonderful silky lead tone. The gary moore's sustain sound... . Les Paul Standard Neck Pickup Tone 6-7, Volume 5-6.Inspired by: Gary Moore , Still got the Blues","-","Valvetronix+ (VT40+)","Blues High Sustain ","2012-06-28",null,1,5,"Style:6,Tap:3,PowerLevel:18,Edit2:0,Edit3:50,Volume:48,Treble:17,Middle:24,Bass:98,Effect2:11,Master:47,Gain:50,Edit1:0,Effect1:1,Red-Green:1,Edit2HOLD:1,TapOnOff:0","Style:6","Tap:3","PowerLevel:18","Edit2:0","Edit3:50","Volume:48","Treble:17","Middle:24","Bass:98","Effect2:11","Master:47","Gain:50","Edit1:0","Effect1:1","Red-Green:1","Edit2HOLD:1","TapOnOff:0",70]
["Rearrange Miles Kane","rob_is_my_name","Inspired BY \"Mr Jack Barry\" Himself. This is the tone for Rearrange by Miles Kane. If you have a tremolo you may want to lower the depth of the rotary.","-","Valvetronix+ (VT40+)","Vibrato ","2012-06-27",null,0,null,"Style:6,Tap:10,PowerLevel:82,Edit2:57,Edit3:23,Volume:100,Treble:63,Middle:55,Bass:43,Effect2:6,Master:100,Gain:36,Edit1:12,Effect1:11,Red-Green:1,Edit2HOLD:1,TapOnOff:0","Style:6","Tap:10","PowerLevel:82","Edit2:57","Edit3:23","Volume:100","Treble:63","Middle:55","Bass:43","Effect2:6","Master:100","Gain:36","Edit1:12","Effect1:11","Red-Green:1","Edit2HOLD:1","TapOnOff:0",71]
["The Fratellis – Henrietta","rob_is_my_name","A Tone For \"Henrietta\" From Costello Music (2006). I Haven't Tried It Out Yes But It Should Sound Like The Record! Send me a message if you thinks any changes should be made and ill change it.","The Fratellis, Henrietta","Valvetronix+ (VT40+)","Crunchy ","2012-06-27",null,0,null,"Style:2,Tap:10,PowerLevel:70,Edit2:0,Edit3:51,Volume:100,Treble:71,Middle:42,Bass:26,Effect2:1,Master:100,Gain:59,Edit1:0,Effect1:1,Red-Green:1,Edit2HOLD:1,TapOnOff:0","Style:2","Tap:10","PowerLevel:70","Edit2:0","Edit3:51","Volume:100","Treble:71","Middle:42","Bass:26","Effect2:1","Master:100","Gain:59","Edit1:0","Effect1:1","Red-Green:1","Edit2HOLD:1","TapOnOff:0",72]
["Gych","manueladron","My guitar is half step down tuned.","-","Valvetronix+ (VT120+)","Rock-Metal ","2012-06-26",null,0,null,"Style:8,Tap:3,PowerLevel:79,Edit2:0,Edit3:50,Volume:50,Treble:57,Middle:58,Bass:43,Effect2:1,Master:18,Gain:18,Edit1:0,Effect1:1,Red-Green:1,Edit2HOLD:1,TapOnOff:0","Style:8","Tap:3","PowerLevel:79","Edit2:0","Edit3:50","Volume:50","Treble:57","Middle:58","Bass:43","Effect2:1","Master:18","Gain:18","Edit1:0","Effect1:1","Red-Green:1","Edit2HOLD:1","TapOnOff:0",73]
["Flange Rock","smile_1163","Tyr it and see....","-","Valvetronix+ (VT40+)","7039s Rock ","2012-06-14",null,0,null,"Style:6,Tap:43,PowerLevel:27,Edit2:37,Edit3:54,Volume:33,Treble:34,Middle:61,Bass:61,Effect2:3,Master:81,Gain:33,Edit1:38,Effect1:8,Red-Green:2,Edit2HOLD:1,TapOnOff:0","Style:6","Tap:43","PowerLevel:27","Edit2:37","Edit3:54","Volume:33","Treble:34","Middle:61","Bass:61","Effect2:3","Master:81","Gain:33","Edit1:38","Effect1:8","Red-Green:2","Edit2HOLD:1","TapOnOff:0",74]
["Iron","davuzi","an awesome setting","Toni Iommi, Iron Man","Valvetronix+ (VT40+)","Crunch ","2012-06-06",null,0,null,"Style:5,Tap:10,PowerLevel:16,Edit2:0,Edit3:24,Volume:51,Treble:65,Middle:53,Bass:66,Effect2:1,Master:13,Gain:58,Edit1:35,Effect1:10,Red-Green:1,Edit2HOLD:1,TapOnOff:0","Style:5","Tap:10","PowerLevel:16","Edit2:0","Edit3:24","Volume:51","Treble:65","Middle:53","Bass:66","Effect2:1","Master:13","Gain:58","Edit1:35","Effect1:10","Red-Green:1","Edit2HOLD:1","TapOnOff:0",75]
["Angels And Airwaves - The Adventure","juliancastillo","Intro Delay","Angels And Airwaves, The Adventure","Valvetronix+ (VT20+)","Space Delay ","2012-06-04",null,0,null,"Style:1,Tap:2,PowerLevel:48,Edit2:100,Edit3:18,Volume:66,Treble:67,Middle:65,Bass:65,Effect2:10,Master:63,Gain:65,Edit1:39,Effect1:8,Red-Green:2,Edit2HOLD:63,TapOnOff:0","Style:1","Tap:2","PowerLevel:48","Edit2:100","Edit3:18","Volume:66","Treble:67","Middle:65","Bass:65","Effect2:10","Master:63","Gain:65","Edit1:39","Effect1:8","Red-Green:2","Edit2HOLD:63","TapOnOff:0",76]
["Metal Solo 5","vladmo","Metal Solo - UK Metal Red","-","Valvetronix+ (VT20+)","Metal ","2012-06-04",null,0,null,"Style:8,Tap:10,PowerLevel:0,Edit2:0,Edit3:52,Volume:25,Treble:18,Middle:100,Bass:100,Effect2:1,Master:96,Gain:49,Edit1:16,Effect1:10,Red-Green:1,Edit2HOLD:1,TapOnOff:0","Style:8","Tap:10","PowerLevel:0","Edit2:0","Edit3:52","Volume:25","Treble:18","Middle:100","Bass:100","Effect2:1","Master:96","Gain:49","Edit1:16","Effect1:10","Red-Green:1","Edit2HOLD:1","TapOnOff:0",77]
["Metal Solo 4","vladmo","Metal Solo","-","Valvetronix+ (VT20+)","Metal ","2012-06-03",null,0,null,"Style:4,Tap:10,PowerLevel:0,Edit2:0,Edit3:45,Volume:16,Treble:55,Middle:95,Bass:95,Effect2:1,Master:94,Gain:61,Edit1:71,Effect1:10,Red-Green:1,Edit2HOLD:1,TapOnOff:0","Style:4","Tap:10","PowerLevel:0","Edit2:0","Edit3:45","Volume:16","Treble:55","Middle:95","Bass:95","Effect2:1","Master:94","Gain:61","Edit1:71","Effect1:10","Red-Green:1","Edit2HOLD:1","TapOnOff:0",78]
["Metal Solo 3","vladmo","Metal Solo - Green 4","Metallica, Fade to Black Solo","Valvetronix+ (VT20+)","Metal ","2012-06-03",null,0,null,"Style:7,Tap:4,PowerLevel:5,Edit2:20,Edit3:81,Volume:23,Treble:100,Middle:100,Bass:45,Effect2:9,Master:80,Gain:65,Edit1:100,Effect1:10,Red-Green:1,Edit2HOLD:46,TapOnOff:0","Style:7","Tap:4","PowerLevel:5","Edit2:20","Edit3:81","Volume:23","Treble:100","Middle:100","Bass:45","Effect2:9","Master:80","Gain:65","Edit1:100","Effect1:10","Red-Green:1","Edit2HOLD:46","TapOnOff:0",79]
["Metal Tone 5","vladmo","Tone for Black - Green 3","Metallica, Black","Valvetronix+ (VT20+)","Metal ","2012-06-03",null,0,null,"Style:8,Tap:6,PowerLevel:11,Edit2:20,Edit3:50,Volume:30,Treble:65,Middle:48,Bass:100,Effect2:9,Master:82,Gain:100,Edit1:5,Effect1:10,Red-Green:1,Edit2HOLD:50,TapOnOff:0","Style:8","Tap:6","PowerLevel:11","Edit2:20","Edit3:50","Volume:30","Treble:65","Middle:48","Bass:100","Effect2:9","Master:82","Gain:100","Edit1:5","Effect1:10","Red-Green:1","Edit2HOLD:50","TapOnOff:0",80]
["Metal Tone 4","vladmo","Tone for Justice - Green 2","Metallica, Justice","Valvetronix+ (VT20+)","Metal ","2012-06-02",null,0,null,"Style:8,Tap:10,PowerLevel:13,Edit2:0,Edit3:7,Volume:30,Treble:37,Middle:5,Bass:37,Effect2:1,Master:95,Gain:81,Edit1:6,Effect1:7,Red-Green:3,Edit2HOLD:1,TapOnOff:0","Style:8","Tap:10","PowerLevel:13","Edit2:0","Edit3:7","Volume:30","Treble:37","Middle:5","Bass:37","Effect2:1","Master:95","Gain:81","Edit1:6","Effect1:7","Red-Green:3","Edit2HOLD:1","TapOnOff:0",81]
["rory gallagher","seelwinterwolf","the tone for rory's live","-","Valvetronix+ (VT20+)","rock ","2012-06-01",null,1,5,"Style:3,Tap:5,PowerLevel:64,Edit2:11,Edit3:20,Volume:69,Treble:74,Middle:54,Bass:43,Effect2:9,Master:5,Gain:27,Edit1:100,Effect1:8,Red-Green:2,Edit2HOLD:1,TapOnOff:0","Style:3","Tap:5","PowerLevel:64","Edit2:11","Edit3:20","Volume:69","Treble:74","Middle:54","Bass:43","Effect2:9","Master:5","Gain:27","Edit1:100","Effect1:8","Red-Green:2","Edit2HOLD:1","TapOnOff:0",82]
["Distorted Clean","pmgholami","Crystal Clean + Light Distortion","-","Valvetronix+ (VT20+)","Post Rock ","2012-05-30",null,0,null,"Style:1,Tap:10,PowerLevel:20,Edit2:0,Edit3:20,Volume:71,Treble:77,Middle:65,Bass:71,Effect2:1,Master:30,Gain:83,Edit1:0,Effect1:1,Red-Green:2,Edit2HOLD:1,TapOnOff:0","Style:1","Tap:10","PowerLevel:20","Edit2:0","Edit3:20","Volume:71","Treble:77","Middle:65","Bass:71","Effect2:1","Master:30","Gain:83","Edit1:0","Effect1:1","Red-Green:2","Edit2HOLD:1","TapOnOff:0",83]
["Metal Tone 3","vladmo","Tone for Justice/Black/master","Metallica, Justice","Valvetronix+ (VT20+)","Metal ","2012-05-28",null,0,null,"Style:11,Tap:10,PowerLevel:0,Edit2:0,Edit3:0,Volume:26,Treble:81,Middle:4,Bass:82,Effect2:1,Master:100,Gain:100,Edit1:0,Effect1:1,Red-Green:3,Edit2HOLD:1,TapOnOff:0","Style:11","Tap:10","PowerLevel:0","Edit2:0","Edit3:0","Volume:26","Treble:81","Middle:4","Bass:82","Effect2:1","Master:100","Gain:100","Edit1:0","Effect1:1","Red-Green:3","Edit2HOLD:1","TapOnOff:0",84]
["Metal Tone 2","vladmo","General Metal Tone for Ride the Lighting","Metallica, Black","Valvetronix+ (VT20+)","Metal ","2012-05-28",null,0,null,"Style:11,Tap:10,PowerLevel:0,Edit2:0,Edit3:0,Volume:24,Treble:65,Middle:34,Bass:94,Effect2:1,Master:96,Gain:95,Edit1:0,Effect1:1,Red-Green:1,Edit2HOLD:1,TapOnOff:0","Style:11","Tap:10","PowerLevel:0","Edit2:0","Edit3:0","Volume:24","Treble:65","Middle:34","Bass:94","Effect2:1","Master:96","Gain:95","Edit1:0","Effect1:1","Red-Green:1","Edit2HOLD:1","TapOnOff:0",85]
["Metal Solo 1","vladmo","Metal solo","Metallica, Fade to Black Solo","Valvetronix+ (VT20+)","Metal ","2012-05-28",null,0,null,"Style:11,Tap:10,PowerLevel:5,Edit2:0,Edit3:50,Volume:25,Treble:34,Middle:68,Bass:81,Effect2:1,Master:95,Gain:52,Edit1:66,Effect1:8,Red-Green:1,Edit2HOLD:1,TapOnOff:0","Style:11","Tap:10","PowerLevel:5","Edit2:0","Edit3:50","Volume:25","Treble:34","Middle:68","Bass:81","Effect2:1","Master:95","Gain:52","Edit1:66","Effect1:8","Red-Green:1","Edit2HOLD:1","TapOnOff:0",86]
["Kill em All/ Justice","vladmo","Kill em All tone","-","Valvetronix+ (VT20+)","Metal ","2012-05-28",null,0,null,null,null,null,null,null,null,null,null,null,null,null,null,null,null,null,null,null,null,87]
["The Cult with delay","vladmo","She Sells Sanctuary with delay","The Cult, She Sells Sanctuary","Valvetronix+ (VT20+)","rock ","2012-05-27",null,0,null,null,null,null,null,null,null,null,null,null,null,null,null,null,null,null,null,null,null,88]
["November Rain ish 1st solo","vladmo","Use Your Illusion Solo Tone","-","Valvetronix+ (VT20+)","rock ","2012-05-25",null,0,null,"Style:7,Tap:10,PowerLevel:0,Edit2:17,Edit3:45,Volume:32,Treble:50,Middle:64,Bass:100,Effect2:9,Master:65,Gain:100,Edit1:100,Effect1:10,Red-Green:2,Edit2HOLD:50,TapOnOff:0","Style:7","Tap:10","PowerLevel:0","Edit2:17","Edit3:45","Volume:32","Treble:50","Middle:64","Bass:100","Effect2:9","Master:65","Gain:100","Edit1:100","Effect1:10","Red-Green:2","Edit2HOLD:50","TapOnOff:0",89]
["Slash distortion - Use Your illusion","vladmo","Appetite/UUL tone","-","Valvetronix+ (VT20+)","rock ","2012-05-25",null,0,null,"Style:1,Tap:10,PowerLevel:5,Edit2:0,Edit3:44,Volume:15,Treble:5,Middle:95,Bass:100,Effect2:1,Master:95,Gain:95,Edit1:100,Effect1:10,Red-Green:3,Edit2HOLD:1,TapOnOff:0","Style:1","Tap:10","PowerLevel:5","Edit2:0","Edit3:44","Volume:15","Treble:5","Middle:95","Bass:100","Effect2:1","Master:95","Gain:95","Edit1:100","Effect1:10","Red-Green:3","Edit2HOLD:1","TapOnOff:0",90]
["Hard Rock of the 70's-80's","blahman179","Inspired by the Hard Rock of the 70's and 80's like Led Zeppelin, Boston, GnR, etc.","-","Valvetronix+ (VT20+)","Hard Rock ","2012-05-23",null,1,3,"Style:6,Tap:10,PowerLevel:18,Edit2:0,Edit3:0,Volume:17,Treble:43,Middle:61,Bass:74,Effect2:1,Master:18,Gain:100,Edit1:58,Effect1:8,Red-Green:2,Edit2HOLD:1,TapOnOff:0","Style:6","Tap:10","PowerLevel:18","Edit2:0","Edit3:0","Volume:17","Treble:43","Middle:61","Bass:74","Effect2:1","Master:18","Gain:100","Edit1:58","Effect1:8","Red-Green:2","Edit2HOLD:1","TapOnOff:0",91]
["Robben Ford Drive","atom","Dumble Drive Tone","-","Valvetronix+ (VT40+)","Blues ","2012-05-20",null,1,5,"Style:11,Tap:10,PowerLevel:37,Edit2:0,Edit3:43,Volume:71,Treble:0,Middle:34,Bass:37,Effect2:1,Master:15,Gain:57,Edit1:0,Effect1:1,Red-Green:1,Edit2HOLD:1,TapOnOff:0","Style:11","Tap:10","PowerLevel:37","Edit2:0","Edit3:43","Volume:71","Treble:0","Middle:34","Bass:37","Effect2:1","Master:15","Gain:57","Edit1:0","Effect1:1","Red-Green:1","Edit2HOLD:1","TapOnOff:0",92]
["chilean solo","hreinberg","excelente para solear, es un sonido rockero y agradable","-","Valvetronix+ (VT20+)","rock ","2012-05-19",null,0,null,null,null,null,null,null,null,null,null,null,null,null,null,null,null,null,null,null,null,93]
["AC/DC Real Tone","autlos","I don't like any of the ACDC settings posted before. I show you mine. You don't need ped","AC/DC, Live","Valvetronix+ (VT20+)","Hard Rock ","2012-05-16",null,1,4,null,null,null,null,null,null,null,null,null,null,null,null,null,null,null,null,null,null,94]
["Hendrix","autlos","With this setting I get nice Hendrix sounds through my Les Paul. With a Strato would be much bet","Hendrix, Little Wing","Valvetronix+ (VT20+)","Vintage ","2012-05-16",null,0,null,null,null,null,null,null,null,null,null,null,null,null,null,null,null,null,null,null,null,95]
["Horror punk","decay666","great punk/metal tone. I use an SG. If you change amp to the SPl one it sounds very Murderdolls If you add tape echo on the default rate at the 2 oclock position you get a good Dead Kennedys tone.","-","Valvetronix+ (VT20+)","horror punk/punk/m ","2012-05-07","http://www.youtube.com/watch?v=jBP3sbpvGuA Kontact",0,null,"Style:8,Tap:10,PowerLevel:14,Edit2:0,Edit3:17,Volume:52,Treble:100,Middle:100,Bass:19,Effect2:1,Master:19,Gain:52,Edit1:30,Effect1:1,Red-Green:2,Edit2HOLD:1,TapOnOff:0","Style:8","Tap:10","PowerLevel:14","Edit2:0","Edit3:17","Volume:52","Treble:100","Middle:100","Bass:19","Effect2:1","Master:19","Gain:52","Edit1:30","Effect1:1","Red-Green:2","Edit2HOLD:1","TapOnOff:0",96]
["Metallica suicide","shaneburkeflyingv","This was made on and epiphone sg korina","Metallica, suicide and redemption","Valvetronix+ (VT40+)","rock/metal ","2012-05-06",null,0,null,"Style:8,Tap:97,PowerLevel:23,Edit2:0,Edit3:0,Volume:38,Treble:100,Middle:58,Bass:64,Effect2:1,Master:100,Gain:100,Edit1:0,Effect1:1,Red-Green:1,Edit2HOLD:1,TapOnOff:0","Style:8","Tap:97","PowerLevel:23","Edit2:0","Edit3:0","Volume:38","Treble:100","Middle:58","Bass:64","Effect2:1","Master:100","Gain:100","Edit1:0","Effect1:1","Red-Green:1","Edit2HOLD:1","TapOnOff:0",97]
["SRV Clean sound","facundoconnor","strat neck-middle pickups","Stevie Ray Vaughan, All","Valvetronix+ (VT80+)","Blues ","2012-05-01",null,0,null,"Style:4,Tap:10,PowerLevel:0,Edit2:0,Edit3:46,Volume:50,Treble:85,Middle:81,Bass:100,Effect2:1,Master:0,Gain:8,Edit1:0,Effect1:1,Red-Green:2,Edit2HOLD:1,TapOnOff:0","Style:4","Tap:10","PowerLevel:0","Edit2:0","Edit3:46","Volume:50","Treble:85","Middle:81","Bass:100","Effect2:1","Master:0","Gain:8","Edit1:0","Effect1:1","Red-Green:2","Edit2HOLD:1","TapOnOff:0",98]
["Paramore / Decode","ellis_29","Hi guys , this tone is great for the rhythm section of this song and also for the solo. The best way to get the sound is to play on a single coil pickup with palm muting to get a rich heavy tone :) Stay tuned for more !","Paramore, Decode","Valvetronix+ (VT40+)","Metal / Heavy Punk ","2012-04-29",null,0,null,"Style:9,Tap:10,PowerLevel:38,Edit2:0,Edit3:81,Volume:38,Treble:26,Middle:79,Bass:96,Effect2:1,Master:48,Gain:61,Edit1:50,Effect1:10,Red-Green:2,Edit2HOLD:1,TapOnOff:0","Style:9","Tap:10","PowerLevel:38","Edit2:0","Edit3:81","Volume:38","Treble:26","Middle:79","Bass:96","Effect2:1","Master:48","Gain:61","Edit1:50","Effect1:10","Red-Green:2","Edit2HOLD:1","TapOnOff:0",99]
["Black Sabbath 1978 Live DVD Never Say Die","irondave666","GUITAR ( ESP LTD ) Volume 10 Tone 10 Bridge Pickup Standard Tuning.Please rate this tone","Black Sabbath, 1978LiveNeverSayDie","Valvetronix+ (VT20+)","Rock Metal ","2012-04-24",null,2,4,"Style:8,Tap:654,PowerLevel:81,Edit2:0,Edit3:17,Volume:79,Treble:100,Middle:5,Bass:31,Effect2:1,Master:79,Gain:100,Edit1:0,Effect1:1,Red-Green:1,Edit2HOLD:1,TapOnOff:0","Style:8","Tap:654","PowerLevel:81","Edit2:0","Edit3:17","Volume:79","Treble:100","Middle:5","Bass:31","Effect2:1","Master:79","Gain:100","Edit1:0","Effect1:1","Red-Green:1","Edit2HOLD:1","TapOnOff:0",100]
["Deep Wet Pumping Thrash Tone","irondave666","GUITAR ( ESP LTD M-100FM ) Volume 10 Tone 10 Pickup Switch - Bridge","Overkill, Never Say Never","Valvetronix+ (VT20+)","Thrash ","2012-04-24",null,0,null,"Style:8,Tap:2,PowerLevel:100,Edit2:34,Edit3:0,Volume:41,Treble:83,Middle:0,Bass:78,Effect2:10,Master:100,Gain:100,Edit1:60,Effect1:7,Red-Green:1,Edit2HOLD:1,TapOnOff:0","Style:8","Tap:2","PowerLevel:100","Edit2:34","Edit3:0","Volume:41","Treble:83","Middle:0","Bass:78","Effect2:10","Master:100","Gain:100","Edit1:60","Effect1:7","Red-Green:1","Edit2HOLD:1","TapOnOff:0",101]
["tape echo fun","b_sauce","cool sounds with tape echo","-","Valvetronix+ (VT40+)","lead ","2012-04-24",null,0,null,"Style:6,Tap:10,PowerLevel:16,Edit2:0,Edit3:57,Volume:54,Treble:39,Middle:50,Bass:57,Effect2:9,Master:54,Gain:50,Edit1:43,Effect1:7,Red-Green:1,Edit2HOLD:1,TapOnOff:0","Style:6","Tap:10","PowerLevel:16","Edit2:0","Edit3:57","Volume:54","Treble:39","Middle:50","Bass:57","Effect2:9","Master:54","Gain:50","Edit1:43","Effect1:7","Red-Green:1","Edit2HOLD:1","TapOnOff:0",102]
["Maps lead","b_sauce","sounds cool for yeah yeah yeahs lead in maps","yeah yeah yeahs, maps","Valvetronix+ (VT40+)","yeah yeah yeahs ","2012-04-24",null,0,null,"Style:7,Tap:10,PowerLevel:25,Edit2:0,Edit3:50,Volume:50,Treble:56,Middle:95,Bass:87,Effect2:1,Master:54,Gain:70,Edit1:44,Effect1:1,Red-Green:2,Edit2HOLD:1,TapOnOff:0","Style:7","Tap:10","PowerLevel:25","Edit2:0","Edit3:50","Volume:50","Treble:56","Middle:95","Bass:87","Effect2:1","Master:54","Gain:70","Edit1:44","Effect1:1","Red-Green:2","Edit2HOLD:1","TapOnOff:0",103]
["My Acoustic Tone","irondave666","GUITAR ( ESP LTD M-100FM ) Volume 10 Tone 1-2 Pickup Switch-middle","Judas Priest, Dreamer Deceiver/Sad Wings Of Destiny","Valvetronix+ (VT20+)","acoustic ","2012-04-23",null,1,5,"Style:1,Tap:57,PowerLevel:27,Edit2:0,Edit3:18,Volume:100,Treble:90,Middle:47,Bass:100,Effect2:1,Master:37,Gain:16,Edit1:0,Effect1:1,Red-Green:2,Edit2HOLD:1,TapOnOff:0","Style:1","Tap:57","PowerLevel:27","Edit2:0","Edit3:18","Volume:100","Treble:90","Middle:47","Bass:100","Effect2:1","Master:37","Gain:16","Edit1:0","Effect1:1","Red-Green:2","Edit2HOLD:1","TapOnOff:0",104]
["Britton's Tone","b_sauce","hard to describe but I like it! Some deacent fuzz but has a good lead tone as well","-","Valvetronix+ (VT40+)","fuzz ","2012-04-23",null,0,null,"Style:10,Tap:10,PowerLevel:13,Edit2:5,Edit3:7,Volume:60,Treble:59,Middle:60,Bass:58,Effect2:1,Master:24,Gain:58,Edit1:0,Effect1:11,Red-Green:3,Edit2HOLD:1,TapOnOff:0","Style:10","Tap:10","PowerLevel:13","Edit2:5","Edit3:7","Volume:60","Treble:59","Middle:60","Bass:58","Effect2:1","Master:24","Gain:58","Edit1:0","Effect1:11","Red-Green:3","Edit2HOLD:1","TapOnOff:0",105]
["Nearly Floyd","clubbingbabyseals","B.C. Rich Warbeast only w/polytune between me and my sound.","Pink Floyd, On the Run","Valvetronix+ (VT120+)","Ethereal Distortio ","2012-04-19",null,0,null,"Style:7,Tap:688,PowerLevel:49,Edit2:12,Edit3:13,Volume:50,Treble:63,Middle:50,Bass:61,Effect2:6,Master:32,Gain:67,Edit1:22,Effect1:8,Red-Green:1,Edit2HOLD:1,TapOnOff:0","Style:7","Tap:688","PowerLevel:49","Edit2:12","Edit3:13","Volume:50","Treble:63","Middle:50","Bass:61","Effect2:6","Master:32","Gain:67","Edit1:22","Effect1:8","Red-Green:1","Edit2HOLD:1","TapOnOff:0",106]
["Deep Purple","spirit57","This song, I've been using a Gibson Les Paul Standard Level 7, Tone 7, sound developed and tested. Pickup switch on treble.","Deep Purple, Smoke on the water","Valvetronix+ (VT20+)","Rock ","2012-04-17",null,0,null,"Style:7,Tap:688,PowerLevel:49,Edit2:12,Edit3:13,Volume:50,Treble:63,Middle:50,Bass:61,Effect2:6,Master:32,Gain:67,Edit1:22,Effect1:8,Red-Green:1,Edit2HOLD:1,TapOnOff:0","Style:7","Tap:688","PowerLevel:49","Edit2:12","Edit3:13","Volume:50","Treble:63","Middle:50","Bass:61","Effect2:6","Master:32","Gain:67","Edit1:22","Effect1:8","Red-Green:1","Edit2HOLD:1","TapOnOff:0",107]
["AC/DC basic tone","jonasvox","I´m using my Les Paul for this tone, but it might sound much better with a SG. There are different sounds of AC/DC for sure, but this sound give you an basic idea of it. Have fun with this tone and stay tuned.","-","Valvetronix+ (VT40+)","Rock ","2012-04-15",null,3,4.5,"Style:7,Tap:10,PowerLevel:22,Edit2:0,Edit3:38,Volume:53,Treble:61,Middle:85,Bass:23,Effect2:1,Master:66,Gain:62,Edit1:33,Effect1:1,Red-Green:3,Edit2HOLD:1,TapOnOff:0","Style:7","Tap:10","PowerLevel:22","Edit2:0","Edit3:38","Volume:53","Treble:61","Middle:85","Bass:23","Effect2:1","Master:66","Gain:62","Edit1:33","Effect1:1","Red-Green:3","Edit2HOLD:1","TapOnOff:0",108]
["Kings of Leon - Pyro (lead)","jonasvox","I´m using my Les Paul for this awesome Kings of leon tone, which comes very close to the original. Could be improves by playing an semi-acoustik like KOL do. Have fun with this tone and stay tuned.","Kings of Leon, Pyro","Valvetronix+ (VT40+)","Rock ","2012-04-15",null,0,null,"Style:6,Tap:4,PowerLevel:17,Edit2:10,Edit3:42,Volume:81,Treble:64,Middle:65,Bass:47,Effect2:9,Master:50,Gain:50,Edit1:0,Effect1:1,Red-Green:2,Edit2HOLD:1,TapOnOff:0","Style:6","Tap:4","PowerLevel:17","Edit2:10","Edit3:42","Volume:81","Treble:64","Middle:65","Bass:47","Effect2:9","Master:50","Gain:50","Edit1:0","Effect1:1","Red-Green:2","Edit2HOLD:1","TapOnOff:0",109]
["Kings of Leon - Arizona (lead)","jonasvox","I´m using my Les Paul for this awesome Kings of leon tone, which comes very close to the original. Could be improves by playing an semi-acoustik like KOL do. Have fun with this tone and stay tuned.","Kings of Leon, Arizona","Valvetronix+ (VT40+)","Rock ","2012-04-15",null,0,null,"Style:6,Tap:4,PowerLevel:48,Edit2:16,Edit3:41,Volume:81,Treble:59,Middle:67,Bass:48,Effect2:10,Master:49,Gain:65,Edit1:0,Effect1:1,Red-Green:2,Edit2HOLD:1,TapOnOff:0","Style:6","Tap:4","PowerLevel:48","Edit2:16","Edit3:41","Volume:81","Treble:59","Middle:67","Bass:48","Effect2:10","Master:49","Gain:65","Edit1:0","Effect1:1","Red-Green:2","Edit2HOLD:1","TapOnOff:0",110]
["Kings of Leon - Sex on fire (lead)","jonasvox","scription: I´m using my Les Paul for this awesome Kings of leon tone, which comes very close to the original. Could be improves by playing an semi-acoustik like KOL do. Have fun with this tone and stay tuned.","Kings of Leon, Sex on fire","Valvetronix+ (VT40+)","Rock ","2012-04-15",null,0,null,"Style:6,Tap:5,PowerLevel:15,Edit2:18,Edit3:43,Volume:82,Treble:57,Middle:66,Bass:45,Effect2:9,Master:49,Gain:81,Edit1:0,Effect1:1,Red-Green:2,Edit2HOLD:1,TapOnOff:0","Style:6","Tap:5","PowerLevel:15","Edit2:18","Edit3:43","Volume:82","Treble:57","Middle:66","Bass:45","Effect2:9","Master:49","Gain:81","Edit1:0","Effect1:1","Red-Green:2","Edit2HOLD:1","TapOnOff:0",111]
["Franz Ferdinand","vegas","Rate and enjoy. :)","Franz Ferdinand, Take Me Out","Valvetronix+ (VT20+)","Alternative Rock ","2012-04-15",null,0,null,"Style:6,Tap:5,PowerLevel:18,Edit2:20,Edit3:46,Volume:66,Treble:79,Middle:100,Bass:41,Effect2:1,Master:18,Gain:83,Edit1:78,Effect1:6,Red-Green:3,Edit2HOLD:1,TapOnOff:0","Style:6","Tap:5","PowerLevel:18","Edit2:20","Edit3:46","Volume:66","Treble:79","Middle:100","Bass:41","Effect2:1","Master:18","Gain:83","Edit1:78","Effect1:6","Red-Green:3","Edit2HOLD:1","TapOnOff:0",112]
["My tonr","thecowboyfromhell","Lol","-","Valvetronix+ (VT20+)","Metal/Dist ","2012-04-14",null,0,null,"Style:8,Tap:10,PowerLevel:100,Edit2:0,Edit3:22,Volume:100,Treble:91,Middle:48,Bass:13,Effect2:1,Master:4,Gain:100,Edit1:12,Effect1:6,Red-Green:3,Edit2HOLD:1,TapOnOff:0","Style:8","Tap:10","PowerLevel:100","Edit2:0","Edit3:22","Volume:100","Treble:91","Middle:48","Bass:13","Effect2:1","Master:4","Gain:100","Edit1:12","Effect1:6","Red-Green:3","Edit2HOLD:1","TapOnOff:0",113]
["No More Zakk!","fgaladri","IÂ´m using a Vox 33 series guitar! Enjoy!","Ozzy Osbourne, No More Tears","Valvetronix+ (VT80+)","Heavy Metal ","2012-04-09",null,2,3,"Style:7,Tap:5,PowerLevel:63,Edit2:29,Edit3:0,Volume:90,Treble:63,Middle:35,Bass:46,Effect2:10,Master:41,Gain:62,Edit1:67,Effect1:8,Red-Green:3,Edit2HOLD:1,TapOnOff:0","Style:7","Tap:5","PowerLevel:63","Edit2:29","Edit3:0","Volume:90","Treble:63","Middle:35","Bass:46","Effect2:10","Master:41","Gain:62","Edit1:67","Effect1:8","Red-Green:3","Edit2HOLD:1","TapOnOff:0",114]
["ZZ Top Rough boy","spirit57","The settings are from me, that I have personally tested. Setup for LS Paul both Guitarpickups Tone 7, Level 7. Delay or Chorus+Delay is Flavours.","ZZ Top, Rough Boy","Valvetronix+ (VT20+)","Rock ","2012-04-09",null,0,null,"Style:7,Tap:2,PowerLevel:24,Edit2:15,Edit3:66,Volume:80,Treble:81,Middle:50,Bass:60,Effect2:11,Master:16,Gain:50,Edit1:15,Effect1:11,Red-Green:1,Edit2HOLD:0,TapOnOff:0","Style:7","Tap:2","PowerLevel:24","Edit2:15","Edit3:66","Volume:80","Treble:81","Middle:50","Bass:60","Effect2:11","Master:16","Gain:50","Edit1:15","Effect1:11","Red-Green:1","Edit2HOLD:0","TapOnOff:0",115]
["Classic Crunchy Overdrive","schniepel89xx","just a classic tube overdriven sound with a touch of spring reverb. sounds great for blues rock, classic rock and &#39;70s hard rock. for a lead sound, you can either go from tube od to gold drive in the pedals section or move the gain knob on the amp to about 3 o&#39; clock.","-","Valvetronix+ (VT40+)","rock 70s hard rock ","2012-04-05",null,2,4.5,"Style:2,Tap:3,PowerLevel:9,Edit2:0,Edit3:60,Volume:100,Treble:73,Middle:93,Bass:86,Effect2:1,Master:100,Gain:50,Edit1:26,Effect1:7,Red-Green:3,Edit2HOLD:1,TapOnOff:0","Style:2","Tap:3","PowerLevel:9","Edit2:0","Edit3:60","Volume:100","Treble:73","Middle:93","Bass:86","Effect2:1","Master:100","Gain:50","Edit1:26","Effect1:7","Red-Green:3","Edit2HOLD:1","TapOnOff:0",116]
["Good Lead/Solo/Boost Sound","joeperryaero","When your guitar Volume is down it changes to a Hard rock/Rhythm Sound. Giving You The Freedom Of Having a solo tone without changing anything on your amp. Sounds Good on Les Paul","-","Valvetronix+ (VT20+)","Hard Rock ","2012-04-03",null,0,null,"Style:6,Tap:136,PowerLevel:18,Edit2:0,Edit3:0,Volume:100,Treble:90,Middle:100,Bass:60,Effect2:1,Master:18,Gain:100,Edit1:0,Effect1:1,Red-Green:1,Edit2HOLD:1,TapOnOff:0","Style:6","Tap:136","PowerLevel:18","Edit2:0","Edit3:0","Volume:100","Treble:90","Middle:100","Bass:60","Effect2:1","Master:18","Gain:100","Edit1:0","Effect1:1","Red-Green:1","Edit2HOLD:1","TapOnOff:0",117]
["Perfect Hard Rock Tone","megawoopi","You can also turn up treble a bit. Should sound awesome :)","AC/DC, Highway to Hell","Valvetronix+ (VT20+)","Rock ","2012-03-27",null,1,3,"Style:4,Tap:86,PowerLevel:64,Edit2:0,Edit3:0,Volume:58,Treble:89,Middle:100,Bass:65,Effect2:1,Master:6,Gain:98,Edit1:30,Effect1:1,Red-Green:2,Edit2HOLD:1,TapOnOff:0","Style:4","Tap:86","PowerLevel:64","Edit2:0","Edit3:0","Volume:58","Treble:89","Middle:100","Bass:65","Effect2:1","Master:6","Gain:98","Edit1:30","Effect1:1","Red-Green:2","Edit2HOLD:1","TapOnOff:0",118]
["best green day tone","bazman666","This the base of billies sound.. I'm using a start copy same as his with Seymour duncan pickups ....change to amp between box AC30.. us high gain and BTq metal to get all the different sounds billie has... enjoy","Green day, all tracks","Valvetronix+ (VT20+)","punk rock ","2012-03-26",null,1,5,"Style:9,Tap:10,PowerLevel:33,Edit2:0,Edit3:0,Volume:37,Treble:98,Middle:28,Bass:65,Effect2:1,Master:35,Gain:74,Edit1:0,Effect1:1,Red-Green:1,Edit2HOLD:1,TapOnOff:0","Style:9","Tap:10","PowerLevel:33","Edit2:0","Edit3:0","Volume:37","Treble:98","Middle:28","Bass:65","Effect2:1","Master:35","Gain:74","Edit1:0","Effect1:1","Red-Green:1","Edit2HOLD:1","TapOnOff:0",119]
["Hard Rock/Heavy Metal","metalnick7","Nice and heavy! Great for thrash!","-","Valvetronix+ (VT40+)","Hard Rock/Metal ","2012-03-18",null,0,null,"Style:6,Tap:10,PowerLevel:64,Edit2:0,Edit3:0,Volume:49,Treble:100,Middle:25,Bass:100,Effect2:1,Master:100,Gain:100,Edit1:100,Effect1:8,Red-Green:1,Edit2HOLD:1,TapOnOff:0","Style:6","Tap:10","PowerLevel:64","Edit2:0","Edit3:0","Volume:49","Treble:100","Middle:25","Bass:100","Effect2:1","Master:100","Gain:100","Edit1:100","Effect1:8","Red-Green:1","Edit2HOLD:1","TapOnOff:0",120]
["Santana - Corazon Espinado","jbnsk8","Santana tone","-","Valvetronix+ (VT40+)","Hard Rock ","2012-03-17",null,0,null,"Style:8,Tap:10,PowerLevel:18,Edit2:14,Edit3:76,Volume:65,Treble:6,Middle:28,Bass:61,Effect2:9,Master:49,Gain:78,Edit1:32,Effect1:8,Red-Green:1,Edit2HOLD:1,TapOnOff:0","Style:8","Tap:10","PowerLevel:18","Edit2:14","Edit3:76","Volume:65","Treble:6","Middle:28","Bass:61","Effect2:9","Master:49","Gain:78","Edit1:32","Effect1:8","Red-Green:1","Edit2HOLD:1","TapOnOff:0",121]
["metallica solo emg 60/81 epiphone explorer gt","pacangar","i think is for solo good settings","metallica, solo settings","Valvetronix+ (VT20+)","metal ","2012-03-13",null,0,null,"Style:10,Tap:10,PowerLevel:21,Edit2:0,Edit3:18,Volume:49,Treble:50,Middle:50,Bass:56,Effect2:9,Master:21,Gain:19,Edit1:0,Effect1:10,Red-Green:2,Edit2HOLD:1,TapOnOff:0","Style:10","Tap:10","PowerLevel:21","Edit2:0","Edit3:18","Volume:49","Treble:50","Middle:50","Bass:56","Effect2:9","Master:21","Gain:19","Edit1:0","Effect1:10","Red-Green:2","Edit2HOLD:1","TapOnOff:0",122]
["metallica emg 60/81 epiphone explorer gt","pacangar","my homemade settings and is good for cort les paul ts100 too. good luck metal friends","metallica, master of puppets ride the lightning","Valvetronix+ (VT20+)","metal ","2012-03-13",null,0,null,"Style:7,Tap:10,PowerLevel:18,Edit2:0,Edit3:18,Volume:50,Treble:89,Middle:26,Bass:85,Effect2:1,Master:18,Gain:72,Edit1:18,Effect1:10,Red-Green:3,Edit2HOLD:1,TapOnOff:0","Style:7","Tap:10","PowerLevel:18","Edit2:0","Edit3:18","Volume:50","Treble:89","Middle:26","Bass:85","Effect2:1","Master:18","Gain:72","Edit1:18","Effect1:10","Red-Green:3","Edit2HOLD:1","TapOnOff:0",123]
["Radiohead-Just Clean Tone","ejsim","This is close (in my opinion) to the clean part in the verse, played by Jonny Greenwood.","Radiohead, Just/The Bends","Valvetronix+ (VT40+)","Alternative Jazzy ","2012-03-11",null,1,4,"Style:6,Tap:30,PowerLevel:42,Edit2:27,Edit3:14,Volume:55,Treble:58,Middle:60,Bass:58,Effect2:4,Master:25,Gain:43,Edit1:40,Effect1:1,Red-Green:2,Edit2HOLD:1,TapOnOff:0","Style:6","Tap:30","PowerLevel:42","Edit2:27","Edit3:14","Volume:55","Treble:58","Middle:60","Bass:58","Effect2:4","Master:25","Gain:43","Edit1:40","Effect1:1","Red-Green:2","Edit2HOLD:1","TapOnOff:0",124]
["Santana – EUROPA","tuka3desu","Select pickup volume must be adjusted.","Santana, EUROPA","Valvetronix+ (VT20+)","Santana ","2012-03-11","http://www.youtube.com/watch?v=QMuwWcOfxUs",0,null,"Style:8,Tap:2,PowerLevel:58,Edit2:0,Edit3:70,Volume:68,Treble:7,Middle:15,Bass:62,Effect2:1,Master:38,Gain:64,Edit1:0,Effect1:1,Red-Green:1,Edit2HOLD:1,TapOnOff:0","Style:8","Tap:2","PowerLevel:58","Edit2:0","Edit3:70","Volume:68","Treble:7","Middle:15","Bass:62","Effect2:1","Master:38","Gain:64","Edit1:0","Effect1:1","Red-Green:1","Edit2HOLD:1","TapOnOff:0",125]
["EVH - A Different Kind of Truth - Red Channel","jdeats","Pretty use US Metal-Red model is based on a Peavey 6505 or EVH 5150 III. Tested with &#34;Hot&#34; ALNICO V single coil pickups (Fender Texas Specials) switch between bridge and neck positions for rhythm and lead playing.","Van Halen, She39s the Woman","Valvetronix+ (VT40+)","Rock ","2012-03-10",null,0,null,"Style:10,Tap:3,PowerLevel:19,Edit2:32,Edit3:79,Volume:61,Treble:49,Middle:98,Bass:61,Effect2:10,Master:18,Gain:92,Edit1:51,Effect1:7,Red-Green:1,Edit2HOLD:1,TapOnOff:0","Style:10","Tap:3","PowerLevel:19","Edit2:32","Edit3:79","Volume:61","Treble:49","Middle:98","Bass:61","Effect2:10","Master:18","Gain:92","Edit1:51","Effect1:7","Red-Green:1","Edit2HOLD:1","TapOnOff:0",126]
["Melodeath","tritonthemusician","Turned out to be a very great setting for Children of Bodom specifically. Alexi Laiho doesn&#39;t use a neck pickup and that is what this tone setting is made for, soloing and riffing using just the bridge pickup. I actually really enjoy it myself now that I have messed around with it.","Children of Bodom, Relentless Reckless Forever","Valvetronix+ (VT40+)","Melodic Death Meta ","2012-03-09",null,0,null,"Style:11,Tap:10,PowerLevel:17,Edit2:0,Edit3:0,Volume:50,Treble:65,Middle:80,Bass:100,Effect2:1,Master:49,Gain:81,Edit1:17,Effect1:6,Red-Green:3,Edit2HOLD:1,TapOnOff:0","Style:11","Tap:10","PowerLevel:17","Edit2:0","Edit3:0","Volume:50","Treble:65","Middle:80","Bass:100","Effect2:1","Master:49","Gain:81","Edit1:17","Effect1:6","Red-Green:3","Edit2HOLD:1","TapOnOff:0",127]
["Melodic Metalcore","tritonthemusician","Great tone for melodic metalcore or melodic technical metal. Screams and has a good chunk to it. Best for D standard and drop C tunings. Also can be considered a good modern metal tone. If you like All That Remains or For Today and want a tone similar to theirs this is it.","All That Remains/For Today, Fall of Ideals/Portraits","Valvetronix+ (VT40+)","Melodic Metalcore ","2012-03-09",null,0,null,"Style:8,Tap:10,PowerLevel:16,Edit2:0,Edit3:0,Volume:49,Treble:100,Middle:50,Bass:61,Effect2:1,Master:50,Gain:81,Edit1:16,Effect1:6,Red-Green:3,Edit2HOLD:1,TapOnOff:0","Style:8","Tap:10","PowerLevel:16","Edit2:0","Edit3:0","Volume:49","Treble:100","Middle:50","Bass:61","Effect2:1","Master:50","Gain:81","Edit1:16","Effect1:6","Red-Green:3","Edit2HOLD:1","TapOnOff:0",128]
["Thrash Metal Rhythm","tritonthemusician","This tone is all out thrash metal and groove metal very chunky and heavy. The Middle setting it just halfway to add more oomph and make it so you can do lead using this tone as well. Reverb can be added and I suggest the spring reverb if you were to do so, but only if you want.","Metallica/Pantera, Kill Em All/Cowboys From Hell","Valvetronix+ (VT40+)","Thrash and Groove ","2012-03-09",null,0,null,"Style:8,Tap:10,PowerLevel:18,Edit2:0,Edit3:0,Volume:50,Treble:91,Middle:50,Bass:81,Effect2:1,Master:48,Gain:50,Edit1:18,Effect1:6,Red-Green:2,Edit2HOLD:1,TapOnOff:0","Style:8","Tap:10","PowerLevel:18","Edit2:0","Edit3:0","Volume:50","Treble:91","Middle:50","Bass:81","Effect2:1","Master:48","Gain:50","Edit1:18","Effect1:6","Red-Green:2","Edit2HOLD:1","TapOnOff:0",129]
["Rock you like a hurricane Sound","lucasalba","This is a most sound, i love it","Scorpions, Love at First Sting","Valvetronix+ (VT20+)","Hard Rock ","2012-03-07",null,2,3,"Style:1,Tap:68,PowerLevel:32,Edit2:0,Edit3:53,Volume:43,Treble:80,Middle:40,Bass:61,Effect2:1,Master:33,Gain:37,Edit1:75,Effect1:10,Red-Green:3,Edit2HOLD:1,TapOnOff:0","Style:1","Tap:68","PowerLevel:32","Edit2:0","Edit3:53","Volume:43","Treble:80","Middle:40","Bass:61","Effect2:1","Master:33","Gain:37","Edit1:75","Effect1:10","Red-Green:3","Edit2HOLD:1","TapOnOff:0",130]
["REM – Frequency","gcr8","Play with the effects levels.  A tremolo pedal works for the chorus riffs.  played on my Ibanez AGR73 Hollow body","REM, What39s the Frequency Kenneth","Valvetronix+ (VT20+)","Rock / Grunge ","2012-03-03",null,0,null,"Style:11,Tap:10,PowerLevel:32,Edit2:22,Edit3:100,Volume:100,Treble:87,Middle:83,Bass:66,Effect2:9,Master:21,Gain:40,Edit1:63,Effect1:10,Red-Green:1,Edit2HOLD:1,TapOnOff:0","Style:11","Tap:10","PowerLevel:32","Edit2:22","Edit3:100","Volume:100","Treble:87","Middle:83","Bass:66","Effect2:9","Master:21","Gain:40","Edit1:63","Effect1:10","Red-Green:1","Edit2HOLD:1","TapOnOff:0",131]
["...And Justice For All distortion","vegas","I don't think that's too bad this time. :)","Metallica, And Justice For All","Valvetronix+ (VT20+)","Thrash/Heavy ","2012-03-03",null,0,null,"Style:10,Tap:10,PowerLevel:17,Edit2:0,Edit3:0,Volume:60,Treble:71,Middle:0,Bass:36,Effect2:1,Master:17,Gain:50,Edit1:99,Effect1:7,Red-Green:2,Edit2HOLD:1,TapOnOff:0","Style:10","Tap:10","PowerLevel:17","Edit2:0","Edit3:0","Volume:60","Treble:71","Middle:0","Bass:36","Effect2:1","Master:17","Gain:50","Edit1:99","Effect1:7","Red-Green:2","Edit2HOLD:1","TapOnOff:0",132]
["Acoustic Guitar","stepath18","on my Stagg SW203CETU-BK, with flat EQ on the guitar and 2/3 volume","-","Valvetronix+ (VT20+)","Acoustic ","2012-02-28",null,2,3.5,"Style:2,Tap:10,PowerLevel:40,Edit2:0,Edit3:22,Volume:50,Treble:56,Middle:48,Bass:37,Effect2:1,Master:24,Gain:50,Edit1:51,Effect1:2,Red-Green:1,Edit2HOLD:1,TapOnOff:0","Style:2","Tap:10","PowerLevel:40","Edit2:0","Edit3:22","Volume:50","Treble:56","Middle:48","Bass:37","Effect2:1","Master:24","Gain:50","Edit1:51","Effect1:2","Red-Green:1","Edit2HOLD:1","TapOnOff:0",133]
["Farewell Ballade","outnumbered","An approximate tune to play Farewell Ballade","Zakk Wylde, Farwelle ballade","Valvetronix+ (VT20+)","Rock / Metal ","2012-02-27",null,0,null,"Style:8,Tap:4,PowerLevel:18,Edit2:100,Edit3:94,Volume:77,Treble:35,Middle:48,Bass:64,Effect2:10,Master:100,Gain:87,Edit1:48,Effect1:6,Red-Green:2,Edit2HOLD:1,TapOnOff:0","Style:8","Tap:4","PowerLevel:18","Edit2:100","Edit3:94","Volume:77","Treble:35","Middle:48","Bass:64","Effect2:10","Master:100","Gain:87","Edit1:48","Effect1:6","Red-Green:2","Edit2HOLD:1","TapOnOff:0",134]
["One Way Out","smanzi333","I'm trying to capture One Way Out and Jessica on a stratocaster. These settings, I think are pretty close for One Way Out. I am using a strat plus with fender lace pickups so sound will vary on other instruments.I will be editing with small tweaks from time to time. Have fun everyone!!!","The Allman Bros, One Way Out","Valvetronix+ (VT20+)","Southern Rock ","2012-02-27",null,0,null,"Style:2,Tap:295,PowerLevel:18,Edit2:0,Edit3:0,Volume:100,Treble:74,Middle:81,Bass:63,Effect2:1,Master:100,Gain:23,Edit1:45,Effect1:7,Red-Green:2,Edit2HOLD:1,TapOnOff:0","Style:2","Tap:295","PowerLevel:18","Edit2:0","Edit3:0","Volume:100","Treble:74","Middle:81","Bass:63","Effect2:1","Master:100","Gain:23","Edit1:45","Effect1:7","Red-Green:2","Edit2HOLD:1","TapOnOff:0",135]
["Rock Basix 101","canadiandave","basic rock starting point, volume and tone full up or u loose the bite on the bridge pickup, not perfect yet, help required :)","AC/DC Sabbath, all n any","Valvetronix+ (VT20+)","ROcK ","2012-02-26",null,1,2,"Style:7,Tap:10,PowerLevel:16,Edit2:22,Edit3:17,Volume:100,Treble:30,Middle:71,Bass:74,Effect2:9,Master:45,Gain:100,Edit1:100,Effect1:8,Red-Green:1,Edit2HOLD:1,TapOnOff:0","Style:7","Tap:10","PowerLevel:16","Edit2:22","Edit3:17","Volume:100","Treble:30","Middle:71","Bass:74","Effect2:9","Master:45","Gain:100","Edit1:100","Effect1:8","Red-Green:1","Edit2HOLD:1","TapOnOff:0",136]
["Breakdown - Tom Petty","cmbeal317","Best played with neck pickup on a Stratocaster.","Tom Petty, Breakdown","Valvetronix+ (VT20+)","Classiv Rock ","2012-02-26",null,0,null,null,null,null,null,null,null,null,null,null,null,null,null,null,null,null,null,null,null,137]
["Acoustic Clone","canadiandave","Going for the sound of my Martin acoustic, no bells or whistles, tell me how to make it better !!","-","Valvetronix+ (VT20+)","acoustic ","2012-02-26",null,1,4,"Style:3,Tap:10,PowerLevel:13,Edit2:0,Edit3:16,Volume:81,Treble:44,Middle:69,Bass:69,Effect2:1,Master:71,Gain:11,Edit1:97,Effect1:2,Red-Green:3,Edit2HOLD:1,TapOnOff:0","Style:3","Tap:10","PowerLevel:13","Edit2:0","Edit3:16","Volume:81","Treble:44","Middle:69","Bass:69","Effect2:1","Master:71","Gain:11","Edit1:97","Effect1:2","Red-Green:3","Edit2HOLD:1","TapOnOff:0",138]
["Boston - Don't Look Back","bunkie","This tone should cover most of the rhythm guitar sounds in the first two albums. Try this one fore More Than a Feeling as well.","Boston, Dont Look Back","Valvetronix+ (VT20+)","Classic Rock ","2012-02-26",null,1,1,"Style:8,Tap:7,PowerLevel:16,Edit2:32,Edit3:16,Volume:85,Treble:83,Middle:44,Bass:45,Effect2:11,Master:87,Gain:42,Edit1:30,Effect1:1,Red-Green:1,Edit2HOLD:18,TapOnOff:0","Style:8","Tap:7","PowerLevel:16","Edit2:32","Edit3:16","Volume:85","Treble:83","Middle:44","Bass:45","Effect2:11","Master:87","Gain:42","Edit1:30","Effect1:1","Red-Green:1","Edit2HOLD:18","TapOnOff:0",139]
["SRV – Lenny","jukolanpoika","Goes for Lenny and other slow songs by SRV. You need to have Texas Special-pickups to achieve SRV sound.","Stevie Ray Vaughan, Lenny","Valvetronix+ (VT20+)","Blues ","2012-02-24",null,1,3,"Style:4,Tap:10,PowerLevel:25,Edit2:0,Edit3:0,Volume:66,Treble:64,Middle:75,Bass:82,Effect2:1,Master:19,Gain:51,Edit1:50,Effect1:7,Red-Green:2,Edit2HOLD:1,TapOnOff:0","Style:4","Tap:10","PowerLevel:25","Edit2:0","Edit3:0","Volume:66","Treble:64","Middle:75","Bass:82","Effect2:1","Master:19","Gain:51","Edit1:50","Effect1:7","Red-Green:2","Edit2HOLD:1","TapOnOff:0",140]
["Acoustic miked up","canadiandave","Looking for that near impossible to get tone of a miked up Gibson/Martin acoustic via electric model, opinions MOST WELCOME, open to any ideas , Roll the tone off a couple o&#39; notches on your guitar to suit your own taste...7 - 8 suits me :)","-","Valvetronix+ (VT20+)","Stage miked Acoust ","2012-02-23",null,2,3.5,"Style:3,Tap:10,PowerLevel:26,Edit2:0,Edit3:14,Volume:85,Treble:57,Middle:67,Bass:80,Effect2:9,Master:65,Gain:18,Edit1:93,Effect1:2,Red-Green:2,Edit2HOLD:1,TapOnOff:0","Style:3","Tap:10","PowerLevel:26","Edit2:0","Edit3:14","Volume:85","Treble:57","Middle:67","Bass:80","Effect2:9","Master:65","Gain:18","Edit1:93","Effect1:2","Red-Green:2","Edit2HOLD:1","TapOnOff:0",141]
["Standard Clean","canadiandave","I wanted a standard-ish, clean, starting point to go back to when I&#39;m after a new sound, this is a stripped backish tone I can work with to find what I want. Hope you find it usefull :)","-","Valvetronix+ (VT20+)","Clean with bite ","2012-02-23",null,0,null,"Style:1,Tap:11,PowerLevel:32,Edit2:46,Edit3:48,Volume:94,Treble:71,Middle:77,Bass:37,Effect2:11,Master:30,Gain:26,Edit1:20,Effect1:1,Red-Green:2,Edit2HOLD:35,TapOnOff:0","Style:1","Tap:11","PowerLevel:32","Edit2:46","Edit3:48","Volume:94","Treble:71","Middle:77","Bass:37","Effect2:11","Master:30","Gain:26","Edit1:20","Effect1:1","Red-Green:2","Edit2HOLD:35","TapOnOff:0",142]
["The Jam crunch","willpittabread","Use a single coil pickup or a Rickenbacker for you lucky people :)","-","Valvetronix+ (VT20+)","Mod Rock ","2012-02-23",null,2,2.5,"Style:6,Tap:10,PowerLevel:7,Edit2:0,Edit3:25,Volume:60,Treble:100,Middle:0,Bass:0,Effect2:1,Master:15,Gain:93,Edit1:0,Effect1:1,Red-Green:2,Edit2HOLD:1,TapOnOff:0","Style:6","Tap:10","PowerLevel:7","Edit2:0","Edit3:25","Volume:60","Treble:100","Middle:0","Bass:0","Effect2:1","Master:15","Gain:93","Edit1:0","Effect1:1","Red-Green:2","Edit2HOLD:1","TapOnOff:0",143]
["Real Metalcore tone","outnumbered","Here’s my Metal tone with my vox vt20+. I use it with a Lag Arkane 66 , it works really fine. Reverb make it sound better , trust me. I play Different metalstuff with. As I Lay Dying , The devil wears prada , Linkin Park , Parkway Drive , Bring me the horizon , a Day to remember , It dies today...","-","Valvetronix+ (VT20+)","Metalcore ","2012-02-23","http://www.youtube.com/watch?v=mrRpMmlMFBU",0,null,"Style:9,Tap:10,PowerLevel:11,Edit2:0,Edit3:48,Volume:98,Treble:37,Middle:37,Bass:68,Effect2:1,Master:100,Gain:100,Edit1:42,Effect1:6,Red-Green:3,Edit2HOLD:1,TapOnOff:0","Style:9","Tap:10","PowerLevel:11","Edit2:0","Edit3:48","Volume:98","Treble:37","Middle:37","Bass:68","Effect2:1","Master:100","Gain:100","Edit1:42","Effect1:6","Red-Green:3","Edit2HOLD:1","TapOnOff:0",144]
["My metal tone like a metallica","slash7426","my metal tone","Metallica, some kind of monster","Valvetronix+ (VT40+)","metal ","2012-02-22",null,0,null,"Style:8,Tap:1221,PowerLevel:35,Edit2:0,Edit3:53,Volume:57,Treble:57,Middle:35,Bass:44,Effect2:1,Master:53,Gain:49,Edit1:100,Effect1:10,Red-Green:3,Edit2HOLD:1,TapOnOff:0","Style:8","Tap:1221","PowerLevel:35","Edit2:0","Edit3:53","Volume:57","Treble:57","Middle:35","Bass:44","Effect2:1","Master:53","Gain:49","Edit1:100","Effect1:10","Red-Green:3","Edit2HOLD:1","TapOnOff:0",145]
["my tune","suhairamed","my tune","a r rehman, it is for her","Valvetronix+ (VT20+)","romantic ","2012-02-20",null,0,null,"Style:8,Tap:4,PowerLevel:39,Edit2:0,Edit3:0,Volume:0,Treble:31,Middle:47,Bass:0,Effect2:3,Master:76,Gain:41,Edit1:69,Effect1:3,Red-Green:1,Edit2HOLD:1,TapOnOff:0","Style:8","Tap:4","PowerLevel:39","Edit2:0","Edit3:0","Volume:0","Treble:31","Middle:47","Bass:0","Effect2:3","Master:76","Gain:41","Edit1:69","Effect1:3","Red-Green:1","Edit2HOLD:1","TapOnOff:0",146]
["Texas Bluesy Stevie Rayzee","smanzi333","Made a mistake on the last edit!!! I think the tone is just about perfect now!","Stevie Ray Vaughn, Pride and Joy Updated","Valvetronix+ (VT20+)","Texas Blues ","2012-02-20",null,0,null,"Style:2,Tap:2273,PowerLevel:26,Edit2:0,Edit3:40,Volume:95,Treble:84,Middle:45,Bass:100,Effect2:1,Master:100,Gain:19,Edit1:6,Effect1:7,Red-Green:2,Edit2HOLD:1,TapOnOff:0","Style:2","Tap:2273","PowerLevel:26","Edit2:0","Edit3:40","Volume:95","Treble:84","Middle:45","Bass:100","Effect2:1","Master:100","Gain:19","Edit1:6","Effect1:7","Red-Green:2","Edit2HOLD:1","TapOnOff:0",147]
["Slash -Welcome to the Jungle","jbnsk8","slash tone, intro","-","Valvetronix+ (VT40+)","Hard Rock ","2012-02-18",null,3,3.5,"Style:9,Tap:10,PowerLevel:20,Edit2:88,Edit3:50,Volume:60,Treble:59,Middle:68,Bass:63,Effect2:10,Master:28,Gain:50,Edit1:35,Effect1:7,Red-Green:3,Edit2HOLD:1,TapOnOff:0","Style:9","Tap:10","PowerLevel:20","Edit2:88","Edit3:50","Volume:60","Treble:59","Middle:68","Bass:63","Effect2:10","Master:28","Gain:50","Edit1:35","Effect1:7","Red-Green:3","Edit2HOLD:1","TapOnOff:0",148]
["SteveVaiForTheLoveOfGod","aleksej00","Crank up the Power knob, to get closer to Vai's tone. On high volume maybe you can turn off the Compressor and still get enough sustain. With an Ibanez RG350DX I can get pretty close to the Vai tone","Steve Vai, For the Love of God","Valvetronix+ (VT20+)","Instrimental rock ","2012-02-18",null,0,null,"Style:11,Tap:4,PowerLevel:17,Edit2:32,Edit3:22,Volume:61,Treble:18,Middle:100,Bass:0,Effect2:10,Master:17,Gain:100,Edit1:47,Effect1:1,Red-Green:1,Edit2HOLD:1,TapOnOff:0","Style:11","Tap:4","PowerLevel:17","Edit2:32","Edit3:22","Volume:61","Treble:18","Middle:100","Bass:0","Effect2:10","Master:17","Gain:100","Edit1:47","Effect1:1","Red-Green:1","Edit2HOLD:1","TapOnOff:0",149]
["CarvinMidgain","aleksej00","Low gain variant of the Steve Vai tone","-","Valvetronix+ (VT20+)","Hard Rock ","2012-02-18",null,0,null,"Style:11,Tap:4,PowerLevel:18,Edit2:14,Edit3:20,Volume:56,Treble:58,Middle:74,Bass:0,Effect2:10,Master:15,Gain:53,Edit1:0,Effect1:1,Red-Green:1,Edit2HOLD:1,TapOnOff:0","Style:11","Tap:4","PowerLevel:18","Edit2:14","Edit3:20","Volume:56","Treble:58","Middle:74","Bass:0","Effect2:10","Master:15","Gain:53","Edit1:0","Effect1:1","Red-Green:1","Edit2HOLD:1","TapOnOff:0",150]
["White Stripes - Screwdriver (ish)","mattbrowettiii","Sounds a little bit like Screwdriver by The White Stripes but not exactly. May sound like a live variation that Jack might have used...","The White Stripes, Screwdriver","Valvetronix+ (VT40+)","Dirty Crunch ","2012-02-15",null,0,null,"Style:5,Tap:10,PowerLevel:24,Edit2:0,Edit3:0,Volume:62,Treble:71,Middle:27,Bass:36,Effect2:1,Master:25,Gain:30,Edit1:0,Effect1:1,Red-Green:1,Edit2HOLD:1,TapOnOff:0","Style:5","Tap:10","PowerLevel:24","Edit2:0","Edit3:0","Volume:62","Treble:71","Middle:27","Bass:36","Effect2:1","Master:25","Gain:30","Edit1:0","Effect1:1","Red-Green:1","Edit2HOLD:1","TapOnOff:0",151]
["Exodus","vegas","Not sure about it, rate please.","Exodus, Pleasures of the Flesh","Valvetronix+ (VT20+)","Thrash Metal ","2012-02-15",null,0,null,"Style:10,Tap:10,PowerLevel:18,Edit2:0,Edit3:0,Volume:75,Treble:37,Middle:77,Bass:28,Effect2:1,Master:20,Gain:81,Edit1:34,Effect1:7,Red-Green:1,Edit2HOLD:1,TapOnOff:0","Style:10","Tap:10","PowerLevel:18","Edit2:0","Edit3:0","Volume:75","Treble:37","Middle:77","Bass:28","Effect2:1","Master:20","Gain:81","Edit1:34","Effect1:7","Red-Green:1","Edit2HOLD:1","TapOnOff:0",152]
["Randy Rhoads (Ozzy Period)","hellomrscreen","NOT MANUAL ON THE AMP... RED PRESET! An alright tone for a legendary guitarist... The louder the better!","Randy Rhoads, Crazy Train","Valvetronix+ (VT20+)","Metal ","2012-02-14",null,0,null,"Style:9,Tap:10,PowerLevel:50,Edit2:0,Edit3:33,Volume:64,Treble:81,Middle:62,Bass:10,Effect2:1,Master:51,Gain:81,Edit1:42,Effect1:6,Red-Green:1,Edit2HOLD:1,TapOnOff:0","Style:9","Tap:10","PowerLevel:50","Edit2:0","Edit3:33","Volume:64","Treble:81","Middle:62","Bass:10","Effect2:1","Master:51","Gain:81","Edit1:42","Effect1:6","Red-Green:1","Edit2HOLD:1","TapOnOff:0",153]
["Death Magnetic (clean)","vegas","Enjoy and rate :)","Metallica, Death Magnetic","Valvetronix+ (VT20+)","Thrash/Heavy ","2012-02-13",null,0,null,"Style:1,Tap:10,PowerLevel:18,Edit2:0,Edit3:42,Volume:62,Treble:47,Middle:32,Bass:50,Effect2:1,Master:19,Gain:50,Edit1:0,Effect1:1,Red-Green:3,Edit2HOLD:1,TapOnOff:0","Style:1","Tap:10","PowerLevel:18","Edit2:0","Edit3:42","Volume:62","Treble:47","Middle:32","Bass:50","Effect2:1","Master:19","Gain:50","Edit1:0","Effect1:1","Red-Green:3","Edit2HOLD:1","TapOnOff:0",154]
["Death Magnetic (distorted v2)","vegas","UPDATED - much closer now, rate please :)","Metallica, Death Magnetic","Valvetronix+ (VT20+)","Thrash/Heavy ","2012-02-13",null,0,null,"Style:9,Tap:10,PowerLevel:17,Edit2:0,Edit3:0,Volume:0,Treble:59,Middle:40,Bass:49,Effect2:1,Master:18,Gain:61,Edit1:100,Effect1:7,Red-Green:1,Edit2HOLD:1,TapOnOff:0","Style:9","Tap:10","PowerLevel:17","Edit2:0","Edit3:0","Volume:0","Treble:59","Middle:40","Bass:49","Effect2:1","Master:18","Gain:61","Edit1:100","Effect1:7","Red-Green:1","Edit2HOLD:1","TapOnOff:0",155]
["Slash tone - Amazing sweet sound for Les Paul","macszc","CHOOSE MANUAL PRESET MODE! I play Epiphone Les Paul Standard and these settings are really great for me. For Live Era it sounds damn good when you turn the bridge pickup tone almost to 0. I hope you&#39;ll enjoy it!","Slash, Appetite For Destruction Use Your Illusion Live Era","Valvetronix+ (VT40+)","sweet distortion ","2012-02-10",null,6,4.2,"Style:9,Tap:6,PowerLevel:62,Edit2:41,Edit3:71,Volume:61,Treble:99,Middle:72,Bass:61,Effect2:9,Master:7,Gain:59,Edit1:64,Effect1:10,Red-Green:3,Edit2HOLD:1,TapOnOff:0","Style:9","Tap:6","PowerLevel:62","Edit2:41","Edit3:71","Volume:61","Treble:99","Middle:72","Bass:61","Effect2:9","Master:7","Gain:59","Edit1:64","Effect1:10","Red-Green:3","Edit2HOLD:1","TapOnOff:0",156]
["Beatles - and your bird can sing","texasboy","Basic (Green) / Custom (Red). That's all you need to do. Ignore the other switches.","-","Valvetronix+ (VT80+)","Beatles ","2012-02-09",null,0,null,"Style:3,Tap:10,PowerLevel:0,Edit2:0,Edit3:0,Volume:0,Treble:0,Middle:0,Bass:0,Effect2:1,Master:0,Gain:0,Edit1:0,Effect1:1,Red-Green:1,Edit2HOLD:1,TapOnOff:0","Style:3","Tap:10","PowerLevel:0","Edit2:0","Edit3:0","Volume:0","Treble:0","Middle:0","Bass:0","Effect2:1","Master:0","Gain:0","Edit1:0","Effect1:1","Red-Green:1","Edit2HOLD:1","TapOnOff:0",157]
["Auto wah","stepath18","for something new if you are bored with all the same:)","-","Valvetronix+ (VT20+)","Psychedelic Rock ","2012-02-08",null,3,2.2000000000000002,"Style:2,Tap:16,PowerLevel:38,Edit2:28,Edit3:22,Volume:70,Treble:63,Middle:54,Bass:38,Effect2:3,Master:40,Gain:75,Edit1:100,Effect1:3,Red-Green:2,Edit2HOLD:1,TapOnOff:0","Style:2","Tap:16","PowerLevel:38","Edit2:28","Edit3:22","Volume:70","Treble:63","Middle:54","Bass:38","Effect2:3","Master:40","Gain:75","Edit1:100","Effect1:3","Red-Green:2","Edit2HOLD:1","TapOnOff:0",158]
["Arch Enemy","stepath18","Khaos Legion","Arch Enemy, Khaos Legion","Valvetronix+ (VT20+)","METAL ","2012-02-08","http://www.youtube.com/watch?v=Bwi5SJG3K5M&ob=av3e",0,null,"Style:9,Tap:10,PowerLevel:32,Edit2:0,Edit3:20,Volume:49,Treble:59,Middle:55,Bass:43,Effect2:1,Master:50,Gain:61,Edit1:48,Effect1:1,Red-Green:2,Edit2HOLD:1,TapOnOff:0","Style:9","Tap:10","PowerLevel:32","Edit2:0","Edit3:20","Volume:49","Treble:59","Middle:55","Bass:43","Effect2:1","Master:50","Gain:61","Edit1:48","Effect1:1","Red-Green:2","Edit2HOLD:1","TapOnOff:0",159]
["BassGuitar on you Electric","stepath18","Do you need a bass guitar for your records but you don't have anyone to play for you? Here is a tone that great your Electric to a Bass guitar!!!! What do you think????","-","Valvetronix+ (VT20+)","Bass Guitar ","2012-02-07",null,1,4,"Style:1,Tap:10,PowerLevel:38,Edit2:0,Edit3:18,Volume:41,Treble:12,Middle:6,Bass:100,Effect2:1,Master:59,Gain:44,Edit1:100,Effect1:5,Red-Green:2,Edit2HOLD:1,TapOnOff:0","Style:1","Tap:10","PowerLevel:38","Edit2:0","Edit3:18","Volume:41","Treble:12","Middle:6","Bass:100","Effect2:1","Master:59","Gain:44","Edit1:100","Effect1:5","Red-Green:2","Edit2HOLD:1","TapOnOff:0",160]
["MetalRythm","stepath18","the tone is setup on an Ibanez S470 DX with Zack Wylde sign. EMG (active) pickups.","-","Valvetronix+ (VT20+)","METAL ","2012-02-07",null,0,null,"Style:8,Tap:10,PowerLevel:41,Edit2:0,Edit3:18,Volume:51,Treble:58,Middle:47,Bass:40,Effect2:1,Master:28,Gain:54,Edit1:18,Effect1:10,Red-Green:2,Edit2HOLD:1,TapOnOff:0","Style:8","Tap:10","PowerLevel:41","Edit2:0","Edit3:18","Volume:51","Treble:58","Middle:47","Bass:40","Effect2:1","Master:28","Gain:54","Edit1:18","Effect1:10","Red-Green:2","Edit2HOLD:1","TapOnOff:0",161]
["Judas Preist","dmosteller","slighty heavier sound then the recording, but its sounds awesome playing along with it.","Judas Preist, Breaking the Law","Valvetronix+ (VT40+)","Heavy ","2012-02-06",null,0,null,"Style:7,Tap:10,PowerLevel:100,Edit2:0,Edit3:0,Volume:52,Treble:28,Middle:57,Bass:72,Effect2:5,Master:100,Gain:31,Edit1:13,Effect1:10,Red-Green:3,Edit2HOLD:1,TapOnOff:0","Style:7","Tap:10","PowerLevel:100","Edit2:0","Edit3:0","Volume:52","Treble:28","Middle:57","Bass:72","Effect2:5","Master:100","Gain:31","Edit1:13","Effect1:10","Red-Green:3","Edit2HOLD:1","TapOnOff:0",162]
["Yngwie Malmsteen like","tuka3desu","It made hearing sound by video. It seems that it is necessary to adjust.","-","Valvetronix+ (VT20 +)","Hard Rock ","2012-02-06","http://www.youtube.com/watch?v=RrLCteQlkUY",2,2.5,"Style:7,Tap:10,PowerLevel:95,Edit2:6,Edit3:55,Volume:72,Treble:35,Middle:34,Bass:90,Effect2:11,Master:82,Gain:78,Edit1:93,Effect1:8,Red-Green:3,Edit2HOLD:1,TapOnOff:0","Style:7","Tap:10","PowerLevel:95","Edit2:6","Edit3:55","Volume:72","Treble:35","Middle:34","Bass:90","Effect2:11","Master:82","Gain:78","Edit1:93","Effect1:8","Red-Green:3","Edit2HOLD:1","TapOnOff:0",163]
["phenomenal-80's crunch","thffkwka","if you have vfs5, boost your sound with it!! vox amazed me by jcm800 modeling, it's just phenomenal","none, none","Valvetronix+ (VT20+)","hard rock ","2012-02-06",null,0,null,"Style:7,Tap:20,PowerLevel:0,Edit2:0,Edit3:39,Volume:100,Treble:85,Middle:56,Bass:65,Effect2:1,Master:100,Gain:80,Edit1:52,Effect1:7,Red-Green:3,Edit2HOLD:1,TapOnOff:0","Style:7","Tap:20","PowerLevel:0","Edit2:0","Edit3:39","Volume:100","Treble:85","Middle:56","Bass:65","Effect2:1","Master:100","Gain:80","Edit1:52","Effect1:7","Red-Green:3","Edit2HOLD:1","TapOnOff:0",164]
["Blue Orchid1","thffkwka","make your pitch shift 1 octave down and blend it with your original sound I’m pretty sure it will blow your mind","White stripes, Get behind me satan","Valvetronix+ (VT20+)","Blues garage punk ","2012-02-06",null,0,null,"Style:4,Tap:0,PowerLevel:48,Edit2:46,Edit3:40,Volume:100,Treble:37,Middle:50,Bass:62,Effect2:7,Master:100,Gain:62,Edit1:47,Effect1:7,Red-Green:2,Edit2HOLD:0,TapOnOff:0","Style:4","Tap:0","PowerLevel:48","Edit2:46","Edit3:40","Volume:100","Treble:37","Middle:50","Bass:62","Effect2:7","Master:100","Gain:62","Edit1:47","Effect1:7","Red-Green:2","Edit2HOLD:0","TapOnOff:0",165]
["Stairway intro","jack1181","First time effort","Led zep, stairway","Valvetronix+ (VT20+)","Harmonic ","2012-02-03",null,2,4.5,"Style:2,Tap:10,PowerLevel:22,Edit2:26,Edit3:22,Volume:36,Treble:34,Middle:56,Bass:47,Effect2:10,Master:19,Gain:17,Edit1:20,Effect1:1,Red-Green:2,Edit2HOLD:1,TapOnOff:0","Style:2","Tap:10","PowerLevel:22","Edit2:26","Edit3:22","Volume:36","Treble:34","Middle:56","Bass:47","Effect2:10","Master:19","Gain:17","Edit1:20","Effect1:1","Red-Green:2","Edit2HOLD:1","TapOnOff:0",166]
["Decapitated Death Metal Tone","smokescreenabyss","The Most Brutal Death Metal Tone On This Amp. I've Been Using It For Ages. For That Organic Hallucinosis Sound. Enjoy!!!","Decapitated, A Poem About An Old Prison Man","Valvetronix+ (VT80+)","Tech Death Metal ","2012-02-02",null,0,null,"Style:11,Tap:10,PowerLevel:100,Edit2:0,Edit3:17,Volume:25,Treble:98,Middle:20,Bass:100,Effect2:1,Master:12,Gain:100,Edit1:100,Effect1:10,Red-Green:1,Edit2HOLD:1,TapOnOff:0","Style:11","Tap:10","PowerLevel:100","Edit2:0","Edit3:17","Volume:25","Treble:98","Middle:20","Bass:100","Effect2:1","Master:12","Gain:100","Edit1:100","Effect1:10","Red-Green:1","Edit2HOLD:1","TapOnOff:0",167]
["perfect alien tone","mrebaggott","this is a perfect tone if your bored and want to creat some futuristic noises on your guitar. make sure to use volume swells on your volume pot and enjoy!","-","Valvetronix+ (VT20+)","space ","2012-01-31",null,1,1,"Style:8,Tap:2,PowerLevel:41,Edit2:92,Edit3:100,Volume:38,Treble:64,Middle:44,Bass:52,Effect2:9,Master:25,Gain:42,Edit1:27,Effect1:3,Red-Green:2,Edit2HOLD:1,TapOnOff:0","Style:8","Tap:2","PowerLevel:41","Edit2:92","Edit3:100","Volume:38","Treble:64","Middle:44","Bass:52","Effect2:9","Master:25","Gain:42","Edit1:27","Effect1:3","Red-Green:2","Edit2HOLD:1","TapOnOff:0",168]
["David Gilmour","cmbeal317","Used with a Strat with a single coil bridge pickup.","-","Valvetronix+ (VT20+)","Rock ","2012-01-25",null,2,4,"Style:2,Tap:10,PowerLevel:25,Edit2:51,Edit3:58,Volume:23,Treble:72,Middle:76,Bass:0,Effect2:11,Master:34,Gain:100,Edit1:50,Effect1:1,Red-Green:3,Edit2HOLD:1,TapOnOff:0","Style:2","Tap:10","PowerLevel:25","Edit2:51","Edit3:58","Volume:23","Treble:72","Middle:76","Bass:0","Effect2:11","Master:34","Gain:100","Edit1:50","Effect1:1","Red-Green:3","Edit2HOLD:1","TapOnOff:0",169]
["Chris Isaak - Wicked game","batistoeten","It needs \"some\" finetuning, getting pretty close although. Enjoy. Do the finetuning, and help me find that ulitmate Chris Isaak tone!","Chris Isaak, Wicked Game","Valvetronix+ (VT20+)","pop/ rock ballad ","2012-01-23","http://www.youtube.com/watch?v=UAOxCqSxRD0",0,null,"Style:4,Tap:10,PowerLevel:50,Edit2:0,Edit3:85,Volume:81,Treble:79,Middle:63,Bass:34,Effect2:10,Master:9,Gain:81,Edit1:0,Effect1:1,Red-Green:2,Edit2HOLD:1,TapOnOff:0","Style:4","Tap:10","PowerLevel:50","Edit2:0","Edit3:85","Volume:81","Treble:79","Middle:63","Bass:34","Effect2:10","Master:9","Gain:81","Edit1:0","Effect1:1","Red-Green:2","Edit2HOLD:1","TapOnOff:0",170]
["acthung tone","thffkwka","Until the end of the world","U2, acthung baby","Valvetronix+ (VT20+)","crunch ","2012-01-23",null,1,5,"Style:6,Tap:1,PowerLevel:0,Edit2:56,Edit3:44,Volume:78,Treble:81,Middle:63,Bass:32,Effect2:10,Master:0,Gain:84,Edit1:53,Effect1:7,Red-Green:2,Edit2HOLD:18,TapOnOff:0","Style:6","Tap:1","PowerLevel:0","Edit2:56","Edit3:44","Volume:78","Treble:81","Middle:63","Bass:32","Effect2:10","Master:0","Gain:84","Edit1:53","Effect1:7","Red-Green:2","Edit2HOLD:18","TapOnOff:0",171]
["ACDC Highway tone","axelorenz","This is a pretty basic AC-DC rhythm tone from the highway to hell album. Just to give you a starting point to build off of. Note: you may want to back off the gold drive at higher power levels","AC/DC, Highway To Hell album","Valvetronix+ (VT40+)","Hard Rock ","2012-01-22",null,1,1,"Style:7,Tap:10,PowerLevel:21,Edit2:0,Edit3:0,Volume:50,Treble:43,Middle:57,Bass:73,Effect2:1,Master:48,Gain:100,Edit1:21,Effect1:8,Red-Green:1,Edit2HOLD:1,TapOnOff:0","Style:7","Tap:10","PowerLevel:21","Edit2:0","Edit3:0","Volume:50","Treble:43","Middle:57","Bass:73","Effect2:1","Master:48","Gain:100","Edit1:21","Effect1:8","Red-Green:1","Edit2HOLD:1","TapOnOff:0",172]
["Brothers in Arms","thimpt","For Brothers in Arms and other....","Mark Knopfler, Dire Straits","Valvetronix+ (VT80+)","Pop/Rock ","2012-01-21",null,0,null,null,null,null,null,null,null,null,null,null,null,null,null,null,null,null,null,null,null,173]
["Nothing else Matters","marviglass","limpio metallica","Metallica, 08-black","Valvetronix+ (VT40+)","heavy ","2012-01-10",null,1,5,"Style:1,Tap:685,PowerLevel:20,Edit2:0,Edit3:0,Volume:97,Treble:82,Middle:68,Bass:42,Effect2:11,Master:50,Gain:50,Edit1:46,Effect1:2,Red-Green:2,Edit2HOLD:1,TapOnOff:0","Style:1","Tap:685","PowerLevel:20","Edit2:0","Edit3:0","Volume:97","Treble:82","Middle:68","Bass:42","Effect2:11","Master:50","Gain:50","Edit1:46","Effect1:2","Red-Green:2","Edit2HOLD:1","TapOnOff:0",174]
["Americana Vox AC15","sonnyblu","Nice breakup but still retains the Vox Chime for rhythm... turn up your volume for leads. Video","David Grissom, David Grissom","Valvetronix+ (VT80+)","Americana ","2012-01-09","http://www.youtube.com/watch?v=qWTFMzd9XaE",0,null,null,null,null,null,null,null,null,null,null,null,null,null,null,null,null,null,null,null,175]
["Beno Bluesbreaker","sonnyblu","I find the higher you can set the Power level and as long as the channel Volume is at least equal to or higher than the Gain... This amp sounds pretty tube like.  Marshall JTM45 Bluesbreaker sound.","Eric Clapton, John Mayall Bluesbreakers","Valvetronix+ (VT80+)","Blues ","2012-01-06","http://www.youtube.com/watch?v=t5ZIi1K7BU4",0,null,"Style:7,Tap:10,PowerLevel:100,Edit2:0,Edit3:0,Volume:100,Treble:73,Middle:49,Bass:24,Effect2:1,Master:18,Gain:100,Edit1:0,Effect1:1,Red-Green:2,Edit2HOLD:1,TapOnOff:0","Style:7","Tap:10","PowerLevel:100","Edit2:0","Edit3:0","Volume:100","Treble:73","Middle:49","Bass:24","Effect2:1","Master:18","Gain:100","Edit1:0","Effect1:1","Red-Green:2","Edit2HOLD:1","TapOnOff:0",176]
["Red Hot Chili Peppers TrueTone","tincho77","Great clean-crunchy tone for songs like Californication, Soul to Squeeze, Otherside, Dani California, etc.","Red Hot Chili Peppers, Californication/By The Way/Stadium Arcadium","Valvetronix+ (VT80+)","Rock ","2012-01-03",null,7,4.2,"Style:4,Tap:10,PowerLevel:27,Edit2:0,Edit3:45,Volume:51,Treble:55,Middle:94,Bass:97,Effect2:1,Master:53,Gain:40,Edit1:38,Effect1:1,Red-Green:2,Edit2HOLD:1,TapOnOff:0","Style:4","Tap:10","PowerLevel:27","Edit2:0","Edit3:45","Volume:51","Treble:55","Middle:94","Bass:97","Effect2:1","Master:53","Gain:40","Edit1:38","Effect1:1","Red-Green:2","Edit2HOLD:1","TapOnOff:0",177]
["power tone echo","hankypanky","Great echo tone with a little crunch. Turn down the guitar volume for less crunch more clean. Be","-","Valvetronix+ (VT40+)","Rock ","2012-01-02",null,0,null,null,null,null,null,null,null,null,null,null,null,null,null,null,null,null,null,null,null,178]
["Hallelujah","smus","Hallelujah - Grace - Jeff Buckley","Jeff BuckHley, Hallelujah","Valvetronix+ (VT40+)","Rock Blues ","2012-01-01",null,0,null,"Style:4,Tap:1,PowerLevel:0,Edit2:33,Edit3:79,Volume:94,Treble:71,Middle:87,Bass:90,Effect2:5,Master:31,Gain:32,Edit1:0,Effect1:1,Red-Green:2,Edit2HOLD:1,TapOnOff:0","Style:4","Tap:1","PowerLevel:0","Edit2:33","Edit3:79","Volume:94","Treble:71","Middle:87","Bass:90","Effect2:5","Master:31","Gain:32","Edit1:0","Effect1:1","Red-Green:2","Edit2HOLD:1","TapOnOff:0",179]
["metalisha","donk3340","rock","Metalisha, season of the witch","Valvetronix+ (VT40+)","rock ","2011-12-29",null,0,null,null,null,null,null,null,null,null,null,null,null,null,null,null,null,null,null,null,null,180]
["Another brick in the wall solo","grattmod","The Gilmour's sound in \"another brick in the wall\"","Pink Floyd, Another brick in the wall","Valvetronix+ (VT20+)","rock ","2011-12-23",null,2,4.5,"Style:1,Tap:10,PowerLevel:23,Edit2:23,Edit3:44,Volume:51,Treble:100,Middle:100,Bass:56,Effect2:9,Master:50,Gain:49,Edit1:18,Effect1:7,Red-Green:2,Edit2HOLD:0,TapOnOff:0","Style:1","Tap:10","PowerLevel:23","Edit2:23","Edit3:44","Volume:51","Treble:100","Middle:100","Bass:56","Effect2:9","Master:50","Gain:49","Edit1:18","Effect1:7","Red-Green:2","Edit2HOLD:0","TapOnOff:0",181]
["Vintage OD","grattmod","Play it slowly... and enjoy !","-","Valvetronix+ (VT20+)","blues ","2011-12-22",null,0,null,"Style:2,Tap:13,PowerLevel:62,Edit2:0,Edit3:59,Volume:55,Treble:39,Middle:49,Bass:60,Effect2:9,Master:51,Gain:52,Edit1:43,Effect1:7,Red-Green:1,Edit2HOLD:1,TapOnOff:0","Style:2","Tap:13","PowerLevel:62","Edit2:0","Edit3:59","Volume:55","Treble:39","Middle:49","Bass:60","Effect2:9","Master:51","Gain:52","Edit1:43","Effect1:7","Red-Green:1","Edit2HOLD:1","TapOnOff:0",182]
["gary moore sustain","grattmod","the gary moore's sustain sound...","gary moore, parisienne walkways","Valvetronix+ (VT20+)","blues ","2011-12-22",null,1,1,null,null,null,null,null,null,null,null,null,null,null,null,null,null,null,null,null,null,183]
["Bloc Party","charlie1237","Full tone","Russel Lissack/ Kele Okereke , Silent alarm","Valvetronix+ (VT20+)","Indie Rock ","2011-12-21",null,0,null,null,null,null,null,null,null,null,null,null,null,null,null,null,null,null,null,null,null,184]
["Clean (Nashville Tele)","dbvt120","Clean tone good for arpegiated open chords on telecaster.","-","Valvetronix+ (VT120+)","Clean Bright ","2011-12-19",null,0,null,null,null,null,null,null,null,null,null,null,null,null,null,null,null,null,null,null,null,185]
["Acoustic Song","emosnow","Acoustic ...very close to a real acoustic guitar...subscribe","-","Valvetronix+ (VT20+)","Acoustic ","2011-12-18",null,4,4,"Style:5,Tap:2,PowerLevel:21,Edit2:0,Edit3:20,Volume:100,Treble:25,Middle:65,Bass:66,Effect2:9,Master:66,Gain:23,Edit1:95,Effect1:2,Red-Green:2,Edit2HOLD:0,TapOnOff:0","Style:5","Tap:2","PowerLevel:21","Edit2:0","Edit3:20","Volume:100","Treble:25","Middle:65","Bass:66","Effect2:9","Master:66","Gain:23","Edit1:95","Effect1:2","Red-Green:2","Edit2HOLD:0","TapOnOff:0",186]
["Foo Fighters Tone","charlie1237","I play it on the bridge plus middle pickups on a japanese strat, full tone.","Foo fighters, All my life","Valvetronix+ (VT20+)","Rock ","2011-12-11",null,0,null,"Style:4,Tap:10,PowerLevel:52,Edit2:0,Edit3:21,Volume:14,Treble:42,Middle:25,Bass:27,Effect2:1,Master:10,Gain:100,Edit1:0,Effect1:9,Red-Green:2,Edit2HOLD:1,TapOnOff:0","Style:4","Tap:10","PowerLevel:52","Edit2:0","Edit3:21","Volume:14","Treble:42","Middle:25","Bass:27","Effect2:1","Master:10","Gain:100","Edit1:0","Effect1:9","Red-Green:2","Edit2HOLD:1","TapOnOff:0",187]
["Heavy Slow Blues","tobydarling","Using a Rally Les Paul copy. Recorded using Cubasis with AKG C1000s mic. Backing from Jamey Aebersold Vol2 (Nothin' but Blues) Learn To Play Jazz series.","SRV, any","Valvetronix+ (VT40+)","heavy blues ","2011-12-09","http://www.youtube.com/watch?v=_ors2-erjcg",0,null,"Style:1,Tap:10,PowerLevel:15,Edit2:69,Edit3:34,Volume:43,Treble:100,Middle:60,Bass:63,Effect2:9,Master:63,Gain:82,Edit1:79,Effect1:7,Red-Green:2,Edit2HOLD:1,TapOnOff:0","Style:1","Tap:10","PowerLevel:15","Edit2:69","Edit3:34","Volume:43","Treble:100","Middle:60","Bass:63","Effect2:9","Master:63","Gain:82","Edit1:79","Effect1:7","Red-Green:2","Edit2HOLD:1","TapOnOff:0",188]
["JazzyGuitar","fgaladri","IÂ´m using a Vox Virage SC jet black. Neck position, P90 position, Tone 6","-","Valvetronix+ (VT80+)","Jazz ","2011-12-08",null,3,3.5,"Style:4,Tap:10,PowerLevel:66,Edit2:0,Edit3:42,Volume:78,Treble:60,Middle:55,Bass:57,Effect2:1,Master:46,Gain:38,Edit1:9,Effect1:1,Red-Green:2,Edit2HOLD:1,TapOnOff:0","Style:4","Tap:10","PowerLevel:66","Edit2:0","Edit3:42","Volume:78","Treble:60","Middle:55","Bass:57","Effect2:1","Master:46","Gain:38","Edit1:9","Effect1:1","Red-Green:2","Edit2HOLD:1","TapOnOff:0",189]
["jimmy page how many more times","alexandrenaweb","I try to find this tone... i hope you enjoy. For intro use auto wah, for solos fuzzzzzzzzzzzzzzz","Led Zeppelin, Jimmy Page - How many more times","Valvetronix+ (VT20+)","50W Plexi ","2011-12-05",null,1,3,"Style:7,Tap:10,PowerLevel:19,Edit2:0,Edit3:38,Volume:85,Treble:77,Middle:50,Bass:80,Effect2:1,Master:100,Gain:60,Edit1:0,Effect1:1,Red-Green:1,Edit2HOLD:1,TapOnOff:0","Style:7","Tap:10","PowerLevel:19","Edit2:0","Edit3:38","Volume:85","Treble:77","Middle:50","Bass:80","Effect2:1","Master:100","Gain:60","Edit1:0","Effect1:1","Red-Green:1","Edit2HOLD:1","TapOnOff:0",190]
["Slash tone Appetite","slashsnightmare","This is a nice basic Slash tone form the Appetite album. I used a VT+20 and an Epiphone les paul standard with both pickups. This is the basic sttings and you can play around with the gain/treble and find the tone thats best for your ears. Play around with these settings til&#39; you find the nice appetite tone that you enjoy!!","Slash, Appetite for Destruction","Valvetronix+ (VT20+)","Hard Rock ","2011-12-04",null,0,null,"Style:4,Tap:614,PowerLevel:20,Edit2:0,Edit3:48,Volume:53,Treble:82,Middle:60,Bass:43,Effect2:1,Master:17,Gain:73,Edit1:0,Effect1:1,Red-Green:1,Edit2HOLD:1,TapOnOff:0","Style:4","Tap:614","PowerLevel:20","Edit2:0","Edit3:48","Volume:53","Treble:82","Middle:60","Bass:43","Effect2:1","Master:17","Gain:73","Edit1:0","Effect1:1","Red-Green:1","Edit2HOLD:1","TapOnOff:0",191]
["Knocking On Heaven's Door Solo 1","lucasalba","This is a amazing solo!","Slash, Knocking On Heaven39s Door","Valvetronix+ (VT20+)","Hard Rock ","2011-12-03","http://www.youtube.com/watch?v=ToSHtiWnaEQ",1,4,"Style:8,Tap:10,PowerLevel:32,Edit2:63,Edit3:46,Volume:50,Treble:44,Middle:54,Bass:55,Effect2:9,Master:34,Gain:68,Edit1:44,Effect1:1,Red-Green:1,Edit2HOLD:1,TapOnOff:0","Style:8","Tap:10","PowerLevel:32","Edit2:63","Edit3:46","Volume:50","Treble:44","Middle:54","Bass:55","Effect2:9","Master:34","Gain:68","Edit1:44","Effect1:1","Red-Green:1","Edit2HOLD:1","TapOnOff:0",192]
["always with joe","carlosmiguel","setup your own gain!","Joe satriani, always with me always with you","Valvetronix+ (VT80+)","solo tone ","2011-12-03",null,0,null,"Style:6,Tap:10,PowerLevel:10,Edit2:0,Edit3:40,Volume:100,Treble:84,Middle:57,Bass:88,Effect2:1,Master:98,Gain:19,Edit1:43,Effect1:6,Red-Green:1,Edit2HOLD:1,TapOnOff:0","Style:6","Tap:10","PowerLevel:10","Edit2:0","Edit3:40","Volume:100","Treble:84","Middle:57","Bass:88","Effect2:1","Master:98","Gain:19","Edit1:43","Effect1:6","Red-Green:1","Edit2HOLD:1","TapOnOff:0",193]
["Bluesy Treble","mansonator","Bluesey treble sound, hope you guys enjoy :)","-","Valvetronix+ (VT40+)","Blues ","2011-11-30",null,0,null,"Style:1,Tap:7,PowerLevel:50,Edit2:0,Edit3:55,Volume:59,Treble:56,Middle:54,Bass:59,Effect2:1,Master:49,Gain:14,Edit1:100,Effect1:6,Red-Green:2,Edit2HOLD:1,TapOnOff:0","Style:1","Tap:7","PowerLevel:50","Edit2:0","Edit3:55","Volume:59","Treble:56","Middle:54","Bass:59","Effect2:1","Master:49","Gain:14","Edit1:100","Effect1:6","Red-Green:2","Edit2HOLD:1","TapOnOff:0",194]
["Under the Bridge by klotad","klotad","Great amp setting for under the bridge. Enjoy.. :)","Red Hot Chili Peppers, Under the Bridge","Valvetronix+ (VT20+)","Amazing ","2011-11-30",null,0,null,"Style:2,Tap:79,PowerLevel:50,Edit2:0,Edit3:42,Volume:100,Treble:62,Middle:42,Bass:60,Effect2:1,Master:15,Gain:16,Edit1:50,Effect1:1,Red-Green:3,Edit2HOLD:1,TapOnOff:0","Style:2","Tap:79","PowerLevel:50","Edit2:0","Edit3:42","Volume:100","Treble:62","Middle:42","Bass:60","Effect2:1","Master:15","Gain:16","Edit1:50","Effect1:1","Red-Green:3","Edit2HOLD:1","TapOnOff:0",195]
["always with joe","carlosmiguel","setup your own gain!","Joe satriani, always with me always with you","Valvetronix+ (VT80+)","solo tone ","2011-12-03",null,0,null,"Style:6,Tap:11,PowerLevel:10,Edit2:42,Edit3:40,Volume:100,Treble:84,Middle:56,Bass:87,Effect2:10,Master:97,Gain:18,Edit1:43,Effect1:6,Red-Green:1,Edit2HOLD:31,TapOnOff:0","Style:6","Tap:11","PowerLevel:10","Edit2:42","Edit3:40","Volume:100","Treble:84","Middle:56","Bass:87","Effect2:10","Master:97","Gain:18","Edit1:43","Effect1:6","Red-Green:1","Edit2HOLD:31","TapOnOff:0",196]
["Bluesy Treble","mansonator","Bluesey treble sound, hope you guys enjoy :)","-","Valvetronix+ (VT40+)","Blues ","2011-11-30",null,0,null,"Style:1,Tap:7,PowerLevel:50,Edit2:0,Edit3:55,Volume:59,Treble:56,Middle:54,Bass:59,Effect2:1,Master:49,Gain:14,Edit1:100,Effect1:6,Red-Green:2,Edit2HOLD:1,TapOnOff:0","Style:1","Tap:7","PowerLevel:50","Edit2:0","Edit3:55","Volume:59","Treble:56","Middle:54","Bass:59","Effect2:1","Master:49","Gain:14","Edit1:100","Effect1:6","Red-Green:2","Edit2HOLD:1","TapOnOff:0",197]
["Under the Bridge by klotad","klotad","Great amp setting for under the bridge. Enjoy.. :)","Red Hot Chili Peppers, Under the Bridge","Valvetronix+ (VT20+)","Amazing ","2011-11-30",null,0,null,"Style:2,Tap:79,PowerLevel:50,Edit2:0,Edit3:42,Volume:100,Treble:62,Middle:42,Bass:60,Effect2:1,Master:15,Gain:16,Edit1:50,Effect1:1,Red-Green:3,Edit2HOLD:1,TapOnOff:0","Style:2","Tap:79","PowerLevel:50","Edit2:0","Edit3:42","Volume:100","Treble:62","Middle:42","Bass:60","Effect2:1","Master:15","Gain:16","Edit1:50","Effect1:1","Red-Green:3","Edit2HOLD:1","TapOnOff:0",198]
["Slash (Appetite for Destruction - clean)","vegas","It's important to set your tone knob to 7 on a Les Paul guitar. I use a Cort KX5 with .010 Ernie Ball strings and the optimal tone value is about 4 for me. Just make sure to have a minimal distortion or less.","Slash, Appetite for Destruction","Valvetronix+ (VT20+)","Hard rock ","2011-11-21",null,0,null,"Style:8,Tap:10,PowerLevel:12,Edit2:0,Edit3:55,Volume:30,Treble:72,Middle:44,Bass:71,Effect2:1,Master:100,Gain:14,Edit1:0,Effect1:1,Red-Green:1,Edit2HOLD:1,TapOnOff:0","Style:8","Tap:10","PowerLevel:12","Edit2:0","Edit3:55","Volume:30","Treble:72","Middle:44","Bass:71","Effect2:1","Master:100","Gain:14","Edit1:0","Effect1:1","Red-Green:1","Edit2HOLD:1","TapOnOff:0",199]
["Panama","pkouretsos","I also used a EVH Phase 90 which really helps get that EVH tone","Van Halen, 1984 /Panama","Valvetronix+ (VT40+)","8039s Metal ","2011-11-21",null,0,null,"Style:10,Tap:10,PowerLevel:16,Edit2:61,Edit3:86,Volume:58,Treble:7,Middle:93,Bass:92,Effect2:10,Master:20,Gain:100,Edit1:42,Effect1:1,Red-Green:1,Edit2HOLD:65,TapOnOff:0","Style:10","Tap:10","PowerLevel:16","Edit2:61","Edit3:86","Volume:58","Treble:7","Middle:93","Bass:92","Effect2:10","Master:20","Gain:100","Edit1:42","Effect1:1","Red-Green:1","Edit2HOLD:65","TapOnOff:0",200]
["midnight stepps","viktull"," tone+5 volume3","Sunny Day, midnight steps","Valvetronix+ (VT40+)","blues ","2011-11-19",null,0,null,"Style:4,Tap:10,PowerLevel:62,Edit2:38,Edit3:54,Volume:66,Treble:46,Middle:35,Bass:60,Effect2:9,Master:53,Gain:45,Edit1:48,Effect1:1,Red-Green:2,Edit2HOLD:1,TapOnOff:0","Style:4","Tap:10","PowerLevel:62","Edit2:38","Edit3:54","Volume:66","Treble:46","Middle:35","Bass:60","Effect2:9","Master:53","Gain:45","Edit1:48","Effect1:1","Red-Green:2","Edit2HOLD:1","TapOnOff:0",201]
["bridges burning - foo fighters","mattjb14","the louder the better ;)","Foo fighters, wasting light","Valvetronix+ (VT20+)","rock ","2011-11-18",null,1,5,"Style:6,Tap:10,PowerLevel:68,Edit2:0,Edit3:15,Volume:80,Treble:65,Middle:25,Bass:56,Effect2:1,Master:26,Gain:61,Edit1:100,Effect1:7,Red-Green:2,Edit2HOLD:1,TapOnOff:0","Style:6","Tap:10","PowerLevel:68","Edit2:0","Edit3:15","Volume:80","Treble:65","Middle:25","Bass:56","Effect2:1","Master:26","Gain:61","Edit1:100","Effect1:7","Red-Green:2","Edit2HOLD:1","TapOnOff:0",202]
["Killer Queen solo","kdm_onmars","This is the tone I use for playing the solo to Queen&#39;s Killer Queen. The first part of the solo (below the 12th fret) is played on the bridge pickup. The second (above 12th fret - starts on 15th fret of G string) is played on the neck pickup. I used humbuckers, though I know Brian May has a single-coil in the neck position.","Queen, Killer Queen solo","Valvetronix+ (VT40+)","Rock ","2011-11-14",null,0,null,"Style:6,Tap:10,PowerLevel:0,Edit2:0,Edit3:27,Volume:43,Treble:54,Middle:71,Bass:52,Effect2:1,Master:35,Gain:54,Edit1:42,Effect1:6,Red-Green:1,Edit2HOLD:1,TapOnOff:0","Style:6","Tap:10","PowerLevel:0","Edit2:0","Edit3:27","Volume:43","Treble:54","Middle:71","Bass:52","Effect2:1","Master:35","Gain:54","Edit1:42","Effect1:6","Red-Green:1","Edit2HOLD:1","TapOnOff:0",203]
["Master of Puppets (distorted)","vegas","Settings for MoP. I use DR Dimebag signature strings so I had to lower the bass a bit.","Metallica, Master of Puppets","Valvetronix+ (VT20+)","Thrash Metal ","2011-11-12",null,2,4,"Style:7,Tap:5,PowerLevel:16,Edit2:0,Edit3:16,Volume:69,Treble:83,Middle:20,Bass:67,Effect2:1,Master:100,Gain:70,Edit1:100,Effect1:6,Red-Green:3,Edit2HOLD:1,TapOnOff:0","Style:7","Tap:5","PowerLevel:16","Edit2:0","Edit3:16","Volume:69","Treble:83","Middle:20","Bass:67","Effect2:1","Master:100","Gain:70","Edit1:100","Effect1:6","Red-Green:3","Edit2HOLD:1","TapOnOff:0",204]
["Thrash Tone","thrashpunkcore","Works for me.......","Metallica, Master Of Pupets","Valvetronix+ (VT80+)","Scooped Thrash ","2011-11-12",null,0,null,"Style:6,Tap:162,PowerLevel:17,Edit2:0,Edit3:13,Volume:100,Treble:67,Middle:17,Bass:66,Effect2:1,Master:100,Gain:67,Edit1:35,Effect1:7,Red-Green:1,Edit2HOLD:1,TapOnOff:0","Style:6","Tap:162","PowerLevel:17","Edit2:0","Edit3:13","Volume:100","Treble:67","Middle:17","Bass:66","Effect2:1","Master:100","Gain:67","Edit1:35","Effect1:7","Red-Green:1","Edit2HOLD:1","TapOnOff:0",205]
["Mark Knopfler's Vintage Sound","paranomos","Any improvement is welcome!!!","-","Valvetronix+ (VT40+)","Vintage ","2011-11-09",null,2,4,"Style:3,Tap:975,PowerLevel:35,Edit2:0,Edit3:75,Volume:66,Treble:85,Middle:41,Bass:31,Effect2:9,Master:13,Gain:63,Edit1:37,Effect1:1,Red-Green:2,Edit2HOLD:0,TapOnOff:0","Style:3","Tap:975","PowerLevel:35","Edit2:0","Edit3:75","Volume:66","Treble:85","Middle:41","Bass:31","Effect2:9","Master:13","Gain:63","Edit1:37","Effect1:1","Red-Green:2","Edit2HOLD:0","TapOnOff:0",206]
["Funy day","viktull","Les Paul Standard +","-","Valvetronix+ (VT40+)","rock-blues ","2011-11-04",null,0,null,"Style:2,Tap:13,PowerLevel:26,Edit2:18,Edit3:51,Volume:65,Treble:10,Middle:65,Bass:81,Effect2:9,Master:28,Gain:76,Edit1:43,Effect1:8,Red-Green:2,Edit2HOLD:12,TapOnOff:0","Style:2","Tap:13","PowerLevel:26","Edit2:18","Edit3:51","Volume:65","Treble:10","Middle:65","Bass:81","Effect2:9","Master:28","Gain:76","Edit1:43","Effect1:8","Red-Green:2","Edit2HOLD:12","TapOnOff:0",207]
["I love rock n roll by joan jett","mrzz","Tone that sounds like Joan Jett's guitar!","joan jett, I love rock n roll","Valvetronix+ (VT80+)","rock ","2011-11-02",null,1,4,"Style:9,Tap:10,PowerLevel:34,Edit2:0,Edit3:59,Volume:63,Treble:79,Middle:62,Bass:86,Effect2:1,Master:64,Gain:32,Edit1:68,Effect1:8,Red-Green:3,Edit2HOLD:1,TapOnOff:0","Style:9","Tap:10","PowerLevel:34","Edit2:0","Edit3:59","Volume:63","Treble:79","Middle:62","Bass:86","Effect2:1","Master:64","Gain:32","Edit1:68","Effect1:8","Red-Green:3","Edit2HOLD:1","TapOnOff:0",208]
["Ain't talkin' 'bout tone","scotthunter21","Setup with my Mexican Fender Telecaster","Van Halen, Ain39t talkin39 39bout love","Valvetronix+ (VT40+)","High end 8039s gai ","2011-11-01",null,0,null,"Style:8,Tap:3,PowerLevel:17,Edit2:40,Edit3:44,Volume:34,Treble:61,Middle:62,Bass:72,Effect2:11,Master:26,Gain:35,Edit1:45,Effect1:10,Red-Green:2,Edit2HOLD:16,TapOnOff:0","Style:8","Tap:3","PowerLevel:17","Edit2:40","Edit3:44","Volume:34","Treble:61","Middle:62","Bass:72","Effect2:11","Master:26","Gain:35","Edit1:45","Effect1:10","Red-Green:2","Edit2HOLD:16","TapOnOff:0",209]
["Basic sound of Dire straits !!","thimpt","My favorite for playing Dire Straits","Dire Straits, Dire Straits The first","Valvetronix+ (VT80+)","Rock ","2011-11-01",null,0,null,"Style:6,Tap:3,PowerLevel:24,Edit2:41,Edit3:92,Volume:68,Treble:60,Middle:8,Bass:42,Effect2:9,Master:9,Gain:33,Edit1:46,Effect1:1,Red-Green:2,Edit2HOLD:1,TapOnOff:0","Style:6","Tap:3","PowerLevel:24","Edit2:41","Edit3:92","Volume:68","Treble:60","Middle:8","Bass:42","Effect2:9","Master:9","Gain:33","Edit1:46","Effect1:1","Red-Green:2","Edit2HOLD:1","TapOnOff:0",210]
["AC30 starting point!","machineboy","This is more or less my go-to AC30 sound. Slight breakup, but clean and crisp for precise picking and clarity!","-","Valvetronix+ (VT20+)","Pop ","2011-10-15",null,0,null,"Style:6,Tap:5,PowerLevel:36,Edit2:10,Edit3:40,Volume:48,Treble:44,Middle:43,Bass:51,Effect2:9,Master:54,Gain:40,Edit1:0,Effect1:1,Red-Green:2,Edit2HOLD:12,TapOnOff:0","Style:6","Tap:5","PowerLevel:36","Edit2:10","Edit3:40","Volume:48","Treble:44","Middle:43","Bass:51","Effect2:9","Master:54","Gain:40","Edit1:0","Effect1:1","Red-Green:2","Edit2HOLD:12","TapOnOff:0",211]
["surfs up","decay666","great surf garage tone, set the tremolo as fast as you possibly can","-","Valvetronix+ (VT20+)","surf/garage ","2011-10-09",null,1,4,"Style:4,Tap:1,PowerLevel:6,Edit2:65,Edit3:58,Volume:97,Treble:77,Middle:3,Bass:2,Effect2:5,Master:99,Gain:37,Edit1:63,Effect1:6,Red-Green:2,Edit2HOLD:1,TapOnOff:0","Style:4","Tap:1","PowerLevel:6","Edit2:65","Edit3:58","Volume:97","Treble:77","Middle:3","Bass:2","Effect2:5","Master:99","Gain:37","Edit1:63","Effect1:6","Red-Green:2","Edit2HOLD:1","TapOnOff:0",212]
["EVH sound","vlcmstyle","classic VH1 tone with phase","Van Halen, Eruption/Atomic punk","Valvetronix+ (VT20+)","rock ","2011-10-03","http://www.youtube.com/watch?v=kLJYCaRd-ns",0,null,"Style:7,Tap:33,PowerLevel:100,Edit2:43,Edit3:0,Volume:66,Treble:65,Middle:54,Bass:57,Effect2:4,Master:34,Gain:86,Edit1:82,Effect1:7,Red-Green:3,Edit2HOLD:1,TapOnOff:0","Style:7","Tap:33","PowerLevel:100","Edit2:43","Edit3:0","Volume:66","Treble:65","Middle:54","Bass:57","Effect2:4","Master:34","Gain:86","Edit1:82","Effect1:7","Red-Green:3","Edit2HOLD:1","TapOnOff:0",213]
["Dos tierras - Heroes del silencio","strada","I just find it, if you have any modification please let us know","Heroes del silencio, Entre dos tierras","Valvetronix+ (VT40+)","Rock en espaol ","2011-10-01",null,1,5,"Style:2,Tap:9,PowerLevel:82,Edit2:41,Edit3:17,Volume:37,Treble:49,Middle:61,Bass:44,Effect2:11,Master:92,Gain:62,Edit1:0,Effect1:1,Red-Green:2,Edit2HOLD:50,TapOnOff:0","Style:2","Tap:9","PowerLevel:82","Edit2:41","Edit3:17","Volume:37","Treble:49","Middle:61","Bass:44","Effect2:11","Master:92","Gain:62","Edit1:0","Effect1:1","Red-Green:2","Edit2HOLD:50","TapOnOff:0",214]
["Edwyn Collins - A Girl Like You","seelwinterwolf","made with a cort g110","-","Valvetronix+ (VT20+)","90s rock ","2011-09-19",null,0,null,"Style:8,Tap:10,PowerLevel:31,Edit2:80,Edit3:30,Volume:32,Treble:67,Middle:67,Bass:27,Effect2:9,Master:0,Gain:30,Edit1:100,Effect1:5,Red-Green:1,Edit2HOLD:1,TapOnOff:0","Style:8","Tap:10","PowerLevel:31","Edit2:80","Edit3:30","Volume:32","Treble:67","Middle:67","Bass:27","Effect2:9","Master:0","Gain:30","Edit1:100","Effect1:5","Red-Green:1","Edit2HOLD:1","TapOnOff:0",215]
["Pink Floyd – Time","teachergala","Time Guitar solo","-","Valvetronix+ (VT40+)","David Gilmour Styl ","2011-09-14","http://www.youtube.com/watch?v=JyDwT-z9Id0",2,3,"Style:8,Tap:10,PowerLevel:100,Edit2:48,Edit3:93,Volume:100,Treble:98,Middle:91,Bass:65,Effect2:11,Master:10,Gain:32,Edit1:52,Effect1:9,Red-Green:2,Edit2HOLD:20,TapOnOff:0","Style:8","Tap:10","PowerLevel:100","Edit2:48","Edit3:93","Volume:100","Treble:98","Middle:91","Bass:65","Effect2:11","Master:10","Gain:32","Edit1:52","Effect1:9","Red-Green:2","Edit2HOLD:20","TapOnOff:0",216]
["Pink Floyd - Shine On You Crazy Diamond solo","teachergala","PINK FLOYD shine on you crazy diamond guitar solos","-","Valvetronix+ (VT40+)","Gilmour Style ","2011-09-13","http://www.youtube.com/watch?v=CtELcliaDeA",3,3.5,"Style:5,Tap:5,PowerLevel:100,Edit2:50,Edit3:84,Volume:92,Treble:90,Middle:22,Bass:32,Effect2:11,Master:18,Gain:35,Edit1:32,Effect1:1,Red-Green:2,Edit2HOLD:50,TapOnOff:0","Style:5","Tap:5","PowerLevel:100","Edit2:50","Edit3:84","Volume:92","Treble:90","Middle:22","Bass:32","Effect2:11","Master:18","Gain:35","Edit1:32","Effect1:1","Red-Green:2","Edit2HOLD:50","TapOnOff:0",217]
["Pink Floyd - breath","teachergala","From the making of Dark Side of The Moon, David Gilmour demonstrating the guitar part for Breath","-","Valvetronix+ (VT40+)","Clasic Rock ","2011-09-13","http://www.youtube.com/watch?v=T3CHT7rQQVc",0,null,"Style:5,Tap:6,PowerLevel:100,Edit2:60,Edit3:87,Volume:63,Treble:91,Middle:20,Bass:30,Effect2:11,Master:18,Gain:35,Edit1:35,Effect1:1,Red-Green:2,Edit2HOLD:47,TapOnOff:0","Style:5","Tap:6","PowerLevel:100","Edit2:60","Edit3:87","Volume:63","Treble:91","Middle:20","Bass:30","Effect2:11","Master:18","Gain:35","Edit1:35","Effect1:1","Red-Green:2","Edit2HOLD:47","TapOnOff:0",218]
["slash - godfather theme","teachergala","Guitar solo played by Slash in tokio 1992","-","Valvetronix+ (VT40+)","metal ","2011-09-13",null,0,null,"Style:8,Tap:4,PowerLevel:100,Edit2:50,Edit3:94,Volume:93,Treble:73,Middle:15,Bass:25,Effect2:11,Master:14,Gain:30,Edit1:62,Effect1:10,Red-Green:1,Edit2HOLD:50,TapOnOff:0","Style:8","Tap:4","PowerLevel:100","Edit2:50","Edit3:94","Volume:93","Treble:73","Middle:15","Bass:25","Effect2:11","Master:14","Gain:30","Edit1:62","Effect1:10","Red-Green:1","Edit2HOLD:50","TapOnOff:0",219]
["80's rock lead tone","afd4evr","this is my lead tone... careful.. it can get loud!!!","-","Valvetronix+ (VT40+)","80s rock ","2011-09-10",null,1,4,"Style:9,Tap:10,PowerLevel:21,Edit2:0,Edit3:74,Volume:100,Treble:80,Middle:70,Bass:71,Effect2:1,Master:93,Gain:100,Edit1:95,Effect1:7,Red-Green:2,Edit2HOLD:1,TapOnOff:0","Style:9","Tap:10","PowerLevel:21","Edit2:0","Edit3:74","Volume:100","Treble:80","Middle:70","Bass:71","Effect2:1","Master:93","Gain:100","Edit1:95","Effect1:7","Red-Green:2","Edit2HOLD:1","TapOnOff:0",220]
["Ramones – BarreChords","glitterstomp","Simple but effective Barre Chord only tone....","Ramones, Ramones","Valvetronix+ (VT40+)","BarreChordPunk ","2011-09-02",null,0,null,"Style:2,Tap:3,PowerLevel:6,Edit2:34,Edit3:61,Volume:64,Treble:84,Middle:60,Bass:55,Effect2:5,Master:91,Gain:31,Edit1:64,Effect1:6,Red-Green:1,Edit2HOLD:1,TapOnOff:0","Style:2","Tap:3","PowerLevel:6","Edit2:34","Edit3:61","Volume:64","Treble:84","Middle:60","Bass:55","Effect2:5","Master:91","Gain:31","Edit1:64","Effect1:6","Red-Green:1","Edit2HOLD:1","TapOnOff:0",221]
["Twangy Surf Tone","cortez","use middle position on telecaster pickup selector","Duane Eddy, Rebel Rouser","Valvetronix+ (VT20+)","Surf ","2011-09-01",null,0,null,null,null,null,null,null,null,null,null,null,null,null,null,null,null,null,null,null,null,222]
["Metallica's clean","timmie","use the 99 presets button on orange","Metallica, Sanitarium","Valvetronix+ (VT20+)","Clean Metal ","2011-09-01",null,0,null,null,null,null,null,null,null,null,null,null,null,null,null,null,null,null,null,null,null,223]
["Metallica Solo's","timmie","use the 99 presets button once till the light has turn orange","Metallica, Death Magnetic","Valvetronix+ (VT20+)","Metal ","2011-09-01",null,1,2,"Style:8,Tap:10,PowerLevel:49,Edit2:0,Edit3:0,Volume:53,Treble:100,Middle:100,Bass:0,Effect2:1,Master:33,Gain:100,Edit1:0,Effect1:1,Red-Green:2,Edit2HOLD:1,TapOnOff:0","Style:8","Tap:10","PowerLevel:49","Edit2:0","Edit3:0","Volume:53","Treble:100","Middle:100","Bass:0","Effect2:1","Master:33","Gain:100","Edit1:0","Effect1:1","Red-Green:2","Edit2HOLD:1","TapOnOff:0",224]
["Amazing Red Hot Chili Peppers Tone","timmie","good tone for playing songs of the stadium arcradium album and the californiaction album.","Red Hot Chili Peppers, Californication","Valvetronix+ (VT20+)","Rock ","2011-09-01",null,4,4,"Style:4,Tap:10,PowerLevel:48,Edit2:0,Edit3:0,Volume:50,Treble:51,Middle:100,Bass:99,Effect2:1,Master:31,Gain:44,Edit1:0,Effect1:1,Red-Green:2,Edit2HOLD:1,TapOnOff:0","Style:4","Tap:10","PowerLevel:48","Edit2:0","Edit3:0","Volume:50","Treble:51","Middle:100","Bass:99","Effect2:1","Master:31","Gain:44","Edit1:0","Effect1:1","Red-Green:2","Edit2HOLD:1","TapOnOff:0",225]
["80's thrash metal","vegas","A possible solution for the album called Kill em All. Please let me know about your opinion on this one!","Metallica, Kill em All","Valvetronix+ (VT20+)","Thrash metal ","2011-09-01",null,2,4.5,"Style:7,Tap:10,PowerLevel:33,Edit2:0,Edit3:77,Volume:100,Treble:100,Middle:13,Bass:83,Effect2:1,Master:14,Gain:81,Edit1:64,Effect1:6,Red-Green:3,Edit2HOLD:1,TapOnOff:0","Style:7","Tap:10","PowerLevel:33","Edit2:0","Edit3:77","Volume:100","Treble:100","Middle:13","Bass:83","Effect2:1","Master:14","Gain:81","Edit1:64","Effect1:6","Red-Green:3","Edit2HOLD:1","TapOnOff:0",226]
["ACDC - shook me all night long","rodolfoleal","the tone its better in power chords","AC/DC, shook me all night long","Valvetronix+ (VT20+)","treeble boost ","2011-08-30",null,0,null,"Style:4,Tap:93,PowerLevel:0,Edit2:40,Edit3:43,Volume:36,Treble:32,Middle:63,Bass:87,Effect2:10,Master:50,Gain:77,Edit1:44,Effect1:6,Red-Green:1,Edit2HOLD:1,TapOnOff:0","Style:4","Tap:93","PowerLevel:0","Edit2:40","Edit3:43","Volume:36","Treble:32","Middle:63","Bass:87","Effect2:10","Master:50","Gain:77","Edit1:44","Effect1:6","Red-Green:1","Edit2HOLD:1","TapOnOff:0",227]
["true rock","mar2","my first tone creation","-","Valvetronix+ (VT20+)","hard rock ","2011-08-21",null,0,null,"Style:7,Tap:2,PowerLevel:53,Edit2:36,Edit3:74,Volume:44,Treble:59,Middle:41,Bass:78,Effect2:10,Master:34,Gain:67,Edit1:29,Effect1:6,Red-Green:3,Edit2HOLD:1,TapOnOff:0","Style:7","Tap:2","PowerLevel:53","Edit2:36","Edit3:74","Volume:44","Treble:59","Middle:41","Bass:78","Effect2:10","Master:34","Gain:67","Edit1:29","Effect1:6","Red-Green:3","Edit2HOLD:1","TapOnOff:0",228]
["Led Zeppelin - rock n roll","rodolfoleal","use the max treble in the solo","Led Zeppelin, rock and roll","Valvetronix+ (VT20+)","page tone ","2011-08-17",null,1,3,"Style:7,Tap:10,PowerLevel:41,Edit2:43,Edit3:46,Volume:31,Treble:67,Middle:74,Bass:69,Effect2:10,Master:50,Gain:41,Edit1:44,Effect1:8,Red-Green:3,Edit2HOLD:21,TapOnOff:0","Style:7","Tap:10","PowerLevel:41","Edit2:43","Edit3:46","Volume:31","Treble:67","Middle:74","Bass:69","Effect2:10","Master:50","Gain:41","Edit1:44","Effect1:8","Red-Green:3","Edit2HOLD:21","TapOnOff:0",229]
["Journey – faithfully","rodolfoleal","use the chorus + delay","Journey, faithfully","Valvetronix+ (VT20+)","journeys tone ","2011-08-17",null,1,4,"Style:6,Tap:162,PowerLevel:36,Edit2:60,Edit3:94,Volume:25,Treble:55,Middle:54,Bass:84,Effect2:11,Master:50,Gain:78,Edit1:40,Effect1:8,Red-Green:2,Edit2HOLD:45,TapOnOff:0","Style:6","Tap:162","PowerLevel:36","Edit2:60","Edit3:94","Volume:25","Treble:55","Middle:54","Bass:84","Effect2:11","Master:50","Gain:78","Edit1:40","Effect1:8","Red-Green:2","Edit2HOLD:45","TapOnOff:0",230]
["Boston - more than a feeling","rodolfoleal","use the (acoustic) effect in the firts part of the track, then use the gold drive for the solo and bridge","Boston, more than a feeling","Valvetronix+ (VT20+)","like Tom Scholz to ","2011-08-16",null,0,null,"Style:6,Tap:56,PowerLevel:38,Edit2:70,Edit3:76,Volume:50,Treble:55,Middle:55,Bass:87,Effect2:11,Master:47,Gain:34,Edit1:50,Effect1:8,Red-Green:2,Edit2HOLD:1,TapOnOff:0","Style:6","Tap:56","PowerLevel:38","Edit2:70","Edit3:76","Volume:50","Treble:55","Middle:55","Bass:87","Effect2:11","Master:47","Gain:34","Edit1:50","Effect1:8","Red-Green:2","Edit2HOLD:1","TapOnOff:0",231]
["Beatles lead tone","rob66","played on a 52 reissue telecaster","The Beatles, cant buy me love","Valvetronix+ (VT120+)","rock and roll ","2011-08-14",null,0,null,"Style:6,Tap:10,PowerLevel:0,Edit2:50,Edit3:43,Volume:50,Treble:60,Middle:60,Bass:61,Effect2:9,Master:41,Gain:39,Edit1:50,Effect1:1,Red-Green:2,Edit2HOLD:0,TapOnOff:0","Style:6","Tap:10","PowerLevel:0","Edit2:50","Edit3:43","Volume:50","Treble:60","Middle:60","Bass:61","Effect2:9","Master:41","Gain:39","Edit1:50","Effect1:1","Red-Green:2","Edit2HOLD:0","TapOnOff:0",232]
["Status quo","rob66","Played on a 52 reissue telecaster.","Status Quo, Paper Plane","Valvetronix+ (VT20+)","ROCK","2011-08-14",null,0,null,"Style:8,Tap:10,PowerLevel:0,Edit2:39,Edit3:42,Volume:58,Treble:60,Middle:49,Bass:39,Effect2:10,Master:41,Gain:60,Edit1:0,Effect1:1,Red-Green:2,Edit2HOLD:1,TapOnOff:0","Style:8","Tap:10","PowerLevel:0","Edit2:39","Edit3:42","Volume:58","Treble:60","Middle:49","Bass:39","Effect2:10","Master:41","Gain:60","Edit1:0","Effect1:1","Red-Green:2","Edit2HOLD:1","TapOnOff:0",233]
["Shadows tone","rob66","usded with a u.s.a strat with e.m.g pickups","Shadows, 50 Golden greats","Valvetronix+ (VT120+)","ROCK AND ROLL ","2011-08-14",null,0,null,"Style:1,Tap:10,PowerLevel:0,Edit2:56,Edit3:55,Volume:100,Treble:60,Middle:50,Bass:0,Effect2:9,Master:41,Gain:38,Edit1:0,Effect1:1,Red-Green:2,Edit2HOLD:1,TapOnOff:0","Style:1","Tap:10","PowerLevel:0","Edit2:56","Edit3:55","Volume:100","Treble:60","Middle:50","Bass:0","Effect2:9","Master:41","Gain:38","Edit1:0","Effect1:1","Red-Green:2","Edit2HOLD:1","TapOnOff:0",234]
["Slash - Appetite For Destruction tone","lespaulplaya93","An exact AFD tone, I use a les paul standard with Seymour Duncan Alnico 2 Pro Slash Sig. pickups. This sounds like you're actually playing a Marshall AFD 100 Slash Sig. amp","Slash, Appetite For Destruction","Valvetronix+ (VT20+)","Rock ","2011-08-10",null,3,3.5,"Style:9,Tap:400,PowerLevel:9,Edit2:0,Edit3:84,Volume:59,Treble:100,Middle:100,Bass:100,Effect2:1,Master:33,Gain:100,Edit1:100,Effect1:6,Red-Green:2,Edit2HOLD:1,TapOnOff:0","Style:9","Tap:400","PowerLevel:9","Edit2:0","Edit3:84","Volume:59","Treble:100","Middle:100","Bass:100","Effect2:1","Master:33","Gain:100","Edit1:100","Effect1:6","Red-Green:2","Edit2HOLD:1","TapOnOff:0",235]
["psycobilly","decay666","this is a great 50s esq tone i use it for stuff like the cramps as well ass some of my tunes","the cramps, i was a teenage werewolf","Valvetronix+ (VT20+)","garage/rockabilly ","2011-08-09",null,0,null,"Style:3,Tap:2,PowerLevel:6,Edit2:44,Edit3:34,Volume:100,Treble:90,Middle:51,Bass:2,Effect2:9,Master:100,Gain:52,Edit1:71,Effect1:6,Red-Green:2,Edit2HOLD:1,TapOnOff:0","Style:3","Tap:2","PowerLevel:6","Edit2:44","Edit3:34","Volume:100","Treble:90","Middle:51","Bass:2","Effect2:9","Master:100","Gain:52","Edit1:71","Effect1:6","Red-Green:2","Edit2HOLD:1","TapOnOff:0",236]
["Drop D Metal Tone","fgaladri","IÂ´m using a Vox Virage SC Jet Black.","-","Valvetronix+ (VT80+)","Metal ","2011-08-05",null,3,4,"Style:10,Tap:10,PowerLevel:26,Edit2:0,Edit3:13,Volume:80,Treble:85,Middle:50,Bass:34,Effect2:1,Master:24,Gain:70,Edit1:60,Effect1:7,Red-Green:2,Edit2HOLD:1,TapOnOff:0","Style:10","Tap:10","PowerLevel:26","Edit2:0","Edit3:13","Volume:80","Treble:85","Middle:50","Bass:34","Effect2:1","Master:24","Gain:70","Edit1:60","Effect1:7","Red-Green:2","Edit2HOLD:1","TapOnOff:0",237]
["the gories - thunderbird esq","decay666","this is one of my favirote songs and a great tone","the gories, thunderbird esq","Valvetronix+ (VT20+)","garage punk ","2011-07-19",null,0,null,"Style:2,Tap:10,PowerLevel:7,Edit2:0,Edit3:0,Volume:100,Treble:64,Middle:50,Bass:15,Effect2:1,Master:100,Gain:58,Edit1:17,Effect1:6,Red-Green:3,Edit2HOLD:1,TapOnOff:0","Style:2","Tap:10","PowerLevel:7","Edit2:0","Edit3:0","Volume:100","Treble:64","Middle:50","Bass:15","Effect2:1","Master:100","Gain:58","Edit1:17","Effect1:6","Red-Green:3","Edit2HOLD:1","TapOnOff:0",238]
["Floods Outro/nice echo","thecowboyfromhell","I mostly do pantera tones, and i did this one a few minutes ago and it sounds pretty good (this is for the floods outro) as simple as it is! enjoy","PanterA, Floods Mainly","Valvetronix+ (VT40+)","EchoFading ","2011-07-09",null,0,null,"Style:6,Tap:10,PowerLevel:100,Edit2:32,Edit3:100,Volume:100,Treble:36,Middle:0,Bass:100,Effect2:10,Master:7,Gain:51,Edit1:40,Effect1:10,Red-Green:1,Edit2HOLD:1,TapOnOff:0","Style:6","Tap:10","PowerLevel:100","Edit2:32","Edit3:100","Volume:100","Treble:36","Middle:0","Bass:100","Effect2:10","Master:7","Gain:51","Edit1:40","Effect1:10","Red-Green:1","Edit2HOLD:1","TapOnOff:0",239]
["PanterA – Acoustic","thecowboyfromhell","have all these settings on, turn the amp off and on, then just reset the gain,us 2x12,acoustic,chorus delay, reverb as shown then it should work","PanterA, This Love Mainly","Valvetronix+ (VT40+)","Soft Pantera parts ","2011-07-09",null,0,null,"Style:4,Tap:10,PowerLevel:100,Edit2:0,Edit3:36,Volume:100,Treble:0,Middle:100,Bass:100,Effect2:11,Master:7,Gain:50,Edit1:0,Effect1:2,Red-Green:2,Edit2HOLD:1,TapOnOff:0","Style:4","Tap:10","PowerLevel:100","Edit2:0","Edit3:36","Volume:100","Treble:0","Middle:100","Bass:100","Effect2:11","Master:7","Gain:50","Edit1:0","Effect1:2","Red-Green:2","Edit2HOLD:1","TapOnOff:0",240]
["John Petrucci - Damage Control","fgaladri","This is a Damage Control Tone! IÂ´m using a Vox Virage SC Jet Black. Hambucker position. You guys can use this tone in a brigde or neck pickup position. Be careful with the NR sens! If you want that Intro tone, just turn off the delay!","John Petrucci, Damage Control","Valvetronix+ (VT80+)","Heavy Metal ","2011-07-08","http://www.youtube.com/watch?v=fCwyrmP9bOo",5,3.8,"Style:10,Tap:6,PowerLevel:59,Edit2:34,Edit3:0,Volume:73,Treble:62,Middle:29,Bass:49,Effect2:10,Master:26,Gain:97,Edit1:64,Effect1:7,Red-Green:3,Edit2HOLD:50,TapOnOff:0","Style:10","Tap:6","PowerLevel:59","Edit2:34","Edit3:0","Volume:73","Treble:62","Middle:29","Bass:49","Effect2:10","Master:26","Gain:97","Edit1:64","Effect1:7","Red-Green:3","Edit2HOLD:50","TapOnOff:0",241]
["EarPorn","eduf93","Beware the awesomness!","-","Valvetronix+ (VT20+)","Rock n39 Roll ","2011-07-08",null,0,null,"Style:7,Tap:10,PowerLevel:86,Edit2:0,Edit3:95,Volume:86,Treble:40,Middle:54,Bass:82,Effect2:1,Master:100,Gain:87,Edit1:0,Effect1:7,Red-Green:2,Edit2HOLD:1,TapOnOff:0","Style:7","Tap:10","PowerLevel:86","Edit2:0","Edit3:95","Volume:86","Treble:40","Middle:54","Bass:82","Effect2:1","Master:100","Gain:87","Edit1:0","Effect1:7","Red-Green:2","Edit2HOLD:1","TapOnOff:0",242]
["Guns n Roses","ammo","yhis tone is very good! try this","-","Valvetronix+ (VT40+)","hard rock ","2011-07-04",null,1,4,"Style:10,Tap:10,PowerLevel:8,Edit2:0,Edit3:12,Volume:68,Treble:81,Middle:45,Bass:48,Effect2:10,Master:41,Gain:70,Edit1:100,Effect1:6,Red-Green:1,Edit2HOLD:69,TapOnOff:0","Style:10","Tap:10","PowerLevel:8","Edit2:0","Edit3:12","Volume:68","Treble:81","Middle:45","Bass:48","Effect2:10","Master:41","Gain:70","Edit1:100","Effect1:6","Red-Green:1","Edit2HOLD:69","TapOnOff:0",243]
["My favorit clean","backwoodsboy96","my favorite clean tone","John Mayer, I am gonna find another you","Valvetronix+ (VT20+)","clean ","2011-06-28",null,0,null,"Style:3,Tap:5,PowerLevel:50,Edit2:53,Edit3:42,Volume:60,Treble:42,Middle:36,Bass:50,Effect2:9,Master:58,Gain:0,Edit1:24,Effect1:6,Red-Green:3,Edit2HOLD:36,TapOnOff:0","Style:3","Tap:5","PowerLevel:50","Edit2:53","Edit3:42","Volume:60","Treble:42","Middle:36","Bass:50","Effect2:9","Master:58","Gain:0","Edit1:24","Effect1:6","Red-Green:3","Edit2HOLD:36","TapOnOff:0",244]
["Clean Metal","x700nitroxpress","Good for power chords on metal style songs. Always use with heavy distortion. Adjust the gain to personal preference to adjust the effect of the metal distortion.","-","Valvetronix+ (VT20+)","Metal ","2011-06-25",null,0,null,"Style:10,Tap:5,PowerLevel:14,Edit2:0,Edit3:23,Volume:51,Treble:50,Middle:49,Bass:61,Effect2:9,Master:100,Gain:18,Edit1:0,Effect1:10,Red-Green:1,Edit2HOLD:1,TapOnOff:0","Style:10","Tap:5","PowerLevel:14","Edit2:0","Edit3:23","Volume:51","Treble:50","Middle:49","Bass:61","Effect2:9","Master:100","Gain:18","Edit1:0","Effect1:10","Red-Green:1","Edit2HOLD:1","TapOnOff:0",245]
["JCM 800 Zakk Lead","robrocks7","Zakk sans chorus","-","Valvetronix+ (VT20+)","Rock ","2011-06-18",null,0,null,"Style:10,Tap:5,PowerLevel:14,Edit2:0,Edit3:23,Volume:51,Treble:50,Middle:49,Bass:61,Effect2:9,Master:100,Gain:18,Edit1:0,Effect1:10,Red-Green:1,Edit2HOLD:1,TapOnOff:0","Style:10","Tap:5","PowerLevel:14","Edit2:0","Edit3:23","Volume:51","Treble:50","Middle:49","Bass:61","Effect2:9","Master:100","Gain:18","Edit1:0","Effect1:10","Red-Green:1","Edit2HOLD:1","TapOnOff:0",246]
["US High Gain Dual Rectifier","robrocks7","Mesa-Vox","-","Valvetronix+ (VT20+)","Rock ","2011-06-18",null,2,3.5,"Style:9,Tap:10,PowerLevel:31,Edit2:35,Edit3:43,Volume:54,Treble:50,Middle:43,Bass:71,Effect2:9,Master:50,Gain:86,Edit1:15,Effect1:1,Red-Green:1,Edit2HOLD:1,TapOnOff:0","Style:9","Tap:10","PowerLevel:31","Edit2:35","Edit3:43","Volume:54","Treble:50","Middle:43","Bass:71","Effect2:9","Master:50","Gain:86","Edit1:15","Effect1:1","Red-Green:1","Edit2HOLD:1","TapOnOff:0",247]
["BTQ Metal Randy Rhoads","robrocks7","All Aboard!","-","Valvetronix+ (VT20+)","Rock ","2011-06-18",null,0,null,"Style:11,Tap:10,PowerLevel:33,Edit2:35,Edit3:37,Volume:50,Treble:42,Middle:40,Bass:70,Effect2:9,Master:50,Gain:85,Edit1:16,Effect1:1,Red-Green:1,Edit2HOLD:1,TapOnOff:0","Style:11","Tap:10","PowerLevel:33","Edit2:35","Edit3:37","Volume:50","Treble:42","Middle:40","Bass:70","Effect2:9","Master:50","Gain:85","Edit1:16","Effect1:1","Red-Green:1","Edit2HOLD:1","TapOnOff:0",248]
["US 2x12 Blues","robrocks7","Dirty Blues","-","Valvetronix+ (VT20+)","Blues ","2011-06-18",null,2,4,"Style:4,Tap:10,PowerLevel:33,Edit2:27,Edit3:43,Volume:50,Treble:50,Middle:35,Bass:62,Effect2:9,Master:50,Gain:44,Edit1:36,Effect1:1,Red-Green:1,Edit2HOLD:1,TapOnOff:0","Style:4","Tap:10","PowerLevel:33","Edit2:27","Edit3:43","Volume:50","Treble:50","Middle:35","Bass:62","Effect2:9","Master:50","Gain:44","Edit1:36","Effect1:1","Red-Green:1","Edit2HOLD:1","TapOnOff:0",249]
["UK Rock Brian May","robrocks7","British Rock","-","Valvetronix+ (VT20+)","Rock ","2011-06-18",null,1,3,"Style:7,Tap:10,PowerLevel:32,Edit2:44,Edit3:41,Volume:50,Treble:62,Middle:50,Bass:67,Effect2:9,Master:50,Gain:87,Edit1:18,Effect1:1,Red-Green:3,Edit2HOLD:1,TapOnOff:0","Style:7","Tap:10","PowerLevel:32","Edit2:44","Edit3:41","Volume:50","Treble:62","Middle:50","Bass:67","Effect2:9","Master:50","Gain:87","Edit1:18","Effect1:1","Red-Green:3","Edit2HOLD:1","TapOnOff:0",250]
["JCM 800 Rhythm","robrocks7","noise reduction is set at 12:00","AC/DC, Back in Black","Valvetronix+ (VT20+)","Rock ","2011-06-18",null,0,null,"Style:8,Tap:10,PowerLevel:33,Edit2:0,Edit3:40,Volume:50,Treble:62,Middle:50,Bass:66,Effect2:9,Master:50,Gain:54,Edit1:15,Effect1:1,Red-Green:2,Edit2HOLD:1,TapOnOff:0","Style:8","Tap:10","PowerLevel:33","Edit2:0","Edit3:40","Volume:50","Treble:62","Middle:50","Bass:66","Effect2:9","Master:50","Gain:54","Edit1:15","Effect1:1","Red-Green:2","Edit2HOLD:1","TapOnOff:0",251]
["Clean Comp Chicken Pickin'","robrocks7","Love the gradual swell of the notes!","-","Valvetronix+ (VT20+)","Clean ","2011-06-18",null,0,null,"Style:1,Tap:3,PowerLevel:33,Edit2:31,Edit3:43,Volume:81,Treble:64,Middle:43,Bass:61,Effect2:9,Master:50,Gain:36,Edit1:50,Effect1:1,Red-Green:2,Edit2HOLD:1,TapOnOff:0","Style:1","Tap:3","PowerLevel:33","Edit2:31","Edit3:43","Volume:81","Treble:64","Middle:43","Bass:61","Effect2:9","Master:50","Gain:36","Edit1:50","Effect1:1","Red-Green:2","Edit2HOLD:1","TapOnOff:0",252]
["Van Halen 1984 Lead","robrocks7","noise reduction is set at 12:00","Van Halen, Panama","Valvetronix+ (VT20+)","Rock ","2011-06-17",null,0,null,"Style:8,Tap:3,PowerLevel:34,Edit2:42,Edit3:43,Volume:52,Treble:63,Middle:63,Bass:72,Effect2:9,Master:50,Gain:80,Edit1:15,Effect1:1,Red-Green:2,Edit2HOLD:1,TapOnOff:0","Style:8","Tap:3","PowerLevel:34","Edit2:42","Edit3:43","Volume:52","Treble:63","Middle:63","Bass:72","Effect2:9","Master:50","Gain:80","Edit1:15","Effect1:1","Red-Green:2","Edit2HOLD:1","TapOnOff:0",253]
["Bangers & Mash  - Live From the basement","thatslife","Tono inspirado en la distorcion de jonny greenwood para la cancion Bangers & Mash, version Live From The Basement","Radiohead, Bangers Mash / In Rainbows From The Basement","Valvetronix+ (VT20+)","Alternative rock ","2011-06-06","http://www.youtube.com/watch?v=MDsa7n6NCC8",0,null,"Style:6,Tap:481,PowerLevel:16,Edit2:0,Edit3:0,Volume:81,Treble:83,Middle:100,Bass:100,Effect2:1,Master:16,Gain:100,Edit1:99,Effect1:6,Red-Green:2,Edit2HOLD:1,TapOnOff:0","Style:6","Tap:481","PowerLevel:16","Edit2:0","Edit3:0","Volume:81","Treble:83","Middle:100","Bass:100","Effect2:1","Master:16","Gain:100","Edit1:99","Effect1:6","Red-Green:2","Edit2HOLD:1","TapOnOff:0",254]
["page 17 2012-12-20BRM Octave","stephany4048","This tone is in a BRM Octave fresh outgoing everlasting VOX AC30 echo down the hall into Paul :D","U2, No Line on the Horizon","Valvetronix+ (VT20+)","VOX AC30 ","2011-06-06","http://www.youtube.com/watch?v=jyO7GAo4rrA",0,null,"Style:6,Tap:10,PowerLevel:39,Edit2:0,Edit3:84,Volume:0,Treble:0,Middle:0,Bass:0,Effect2:6,Master:0,Gain:0,Edit1:0,Effect1:5,Red-Green:1,Edit2HOLD:1,TapOnOff:0","Style:6","Tap:10","PowerLevel:39","Edit2:0","Edit3:84","Volume:0","Treble:0","Middle:0","Bass:0","Effect2:6","Master:0","Gain:0","Edit1:0","Effect1:5","Red-Green:1","Edit2HOLD:1","TapOnOff:0",255]
["Mark Knopfler sound","thimpt","For a lot off Dire Straits straits songs","-","Valvetronix+ (VT80+)","Pop/Rock ","2011-06-04","http://www.youtube.com/watch?v=Lz1TlJGLzqs",3,4,"Style:6,Tap:3,PowerLevel:13,Edit2:36,Edit3:93,Volume:52,Treble:64,Middle:24,Bass:23,Effect2:9,Master:12,Gain:56,Edit1:50,Effect1:1,Red-Green:1,Edit2HOLD:13,TapOnOff:0","Style:6","Tap:3","PowerLevel:13","Edit2:36","Edit3:93","Volume:52","Treble:64","Middle:24","Bass:23","Effect2:9","Master:12","Gain:56","Edit1:50","Effect1:1","Red-Green:1","Edit2HOLD:13","TapOnOff:0",256]
["Foo Fighters Crunch","rdb121775","I play this off of my bridge (Burstbucker 2) pup. It works really well for Rope and Arlandria.","Foo Fighters, Wasting Light","Valvetronix+ (VT80+)","Rock/Crunch ","2011-05-26",null,1,3,"Style:7,Tap:10,PowerLevel:32,Edit2:0,Edit3:37,Volume:76,Treble:57,Middle:46,Bass:47,Effect2:1,Master:74,Gain:53,Edit1:0,Effect1:1,Red-Green:3,Edit2HOLD:1,TapOnOff:0","Style:7","Tap:10","PowerLevel:32","Edit2:0","Edit3:37","Volume:76","Treble:57","Middle:46","Bass:47","Effect2:1","Master:74","Gain:53","Edit1:0","Effect1:1","Red-Green:3","Edit2HOLD:1","TapOnOff:0",257]
["Eventide – The beast and the machine","caripu","My first approach tho the sound of this sweden metal band. Deep, rich and powerful tone. Guitar setup: Pickup Bridge/Mid (HB/SC), tone: 0-2, vol: 7-8.","EVENTIDE, The Beast and The Machine","Valvetronix+ (VT40+)","Metal ","2011-05-24",null,0,null,"Style:9,Tap:10,PowerLevel:18,Edit2:5,Edit3:10,Volume:50,Treble:33,Middle:80,Bass:63,Effect2:10,Master:61,Gain:100,Edit1:29,Effect1:7,Red-Green:1,Edit2HOLD:1,TapOnOff:0","Style:9","Tap:10","PowerLevel:18","Edit2:5","Edit3:10","Volume:50","Treble:33","Middle:80","Bass:63","Effect2:10","Master:61","Gain:100","Edit1:29","Effect1:7","Red-Green:1","Edit2HOLD:1","TapOnOff:0",258]
["GENERAL MODERN METAL","caripu","Intended to emulate the aprox tone of my Bugera 333 with 4X12 half stack, setup for metal (lead channel), at my rehersal lounge. Nice tone for not too extreme modern metal.","-","Valvetronix+ (VT40+)","Metal Heavy Metal ","2011-05-23",null,0,null,"Style:10,Tap:10,PowerLevel:0,Edit2:0,Edit3:18,Volume:50,Treble:62,Middle:18,Bass:80,Effect2:1,Master:66,Gain:65,Edit1:34,Effect1:1,Red-Green:1,Edit2HOLD:1,TapOnOff:0","Style:10","Tap:10","PowerLevel:0","Edit2:0","Edit3:18","Volume:50","Treble:62","Middle:18","Bass:80","Effect2:1","Master:66","Gain:65","Edit1:34","Effect1:1","Red-Green:1","Edit2HOLD:1","TapOnOff:0",259]
["ACDC – Highway to hell","caripu","Setup for this classic theme of AC/DC. Bridge pickup (humbucker), tone knob full, volume knob full.","AC/DC, Highway To hell","Valvetronix+ (VT40+)","Hard Rock ","2011-05-22",null,3,3,"Style:7,Tap:10,PowerLevel:0,Edit2:0,Edit3:42,Volume:50,Treble:56,Middle:81,Bass:22,Effect2:1,Master:60,Gain:62,Edit1:50,Effect1:1,Red-Green:3,Edit2HOLD:1,TapOnOff:0","Style:7","Tap:10","PowerLevel:0","Edit2:0","Edit3:42","Volume:50","Treble:56","Middle:81","Bass:22","Effect2:1","Master:60","Gain:62","Edit1:50","Effect1:1","Red-Green:3","Edit2HOLD:1","TapOnOff:0",260]
["RAMONES – Blitzkrieg bop","caripu","Nice 70's tone to play one of my ever favs, Ramones. Bridge single coil pickup (splitted HB) at full tone and 9 volume knob.","Ramones, Blitzkrieg Bop","Valvetronix+ (VT40+)","Punk Rock ","2011-05-22",null,0,null,"Style:7,Tap:10,PowerLevel:10,Edit2:0,Edit3:45,Volume:51,Treble:58,Middle:100,Bass:38,Effect2:1,Master:65,Gain:43,Edit1:17,Effect1:1,Red-Green:1,Edit2HOLD:1,TapOnOff:0","Style:7","Tap:10","PowerLevel:10","Edit2:0","Edit3:45","Volume:51","Treble:58","Middle:100","Bass:38","Effect2:1","Master:65","Gain:43","Edit1:17","Effect1:1","Red-Green:1","Edit2HOLD:1","TapOnOff:0",261]
["IRON MAIDEN – Hallowed de thy name","caripu","Intended to play at home, so low power knob setting :( Ibanez SA-260 with bridge pickup in single coil position (splitted), tone at max, volume at 85%.","Iron Maiden, Hallowed Be Thy name","Valvetronix+ (VT40+)","Heavy Metal ","2011-05-22",null,0,null,"Style:9,Tap:10,PowerLevel:10,Edit2:0,Edit3:12,Volume:49,Treble:52,Middle:64,Bass:62,Effect2:1,Master:63,Gain:66,Edit1:31,Effect1:1,Red-Green:2,Edit2HOLD:1,TapOnOff:0","Style:9","Tap:10","PowerLevel:10","Edit2:0","Edit3:12","Volume:49","Treble:52","Middle:64","Bass:62","Effect2:1","Master:63","Gain:66","Edit1:31","Effect1:1","Red-Green:2","Edit2HOLD:1","TapOnOff:0",262]
["sweet chil of mine","mrmdm86","Yo uso el mic del ciapason con el volumen como en el 7 y el tono entre el 6 y el 7","Guns and Roses, appetite for destruction","Valvetronix+ (VT80+)","Hard Rock ","2011-05-22",null,0,null,"Style:8,Tap:10,PowerLevel:0,Edit2:0,Edit3:48,Volume:58,Treble:26,Middle:81,Bass:90,Effect2:1,Master:1,Gain:43,Edit1:0,Effect1:1,Red-Green:1,Edit2HOLD:1,TapOnOff:0","Style:8","Tap:10","PowerLevel:0","Edit2:0","Edit3:48","Volume:58","Treble:26","Middle:81","Bass:90","Effect2:1","Master:1","Gain:43","Edit1:0","Effect1:1","Red-Green:1","Edit2HOLD:1","TapOnOff:0",263]
["Blues/Rock","voxrocks55","USE MANUAL SETTINGS. I find this to be a fantastic setting for any blues/rock style of riffing on my Fender with woodstock+ pickups, but I do use a custom phase90 pedal in front of the amp for Hendrix Machine Gun to get the psychedelic swirling effect. Love this amp.","JHendrix, Machine Gun","Valvetronix+ (VT20+)","Creamy overdriven ","2011-05-15",null,3,4.5999999999999996,"Style:6,Tap:10,PowerLevel:42,Edit2:33,Edit3:55,Volume:47,Treble:44,Middle:43,Bass:54,Effect2:11,Master:45,Gain:50,Edit1:33,Effect1:1,Red-Green:3,Edit2HOLD:0,TapOnOff:0","Style:6","Tap:10","PowerLevel:42","Edit2:33","Edit3:55","Volume:47","Treble:44","Middle:43","Bass:54","Effect2:11","Master:45","Gain:50","Edit1:33","Effect1:1","Red-Green:3","Edit2HOLD:0","TapOnOff:0",264]
["my lead guitar tone","millar16","i use this tone just when im messing about its fun and has a great feel","Joe Satriani, mystical potato","Valvetronix+ (VT80+)","lead ","2011-04-26",null,0,null,"Style:11,Tap:10,PowerLevel:50,Edit2:0,Edit3:0,Volume:100,Treble:49,Middle:67,Bass:50,Effect2:1,Master:50,Gain:100,Edit1:0,Effect1:1,Red-Green:3,Edit2HOLD:1,TapOnOff:0","Style:11","Tap:10","PowerLevel:50","Edit2:0","Edit3:0","Volume:100","Treble:49","Middle:67","Bass:50","Effect2:1","Master:50","Gain:100","Edit1:0","Effect1:1","Red-Green:3","Edit2HOLD:1","TapOnOff:0",265]
["Gary Moore Inspired","rob2","This sound is inspired by the great and unforgettable Gary Moore. A wonderful silky lead tone that makes your Paula sing. Check it out and use your fingers!","Gary Moore, Still got the Blues","Valvetronix+ (VT20+)","Heavy Blues ","2011-04-18",null,3,4.2,"Style:8,Tap:1,PowerLevel:48,Edit2:0,Edit3:50,Volume:85,Treble:17,Middle:100,Bass:91,Effect2:1,Master:13,Gain:55,Edit1:0,Effect1:1,Red-Green:3,Edit2HOLD:1,TapOnOff:0","Style:8","Tap:1","PowerLevel:48","Edit2:0","Edit3:50","Volume:85","Treble:17","Middle:100","Bass:91","Effect2:1","Master:13","Gain:55","Edit1:0","Effect1:1","Red-Green:3","Edit2HOLD:1","TapOnOff:0",266]
["Slow Blues Heaven","syed_vox","Note: PLAY IT ON MANUAL............ This is an amazing tone just to play by yourself or with your band. I love the tone try it. Try rolling off the volume and tone on you guitar to about 2-4ish for best results.","-","Valvetronix+ (VT20+)","Slow Blues ","2011-04-16",null,5,3.1,"Style:6,Tap:10,PowerLevel:14,Edit2:0,Edit3:26,Volume:39,Treble:30,Middle:73,Bass:22,Effect2:1,Master:91,Gain:63,Edit1:32,Effect1:11,Red-Green:2,Edit2HOLD:1,TapOnOff:0","Style:6","Tap:10","PowerLevel:14","Edit2:0","Edit3:26","Volume:39","Treble:30","Middle:73","Bass:22","Effect2:1","Master:91","Gain:63","Edit1:32","Effect1:11","Red-Green:2","Edit2HOLD:1","TapOnOff:0",267]
["Roses Waterfall","downsideup","Grab that Gretsch and play the John Squire way. Also good for some Johnny Marr Jangle - switch to a Rik or Tele for some This Charming Man type vibe.","Stone Roses, Waterfall","Valvetronix+ (VT40+)","Indie Jangle ","2011-04-13",null,2,2.5,"Style:6,Tap:12,PowerLevel:21,Edit2:69,Edit3:62,Volume:61,Treble:38,Middle:38,Bass:57,Effect2:1,Master:30,Gain:34,Edit1:39,Effect1:7,Red-Green:2,Edit2HOLD:1,TapOnOff:0","Style:6","Tap:12","PowerLevel:21","Edit2:69","Edit3:62","Volume:61","Treble:38","Middle:38","Bass:57","Effect2:1","Master:30","Gain:34","Edit1:39","Effect1:7","Red-Green:2","Edit2HOLD:1","TapOnOff:0",268]
["Crispy Rock Distortion","papaholdy","A nice rock/Blues /alt style sound. A nice crispy crunch without going into a more \"metal\" distortion (not that there is anything wrong with that...)","-","Valvetronix+ (VT80+)","Rock Alt Indy ","2011-04-12",null,1,1,"Style:7,Tap:10,PowerLevel:63,Edit2:0,Edit3:41,Volume:55,Treble:100,Middle:81,Bass:18,Effect2:1,Master:33,Gain:100,Edit1:0,Effect1:1,Red-Green:2,Edit2HOLD:1,TapOnOff:0","Style:7","Tap:10","PowerLevel:63","Edit2:0","Edit3:41","Volume:55","Treble:100","Middle:81","Bass:18","Effect2:1","Master:33","Gain:100","Edit1:0","Effect1:1","Red-Green:2","Edit2HOLD:1","TapOnOff:0",269]
["godfather slash","lortlort","set the tone knob one your guitar to about 3. good tone for slash godfather theme. i use both pickups. you can adjust the power level as you want","Slash, live","Valvetronix+ (VT20+)","metal solo ","2011-04-09",null,1,2,"Style:11,Tap:6,PowerLevel:24,Edit2:0,Edit3:51,Volume:100,Treble:77,Middle:55,Bass:100,Effect2:1,Master:59,Gain:100,Edit1:17,Effect1:7,Red-Green:1,Edit2HOLD:1,TapOnOff:0","Style:11","Tap:6","PowerLevel:24","Edit2:0","Edit3:51","Volume:100","Treble:77","Middle:55","Bass:100","Effect2:1","Master:59","Gain:100","Edit1:17","Effect1:7","Red-Green:1","Edit2HOLD:1","TapOnOff:0",270]
["Metal solo + delay","luisimlauer","Metal tone for solos + delay, i use a strat and i love how it sounds","-","Valvetronix+ (VT80+)","Metal Solo ","2011-03-30",null,2,5,"Style:8,Tap:4,PowerLevel:19,Edit2:62,Edit3:81,Volume:41,Treble:74,Middle:49,Bass:70,Effect2:10,Master:75,Gain:34,Edit1:22,Effect1:1,Red-Green:3,Edit2HOLD:1,TapOnOff:1","Style:8","Tap:4","PowerLevel:19","Edit2:62","Edit3:81","Volume:41","Treble:74","Middle:49","Bass:70","Effect2:10","Master:75","Gain:34","Edit1:22","Effect1:1","Red-Green:3","Edit2HOLD:1","TapOnOff:1",271]
["smooth lead for my G&L","ferris73","have your amp set on manual. kinda stole it from a youtube vid so i can't really take credit for this.","-","Valvetronix+ (VT20+)","rock","2011-03-14",null,2,4,"Style:8,Tap:10,PowerLevel:38,Edit2:0,Edit3:25,Volume:73,Treble:35,Middle:49,Bass:50,Effect2:10,Master:14,Gain:63,Edit1:48,Effect1:8,Red-Green:2,Edit2HOLD:1,TapOnOff:0","Style:8","Tap:10","PowerLevel:38","Edit2:0","Edit3:25","Volume:73","Treble:35","Middle:49","Bass:50","Effect2:10","Master:14","Gain:63","Edit1:48","Effect1:8","Red-Green:2","Edit2HOLD:1","TapOnOff:0",272]
["comfortably number","dansrockin","played on a tele with a neck humbucker","Pink Floyd, David Gilmour - comfortably numb","Valvetronix+ (VT20+)","blues rock ","2011-03-07",null,3,5,"Style:4,Tap:3,PowerLevel:46,Edit2:34,Edit3:28,Volume:55,Treble:46,Middle:70,Bass:61,Effect2:10,Master:39,Gain:40,Edit1:81,Effect1:11,Red-Green:3,Edit2HOLD:1,TapOnOff:0","Style:4","Tap:3","PowerLevel:46","Edit2:34","Edit3:28","Volume:55","Treble:46","Middle:70","Bass:61","Effect2:10","Master:39","Gain:40","Edit1:81","Effect1:11","Red-Green:3","Edit2HOLD:1","TapOnOff:0",273]
["crazy echo","napalmrain","adjust the gain to your liking, i keep some tube overdrive on but its not necessary. Adjust master to your liking too, i play in a dorm so i need to keep it low. PICK A LOT AND REPEAT NOTES FOR FULL EFFECT","-","Valvetronix+ (VT40+)","psychadelic prog ","2011-03-04",null,0,null,"Style:6,Tap:10,PowerLevel:50,Edit2:100,Edit3:99,Volume:100,Treble:80,Middle:46,Bass:64,Effect2:9,Master:10,Gain:30,Edit1:37,Effect1:7,Red-Green:3,Edit2HOLD:2,TapOnOff:0","Style:6","Tap:10","PowerLevel:50","Edit2:100","Edit3:99","Volume:100","Treble:80","Middle:46","Bass:64","Effect2:9","Master:10","Gain:30","Edit1:37","Effect1:7","Red-Green:3","Edit2HOLD:2","TapOnOff:0",274]
["very crunchy blues","napalmrain","adding anymore reverb kinda kills it, but i like a little bit of CE chorus on it sometimes too. This is great for heavy blues soloing, has kind of a les paul sound out of my Ibanez rg5ex1","-","Valvetronix+ (VT40+)","Blues ","2011-03-03",null,1,3,"Style:1,Tap:10,PowerLevel:58,Edit2:0,Edit3:8,Volume:100,Treble:83,Middle:37,Bass:100,Effect2:1,Master:9,Gain:100,Edit1:100,Effect1:7,Red-Green:1,Edit2HOLD:1,TapOnOff:0","Style:1","Tap:10","PowerLevel:58","Edit2:0","Edit3:8","Volume:100","Treble:83","Middle:37","Bass:100","Effect2:1","Master:9","Gain:100","Edit1:100","Effect1:7","Red-Green:1","Edit2HOLD:1","TapOnOff:0",275]
["Acoustic sound for Romeo and Juliet","thimpt","Use capo on third fret and this tuning: D.A.D.G.B.D","Dire Straits, Romeo and Juliet from Money for Nothing","Valvetronix+ (VT80+)","Pop/Rock ","2011-02-27","http://www.youtube.com/watch?v=p3RO7KzJ1J8",0,null,"Style:6,Tap:10,PowerLevel:37,Edit2:0,Edit3:83,Volume:30,Treble:50,Middle:52,Bass:32,Effect2:1,Master:34,Gain:63,Edit1:50,Effect1:2,Red-Green:2,Edit2HOLD:1,TapOnOff:0","Style:6","Tap:10","PowerLevel:37","Edit2:0","Edit3:83","Volume:30","Treble:50","Middle:52","Bass:32","Effect2:1","Master:34","Gain:63","Edit1:50","Effect1:2","Red-Green:2","Edit2HOLD:1","TapOnOff:0",276]
["WhiteMetal","theseeman","Badass! but Simple","Prototype, The Way It Ends","Valvetronix+ (VT40+)","Metal ","2011-02-27",null,1,4,"Style:10,Tap:10,PowerLevel:100,Edit2:0,Edit3:0,Volume:100,Treble:100,Middle:67,Bass:77,Effect2:1,Master:6,Gain:100,Edit1:50,Effect1:7,Red-Green:1,Edit2HOLD:1,TapOnOff:0","Style:10","Tap:10","PowerLevel:100","Edit2:0","Edit3:0","Volume:100","Treble:100","Middle:67","Bass:77","Effect2:1","Master:6","Gain:100","Edit1:50","Effect1:7","Red-Green:1","Edit2HOLD:1","TapOnOff:0",277]
["U2 - Bad-Pride","nicholasroberts","just play around with the delay a bit","U2, BadPride","Valvetronix+ (VT20+)","Delay AC30 ","2011-02-18",null,0,null,"Style:6,Tap:10,PowerLevel:34,Edit2:0,Edit3:44,Volume:100,Treble:50,Middle:48,Bass:37,Effect2:10,Master:81,Gain:40,Edit1:0,Effect1:1,Red-Green:2,Edit2HOLD:0,TapOnOff:0","Style:6","Tap:10","PowerLevel:34","Edit2:0","Edit3:44","Volume:100","Treble:50","Middle:48","Bass:37","Effect2:10","Master:81","Gain:40","Edit1:0","Effect1:1","Red-Green:2","Edit2HOLD:0","TapOnOff:0",278]
["Guitar Solo Musicom","vintagevacuumtube","Use single coils and play with tone controls to get that creamy sweet tone in Eric Johnson style","-","Valvetronix+ (VT20+)","Guitar Hero ","2011-02-14",null,0,null,"Style:1,Tap:4,PowerLevel:16,Edit2:20,Edit3:46,Volume:78,Treble:77,Middle:73,Bass:70,Effect2:10,Master:48,Gain:61,Edit1:84,Effect1:11,Red-Green:2,Edit2HOLD:0,TapOnOff:0","Style:1","Tap:4","PowerLevel:16","Edit2:20","Edit3:46","Volume:78","Treble:77","Middle:73","Bass:70","Effect2:10","Master:48","Gain:61","Edit1:84","Effect1:11","Red-Green:2","Edit2HOLD:0","TapOnOff:0",279]
["John Mayer Wah","red_strat","Fun John Mayer Wah, Adjust Master and Power level to suit...Adjust volume on guitar to get less or more wah. Finger pick it.","John Mayer, I Dont Trust Myself - Where the Light is Live in Los Angeles","Valvetronix+ (VT40+)","WAH ","2011-02-06",null,0,null,"Style:4,Tap:10,PowerLevel:11,Edit2:4,Edit3:21,Volume:57,Treble:40,Middle:49,Bass:54,Effect2:10,Master:52,Gain:43,Edit1:36,Effect1:3,Red-Green:2,Edit2HOLD:50,TapOnOff:0","Style:4","Tap:10","PowerLevel:11","Edit2:4","Edit3:21","Volume:57","Treble:40","Middle:49","Bass:54","Effect2:10","Master:52","Gain:43","Edit1:36","Effect1:3","Red-Green:2","Edit2HOLD:50","TapOnOff:0",280]
["Avenged Sevenfold Afterlife+Trashed and scattered","jimmypage1995","As close as i can get without useing other effect pedals","Avenged Sevonfold, City of evil Avenged sevonfold","Valvetronix+ (VT20+)","Metal ","2011-02-01",null,0,null,"Style:8,Tap:2,PowerLevel:60,Edit2:6,Edit3:65,Volume:100,Treble:100,Middle:15,Bass:85,Effect2:10,Master:6,Gain:27,Edit1:100,Effect1:7,Red-Green:3,Edit2HOLD:1,TapOnOff:0","Style:8","Tap:2","PowerLevel:60","Edit2:6","Edit3:65","Volume:100","Treble:100","Middle:15","Bass:85","Effect2:10","Master:6","Gain:27","Edit1:100","Effect1:7","Red-Green:3","Edit2HOLD:1","TapOnOff:0",281]
["Testing tone","jampot661","A tone to test different set ups","-","Valvetronix+ (VT40+)","Testie ","2011-01-25",null,0,null,"Style:7,Tap:2,PowerLevel:40,Edit2:33,Edit3:14,Volume:31,Treble:26,Middle:35,Bass:28,Effect2:11,Master:40,Gain:22,Edit1:35,Effect1:9,Red-Green:1,Edit2HOLD:1,TapOnOff:0","Style:7","Tap:2","PowerLevel:40","Edit2:33","Edit3:14","Volume:31","Treble:26","Middle:35","Bass:28","Effect2:11","Master:40","Gain:22","Edit1:35","Effect1:9","Red-Green:1","Edit2HOLD:1","TapOnOff:0",282]
["Lonely","jwgreg","Raw Raconteurs Style - 1st Tone so still a work in progress. Please feel free to take and improve upon","Raconteurs, Consolers of the Lonely","Valvetronix+ (VT40+)","Raw Jack White sty ","2011-01-25",null,1,4,"Style:11,Tap:189,PowerLevel:24,Edit2:0,Edit3:14,Volume:93,Treble:86,Middle:15,Bass:80,Effect2:1,Master:42,Gain:64,Edit1:15,Effect1:1,Red-Green:1,Edit2HOLD:1,TapOnOff:0","Style:11","Tap:189","PowerLevel:24","Edit2:0","Edit3:14","Volume:93","Treble:86","Middle:15","Bass:80","Effect2:1","Master:42","Gain:64","Edit1:15","Effect1:1","Red-Green:1","Edit2HOLD:1","TapOnOff:0",283]
["late 80's Guitar Hero","vintagevacuumtube","Think in shred!!!","-","Valvetronix+ (VT20+)","Solo Guitar Hero ","2011-01-24",null,1,5,"Style:9,Tap:3,PowerLevel:18,Edit2:35,Edit3:0,Volume:94,Treble:84,Middle:65,Bass:76,Effect2:10,Master:50,Gain:95,Edit1:50,Effect1:1,Red-Green:3,Edit2HOLD:0,TapOnOff:0","Style:9","Tap:3","PowerLevel:18","Edit2:35","Edit3:0","Volume:94","Treble:84","Middle:65","Bass:76","Effect2:10","Master:50","Gain:95","Edit1:50","Effect1:1","Red-Green:3","Edit2HOLD:0","TapOnOff:0",284]
["Gilmore – ish","armycopter","You'll need a tube overdrive pedal in front of the amp. Alternately you can use a compression pedal and change the VT20+ pedal to Tube OD","Pink Floyd,David Gilmore, Comfortably Numb","Valvetronix+ (VT20+)","Lead Rock ","2011-01-24",null,0,null,"Style:7,Tap:5,PowerLevel:25,Edit2:51,Edit3:50,Volume:85,Treble:45,Middle:18,Bass:76,Effect2:10,Master:35,Gain:39,Edit1:51,Effect1:1,Red-Green:3,Edit2HOLD:1,TapOnOff:0","Style:7","Tap:5","PowerLevel:25","Edit2:51","Edit3:50","Volume:85","Treble:45","Middle:18","Bass:76","Effect2:10","Master:35","Gain:39","Edit1:51","Effect1:1","Red-Green:3","Edit2HOLD:1","TapOnOff:0",285]
["Nu Metal","vincentparker","Guitar Volume at half and tone 1/4 sounds great with Meteora album. play along!!","Linkin Park, Faint","Valvetronix+ (VT20+)","Nu Metal ","2011-01-23",null,2,4.5,"Style:9,Tap:550,PowerLevel:33,Edit2:0,Edit3:0,Volume:49,Treble:55,Middle:47,Bass:31,Effect2:1,Master:49,Gain:100,Edit1:15,Effect1:7,Red-Green:2,Edit2HOLD:1,TapOnOff:0","Style:9","Tap:550","PowerLevel:33","Edit2:0","Edit3:0","Volume:49","Treble:55","Middle:47","Bass:31","Effect2:1","Master:49","Gain:100","Edit1:15","Effect1:7","Red-Green:2","Edit2HOLD:1","TapOnOff:0",286]
["Remembering Stevie","vintagevacuumtube","A Texas Blues solo tone that Stevie could have used.","Stevie Ray Vaughan, Pride and Joy","Valvetronix+ (VT20+)","Texas Blues ","2011-01-22",null,3,3.6,"Style:4,Tap:327,PowerLevel:17,Edit2:0,Edit3:43,Volume:90,Treble:55,Middle:65,Bass:75,Effect2:1,Master:50,Gain:61,Edit1:65,Effect1:7,Red-Green:2,Edit2HOLD:1,TapOnOff:0","Style:4","Tap:327","PowerLevel:17","Edit2:0","Edit3:43","Volume:90","Treble:55","Middle:65","Bass:75","Effect2:1","Master:50","Gain:61","Edit1:65","Effect1:7","Red-Green:2","Edit2HOLD:1","TapOnOff:0",287]
["High Gain Metal","simsdogg92","This is a great high gain metal tone for single coil pickups.","-","Valvetronix+ (VT40+)","Metal ","2011-01-20",null,1,1,"Style:6,Tap:4,PowerLevel:8,Edit2:60,Edit3:44,Volume:100,Treble:62,Middle:100,Bass:62,Effect2:10,Master:100,Gain:75,Edit1:0,Effect1:1,Red-Green:1,Edit2HOLD:0,TapOnOff:0","Style:6","Tap:4","PowerLevel:8","Edit2:60","Edit3:44","Volume:100","Treble:62","Middle:100","Bass:62","Effect2:10","Master:100","Gain:75","Edit1:0","Effect1:1","Red-Green:1","Edit2HOLD:0","TapOnOff:0",288]
["tone to avoid the hiss sound","jerdix","works with all amp models. The only thing you have do to is turn treble and middle to zero. So, the only thing to change the tone is the bass-chickenhead and your guitar-knobs.","-","Valvetronix+ (VT20+)","just for testing ","2011-01-20",null,0,null,"Style:6,Tap:10,PowerLevel:26,Edit2:0,Edit3:0,Volume:48,Treble:0,Middle:0,Bass:38,Effect2:1,Master:57,Gain:54,Edit1:0,Effect1:1,Red-Green:1,Edit2HOLD:1,TapOnOff:0","Style:6","Tap:10","PowerLevel:26","Edit2:0","Edit3:0","Volume:48","Treble:0","Middle:0","Bass:38","Effect2:1","Master:57","Gain:54","Edit1:0","Effect1:1","Red-Green:1","Edit2HOLD:1","TapOnOff:0",289]
["Hiss-Sound","jerdix","Play with palm-mutes and take your guitar-tone low (1 or 2) and you can hear the ultimat \"VOX-hiss-sound\". Sounds like snare-drum.","-","Valvetronix+ (VT20+)","VOX - cruel-sound ","2011-01-19",null,2,3,"Style:6,Tap:10,PowerLevel:35,Edit2:0,Edit3:0,Volume:61,Treble:100,Middle:50,Bass:40,Effect2:1,Master:100,Gain:51,Edit1:0,Effect1:1,Red-Green:2,Edit2HOLD:1,TapOnOff:0","Style:6","Tap:10","PowerLevel:35","Edit2:0","Edit3:0","Volume:61","Treble:100","Middle:50","Bass:40","Effect2:1","Master:100","Gain:51","Edit1:0","Effect1:1","Red-Green:2","Edit2HOLD:1","TapOnOff:0",290]
["Clear and Crunchy","joymitra","Well. Searching desperately to emulate the crunch from Matt Mays's City of Lakes, on youtube. I think he uses a Fender Supersonic.. anyhow.. check it out.","Matt Mays and Springsteen, City of Lakes/Radio Nowhere","Valvetronix+ (VT40+)","Crunch ","2011-01-16",null,0,null,"Style:4,Tap:1,PowerLevel:50,Edit2:0,Edit3:0,Volume:98,Treble:50,Middle:40,Bass:53,Effect2:1,Master:100,Gain:43,Edit1:15,Effect1:7,Red-Green:1,Edit2HOLD:1,TapOnOff:0","Style:4","Tap:1","PowerLevel:50","Edit2:0","Edit3:0","Volume:98","Treble:50","Middle:40","Bass:53","Effect2:1","Master:100","Gain:43","Edit1:15","Effect1:7","Red-Green:1","Edit2HOLD:1","TapOnOff:0",291]
["Comfortably Numb","boblisic","Must have a external compressor in front (MXR = Output 12 o'clock Sensitivity 11 o'clock","David Gilmour, Comfortably Numb / The Wall","Valvetronix+ (VT40+)","Lead ","2011-01-15",null,3,3.7,"Style:7,Tap:4,PowerLevel:13,Edit2:13,Edit3:0,Volume:88,Treble:61,Middle:18,Bass:77,Effect2:10,Master:38,Gain:40,Edit1:50,Effect1:7,Red-Green:3,Edit2HOLD:1,TapOnOff:0","Style:7","Tap:4","PowerLevel:13","Edit2:13","Edit3:0","Volume:88","Treble:61","Middle:18","Bass:77","Effect2:10","Master:38","Gain:40","Edit1:50","Effect1:7","Red-Green:3","Edit2HOLD:1","TapOnOff:0",292]
["Stone sour","bignick99","Kind of a generic SS rhythm tone, add some tube OD for the lead parts and boost the mids with a touch of delay. And don't forget the C# drop B tuning.","Stone Sour, Get inside","Valvetronix+ (VT40+)","Metal/Rock ","2011-01-15",null,1,4,"Style:9,Tap:918,PowerLevel:42,Edit2:0,Edit3:70,Volume:49,Treble:70,Middle:18,Bass:82,Effect2:1,Master:83,Gain:98,Edit1:0,Effect1:7,Red-Green:2,Edit2HOLD:1,TapOnOff:0","Style:9","Tap:918","PowerLevel:42","Edit2:0","Edit3:70","Volume:49","Treble:70","Middle:18","Bass:82","Effect2:1","Master:83","Gain:98","Edit1:0","Effect1:7","Red-Green:2","Edit2HOLD:1","TapOnOff:0",293]
["Mark Knopfler / Dire Straits Tone","jerdix","Tone especially for finger-picking","Mark Knopfler, Sultans of Swing","Valvetronix+ (VT20+)","Strat-Style ","2011-01-14",null,1,3,"Style:4,Tap:10,PowerLevel:17,Edit2:0,Edit3:50,Volume:54,Treble:78,Middle:48,Bass:48,Effect2:1,Master:47,Gain:21,Edit1:0,Effect1:1,Red-Green:3,Edit2HOLD:1,TapOnOff:0","Style:4","Tap:10","PowerLevel:17","Edit2:0","Edit3:50","Volume:54","Treble:78","Middle:48","Bass:48","Effect2:1","Master:47","Gain:21","Edit1:0","Effect1:1","Red-Green:3","Edit2HOLD:1","TapOnOff:0",294]
["House of the Rising Sun","andycrane","My House of the Rising Sun tone","-","Valvetronix+ (VT20+)","Rock and Roll ","2011-01-12",null,2,3,"Style:2,Tap:10,PowerLevel:14,Edit2:0,Edit3:26,Volume:66,Treble:100,Middle:72,Bass:28,Effect2:1,Master:35,Gain:38,Edit1:100,Effect1:6,Red-Green:2,Edit2HOLD:1,TapOnOff:0","Style:2","Tap:10","PowerLevel:14","Edit2:0","Edit3:26","Volume:66","Treble:100","Middle:72","Bass:28","Effect2:1","Master:35","Gain:38","Edit1:100","Effect1:6","Red-Green:2","Edit2HOLD:1","TapOnOff:0",295]
["THE Cranked Plexi Tone","quijeebo","You know it's right","-","Valvetronix+ (VT120+)","Rock And Roll ","2011-01-12",null,3,3,"Style:7,Tap:16,PowerLevel:100,Edit2:0,Edit3:0,Volume:100,Treble:100,Middle:100,Bass:100,Effect2:1,Master:100,Gain:100,Edit1:0,Effect1:1,Red-Green:1,Edit2HOLD:1,TapOnOff:0","Style:7","Tap:16","PowerLevel:100","Edit2:0","Edit3:0","Volume:100","Treble:100","Middle:100","Bass:100","Effect2:1","Master:100","Gain:100","Edit1:0","Effect1:1","Red-Green:1","Edit2HOLD:1","TapOnOff:0",296]
["Calling Dr Love","andycrane","Calling Dr Love - Kiss tone","-","Valvetronix+ (VT20+)","Rock ","2011-01-12",null,3,4.5999999999999996,"Style:6,Tap:10,PowerLevel:16,Edit2:0,Edit3:0,Volume:100,Treble:75,Middle:32,Bass:100,Effect2:1,Master:20,Gain:100,Edit1:0,Effect1:1,Red-Green:1,Edit2HOLD:1,TapOnOff:0","Style:6","Tap:10","PowerLevel:16","Edit2:0","Edit3:0","Volume:100","Treble:75","Middle:32","Bass:100","Effect2:1","Master:20","Gain:100","Edit1:0","Effect1:1","Red-Green:1","Edit2HOLD:1","TapOnOff:0",297]
["Cemetery Gates Intro","andycrane","My Cemetery Gates Intro","-","Valvetronix+ (VT20+)","Metal ","2011-01-12",null,3,4.2,"Style:1,Tap:21,PowerLevel:18,Edit2:100,Edit3:93,Volume:100,Treble:100,Middle:21,Bass:90,Effect2:2,Master:16,Gain:60,Edit1:100,Effect1:2,Red-Green:2,Edit2HOLD:1,TapOnOff:0","Style:1","Tap:21","PowerLevel:18","Edit2:100","Edit3:93","Volume:100","Treble:100","Middle:21","Bass:90","Effect2:2","Master:16","Gain:60","Edit1:100","Effect1:2","Red-Green:2","Edit2HOLD:1","TapOnOff:0",298]
["Metaltone/True","running_free","One of my Hammerfall like sounds...try it ;-)","Hammerfall, Let the hammer fall","Valvetronix+ (VT20+)","Metal ","2011-01-11",null,0,null,"Style:9,Tap:10,PowerLevel:35,Edit2:0,Edit3:0,Volume:42,Treble:90,Middle:83,Bass:74,Effect2:1,Master:34,Gain:87,Edit1:0,Effect1:1,Red-Green:1,Edit2HOLD:1,TapOnOff:0","Style:9","Tap:10","PowerLevel:35","Edit2:0","Edit3:0","Volume:42","Treble:90","Middle:83","Bass:74","Effect2:1","Master:34","Gain:87","Edit1:0","Effect1:1","Red-Green:1","Edit2HOLD:1","TapOnOff:0",299]
["Yorkish","vox_tom_usa","Thom York-ish sound","-","Valvetronix+ (VT40+)","Rock ","2011-01-11",null,0,null,"Style:6,Tap:0,PowerLevel:40,Edit2:43,Edit3:71,Volume:62,Treble:42,Middle:53,Bass:52,Effect2:7,Master:43,Gain:44,Edit1:0,Effect1:1,Red-Green:2,Edit2HOLD:100,TapOnOff:0","Style:6","Tap:0","PowerLevel:40","Edit2:43","Edit3:71","Volume:62","Treble:42","Middle:53","Bass:52","Effect2:7","Master:43","Gain:44","Edit1:0","Effect1:1","Red-Green:2","Edit2HOLD:100","TapOnOff:0",300]
["What's that?","vox_tom_usa","Get the vibe speed really slow and the tremolo speed really fast.","-","Valvetronix+ (VT40+)","Any ","2011-01-11",null,0,null,"Style:4,Tap:1,PowerLevel:42,Edit2:100,Edit3:0,Volume:88,Treble:64,Middle:72,Bass:82,Effect2:5,Master:40,Gain:40,Edit1:3,Effect1:4,Red-Green:3,Edit2HOLD:1,TapOnOff:0","Style:4","Tap:1","PowerLevel:42","Edit2:100","Edit3:0","Volume:88","Treble:64","Middle:72","Bass:82","Effect2:5","Master:40","Gain:40","Edit1:3","Effect1:4","Red-Green:3","Edit2HOLD:1","TapOnOff:0",301]
["Opeth like","wolf6","The noise sensitivity has to be kinda high, about 60%","Opeth, Ghost Reveries","Valvetronix+ (VT20+)","Progressive Metal ","2011-01-11",null,1,1,"Style:11,Tap:10,PowerLevel:62,Edit2:0,Edit3:18,Volume:32,Treble:71,Middle:90,Bass:69,Effect2:1,Master:17,Gain:91,Edit1:0,Effect1:1,Red-Green:1,Edit2HOLD:1,TapOnOff:0","Style:11","Tap:10","PowerLevel:62","Edit2:0","Edit3:18","Volume:32","Treble:71","Middle:90","Bass:69","Effect2:1","Master:17","Gain:91","Edit1:0","Effect1:1","Red-Green:1","Edit2HOLD:1","TapOnOff:0",302]
["Shredda","vox_tom_usa","Shred your face off!","-","Valvetronix+ (VT40+)","Shred ","2011-01-11",null,0,null,"Style:9,Tap:10,PowerLevel:39,Edit2:90,Edit3:0,Volume:99,Treble:70,Middle:16,Bass:38,Effect2:11,Master:39,Gain:54,Edit1:34,Effect1:10,Red-Green:1,Edit2HOLD:33,TapOnOff:0","Style:9","Tap:10","PowerLevel:39","Edit2:90","Edit3:0","Volume:99","Treble:70","Middle:16","Bass:38","Effect2:11","Master:39","Gain:54","Edit1:34","Effect1:10","Red-Green:1","Edit2HOLD:33","TapOnOff:0",303]
["Won't Get Fooled Again","vox_tom_usa","Do some windmills!","The Who, Won39t Get Fooled Again","Valvetronix+ (VT40+)","Rock ","2011-01-11",null,1,3,"Style:7,Tap:10,PowerLevel:38,Edit2:0,Edit3:38,Volume:100,Treble:95,Middle:43,Bass:35,Effect2:1,Master:41,Gain:60,Edit1:0,Effect1:1,Red-Green:1,Edit2HOLD:1,TapOnOff:0","Style:7","Tap:10","PowerLevel:38","Edit2:0","Edit3:38","Volume:100","Treble:95","Middle:43","Bass:35","Effect2:1","Master:41","Gain:60","Edit1:0","Effect1:1","Red-Green:1","Edit2HOLD:1","TapOnOff:0",304]
["B. May","vox_tom_usa","Great Brian May rhythm tone.","Queen, 7 Seas of Rhye","Valvetronix+ (VT40+)","Rock ","2011-01-11",null,0,null,"Style:6,Tap:10,PowerLevel:45,Edit2:0,Edit3:43,Volume:65,Treble:57,Middle:60,Bass:44,Effect2:1,Master:45,Gain:62,Edit1:0,Effect1:1,Red-Green:1,Edit2HOLD:1,TapOnOff:0","Style:6","Tap:10","PowerLevel:45","Edit2:0","Edit3:43","Volume:65","Treble:57","Middle:60","Bass:44","Effect2:1","Master:45","Gain:62","Edit1:0","Effect1:1","Red-Green:1","Edit2HOLD:1","TapOnOff:0",305]
["Led Boots","vox_tom_usa","Get the delay going with a moderate speed.","Jeff Beck, Led Boots / Wired","Valvetronix+ (VT40+)","Rock/Fusion ","2011-01-11",null,0,null,"Style:7,Tap:5,PowerLevel:45,Edit2:41,Edit3:0,Volume:72,Treble:93,Middle:90,Bass:42,Effect2:9,Master:39,Gain:90,Edit1:38,Effect1:11,Red-Green:2,Edit2HOLD:13,TapOnOff:0","Style:7","Tap:5","PowerLevel:45","Edit2:41","Edit3:0","Volume:72","Treble:93","Middle:90","Bass:42","Effect2:9","Master:39","Gain:90","Edit1:38","Effect1:11","Red-Green:2","Edit2HOLD:13","TapOnOff:0",306]
["Peace Frog","vox_tom_usa","The Lizard King strikes again!","The Doors, Peace Frog","Valvetronix+ (VT40+)","Rock ","2011-01-11",null,0,null,"Style:3,Tap:10,PowerLevel:40,Edit2:0,Edit3:44,Volume:61,Treble:86,Middle:76,Bass:39,Effect2:1,Master:44,Gain:38,Edit1:0,Effect1:1,Red-Green:3,Edit2HOLD:1,TapOnOff:0","Style:3","Tap:10","PowerLevel:40","Edit2:0","Edit3:44","Volume:61","Treble:86","Middle:76","Bass:39","Effect2:1","Master:44","Gain:38","Edit1:0","Effect1:1","Red-Green:3","Edit2HOLD:1","TapOnOff:0",307]
["Moonage Daydream","vox_tom_usa","Get the delay extremely fast (ADT style) and hold down the TAP button to adjust the feedback to one repeat.","David Bowie/Mick Ronson, Moonage Daydream","Valvetronix+ (VT40+)","Glam Rock ","2011-01-11",null,0,null,"Style:7,Tap:1,PowerLevel:39,Edit2:64,Edit3:0,Volume:65,Treble:32,Middle:100,Bass:0,Effect2:9,Master:36,Gain:63,Edit1:6,Effect1:11,Red-Green:2,Edit2HOLD:1,TapOnOff:0","Style:7","Tap:1","PowerLevel:39","Edit2:64","Edit3:0","Volume:65","Treble:32","Middle:100","Bass:0","Effect2:9","Master:36","Gain:63","Edit1:6","Effect1:11","Red-Green:2","Edit2HOLD:1","TapOnOff:0",308]
["She Said She Said","vox_tom_usa","Classic psychedelia from the Fab Four.","The Beatles, She Said She Said / Revolver","Valvetronix+ (VT40+)","Classic Rock ","2011-01-11",null,3,3.6,"Style:6,Tap:10,PowerLevel:43,Edit2:0,Edit3:0,Volume:100,Treble:61,Middle:62,Bass:69,Effect2:1,Master:40,Gain:43,Edit1:0,Effect1:1,Red-Green:2,Edit2HOLD:1,TapOnOff:0","Style:6","Tap:10","PowerLevel:43","Edit2:0","Edit3:0","Volume:100","Treble:61","Middle:62","Bass:69","Effect2:1","Master:40","Gain:43","Edit1:0","Effect1:1","Red-Green:2","Edit2HOLD:1","TapOnOff:0",309]
["Rocks Off","vox_tom_usa","Add just a touch of room reverb.","The Rolling Stones, Rocks Off / Exile on Main Street","Valvetronix+ (VT40+)","Classic Rock ","2011-01-11",null,0,null,"Style:3,Tap:10,PowerLevel:40,Edit2:0,Edit3:3,Volume:86,Treble:90,Middle:60,Bass:65,Effect2:1,Master:41,Gain:35,Edit1:0,Effect1:1,Red-Green:3,Edit2HOLD:1,TapOnOff:0","Style:3","Tap:10","PowerLevel:40","Edit2:0","Edit3:3","Volume:86","Treble:90","Middle:60","Bass:65","Effect2:1","Master:41","Gain:35","Edit1:0","Effect1:1","Red-Green:3","Edit2HOLD:1","TapOnOff:0",310]
["Bridge of Sighs","vox_tom_usa","Try to get the vibe pedal going as slow as possible.","Robin Trower, Bridge of Sighs","Valvetronix+ (VT40+)","Classic Rock ","2011-01-11",null,0,null,"Style:7,Tap:10,PowerLevel:42,Edit2:0,Edit3:0,Volume:100,Treble:100,Middle:100,Bass:89,Effect2:1,Master:40,Gain:100,Edit1:8,Effect1:4,Red-Green:2,Edit2HOLD:1,TapOnOff:0","Style:7","Tap:10","PowerLevel:42","Edit2:0","Edit3:0","Volume:100","Treble:100","Middle:100","Bass:89","Effect2:1","Master:40","Gain:100","Edit1:8","Effect1:4","Red-Green:2","Edit2HOLD:1","TapOnOff:0",311]
["How Many More Times (post-wah intro)","vox_tom_usa","Verse sound, post wah intro.","Led Zeppelin, How Many More Times / Led Zeppelin I","Valvetronix+ (VT40+)","Classic Rock ","2011-01-11",null,1,4,"Style:6,Tap:10,PowerLevel:43,Edit2:0,Edit3:0,Volume:100,Treble:87,Middle:100,Bass:84,Effect2:1,Master:43,Gain:40,Edit1:58,Effect1:11,Red-Green:3,Edit2HOLD:1,TapOnOff:0","Style:6","Tap:10","PowerLevel:43","Edit2:0","Edit3:0","Volume:100","Treble:87","Middle:100","Bass:84","Effect2:1","Master:43","Gain:40","Edit1:58","Effect1:11","Red-Green:3","Edit2HOLD:1","TapOnOff:0",312]
["Whipping post","vox_tom_usa","Turn down to clean it up and turn up for soloing.","The Allman Brothers, Whipping Post/The Allman Brothers Band","Valvetronix+ (VT40+)","Blues/Rock ","2011-01-11",null,0,null,"Style:2,Tap:10,PowerLevel:43,Edit2:0,Edit3:0,Volume:100,Treble:100,Middle:100,Bass:58,Effect2:1,Master:42,Gain:40,Edit1:0,Effect1:1,Red-Green:3,Edit2HOLD:1,TapOnOff:0","Style:2","Tap:10","PowerLevel:43","Edit2:0","Edit3:0","Volume:100","Treble:100","Middle:100","Bass:58","Effect2:1","Master:42","Gain:40","Edit1:0","Effect1:1","Red-Green:3","Edit2HOLD:1","TapOnOff:0",313]
["Walshy","vox_tom_usa","Hold the TAP button and bring up the number of repeats until you get about 4 or 5 clear ones. Sh","Joe Walsh/James Gang, Asshtonpark","Valvetronix+ (VT40+)","Classic Rock ","2011-01-11",null,0,null,"Style:4,Tap:10,PowerLevel:45,Edit2:100,Edit3:0,Volume:66,Treble:80,Middle:95,Bass:54,Effect2:9,Master:36,Gain:100,Edit1:0,Effect1:1,Red-Green:3,Edit2HOLD:39,TapOnOff:0","Style:4","Tap:10","PowerLevel:45","Edit2:100","Edit3:0","Volume:66","Treble:80","Middle:95","Bass:54","Effect2:9","Master:36","Gain:100","Edit1:0","Effect1:1","Red-Green:3","Edit2HOLD:39","TapOnOff:0",314]
["Blues Lead","vox_tom_usa","Classic blues sound.","-","Valvetronix+ (VT40+)","Blues ","2011-01-11",null,2,3,"Style:4,Tap:10,PowerLevel:45,Edit2:0,Edit3:37,Volume:67,Treble:88,Middle:100,Bass:100,Effect2:1,Master:44,Gain:76,Edit1:0,Effect1:1,Red-Green:3,Edit2HOLD:1,TapOnOff:0","Style:4","Tap:10","PowerLevel:45","Edit2:0","Edit3:37","Volume:67","Treble:88","Middle:100","Bass:100","Effect2:1","Master:44","Gain:76","Edit1:0","Effect1:1","Red-Green:3","Edit2HOLD:1","TapOnOff:0",315]
["80's Clean","vox_tom_usa","Clean chorused guitar tone straight out of 1986.","-","Valvetronix+ (VT40+)","any ","2011-01-11",null,2,4,"Style:1,Tap:10,PowerLevel:40,Edit2:41,Edit3:69,Volume:61,Treble:93,Middle:84,Bass:82,Effect2:11,Master:40,Gain:44,Edit1:35,Effect1:1,Red-Green:2,Edit2HOLD:1,TapOnOff:0","Style:1","Tap:10","PowerLevel:40","Edit2:41","Edit3:69","Volume:61","Treble:93","Middle:84","Bass:82","Effect2:11","Master:40","Gain:44","Edit1:35","Effect1:1","Red-Green:2","Edit2HOLD:1","TapOnOff:0",316]
["Fuzz It Up","vox_tom_usa","Expand your mind with this psychedelic fuzz.","-","Valvetronix+ (VT40+)","Psychedelic ","2011-01-11",null,2,3.5,"Style:1,Tap:10,PowerLevel:39,Edit2:0,Edit3:0,Volume:66,Treble:61,Middle:61,Bass:62,Effect2:1,Master:37,Gain:64,Edit1:88,Effect1:11,Red-Green:3,Edit2HOLD:1,TapOnOff:0","Style:1","Tap:10","PowerLevel:39","Edit2:0","Edit3:0","Volume:66","Treble:61","Middle:61","Bass:62","Effect2:1","Master:37","Gain:64","Edit1:88","Effect1:11","Red-Green:3","Edit2HOLD:1","TapOnOff:0",317]
["Headbanger's Delight","vox_tom_usa","rawk!","-","Valvetronix+ (VT40+)","Metal ","2011-01-11",null,0,null,"Style:11,Tap:10,PowerLevel:46,Edit2:0,Edit3:0,Volume:71,Treble:94,Middle:0,Bass:92,Effect2:1,Master:39,Gain:80,Edit1:66,Effect1:7,Red-Green:3,Edit2HOLD:1,TapOnOff:0","Style:11","Tap:10","PowerLevel:46","Edit2:0","Edit3:0","Volume:71","Treble:94","Middle:0","Bass:92","Effect2:1","Master:39","Gain:80","Edit1:66","Effect1:7","Red-Green:3","Edit2HOLD:1","TapOnOff:0",318]
["Nashville","vox_tom_usa","Tap the TAP tempo button like you would double-click a mouse to get the speed really fast. While holding the TAP button, adjust the depth knob until there is only one repeated echo.","-","Valvetronix+ (VT40+)","Country ","2011-01-11",null,1,5,"Style:1,Tap:1,PowerLevel:44,Edit2:42,Edit3:41,Volume:40,Treble:84,Middle:88,Bass:40,Effect2:9,Master:95,Gain:37,Edit1:9,Effect1:1,Red-Green:1,Edit2HOLD:1,TapOnOff:0","Style:1","Tap:1","PowerLevel:44","Edit2:42","Edit3:41","Volume:40","Treble:84","Middle:88","Bass:40","Effect2:9","Master:95","Gain:37","Edit1:9","Effect1:1","Red-Green:1","Edit2HOLD:1","TapOnOff:0",319]
["60's USA","vox_tom_usa","Get a fast tremolo going and you're set. Nice big open chords sound great with this one.","-","Valvetronix+ (VT40+)","Surf ","2011-01-11",null,0,null,"Style:2,Tap:2,PowerLevel:38,Edit2:60,Edit3:50,Volume:67,Treble:68,Middle:61,Bass:50,Effect2:5,Master:90,Gain:16,Edit1:0,Effect1:1,Red-Green:1,Edit2HOLD:1,TapOnOff:0","Style:2","Tap:2","PowerLevel:38","Edit2:60","Edit3:50","Volume:67","Treble:68","Middle:61","Bass:50","Effect2:5","Master:90","Gain:16","Edit1:0","Effect1:1","Red-Green:1","Edit2HOLD:1","TapOnOff:0",320]
["AC30 Dirty Rhythm","vox_tom_usa","Great sounding dirty rhythm guitar tone for blues, rock, country, and more.","-","Valvetronix+ (VT40+)","Blues Rock Country ","2011-01-11",null,1,4,"Style:6,Tap:10,PowerLevel:42,Edit2:0,Edit3:0,Volume:65,Treble:43,Middle:57,Bass:63,Effect2:1,Master:39,Gain:42,Edit1:0,Effect1:1,Red-Green:2,Edit2HOLD:1,TapOnOff:0","Style:6","Tap:10","PowerLevel:42","Edit2:0","Edit3:0","Volume:65","Treble:43","Middle:57","Bass:63","Effect2:1","Master:39","Gain:42","Edit1:0","Effect1:1","Red-Green:2","Edit2HOLD:1","TapOnOff:0",321]
["Face Melter","vox_tom_usa","Works great with a slow, sweeping Flanger. Try some lead lines above the 12th fret.","-","Valvetronix+ (VT40+)","Rock ","2011-01-11",null,0,null,"Style:7,Tap:112,PowerLevel:45,Edit2:21,Edit3:67,Volume:100,Treble:100,Middle:100,Bass:100,Effect2:3,Master:36,Gain:100,Edit1:100,Effect1:7,Red-Green:2,Edit2HOLD:1,TapOnOff:0","Style:7","Tap:112","PowerLevel:45","Edit2:21","Edit3:67","Volume:100","Treble:100","Middle:100","Bass:100","Effect2:3","Master:36","Gain:100","Edit1:100","Effect1:7","Red-Green:2","Edit2HOLD:1","TapOnOff:0",322]
["Funktopus","vox_tom_usa","Get down with the funky sounds of the Funktopus!","-","Valvetronix+ (VT40+)","Funk ","2011-01-11",null,0,null,"Style:1,Tap:0,PowerLevel:42,Edit2:51,Edit3:37,Volume:78,Treble:82,Middle:96,Bass:87,Effect2:8,Master:35,Gain:71,Edit1:52,Effect1:5,Red-Green:2,Edit2HOLD:36,TapOnOff:0","Style:1","Tap:0","PowerLevel:42","Edit2:51","Edit3:37","Volume:78","Treble:82","Middle:96","Bass:87","Effect2:8","Master:35","Gain:71","Edit1:52","Effect1:5","Red-Green:2","Edit2HOLD:36","TapOnOff:0",323]
["Slow Rotating Speaker","vox_tom_usa","Try to get the speed of the motor to be as slow as possible. Great for arpeggiating open chords and slow finger picking.","Cream, Badge/Goodbye","Valvetronix+ (VT40+)","Classic Rock ","2011-01-11",null,1,3,"Style:2,Tap:37,PowerLevel:37,Edit2:50,Edit3:6,Volume:91,Treble:82,Middle:96,Bass:94,Effect2:6,Master:36,Gain:50,Edit1:0,Effect1:1,Red-Green:3,Edit2HOLD:1,TapOnOff:0","Style:2","Tap:37","PowerLevel:37","Edit2:50","Edit3:6","Volume:91","Treble:82","Middle:96","Bass:94","Effect2:6","Master:36","Gain:50","Edit1:0","Effect1:1","Red-Green:3","Edit2HOLD:1","TapOnOff:0",324]
["Phasey","vox_tom_usa","Try to get the speed of the phaser relatively slow.","The Clash, Jimmy Jazz/London Calling","Valvetronix+ (VT40+)","any ","2011-01-11",null,1,4,"Style:2,Tap:13,PowerLevel:39,Edit2:30,Edit3:0,Volume:63,Treble:64,Middle:64,Bass:56,Effect2:4,Master:36,Gain:28,Edit1:0,Effect1:1,Red-Green:2,Edit2HOLD:1,TapOnOff:0","Style:2","Tap:13","PowerLevel:39","Edit2:30","Edit3:0","Volume:63","Treble:64","Middle:64","Bass:56","Effect2:4","Master:36","Gain:28","Edit1:0","Effect1:1","Red-Green:2","Edit2HOLD:1","TapOnOff:0",325]
["  "]